Workbook

Sheet Instructions
A1: ='DNSP Inputs O & M'!$A$3 -> Powercor
A3: Instructions
A5: This model is to be used for the setting of Public Lighting Tariffs for the Regulatory Period 2016 to 2020 based on forecast inflation rates and Real Pre Tax WACC.
A7: Distributor data input fields are shaded | C7: and located in tabs "DNSP Inputs General" , "DNSP Inputs O & M" and "DNSP Inputs Capex"
A8: NOTE : All Distributor data input fields have been populated with AER Preliminary Decision data in this model.
A12: This model will also to be used for the annual Public Lighting Tariff Approvals in the Regulatory Period 2016 to 2020 based on actual inflation rates and Real Pre Tax WACC.
H70: =G70 -> 0 | I70: =H70 -> 0 | J70: =I70 -> 0 | K70: =J70 -> 0 | L70: =K70 -> 0

Sheet DNSP Inputs General
A1: ='DNSP Inputs O & M'!$A$3 -> Powercor
B2: 2009 | D2: 2009 | E2: 2010 | F2: 2011 | G2: 2012 | H2: 2013 | I2: 2014 | J2: 2015 | K2: 2016 | L2: 2017 | M2: 2018 | N2: 2019 | O2: 2020
A3: Capital Expenditure | B3: Submission Model | D3: Nominal $ - Actual | J3: Real 2015 $ - Forecast
A4: (Net of customer contributions)
A6: Poles and Brackets | B6: 216473.8747 | C6: =B6/B$14 -> 0.2 | D6: =D$15*C6 -> 243213.85 | E6: 1063986.649 | F6: 735187.596 | G6: 1695675.389 | H6: 2267621.471 | I6: 3028236.092 | J6: 4439699.161 | K6: ='Capex 2016-2020'!B23 -> 777015.489 | L6: ='Capex 2016-2020'!C23 -> 780337.5046 | M6: ='Capex 2016-2020'!D23 -> 783588.5453 | N6: ='Capex 2016-2020'!E23 -> 786890.4183 | O6: ='Capex 2016-2020'!F23 -> 790259.693
A8: Existing Lights
A9: Luminaires | B9: 622405.6845 | C9: =B9/B$14 -> 0.57504 | D9: =D$15*C9 -> 699288.4615 | E9: 540539.0458 | F9: 437172.5959 | G9: 389009.3207 | H9: 487489.2078 | I9: 811892.1229 | J9: 1346500.554 | K9: ='Capex 2016-2020'!B13-'Capex 2016-2020'!B30 -> 1328271.707 | L9: ='Capex 2016-2020'!C13-'Capex 2016-2020'!C30 -> 1178010.276 | M9: ='Capex 2016-2020'!D13-'Capex 2016-2020'!D30 -> 1629254.74 | N9: ='Capex 2016-2020'!E13-'Capex 2016-2020'!E30 -> 1645311.295 | O9: ='Capex 2016-2020'!F13-'Capex 2016-2020'!F30 -> 1667522.549
A11: Energy Efficient Lights
A12: Luminaires and Ballasts | B12: 243489.8142 | C12: =B12/B$14 -> 0.22496 | D12: =D$15*C12 -> 273566.9385 | E12: 211462.9656 | F12: 171025.2281 | G12: 152183.3904 | H12: 190709.4675 | I12: 317618.343 | J12: 526761.2074 | K12: ='Capex 2016-2020'!B18 -> 53526.26547 | L12: ='Capex 2016-2020'!C18 -> 69229.59624 | M12: ='Capex 2016-2020'!D18 -> 74746.09419 | N12: ='Capex 2016-2020'!E18 -> 80193.19678 | O12: ='Capex 2016-2020'!F18 -> 85506.46589
A14: Total Net Capex | B14: =SUM(B6,B9,B12) -> 1082369.373 | D14: =SUM(D6,D9,D12) -> 1216069.25 | E14: =SUM(E6,E9,E12) -> 1815988.66 | F14: 1343385.42 | G14: 2236868.1 | H14: 2945820.147 | I14: 4157746.558 | J14: 6312960.923 | K14: 2158813.461 | L14: 2027577.377 | M14: 2487589.379 | N14: 2512394.91 | O14: 2543288.708
D15: 1216069.25 | E15: 1815988.66
A16: Source : '[Powercor 2008-13 - Category Ananlysis RIN - responses CONSOLIDATED- 2 June 2014 - PUBLIC.xlsx]4.1 Public lighting'!$M$52:$N$52
F17: 2011 | G17: 2012 | H17: 2013 | I17: 2014 | J17: 2015 | K17: 2016 | L17: 2017 | M17: 2018 | N17: 2019 | O17: 2020
A18: Operating and Maintenance Expenditure | F18: Nominal $ - Actual | J18: Real 2015 $ - Forecast
A20: Total O & M | F20: 7601585.57 | G20: 7887657.121 | H20: 6534655.772 | I20: 6930542.029 | J20: 7240658.699 | K20: ='Cashflow Summary'!K83 -> 5397865.81 | L20: ='Cashflow Summary'!L83 -> 5486283.188 | M20: ='Cashflow Summary'!M83 -> 5599555.141 | N20: ='Cashflow Summary'!N83 -> 5733961.348 | O20: ='Cashflow Summary'!O83 -> 5891733.48
A24: WACC
A25: Regulatory Period | B25: 2016 | C25: 2017 | D25: 2018 | E25: 2019 | F25: 2020
A26: Real Pre Tax WACC | B26: 0.04265216034 | C26: 0.04265216034 | D26: 0.04265216034 | E26: 0.04265216034 | F26: 0.04265216034
A29: CPI Index | B29: CPI Index | C29: Actual CPI | D29: F'cast CPI
A30: 2014-09-30 | B30: 106.4
A31: 2015-09-30 | C31: =IF(B31="","",B31/B30-1) ->  | D31: 0.025
A32: 2016-09-30 | D32: 0.025
A33: 2017-09-30 | D33: 0.025
A34: 2018-09-30 | D34: 0.025
A35: 2019-09-30 | D35: 0.025
A38: Number Of Lights | E38: =J$2 -> 2015 | F38: =F$2 -> 2011 | G38: 2012 | H38: 2013 | I38: 2014 | J38: 2015 | K38: 2016 | L38: 2017 | M38: 2018 | N38: 2019 | O38: 2020
E39: Actual Prices | F39: Actual Volumes | J39: Forecast Volumes
A40: Existing Lights | B40: Reference Light | D40: Price Factor
A41: Mercury vapour 80 watt | B41: =A$41 -> Mercury vapour 80 watt | D41: 1 | E41: 53.01 | F41: 106615 | G41: 105072 | H41: 104640 | I41: 88974 | J41: 70160 | K41: 59941.9068 | L41: 48894.15606 | M41: 44004.74045 | N41: 39604.26641 | O41: 35643.83977
A42: Sodium high pressure 150 watt | B42: =A$42 -> Sodium high pressure 150 watt | D42: 1 | E42: 87.39 | F42: 25668 | G42: 26440 | H42: 27226 | I42: 27857 | J42: 28254 | K42: 29515.68715 | L42: 30833.71516 | M42: 32210.59992 | N42: 33648.96971 | O42: 35151.57015
A43: Sodium high pressure 250 watt | B43: =A$43 -> Sodium high pressure 250 watt | D43: 1 | E43: 90.27 | F43: 11647 | G43: 12125 | H43: 12627 | I43: 12943 | J43: 13118 | K43: 13562.77041 | L43: 14022.62092 | M43: 14498.06283 | N43: 14989.62475 | O43: 15497.85326
A44: Fluorescent 20 watt | B44: =A$41 -> Mercury vapour 80 watt | D44: 2.12 | E44: 147.38 | F44: 3 | G44: 130 | H44: 0 | I44: 0 | J44: 0 | K44: 0 | L44: 0 | M44: 0 | N44: 0 | O44: 0
A45: Fluorescent 40 watt | B45: =A$41 -> Mercury vapour 80 watt | D45: 2.12 | E45: 147.38 | F45: 118 | G45: 242 | H45: 4 | I45: 0 | J45: 0 | K45: 0 | L45: 0 | M45: 0 | N45: 0 | O45: 0
A46: Mercury vapour 50 watt | B46: =A$41 -> Mercury vapour 80 watt | D46: 1.39 | E46: 73.69 | F46: 444 | G46: 378 | H46: 361 | I46: 306 | J46: 217 | K46: 203.491793 | L46: 190.8244691 | M46: 178.9456837 | N46: 167.8063503 | O46: 157.3604382
A47: Mercury vapour 125 watt | B47: =A$41 -> Mercury vapour 80 watt | D47: 1.35 | E47: 71.57 | F47: 1485 | G47: 1493 | H47: 1507 | I47: 1170 | J47: 1023 | K47: 1062.132931 | L47: 1102.762818 | M47: 1144.946924 | N47: 1188.744704 | O47: 1234.217885
A48: Mercury vapour 250 watt | B48: =A$43 -> Sodium high pressure 250 watt | D48: 0.76 | E48: 68.6 | F48: 486 | G48: 345 | H48: 316 | I48: 287 | J48: 280 | K48: 215.2676162 | L48: 165.5005236 | M48: 127.23894 | N48: 97.82294036 | O48: 75.20753994
A49: Mercury vapour 400 watt | B49: =A$43 -> Sodium high pressure 250 watt | D49: 0.88 | E49: 79.44 | F49: 160 | G49: 121 | H49: 115 | I49: 102 | J49: 93 | K49: 82.82147975 | L49: 73.75696245 | M49: 65.68452443 | N49: 58.49558613 | O49: 52.09345164
A50: Mercury vapour 700 watt | B50: =A$43 -> Sodium high pressure 250 watt | D50: 1.33 | E50: 120.06 | F50: 2 | G50: 2 | H50: 0 | I50: 0 | J50: 0 | K50: 0 | L50: 0 | M50: 0 | N50: 0 | O50: 0
A51: Sodium low pressure 90 watt | B51: =A$42 -> Sodium high pressure 150 watt | D51: 1.35 | E51: 117.98 | F51: 0 | G51: 0 | H51: 0 | I51: 2 | J51: 0 | K51: 0 | L51: 0 | M51: 0 | N51: 0 | O51: 0
A52: Sodium low pressure 180 watt | B52: =A$42 -> Sodium high pressure 150 watt | D52: 1.35 | E52: 117.28 | F52: 0 | G52: 0 | H52: 0 | I52: 0 | J52: 0 | K52: 0 | L52: 0 | M52: 0 | N52: 0 | O52: 0
A53: Sodium high pressure 400 watt | B53: =A$43 -> Sodium high pressure 250 watt | D53: 1.33 | E53: 120.06 | F53: 759 | G53: 766 | H53: 770 | I53: 774 | J53: 760 | K53: 762.6136777 | L53: 765.236344 | M53: 767.8680297 | N53: 770.5087659 | O53: 773.1585838
A54: Incandescent 100 watt | B54: =A$41 -> Mercury vapour 80 watt | D54: 2.78 | E54: 147.38 | F54: 13 | G54: 13 | H54: 0 | I54: 0 | J54: 0 | K54: 0 | L54: 0 | M54: 0 | N54: 0 | O54: 0
A55: Incandescent 150 watt | B55: =A$41 -> Mercury vapour 80 watt | D55: 2.78 | E55: 147.38 | F55: 5 | G55: 5 | H55: 0 | I55: 0 | J55: 0 | K55: 0 | L55: 0 | M55: 0 | N55: 0 | O55: 0
A56: Metal halide 250 watt | B56: =A$43 -> Sodium high pressure 250 watt | D56: 1.33 | E56: 120.06 | F56: 406 | G56: 418 | H56: 351 | I56: 366 | J56: 356 | K56: 363.12 | L56: 370.3824 | M56: 377.790048 | N56: 385.345849 | O56: 393.0527659
A57: Metal halide 400 watt | B57: =A$43 -> Sodium high pressure 250 watt | D57: 1.33 | E57: 120.06 | F57: 17 | G57: 17 | H57: 0 | I57: 0 | J57: 0 | K57: 0 | L57: 0 | M57: 0 | N57: 0 | O57: 0
A58: Metal halide 70 watt | B58: =A$41 -> Mercury vapour 80 watt | D58: 2.12 | F58: 0 | G58: 15 | H58: 8 | I58: 7 | J58: 8 | K58: 8.16 | L58: 8.3232 | M58: 8.489664 | N58: 8.65945728 | O58: 8.832646426
A59: Metal halide 150 watt | B59: =A$42 -> Sodium high pressure 150 watt | D59: 1.33 | F59: 0 | G59: 0 | H59: 35 | I59: 47 | J59: 50 | K59: 51 | L59: 52.02 | M59: 53.0604 | N59: 54.121608 | O59: 55.20404016
A65: Total Existing Lights | F65: =SUM(F41:F64) -> 147828 | G65: 147582 | H65: 147960 | I65: 132835 | J65: 114319 | K65: 105768.9719 | L65: 96479.29885 | M65: 93437.42742 | N65: 90974.36614 | O65: 89042.39053
A67: Energy Efficient Lights | B67: Reference Light | D67: Price Factor
A68: T5 2X14W | B68: =A$68 -> T5 2X14W | D68: 1 | E68: 33.61 | F68: 1468 | G68: 2090 | H68: 3251 | I68: 10327 | J68: 10665 | K68: 10451.7 | L68: 10242.666 | M68: 10037.81268 | N68: 9837.056426 | O68: 9640.315298
A69: T5 2X24W | B69: =A$68 -> T5 2X14W | D69: 0.9837858113 | F69: 82 | G69: 159 | H69: 272 | I69: 819 | J69: 1480 | K69: 1450.4 | L69: 1421.392 | M69: 1392.96416 | N69: 1365.104877 | O69: 1337.802779
A70: CF32 | B70: T5 2X14W | D70: 0.9612856452 | F70: 281 | G70: 2006 | H70: 2071 | I70: 3092 | J70: 3089 | K70: 3027.22 | L70: 2966.6756 | M70: 2907.342088 | N70: 2849.195246 | O70: 2792.211341
A71: CF42 | B71: T5 2X14W | D71: 0.9612856452 | F71: 700 | G71: 1789 | H71: 3214 | I71: 4139 | J71: 4515 | K71: 4424.7 | L71: 4336.206 | M71: 4249.48188 | N71: 4164.492242 | O71: 4081.202398
A72: Category P LED 18 Watt | B72: =A$72 -> Category P LED 18 Watt | D72: 1 | F72: 0 | G72: 0 | H72: 0 | I72: 8017 | J72: 26847 | K72: 37065.3752 | L72: 52924.43853 | M72: 57158.39362 | N72: 61731.06511 | O72: 66669.55031
A73: Category P LED 47 Watt | B73: =A$72 -> Category P LED 18 Watt | D73: 1 | F73: 0 | G73: 0 | H73: 0 | I73: 0 | J73: 0 | K73: 0 | L73: 0 | M73: 0 | N73: 0 | O73: 0
A75: Total Energy Efficient Lights | F75: =SUM(F68:F74) -> 2531 | G75: 6044 | H75: 8808 | I75: 26394 | J75: 46596 | K75: 56419.3952 | L75: 71891.37813 | M75: 75745.99442 | N75: 79946.9139 | O75: 84521.08213
A77: Total Number of Lights | F77: =SUM(F65,F75) -> 150359 | G77: 153626 | H77: 156768 | I77: 159229 | J77: 160915 | K77: 162188.3671 | L77: 168370.677 | M77: 169183.4218 | N77: 170921.28 | O77: 173563.4727

Sheet DNSP Inputs O & M
A1: Public Lighting Cost Build-up Model
A3: Powercor | C3: O & M Data Inputs
C5: Real 2015 $
A7: Input parameters | C7: 2015 | D7: 2016 | E7: 2017 | F7: 2018 | G7: 2019 | H7: 2020
A9: Inputs - all lamps
A11: Material premium for rural areas | C11: 0.05 | D11: 0.05 | E11: 0.05 | F11: 0.05 | G11: 0.05 | H11: 0.05
A12: Labour rate (per hour) | C12: 98.07315243 | D12: 100 | E12: =D12+(D12*0.0176) -> 101.76 | F12: 103.550976 | G12: 105.3734732 | H12: 107.2280463
A13: Labour rate for night patrols (per hour) | C13: 112.7866361 | D13: 119.78 | E13: 121.888128 | F13: 124.0333591 | G13: 126.2163462 | H13: 128.4377539
A14: Elevated platform vehicle (per hour) - urban MV,urban T5 | C14: 39.70489021 | D14: 45.38 | E14: 45.38 | F14: 45.38 | G14: 45.38 | H14: 45.38
A15: Elevated platform vehicle (per hour) - rural MV, rural T5, S-HP | C15: 51.04914455 | D15: 57.55345553 | E15: 58.79315472 | F15: 59.81315292 | G15: 60.83918751 | H15: 61.90061193
A16: Patrol vehicle (per hour) | C16: 28.8484388 | D16: 31.08 | E16: 31.08 | F16: 31.08 | G16: 31.08 | H16: 31.08
A17: Number of hours in a day | C17: 8 | D17: 8 | E17: 8 | F17: 8 | G17: 8 | H17: 8
A18: Indirect overheads | C18: 0.25 | D18: 0.25 | E18: 0.25 | F18: 0.25 | G18: 0.25 | H18: 0.25
A22: Inputs - MV80
A24: Depreciation period | B24: years | C24: 20 | D24: =C24 -> 20 | E24: =D24 -> 20 | F24: =E24 -> 20 | G24: =F24 -> 20 | H24: =G24 -> 20
A25: Lamps - bulk change | B25: years | C25: 4 | D25: 4 | E25: 4 | F25: 4 | G25: 4 | H25: 4
A26: PE cells - bulk change | B26: years | C26: 8 | D26: 8 | E26: 8 | F26: 8 | G26: 8 | H26: 8
A27: Proportion of lamps that fail between bulk change | C27: 0.15 | D27: 0.1554544767 | E27: 0.1554544767 | F27: 0.1554544767 | G27: 0.1554544767 | H27: 0.1554544767
A28: Unit cost - lamp | C28: 5.638549129 | D28: 5.711379906 | E28: 5.711379906 | F28: 5.711379906 | G28: 5.711379906 | H28: 5.711379906
A29: Unit cost - PE cell | C29: 22.76394561 | D29: 23.05797796 | E29: 23.05797796 | F29: 23.05797796 | G29: 23.05797796 | H29: 23.05797796
A30: Unit cost - luminaire | C30: 195.6218741 | D30: 198.1486398 | E30: 198.1486398 | F30: 198.1486398 | G30: 198.1486398 | H30: 198.1486398
A31: Unit cost - miscellaneous materials (bulk lamp) | C31: 1.23381819 | D31: 1.249754903 | E31: 1.249754903 | F31: 1.249754903 | G31: 1.249754903 | H31: 1.249754903
A32: Unit cost - miscellaneous materials (repair) | C32: 12.3381819 | D32: 12.49754903 | E32: 12.49754903 | F32: 12.49754903 | G32: 12.49754903 | H32: 12.49754903
A33: Number of men in crew | C33: 2 | D33: 2 | E33: 2 | F33: 2 | G33: 2 | H33: 2
A34: Number of bulk lamp changes in 1 day - urban | C34: 86.4 | D34: 86.4 | E34: 86.4 | F34: 86.4 | G34: 86.4 | H34: 86.4
A35: Number of bulk lamp changes in 1 day - rural | C35: 72 | D35: 72 | E35: 72 | F35: 72 | G35: 72 | H35: 72
A36: Number of bulk lamp changes in 1 day - remote | C36: 60 | D36: 60 | E36: 60 | F36: 60 | G36: 60 | H36: 60
A37: Number of repairs in 1 day - urban | C37: 28.8 | D37: 28.8 | E37: 28.8 | F37: 28.8 | G37: 28.8 | H37: 28.8
A38: Number of repairs in 1 day - rural | C38: 24 | D38: 24 | E38: 24 | F38: 24 | G38: 24 | H38: 24
A39: Number of repairs in 1 day - remote | C39: 19.2 | D39: 19.2 | E39: 19.2 | F39: 19.2 | G39: 19.2 | H39: 19.2
A40: % of repairs - lamps | C40: 0.6 | D40: 0.6 | E40: 0.6 | F40: 0.6 | G40: 0.6 | H40: 0.6
A41: % of repairs - PE cells | C41: 0.5 | D41: 0.5 | E41: 0.5 | F41: 0.5 | G41: 0.5 | H41: 0.5
A42: % of repairs - luminaires | C42: 0.15 | D42: 0.15 | E42: 0.15 | F42: 0.15 | G42: 0.15 | H42: 0.15
A43: % of repairs - other | C43: 0.1 | D43: 0.1 | E43: 0.1 | F43: 0.1 | G43: 0.1 | H43: 0.1
A45: Other Maintenance and Repair costs
A46: Traffic control costs | C46: 27835.56953 | D46: 38589.46892 | E46: 36745.47845 | F46: 36378.61696 | G46: 35953.95138 | H46: 35486.85623
A47: Other costs : Describe……………………………………. | C47: 0 | D47: 0 | E47: 0 | F47: 0 | G47: 0 | H47: 0
C48: =SUM(C46:C47) -> 27835.56953 | D48: 38589.46892 | E48: 36745.47845 | F48: 36378.61696 | G48: 35953.95138 | H48: 35486.85623
A49: Number of Lights | C49: ='DNSP Inputs General'!J41 -> 70160 | D49: ='DNSP Inputs General'!K41 -> 59941.9068 | E49: ='DNSP Inputs General'!L41 -> 48894.15606 | F49: ='DNSP Inputs General'!M41 -> 44004.74045 | G49: ='DNSP Inputs General'!N41 -> 39604.26641 | H49: ='DNSP Inputs General'!O41 -> 35643.83977
A50: Unit Cost | C50: =IF(C49=0,0,C48/C49) -> 0.3967441494 | D50: 0.6437811371 | E50: 0.7515310912 | F50: 0.8266976827 | G50: 0.9078302578 | H50: 0.9955957736
A52: Location of selected public lighting assets within distributors' areas (%)
A53: Urban | C53: 0.39 | D53: 0.7537060972 | E53: 0.7537060972 | F53: 0.7537060972 | G53: 0.7537060972 | H53: 0.7537060972
A54: Rural | C54: 0.571 | D54: 0.1885136274 | E54: 0.1885136274 | F54: 0.1885136274 | G54: 0.1885136274 | H54: 0.1885136274
A55: Remote | C55: 0.039 | D55: 0.05778027536 | E55: 0.05778027536 | F55: 0.05778027536 | G55: 0.05778027536 | H55: 0.05778027536
A59: Inputs - S-HP150
A61: Depreciation period | B61: years | C61: 20 | D61: =C61 -> 20 | E61: =D61 -> 20 | F61: =E61 -> 20 | G61: =F61 -> 20 | H61: =G61 -> 20
A62: Number of patrols per year | C62: 3 | D62: 3 | E62: 3 | F62: 3 | G62: 3 | H62: 3
A63: Lamps - frequency of replacement | B63: years | C63: 5 | D63: 5 | E63: 5 | F63: 5 | G63: 5 | H63: 5
A64: PE cells - frequency of replacement | B64: years | C64: 10 | D64: 10 | E64: 10 | F64: 10 | G64: 10 | H64: 10
A65: Unit cost - lamp | C65: 40.77769119 | D65: 41.30439954 | E65: 41.30439954 | F65: 41.30439954 | G65: 41.30439954 | H65: 41.30439954
A66: Unit cost - PE cell | C66: 22.14703652 | D66: 22.43310051 | E66: 22.43310051 | F66: 22.43310051 | G66: 22.43310051 | H66: 22.43310051
A67: Unit cost - miscellaneous materials | C67: 2.467636381 | D67: 2.499509806 | E67: 2.499509806 | F67: 2.499509806 | G67: 2.499509806 | H67: 2.499509806
A68: Number of men in crew - road patrols | C68: 2 | D68: 2 | E68: 2 | F68: 2 | G68: 2 | H68: 2
A69: Number of men in crew - repairs | C69: 2 | D69: 2 | E69: 2 | F69: 2 | G69: 2 | H69: 2
A70: Number of lamps patrolled in 1 day - urban | C70: 3000 | D70: 3000 | E70: 3000 | F70: 3000 | G70: 3000 | H70: 3000
A71: Number of lamps patrolled in 1 day - rural | C71: 2000 | D71: 2000 | E71: 2000 | F71: 2000 | G71: 2000 | H71: 2000
A72: Number of lamps patrolled in 1 day - remote | C72: 1000 | D72: 1000 | E72: 1000 | F72: 1000 | G72: 1000 | H72: 1000
A73: Number of repairs in 1 day - urban | C73: 19.2 | D73: 19.2 | E73: 19.2 | F73: 19.2 | G73: 19.2 | H73: 19.2
A74: Number of repairs in 1 day - rural | C74: 15.36 | D74: 15.36 | E74: 15.36 | F74: 15.36 | G74: 15.36 | H74: 15.36
A75: Number of repairs in 1 day - remote | C75: 11.52 | D75: 11.52 | E75: 11.52 | F75: 11.52 | G75: 11.52 | H75: 11.52
A77: Other Maintenance and Repair costs
A78: Traffic control costs | C78: 12819.00741 | D78: 62814.60679 | E78: 64767.70168 | F78: 68020.85327 | G78: 71108.11847 | H78: 74041.61862
A79: Other costs : Describe……………………………………. | C79: 0 | D79: 0 | E79: 0 | F79: 0 | G79: 0 | H79: 0
C80: =SUM(C78:C79) -> 12819.00741 | D80: 62814.60679 | E80: 64767.70168 | F80: 68020.85327 | G80: 71108.11847 | H80: 74041.61862
A81: Number of Lights | C81: ='DNSP Inputs General'!J42 -> 28254 | D81: ='DNSP Inputs General'!K42 -> 29515.68715 | E81: ='DNSP Inputs General'!L42 -> 30833.71516 | F81: ='DNSP Inputs General'!M42 -> 32210.59992 | G81: ='DNSP Inputs General'!N42 -> 33648.96971 | H81: ='DNSP Inputs General'!O42 -> 35151.57015
A82: Unit Cost | C82: =IF(C81=0,0,C80/C81) -> 0.4537059323 | D82: 2.128177009 | E82: 2.100548096 | F82: 2.111753691 | G82: 2.113233156 | H82: 2.106353096
A84: Location of selected public lighting assets within distributors' areas (%)
A85: Urban | C85: 0.52 | D85: 0.7849450786 | E85: 0.7849450786 | F85: 0.7849450786 | G85: 0.7849450786 | H85: 0.7849450786
A86: Rural | C86: 0.441 | D86: 0.185117381 | E86: 0.185117381 | F86: 0.185117381 | G86: 0.185117381 | H86: 0.185117381
A87: Remote | C87: 0.039 | D87: 0.02993754038 | E87: 0.02993754038 | F87: 0.02993754038 | G87: 0.02993754038 | H87: 0.02993754038
A91: Inputs - S-HP250
A93: Depreciation period | B93: years | C93: =C61 -> 20 | D93: 20 | E93: 20 | F93: 20 | G93: 20 | H93: 20
A94: Number of patrols per year | C94: 3 | D94: 3 | E94: 3 | F94: 3 | G94: 3 | H94: 3
A95: Lamps - frequency of replacement | B95: years | C95: 5 | D95: 5 | E95: 5 | F95: 5 | G95: 5 | H95: 5
A96: PE cells - frequency of replacement | B96: years | C96: 10 | D96: 10 | E96: 10 | F96: 10 | G96: 10 | H96: 10
A97: Unit cost - lamp | C97: 40.9751021 | D97: 41.30439954 | E97: 41.30439954 | F97: 41.30439954 | G97: 41.30439954 | H97: 41.30439954
A98: Unit cost - PE cell | C98: 22.14703652 | D98: 22.43310051 | E98: 22.43310051 | F98: 22.43310051 | G98: 22.43310051 | H98: 22.43310051
A99: Unit cost - miscellaneous materials | C99: 2.467636381 | D99: 2.499509806 | E99: 2.499509806 | F99: 2.499509806 | G99: 2.499509806 | H99: 2.499509806
A100: Number of men in crew - road patrols | C100: =C68 -> 2 | D100: 2 | E100: 2 | F100: 2 | G100: 2 | H100: 2
A101: Number of men in crew - repairs | C101: 2 | D101: 2 | E101: 2 | F101: 2 | G101: 2 | H101: 2
A102: Number of lamps patrolled in 1 day - urban | C102: =C70 -> 3000 | D102: 3000 | E102: 3000 | F102: 3000 | G102: 3000 | H102: 3000
A103: Number of lamps patrolled in 1 day - rural | C103: 2000 | D103: 2000 | E103: 2000 | F103: 2000 | G103: 2000 | H103: 2000
A104: Number of lamps patrolled in 1 day - remote | C104: 1000 | D104: 1000 | E104: 1000 | F104: 1000 | G104: 1000 | H104: 1000
A105: Number of repairs in 1 day - urban | C105: 19.2 | D105: 19.2 | E105: 19.2 | F105: 19.2 | G105: 19.2 | H105: 19.2
A106: Number of repairs in 1 day - rural | C106: 15.36 | D106: 15.36 | E106: 15.36 | F106: 15.36 | G106: 15.36 | H106: 15.36
A107: Number of repairs in 1 day - remote | C107: 11.52 | D107: 11.52 | E107: 11.52 | F107: 11.52 | G107: 11.52 | H107: 11.52
A109: Other Maintenance and Repair costs
A110: Traffic control costs | C110: 12819.00741 | D110: 28587.54785 | E110: 29173.09935 | F110: 30323.12712 | G110: 31373.20767 | H110: 32331.32232
A111: Other costs : Describe……………………………………. | C111: 0 | D111: 0 | E111: 0 | F111: 0 | G111: 0 | H111: 0
C112: =SUM(C110:C111) -> 12819.00741 | D112: 28587.54785 | E112: 29173.09935 | F112: 30323.12712 | G112: 31373.20767 | H112: 32331.32232
A113: Number of Lights | C113: ='DNSP Inputs General'!J43 -> 13118 | D113: ='DNSP Inputs General'!K43 -> 13562.77041 | E113: ='DNSP Inputs General'!L43 -> 14022.62092 | F113: ='DNSP Inputs General'!M43 -> 14498.06283 | G113: ='DNSP Inputs General'!N43 -> 14989.62475 | H113: ='DNSP Inputs General'!O43 -> 15497.85326
A114: Unit Cost | C114: =IF(C113=0,0,C112/C113) -> 0.9772074562 | D114: 2.107795603 | E114: 2.080431291 | F114: 2.091529571 | G114: 2.092994867 | H114: 2.086180697
A116: Location of selected public lighting assets within distributors' areas (%)
A117: Urban | C117: 0.48 | D117: 0.7724111283 | E117: 0.7724111283 | F117: 0.7724111283 | G117: 0.7724111283 | H117: 0.7724111283
A118: Rural | C118: 0.481 | D118: 0.2045595054 | E118: 0.2045595054 | F118: 0.2045595054 | G118: 0.2045595054 | H118: 0.2045595054
A119: Remote | C119: 0.039 | D119: 0.02302936631 | E119: 0.02302936631 | F119: 0.02302936631 | G119: 0.02302936631 | H119: 0.02302936631
A123: Dedicated street lighting poles
A125: Period of inspection | B125: years | C125: 5 | D125: 5 | E125: 5 | F125: 5 | G125: 5 | H125: 5
A126: Pole inspection rate | B126: per day | C126: 72 | D126: 72 | E126: 72 | F126: 72 | G126: 72 | H126: 72
A127: Depreciation of dedicated street lighting pole & bracket | B127: years | C127: 35 | D127: =C127 -> 35 | E127: =D127 -> 35 | F127: =E127 -> 35 | G127: =F127 -> 35 | H127: =G127 -> 35
A128: Proportion of lights on dedicated poles | C128: 0.288002868 | D128: 0.504 | E128: 0.504 | F128: 0.504 | G128: 0.504 | H128: 0.504
A132: Other direct costs
A133: Call centre
A134: Number of calls | C134: 4000 | D134: 6293.617407 | E134: 6399.625424 | F134: 6507.419013 | G134: 6617.028248 | H134: 6728.483712
A135: Average cost per call $ | C135: 11.34425434 | D135: 11.34425434 | E135: 11.34425434 | F135: 11.34425434 | G135: 11.34425434 | H135: 11.34425434
C136: =C134*C135 -> 45377.01738 | D136: 71396.39661 | E136: 72598.97853 | F136: 73821.81641 | G136: 75065.25146 | H136: 76329.63059
A138: GIS and other | C138: 113442.5434 | D138: 113442.5434 | E138: 113442.5434 | F138: 113442.5434 | G138: 113442.5434 | H138: 113442.5434
A139: Complaints handling | C139: 34032.76303 | D139: 34032.76303 | E139: 34032.76303 | F139: 34032.76303 | G139: 34032.76303 | H139: 34032.76303
A140: Accounts Manager
A143: ENERGY EFFICIENT LIGHTS
A145: Inputs - T5 (2 X 14W)
A147: Depreciation period | B147: years | C147: 20 | D147: =C147 -> 20 | E147: =D147 -> 20 | F147: =E147 -> 20 | G147: =F147 -> 20 | H147: =G147 -> 20
A148: Lamps - bulk change | B148: years | C148: 4 | D148: 4 | E148: 4 | F148: 4 | G148: 4 | H148: 4
A149: PE cells - bulk change | B149: years | C149: 8 | D149: 8 | E149: 8 | F149: 8 | G149: 8 | H149: 8
A150: Ballast unit life | B150: years | C150: 20 | D150: =C150 -> 20 | E150: =D150 -> 20 | F150: =E150 -> 20 | G150: =F150 -> 20 | H150: =G150 -> 20
A151: Proportion of luminaires that fail between bulk change | C151: 0.114 | D151: 0.114 | E151: 0.114 | F151: 0.114 | G151: 0.114 | H151: 0.114
A152: Unit cost - lamp | C152: 9.870545522 | D152: 9.998039223 | E152: 9.998039223 | F152: 9.998039223 | G152: 9.998039223 | H152: 9.998039223
A153: Unit cost - PE cell | C153: 16.65654557 | D153: 16.87169119 | E153: 16.87169119 | F153: 16.87169119 | G153: 16.87169119 | H153: 16.87169119
A154: Unit cost - luminaire | C154: 297.5722711 | D154: 301.4158875 | E154: 301.4158875 | F154: 301.4158875 | G154: 301.4158875 | H154: 301.4158875
A155: Unit cost - miscellaneous materials (bulk lamp) | C155: 1.23381819 | D155: 1.249754903 | E155: 1.249754903 | F155: 1.249754903 | G155: 1.249754903 | H155: 1.249754903
A156: Unit cost - miscellaneous materials (repair) | C156: 12.3381819 | D156: 12.49754903 | E156: 12.49754903 | F156: 12.49754903 | G156: 12.49754903 | H156: 12.49754903
A157: Number of men in crew | C157: 2 | D157: 2 | E157: 2 | F157: 2 | G157: 2 | H157: 2
A158: Number of bulk lamp changes in 1 day - urban | C158: 73.92 | D158: 73.92 | E158: 73.92 | F158: 73.92 | G158: 73.92 | H158: 73.92
A159: Number of bulk lamp changes in 1 day - rural | C159: 61.44 | D159: 61.44 | E159: 61.44 | F159: 61.44 | G159: 61.44 | H159: 61.44
A160: Number of bulk lamp changes in 1 day - remote | C160: 48.96 | D160: 48.96 | E160: 48.96 | F160: 48.96 | G160: 48.96 | H160: 48.96
A161: Number of repairs in 1 day - urban | C161: 24.96 | D161: 24.96 | E161: 24.96 | F161: 24.96 | G161: 24.96 | H161: 24.96
A162: Number of repairs in 1 day - rural | C162: 20.16 | D162: 20.16 | E162: 20.16 | F162: 20.16 | G162: 20.16 | H162: 20.16
A163: Number of repairs in 1 day - remote | C163: 16.32 | D163: 16.32 | E163: 16.32 | F163: 16.32 | G163: 16.32 | H163: 16.32
A164: % of repairs - lamps | C164: 0.6 | D164: 0.6 | E164: 0.6 | F164: 0.6 | G164: 0.6 | H164: 0.6
A165: % of repairs - PE cells | C165: 0.5 | D165: 0.5 | E165: 0.5 | F165: 0.5 | G165: 0.5 | H165: 0.5
A166: % of repairs - luminaires | C166: 0.15 | D166: 0.15 | E166: 0.15 | F166: 0.15 | G166: 0.15 | H166: 0.15
A167: % of repairs - other | C167: 0.1 | D167: 0.1 | E167: 0.1 | F167: 0.1 | G167: 0.1 | H167: 0.1
A169: Other Maintenance and Repair costs
A170: Traffic control costs | C170: 29660.49362 | D170: 10320.55554 | E170: 9939.047767 | F170: 9771.881225 | G170: 9561.8903 | H170: 9318.724134
A171: Other costs : Describe……………………………………. | C171: 0 | D171: 0 | E171: 0 | F171: 0 | G171: 0 | H171: 0
C172: =SUM(C170:C171) -> 29660.49362 | D172: 10320.55554 | E172: 9939.047767 | F172: 9771.881225 | G172: 9561.8903 | H172: 9318.724134
A173: Number of Lights | C173: ='DNSP Inputs General'!J68 -> 10665 | D173: ='DNSP Inputs General'!K68 -> 10451.7 | E173: ='DNSP Inputs General'!L68 -> 10242.666 | F173: ='DNSP Inputs General'!M68 -> 10037.81268 | G173: ='DNSP Inputs General'!N68 -> 9837.056426 | H173: ='DNSP Inputs General'!O68 -> 9640.315298
A174: Unit Cost | C174: =IF(C173=0,0,C172/C173) -> 2.781105825 | D174: 0.9874523321 | E174: 0.9703574994 | F174: 0.9735070315 | G174: 0.972027595 | H174: 0.9666410118
A176: Location of selected public lighting assets within distributors' areas (%)
A177: Urban | C177: 0.39 | D177: 0.7798005229 | E177: 0.7798005229 | F177: 0.7798005229 | G177: 0.7798005229 | H177: 0.7798005229
A178: Rural | C178: 0.571 | D178: 0.2198121429 | E178: 0.2198121429 | F178: 0.2198121429 | G178: 0.2198121429 | H178: 0.2198121429
A179: Remote | C179: 0.039 | D179: 0.0003873341726 | E179: 0.0003873341726 | F179: 0.0003873341726 | G179: 0.0003873341726 | H179: 0.0003873341726
A185: Inputs - Category P LED
A187: Depreciation period | B187: years | D187: 20 | E187: =D187 -> 20 | F187: =E187 -> 20 | G187: =F187 -> 20 | H187: =G187 -> 20
A188: PE cells - bulk change | B188: years | D188: 8 | E188: 8 | F188: 8 | G188: 8 | H188: 8
A189: Proportion of luminaires that fail between bulk change | D189: 0.114 | E189: 0.114 | F189: 0.114 | G189: 0.114 | H189: 0.114
A190: Unit cost - PE cell | D190: 16.87169119 | E190: 16.87169119 | F190: 16.87169119 | G190: 16.87169119 | H190: 16.87169119
A191: Unit cost - luminaire | D191: 352.7287516 | E191: 352.7287516 | F191: 352.7287516 | G191: 352.7287516 | H191: 352.7287516
A192: Unit cost - miscellaneous materials (repair) | D192: 12.49754903 | E192: 12.49754903 | F192: 12.49754903 | G192: 12.49754903 | H192: 12.49754903
A193: Number of men in crew | D193: 2 | E193: 2 | F193: 2 | G193: 2 | H193: 2
A194: Number of bulk PE cells changes in 1 day - urban | D194: 73.92 | E194: 73.92 | F194: 73.92 | G194: 73.92 | H194: 73.92
A195: Number of bulk PE cells changes in 1 day - rural | D195: 61.44 | E195: 61.44 | F195: 61.44 | G195: 61.44 | H195: 61.44
A196: Number of bulk PE cells changes in 1 day - remote | D196: 48.96 | E196: 48.96 | F196: 48.96 | G196: 48.96 | H196: 48.96
A197: Number of repairs in 1 day - urban | D197: 24.96 | E197: 24.96 | F197: 24.96 | G197: 24.96 | H197: 24.96
A198: Number of repairs in 1 day - rural | D198: 20.16 | E198: 20.16 | F198: 20.16 | G198: 20.16 | H198: 20.16
A199: Number of repairs in 1 day - remote | D199: 16.32 | E199: 16.32 | F199: 16.32 | G199: 16.32 | H199: 16.32
A200: % of repairs - PE cells | D200: 0.5 | E200: 0.5 | F200: 0.5 | G200: 0.5 | H200: 0.5
A201: % of repairs - luminaires | D201: 0.15 | E201: 0.15 | F201: 0.15 | G201: 0.15 | H201: 0.15
A202: % of repairs - other | D202: 0.1 | E202: 0.1 | F202: 0.1 | G202: 0.1 | H202: 0.1
A204: Other Maintenance and Repair costs
A205: Traffic control costs | D205: 2033.005834 | E205: 2004.680886 | F205: 3496.531493 | G205: 3469.877328 | H205: 3381.6357
A206: Other costs : Describe……………………………………. | D206: 0 | E206: 0 | F206: 0 | G206: 0 | H206: 0
C207: =SUM(C205:C206) -> 0 | D207: 2033.005834 | E207: 2004.680886 | F207: 3496.531493 | G207: 3469.877328 | H207: 3381.6357
A208: Number of Lights | C208: ='DNSP Inputs General'!J72 -> 26847 | D208: ='DNSP Inputs General'!K72 -> 37065.3752 | E208: ='DNSP Inputs General'!L72 -> 52924.43853 | F208: ='DNSP Inputs General'!M72 -> 57158.39362 | G208: ='DNSP Inputs General'!N72 -> 61731.06511 | H208: ='DNSP Inputs General'!O72 -> 66669.55031
A209: Unit Cost | C209: =IF(C208=0,0,C207/C208) -> 0 | D209: 0.05484919073 | E209: 0.03787817012 | F209: 0.06117266899 | G209: 0.05620958139 | H209: 0.05072234152
A211: Location of selected public lighting assets within distributors' areas (%)
A212: Urban | D212: 0.284894599 | E212: 0.284894599 | F212: 0.284894599 | G212: 0.284894599 | H212: 0.284894599
A213: Rural | D213: 0.6372707996 | E213: 0.6372707996 | F213: 0.6372707996 | G213: 0.6372707996 | H213: 0.6372707996
A214: Remote | D214: 0.07783460147 | E214: 0.07783460147 | F214: 0.07783460147 | G214: 0.07783460147 | H214: 0.07783460147

Sheet DNSP Inputs Capex
A1: Public Lighting Cost Build-up Model
A3: ='DNSP Inputs O & M'!$A$3 -> Powercor | C3: Capex Data Inputs
C5: Real 2015 $
A7: Input parameters | C7: 2015 | D7: 2016 | E7: 2017 | F7: 2018 | G7: 2019 | H7: 2020
A9: Inputs - all lamps
A11: Material premium for rural areas | C11: ='DNSP Inputs O & M'!C11 -> 0.05 | D11: ='DNSP Inputs O & M'!D11 -> 0.05 | E11: ='DNSP Inputs O & M'!E11 -> 0.05 | F11: ='DNSP Inputs O & M'!F11 -> 0.05 | G11: ='DNSP Inputs O & M'!G11 -> 0.05 | H11: ='DNSP Inputs O & M'!H11 -> 0.05
A12: Labour rate (per hour) | C12: ='DNSP Inputs O & M'!C12 -> 98.07315243 | D12: ='DNSP Inputs O & M'!D12 -> 100 | E12: ='DNSP Inputs O & M'!E12 -> 101.76 | F12: ='DNSP Inputs O & M'!F12 -> 103.550976 | G12: ='DNSP Inputs O & M'!G12 -> 105.3734732 | H12: ='DNSP Inputs O & M'!H12 -> 107.2280463
A13: Elevated platform vehicle (per hour) - urban MV,urban T5 | C13: ='DNSP Inputs O & M'!C14 -> 39.70489021 | D13: ='DNSP Inputs O & M'!D14 -> 45.38 | E13: ='DNSP Inputs O & M'!E14 -> 45.38 | F13: ='DNSP Inputs O & M'!F14 -> 45.38 | G13: ='DNSP Inputs O & M'!G14 -> 45.38 | H13: ='DNSP Inputs O & M'!H14 -> 45.38
A14: Elevated platform vehicle (per hour) - rural MV, rural T5, S-HP | C14: ='DNSP Inputs O & M'!C15 -> 51.04914455 | D14: ='DNSP Inputs O & M'!D15 -> 57.55345553 | E14: ='DNSP Inputs O & M'!E15 -> 58.79315472 | F14: ='DNSP Inputs O & M'!F15 -> 59.81315292 | G14: ='DNSP Inputs O & M'!G15 -> 60.83918751 | H14: ='DNSP Inputs O & M'!H15 -> 61.90061193
A15: Number of hours in a day | C15: ='DNSP Inputs O & M'!C17 -> 8 | D15: ='DNSP Inputs O & M'!D17 -> 8 | E15: ='DNSP Inputs O & M'!E17 -> 8 | F15: ='DNSP Inputs O & M'!F17 -> 8 | G15: ='DNSP Inputs O & M'!G17 -> 8 | H15: ='DNSP Inputs O & M'!H17 -> 8
A19: Inputs - MV80
A21: Unit cost - luminaire | C21: ='DNSP Inputs O & M'!C30 -> 195.6218741 | D21: ='DNSP Inputs O & M'!D30 -> 198.1486398 | E21: ='DNSP Inputs O & M'!E30 -> 198.1486398 | F21: ='DNSP Inputs O & M'!F30 -> 198.1486398 | G21: ='DNSP Inputs O & M'!G30 -> 198.1486398 | H21: ='DNSP Inputs O & M'!H30 -> 198.1486398
A22: Unit cost - miscellaneous materials (bulk lamp) | C22: ='DNSP Inputs O & M'!C31 -> 1.23381819 | D22: ='DNSP Inputs O & M'!D31 -> 1.249754903 | E22: ='DNSP Inputs O & M'!E31 -> 1.249754903 | F22: ='DNSP Inputs O & M'!F31 -> 1.249754903 | G22: ='DNSP Inputs O & M'!G31 -> 1.249754903 | H22: ='DNSP Inputs O & M'!H31 -> 1.249754903
A23: Number of men in crew | C23: ='DNSP Inputs O & M'!C33 -> 2 | D23: ='DNSP Inputs O & M'!D33 -> 2 | E23: ='DNSP Inputs O & M'!E33 -> 2 | F23: ='DNSP Inputs O & M'!F33 -> 2 | G23: ='DNSP Inputs O & M'!G33 -> 2 | H23: ='DNSP Inputs O & M'!H33 -> 2
A24: Number of luminaires replaced per day - urban | C24: 15.36 | D24: 15.36 | E24: 15.36 | F24: 15.36 | G24: 15.36 | H24: 15.36
A25: Number of luminaires replaced per day - rural | C25: 12.48 | D25: 12.48 | E25: 12.48 | F25: 12.48 | G25: 12.48 | H25: 12.48
A26: Number of luminaires replaced per day - remote | C26: 9.6 | D26: 9.6 | E26: 9.6 | F26: 9.6 | G26: 9.6 | H26: 9.6
A28: Other Capex unit costs Describe :……………………… | C28: 0 | D28: 0 | E28: 0 | F28: 0 | G28: 0 | H28: 0
A30: Forecast Quantities to be replaced
A31: Number of luminaires replaced per year - urban | D31: 100.6344087 | E31: 78.71547455 | F31: 71.39201605 | G31: 64.2693202 | H31: 57.43871001
A32: Number of luminaires replaced per year - rural | D32: 25.17023214 | E32: 19.6879655 | F32: 17.85625453 | G32: 16.07475742 | H32: 14.36631549
A33: Number of luminaires replaced per year - remote | D33: 7.71478945 | E33: 6.034450048 | F33: 5.47302239 | G33: 4.926985508 | H33: 4.403340364
A35: MV80 Lights replaced with T5 Energy Efficient Lights
A36: Number of Lights MV80 replaced with T5 per year | D36: 10218.0932 | E36: 11047.75074 | F36: 4889.415606 | G36: 4400.474045 | H36: 3960.426641
A40: Inputs - S-HP150
A42: Unit cost - luminaire | C42: 231.5136452 | D42: 234.50401 | E42: 234.50401 | F42: 234.50401 | G42: 234.50401 | H42: 234.50401
A43: Unit cost - miscellaneous materials | C43: ='DNSP Inputs O & M'!C67 -> 2.467636381 | D43: ='DNSP Inputs O & M'!D67 -> 2.499509806 | E43: ='DNSP Inputs O & M'!E67 -> 2.499509806 | F43: ='DNSP Inputs O & M'!F67 -> 2.499509806 | G43: ='DNSP Inputs O & M'!G67 -> 2.499509806 | H43: ='DNSP Inputs O & M'!H67 -> 2.499509806
A44: Number of men in crew | C44: ='DNSP Inputs O & M'!C69 -> 2 | D44: ='DNSP Inputs O & M'!D69 -> 2 | E44: ='DNSP Inputs O & M'!E69 -> 2 | F44: ='DNSP Inputs O & M'!F69 -> 2 | G44: ='DNSP Inputs O & M'!G69 -> 2 | H44: ='DNSP Inputs O & M'!H69 -> 2
A45: Number of luminaires replaced per day - urban | C45: 15.36 | D45: 15.36 | E45: 15.36 | F45: 15.36 | G45: 15.36 | H45: 15.36
A46: Number of luminaires replaced per day - rural | C46: 12.48 | D46: 12.48 | E46: 12.48 | F46: 12.48 | G46: 12.48 | H46: 12.48
A47: Number of luminaires replaced per day - remote | C47: 9.6 | D47: 9.6 | E47: 9.6 | F47: 9.6 | G47: 9.6 | H47: 9.6
A49: Other Capex unit costs Describe :……………………… | C49: 0 | D49: 0 | E49: 0 | F49: 0 | G49: 0 | H49: 0
A51: Forecast Quantities to be replaced
A52: Number of luminaires replaced per year - urban | D52: 792.5425785 | E52: 795.1185929 | F52: 797.6846407 | G52: 800.2406431 | H52: 802.786523
A53: Number of luminaires replaced per year - rural | D53: 186.909136 | E53: 187.5166499 | F53: 188.1218133 | G53: 188.7246077 | H53: 189.3250148
A54: Number of luminaires replaced per day - remote | D54: 30.22730647 | E54: 30.32555478 | F54: 30.42342298 | G54: 30.52090805 | H54: 30.61800705
A58: Inputs - S-HP250
A60: Unit cost - luminaire | C60: 234.9683362 | D60: 238.0033237 | E60: 238.0033237 | F60: 238.0033237 | G60: 238.0033237 | H60: 238.0033237
A61: Unit cost - miscellaneous materials | C61: ='DNSP Inputs O & M'!C99 -> 2.467636381 | D61: ='DNSP Inputs O & M'!D99 -> 2.499509806 | E61: ='DNSP Inputs O & M'!E99 -> 2.499509806 | F61: ='DNSP Inputs O & M'!F99 -> 2.499509806 | G61: ='DNSP Inputs O & M'!G99 -> 2.499509806 | H61: ='DNSP Inputs O & M'!H99 -> 2.499509806
A62: Number of men in crew | C62: ='DNSP Inputs O & M'!C101 -> 2 | D62: ='DNSP Inputs O & M'!D101 -> 2 | E62: ='DNSP Inputs O & M'!E101 -> 2 | F62: ='DNSP Inputs O & M'!F101 -> 2 | G62: ='DNSP Inputs O & M'!G101 -> 2 | H62: ='DNSP Inputs O & M'!H101 -> 2
A63: Number of luminaires replaced per day - urban | C63: 15.36 | D63: 15.36 | E63: 15.36 | F63: 15.36 | G63: 15.36 | H63: 15.36
A64: Number of luminaires replaced per day - rural | C64: 12.48 | D64: 12.48 | E64: 12.48 | F64: 12.48 | G64: 12.48 | H64: 12.48
A65: Number of luminaires replaced per day - remote | C65: 9.6 | D65: 9.6 | E65: 9.6 | F65: 9.6 | G65: 9.6 | H65: 9.6
A67: Other Capex unit costs Describe :……………………… | C67: 0 | D67: 0 | E67: 0 | F67: 0 | G67: 0 | H67: 0
A69: Forecast Quantities to be replaced
A70: Number of luminaires replaced per year - urban | D70: 358.3664681 | E70: 370.5170095 | F70: 383.0795192 | G70: 396.0679653 | H70: 409.4967892
A71: Number of luminaires replaced per year - rural | D71: 94.90705763 | E71: 98.12491486 | F71: 101.4518747 | G71: 104.8916362 | H71: 108.4480241
A72: Number of luminaires replaced per day - remote | D72: 10.68466308 | E72: 11.04693035 | F72: 11.42148041 | G72: 11.80872973 | H72: 12.20910887
A76: Dedicated street lighting poles
A78: Cost of pole & bracket | C78: 1577.870932 | D78: 1598.251629 | E78: 1598.251629 | F78: 1598.251629 | G78: 1598.251629 | H78: 1598.251629
A79: Number of poles & brackets replaced per day | C79: 3.84 | D79: 3.84 | E79: 3.84 | F79: 3.84 | G79: 3.84 | H79: 3.84
A80: Cost of bracket on non-dedicated poles | C80: 47.85487479 | D80: 48.47299616 | E80: 48.47299616 | F80: 48.47299616 | G80: 48.47299616 | H80: 48.47299616
A81: Number of brackets replaced per day | C81: 19.2 | D81: 19.2 | E81: 19.2 | F81: 19.2 | G81: 19.2 | H81: 19.2
A83: Other poles & brackets Capex unit costs Describe :………………… | C83: 0 | D83: 0 | E83: 0 | F83: 0 | G83: 0 | H83: 0
A86: Forecast Quantities to be replaced
A87: Number of poles & brackets replaced per year - urban | D87: 101.1444851 | E87: 101.1444851 | F87: 101.1444851 | G87: 101.1444851 | H87: 101.1444851
A88: Number of poles & brackets replaced per year - rural | D88: 240.3972324 | E88: 240.3972324 | F88: 240.3972324 | G88: 240.3972324 | H88: 240.3972324
A89: Number of poles & brackets replaced per year - remote | D89: 10.45828246 | E89: 10.45828246 | F89: 10.45828246 | G89: 10.45828246 | H89: 10.45828246
A91: Brackets on non-dedicated poles :
A92: Number of brackets replaced per year - urban | D92: 20 | E92: 20 | F92: 20 | G92: 20 | H92: 20
A93: Number of brackets replaced per year - rural | D93: 30 | E93: 30 | F93: 30 | G93: 30 | H93: 30
A94: Number of brackets replaced per year - remote | D94: 2 | E94: 2 | F94: 2 | G94: 2 | H94: 2
A98: Luminaire Replacements - Other Light types (excluding T5s)
A99: Number of luminaires replaced per year | D99: 1713 | E99: 1713 | F99: 1713 | G99: 1713 | H99: 1713
A100: Forecast Capex | D100: 1436304 | E100: 1436304 | F100: 1436304 | G100: 1436304 | H100: 1436304
A104: Inputs - T5 (2 X 14W)
A106: Unit cost - luminaire | C106: ='DNSP Inputs O & M'!C154 -> 297.5722711 | D106: ='DNSP Inputs O & M'!D154 -> 301.4158875 | E106: ='DNSP Inputs O & M'!E154 -> 301.4158875 | F106: ='DNSP Inputs O & M'!F154 -> 301.4158875 | G106: ='DNSP Inputs O & M'!G154 -> 301.4158875 | H106: ='DNSP Inputs O & M'!H154 -> 301.4158875
A107: Unit cost - miscellaneous materials (bulk lamp) | C107: ='DNSP Inputs O & M'!C155 -> 1.23381819 | D107: ='DNSP Inputs O & M'!D155 -> 1.249754903 | E107: ='DNSP Inputs O & M'!E155 -> 1.249754903 | F107: ='DNSP Inputs O & M'!F155 -> 1.249754903 | G107: ='DNSP Inputs O & M'!G155 -> 1.249754903 | H107: ='DNSP Inputs O & M'!H155 -> 1.249754903
A108: Number of men in crew | C108: ='DNSP Inputs O & M'!C157 -> 2 | D108: ='DNSP Inputs O & M'!D157 -> 2 | E108: ='DNSP Inputs O & M'!E157 -> 2 | F108: ='DNSP Inputs O & M'!F157 -> 2 | G108: ='DNSP Inputs O & M'!G157 -> 2 | H108: ='DNSP Inputs O & M'!H157 -> 2
A109: Number of luminaires replaced per day - urban | D109: 15.36 | E109: 15.36 | F109: 15.36 | G109: 15.36 | H109: 15.36
A110: Number of luminaires replaced per day - rural | D110: 12.48 | E110: 12.48 | F110: 12.48 | G110: 12.48 | H110: 12.48
A111: Number of luminaires replaced per day - remote | D111: 9.6 | E111: 9.6 | F111: 9.6 | G111: 9.6 | H111: 9.6
A113: Other Capex unit costs Describe :……………………… | D113: 0 | E113: 0 | F113: 0 | G113: 0 | H113: 0
A115: Forecast Quantities to be replaced
A116: Number of luminaires replaced per year - urban | D116: 18.15450342 | E116: 17.06073229 | F116: 16.84886935 | G116: 16.51613367 | H116: 16.0728513
A117: Number of luminaires replaced per year - rural | D117: 5.117437323 | E117: 4.809122352 | F117: 4.749401892 | G117: 4.655609515 | H117: 4.53065596
A118: Number of luminaires replaced per year - remote | D118: 0.009017510702 | E118: 0.008474224409 | F118: 0.008368990118 | G118: 0.008203717207 | H118: 0.007983534732
A122: Inputs - Category P LED
A124: Unit cost - luminaire | D124: ='DNSP Inputs O & M'!D191 -> 352.7287516 | E124: ='DNSP Inputs O & M'!E191 -> 352.7287516 | F124: ='DNSP Inputs O & M'!F191 -> 352.7287516 | G124: ='DNSP Inputs O & M'!G191 -> 352.7287516 | H124: ='DNSP Inputs O & M'!H191 -> 352.7287516
A125: Number of men in crew | D125: ='DNSP Inputs O & M'!D193 -> 2 | E125: ='DNSP Inputs O & M'!E193 -> 2 | F125: ='DNSP Inputs O & M'!F193 -> 2 | G125: ='DNSP Inputs O & M'!G193 -> 2 | H125: ='DNSP Inputs O & M'!H193 -> 2
A126: Number of luminaires replaced per day - urban | D126: 15.36 | E126: 15.36 | F126: 15.36 | G126: 15.36 | H126: 15.36
A127: Number of luminaires replaced per day - rural | D127: 12.48 | E127: 12.48 | F127: 12.48 | G127: 12.48 | H127: 12.48
A128: Number of luminaires replaced per day - remote | D128: 9.6 | E128: 9.6 | F128: 9.6 | G128: 9.6 | H128: 9.6
A130: Other Capex unit costs Describe :……………………… | D130: 0 | E130: 0 | F130: 0 | G130: 0 | H130: 0
A132: Forecast Quantities to be replaced
A133: Number of luminaires replaced per year - urban | D133: 23.52158229 | E133: 32.20635757 | F133: 35.05196624 | G133: 37.8658483 | H133: 40.60971188
A134: Number of luminaires replaced per year - rural | D134: 52.61460768 | E134: 72.04127882 | F134: 78.40652167 | G134: 84.7007964 | H134: 90.83844921
A135: Number of luminaires replaced per year - remote | D135: 6.426211625 | E135: 8.798934818 | F135: 9.576369059 | G135: 10.34513544 | H135: 11.09477242

Sheet PL Tariffs
A1: ='DNSP Inputs O & M'!$A$3 -> Powercor | E1: Global Check | F1: =IF(SUM('Total RAB'!F1,'Depn & WACC Post 2004'!F1,'Cashflow Summary'!F1,'PL Tariff Components'!W1)<1,"Ok","Error") -> Ok
A3: Public Lighting Tariffs | C3: Nominal Prices | J3: Nominal Price Movement | P3: Real Price Movement (Implied X Factor)
C4: Actual
A5: ='DNSP Inputs General'!A$40 -> Existing Lights | C5: ='DNSP Inputs General'!J$2 -> 2015 | D5: ='DNSP Inputs General'!K$2 -> 2016 | E5: ='DNSP Inputs General'!L$2 -> 2017 | F5: ='DNSP Inputs General'!M$2 -> 2018 | G5: ='DNSP Inputs General'!N$2 -> 2019 | H5: ='DNSP Inputs General'!O$2 -> 2020 | J5: =D5 -> 2016 | K5: =E5 -> 2017 | L5: 2018 | M5: 2019 | N5: 2020 | P5: =J5 -> 2016 | Q5: =K5 -> 2017 | R5: 2018 | S5: 2019 | T5: 2020
A6: ='DNSP Inputs General'!A41 -> Mercury vapour 80 watt | C6: ='DNSP Inputs General'!E41 -> 53.01 | D6: ='Charges Summary'!D$31 -> 48.31306407 | E6: ='Charges Summary'!E$31 -> 51.28438031 | F6: ='Charges Summary'!F$31 -> 54.11286285 | G6: ='Charges Summary'!G$31 -> 57.21842166 | H6: ='Charges Summary'!H$31 -> 60.30910046 | J6: =IF(C6=0,"",D6/C6-1) -> -0.08860471468 | K6: =IF(D6=0,"",E6/D6-1) -> 0.0615012997 | L6: =IF(E6=0,"",F6/E6-1) -> 0.05515290474 | M6: =IF(F6=0,"",G6/F6-1) -> 0.05739039933 | N6: =IF(G6=0,"",H6/G6-1) -> 0.05401545021 | P6: =IF(C6=0,"",(D6/'Charges Summary'!D$4)/C6-1) -> -0.110833868 | Q6: =IF(D6=0,"",(E6/'Charges Summary'!E$4)/(D6/'Charges Summary'!D$4)-1) -> 0.0356110241 | R6: =IF(E6=0,"",(F6/'Charges Summary'!F$4)/(E6/'Charges Summary'!E$4)-1) -> 0.02941746804 | S6: =IF(F6=0,"",(G6/'Charges Summary'!G$4)/(F6/'Charges Summary'!F$4)-1) -> 0.03160038959 | T6: =IF(G6=0,"",(H6/'Charges Summary'!H$4)/(G6/'Charges Summary'!G$4)-1) -> 0.02830775631
A7: ='DNSP Inputs General'!A42 -> Sodium high pressure 150 watt | C7: ='DNSP Inputs General'!E42 -> 87.39 | D7: ='Charges Summary'!D$55 -> 90.9442319 | E7: ='Charges Summary'!E$55 -> 95.51418966 | F7: ='Charges Summary'!F$55 -> 100.0515821 | G7: ='Charges Summary'!G$55 -> 104.916485 | H7: ='Charges Summary'!H$55 -> 109.8182636 | J7: 0.04067092227 | K7: 0.05025011118 | L7: 0.04750490435 | M7: 0.04862394817 | N7: 0.04672076649 | P7: =IF(C7=0,"",(D7/'Charges Summary'!D$4)/C7-1) -> 0.01528870465 | Q7: =IF(D7=0,"",(E7/'Charges Summary'!E$4)/(D7/'Charges Summary'!D$4)-1) -> 0.02463425481 | R7: =IF(E7=0,"",(F7/'Charges Summary'!F$4)/(E7/'Charges Summary'!E$4)-1) -> 0.02195600424 | S7: =IF(F7=0,"",(G7/'Charges Summary'!G$4)/(F7/'Charges Summary'!F$4)-1) -> 0.02304775432 | T7: =IF(G7=0,"",(H7/'Charges Summary'!H$4)/(G7/'Charges Summary'!G$4)-1) -> 0.0211909917
A8: ='DNSP Inputs General'!A43 -> Sodium high pressure 250 watt | C8: ='DNSP Inputs General'!E43 -> 90.27 | D8: ='Charges Summary'!D$71 -> 92.13711251 | E8: ='Charges Summary'!E$71 -> 96.90954005 | F8: ='Charges Summary'!F$71 -> 101.6009272 | G8: ='Charges Summary'!G$71 -> 106.6474654 | H8: ='Charges Summary'!H$71 -> 111.7307262 | J8: 0.02068364363 | K8: 0.05179701652 | L8: 0.0484099624 | M8: 0.04967019793 | N8: 0.04766415041 | P8: =IF(C8=0,"",(D8/'Charges Summary'!D$4)/C8-1) -> -0.004211079382 | Q8: =IF(D8=0,"",(E8/'Charges Summary'!E$4)/(D8/'Charges Summary'!D$4)-1) -> 0.02614343075 | R8: =IF(E8=0,"",(F8/'Charges Summary'!F$4)/(E8/'Charges Summary'!E$4)-1) -> 0.02283898771 | S8: =IF(F8=0,"",(G8/'Charges Summary'!G$4)/(F8/'Charges Summary'!F$4)-1) -> 0.02406848579 | T8: =IF(G8=0,"",(H8/'Charges Summary'!H$4)/(G8/'Charges Summary'!G$4)-1) -> 0.02211136625
A9: ='DNSP Inputs General'!A44 -> Fluorescent 20 watt | C9: ='DNSP Inputs General'!E44 -> 147.38 | D9: =IF('DNSP Inputs General'!$B44='DNSP Inputs General'!$A$41,D$6,IF('DNSP Inputs General'!$B44='DNSP Inputs General'!$A$42,D$7,D$8))*'DNSP Inputs General'!$D44 -> 102.4236958 | E9: =IF('DNSP Inputs General'!$B44='DNSP Inputs General'!$A$41,E$6,IF('DNSP Inputs General'!$B44='DNSP Inputs General'!$A$42,E$7,E$8))*'DNSP Inputs General'!$D44 -> 108.7228863 | F9: =IF('DNSP Inputs General'!$B44='DNSP Inputs General'!$A$41,F$6,IF('DNSP Inputs General'!$B44='DNSP Inputs General'!$A$42,F$7,F$8))*'DNSP Inputs General'!$D44 -> 114.7192692 | G9: =IF('DNSP Inputs General'!$B44='DNSP Inputs General'!$A$41,G$6,IF('DNSP Inputs General'!$B44='DNSP Inputs General'!$A$42,G$7,G$8))*'DNSP Inputs General'!$D44 -> 121.3030539 | H9: =IF('DNSP Inputs General'!$B44='DNSP Inputs General'!$A$41,H$6,IF('DNSP Inputs General'!$B44='DNSP Inputs General'!$A$42,H$7,H$8))*'DNSP Inputs General'!$D44 -> 127.855293 | J9: -0.3050366682 | K9: 0.0615012997 | L9: 0.05515290474 | M9: 0.05739039933 | N9: 0.05401545021 | P9: =IF(C9=0,"",(D9/'Charges Summary'!D$4)/C9-1) -> -0.3219869934 | Q9: =IF(D9=0,"",(E9/'Charges Summary'!E$4)/(D9/'Charges Summary'!D$4)-1) -> 0.0356110241 | R9: =IF(E9=0,"",(F9/'Charges Summary'!F$4)/(E9/'Charges Summary'!E$4)-1) -> 0.02941746804 | S9: =IF(F9=0,"",(G9/'Charges Summary'!G$4)/(F9/'Charges Summary'!F$4)-1) -> 0.03160038959 | T9: =IF(G9=0,"",(H9/'Charges Summary'!H$4)/(G9/'Charges Summary'!G$4)-1) -> 0.02830775631
A10: ='DNSP Inputs General'!A45 -> Fluorescent 40 watt | C10: ='DNSP Inputs General'!E45 -> 147.38 | D10: =IF('DNSP Inputs General'!$B45='DNSP Inputs General'!$A$41,D$6,IF('DNSP Inputs General'!$B45='DNSP Inputs General'!$A$42,D$7,D$8))*'DNSP Inputs General'!$D45 -> 102.4236958 | E10: =IF('DNSP Inputs General'!$B45='DNSP Inputs General'!$A$41,E$6,IF('DNSP Inputs General'!$B45='DNSP Inputs General'!$A$42,E$7,E$8))*'DNSP Inputs General'!$D45 -> 108.7228863 | F10: =IF('DNSP Inputs General'!$B45='DNSP Inputs General'!$A$41,F$6,IF('DNSP Inputs General'!$B45='DNSP Inputs General'!$A$42,F$7,F$8))*'DNSP Inputs General'!$D45 -> 114.7192692 | G10: =IF('DNSP Inputs General'!$B45='DNSP Inputs General'!$A$41,G$6,IF('DNSP Inputs General'!$B45='DNSP Inputs General'!$A$42,G$7,G$8))*'DNSP Inputs General'!$D45 -> 121.3030539 | H10: =IF('DNSP Inputs General'!$B45='DNSP Inputs General'!$A$41,H$6,IF('DNSP Inputs General'!$B45='DNSP Inputs General'!$A$42,H$7,H$8))*'DNSP Inputs General'!$D45 -> 127.855293 | J10: -0.3050366682 | K10: 0.0615012997 | L10: 0.05515290474 | M10: 0.05739039933 | N10: 0.05401545021 | P10: =IF(C10=0,"",(D10/'Charges Summary'!D$4)/C10-1) -> -0.3219869934 | Q10: =IF(D10=0,"",(E10/'Charges Summary'!E$4)/(D10/'Charges Summary'!D$4)-1) -> 0.0356110241 | R10: =IF(E10=0,"",(F10/'Charges Summary'!F$4)/(E10/'Charges Summary'!E$4)-1) -> 0.02941746804 | S10: =IF(F10=0,"",(G10/'Charges Summary'!G$4)/(F10/'Charges Summary'!F$4)-1) -> 0.03160038959 | T10: =IF(G10=0,"",(H10/'Charges Summary'!H$4)/(G10/'Charges Summary'!G$4)-1) -> 0.02830775631
A11: ='DNSP Inputs General'!A46 -> Mercury vapour 50 watt | C11: ='DNSP Inputs General'!E46 -> 73.69 | D11: =IF('DNSP Inputs General'!$B46='DNSP Inputs General'!$A$41,D$6,IF('DNSP Inputs General'!$B46='DNSP Inputs General'!$A$42,D$7,D$8))*'DNSP Inputs General'!$D46 -> 67.15515906 | E11: =IF('DNSP Inputs General'!$B46='DNSP Inputs General'!$A$41,E$6,IF('DNSP Inputs General'!$B46='DNSP Inputs General'!$A$42,E$7,E$8))*'DNSP Inputs General'!$D46 -> 71.28528863 | F11: =IF('DNSP Inputs General'!$B46='DNSP Inputs General'!$A$41,F$6,IF('DNSP Inputs General'!$B46='DNSP Inputs General'!$A$42,F$7,F$8))*'DNSP Inputs General'!$D46 -> 75.21687936 | G11: =IF('DNSP Inputs General'!$B46='DNSP Inputs General'!$A$41,G$6,IF('DNSP Inputs General'!$B46='DNSP Inputs General'!$A$42,G$7,G$8))*'DNSP Inputs General'!$D46 -> 79.5336061 | H11: =IF('DNSP Inputs General'!$B46='DNSP Inputs General'!$A$41,H$6,IF('DNSP Inputs General'!$B46='DNSP Inputs General'!$A$42,H$7,H$8))*'DNSP Inputs General'!$D46 -> 83.82964964 | J11: -0.08868015927 | K11: 0.0615012997 | L11: 0.05515290474 | M11: 0.05739039933 | N11: 0.05401545021 | P11: =IF(C11=0,"",(D11/'Charges Summary'!D$4)/C11-1) -> -0.1109074725 | Q11: =IF(D11=0,"",(E11/'Charges Summary'!E$4)/(D11/'Charges Summary'!D$4)-1) -> 0.0356110241 | R11: =IF(E11=0,"",(F11/'Charges Summary'!F$4)/(E11/'Charges Summary'!E$4)-1) -> 0.02941746804 | S11: =IF(F11=0,"",(G11/'Charges Summary'!G$4)/(F11/'Charges Summary'!F$4)-1) -> 0.03160038959 | T11: =IF(G11=0,"",(H11/'Charges Summary'!H$4)/(G11/'Charges Summary'!G$4)-1) -> 0.02830775631
A12: ='DNSP Inputs General'!A47 -> Mercury vapour 125 watt | C12: ='DNSP Inputs General'!E47 -> 71.57 | D12: =IF('DNSP Inputs General'!$B47='DNSP Inputs General'!$A$41,D$6,IF('DNSP Inputs General'!$B47='DNSP Inputs General'!$A$42,D$7,D$8))*'DNSP Inputs General'!$D47 -> 65.2226365 | E12: =IF('DNSP Inputs General'!$B47='DNSP Inputs General'!$A$41,E$6,IF('DNSP Inputs General'!$B47='DNSP Inputs General'!$A$42,E$7,E$8))*'DNSP Inputs General'!$D47 -> 69.23391342 | F12: =IF('DNSP Inputs General'!$B47='DNSP Inputs General'!$A$41,F$6,IF('DNSP Inputs General'!$B47='DNSP Inputs General'!$A$42,F$7,F$8))*'DNSP Inputs General'!$D47 -> 73.05236485 | G12: =IF('DNSP Inputs General'!$B47='DNSP Inputs General'!$A$41,G$6,IF('DNSP Inputs General'!$B47='DNSP Inputs General'!$A$42,G$7,G$8))*'DNSP Inputs General'!$D47 -> 77.24486924 | H12: =IF('DNSP Inputs General'!$B47='DNSP Inputs General'!$A$41,H$6,IF('DNSP Inputs General'!$B47='DNSP Inputs General'!$A$42,H$7,H$8))*'DNSP Inputs General'!$D47 -> 81.41728563 | J12: -0.08868748777 | K12: 0.0615012997 | L12: 0.05515290474 | M12: 0.05739039933 | N12: 0.05401545021 | P12: =IF(C12=0,"",(D12/'Charges Summary'!D$4)/C12-1) -> -0.1109146222 | Q12: =IF(D12=0,"",(E12/'Charges Summary'!E$4)/(D12/'Charges Summary'!D$4)-1) -> 0.0356110241 | R12: =IF(E12=0,"",(F12/'Charges Summary'!F$4)/(E12/'Charges Summary'!E$4)-1) -> 0.02941746804 | S12: =IF(F12=0,"",(G12/'Charges Summary'!G$4)/(F12/'Charges Summary'!F$4)-1) -> 0.03160038959 | T12: =IF(G12=0,"",(H12/'Charges Summary'!H$4)/(G12/'Charges Summary'!G$4)-1) -> 0.02830775631
A13: ='DNSP Inputs General'!A48 -> Mercury vapour 250 watt | C13: ='DNSP Inputs General'!E48 -> 68.6 | D13: =IF('DNSP Inputs General'!$B48='DNSP Inputs General'!$A$41,D$6,IF('DNSP Inputs General'!$B48='DNSP Inputs General'!$A$42,D$7,D$8))*'DNSP Inputs General'!$D48 -> 70.02420551 | E13: =IF('DNSP Inputs General'!$B48='DNSP Inputs General'!$A$41,E$6,IF('DNSP Inputs General'!$B48='DNSP Inputs General'!$A$42,E$7,E$8))*'DNSP Inputs General'!$D48 -> 73.65125044 | F13: =IF('DNSP Inputs General'!$B48='DNSP Inputs General'!$A$41,F$6,IF('DNSP Inputs General'!$B48='DNSP Inputs General'!$A$42,F$7,F$8))*'DNSP Inputs General'!$D48 -> 77.2167047 | G13: =IF('DNSP Inputs General'!$B48='DNSP Inputs General'!$A$41,G$6,IF('DNSP Inputs General'!$B48='DNSP Inputs General'!$A$42,G$7,G$8))*'DNSP Inputs General'!$D48 -> 81.05207371 | H13: =IF('DNSP Inputs General'!$B48='DNSP Inputs General'!$A$41,H$6,IF('DNSP Inputs General'!$B48='DNSP Inputs General'!$A$42,H$7,H$8))*'DNSP Inputs General'!$D48 -> 84.91535194 | J13: 0.02076101324 | K13: 0.05179701652 | L13: 0.0484099624 | M13: 0.04967019793 | N13: 0.04766415041 | P13: =IF(C13=0,"",(D13/'Charges Summary'!D$4)/C13-1) -> -0.00413559684 | Q13: =IF(D13=0,"",(E13/'Charges Summary'!E$4)/(D13/'Charges Summary'!D$4)-1) -> 0.02614343075 | R13: =IF(E13=0,"",(F13/'Charges Summary'!F$4)/(E13/'Charges Summary'!E$4)-1) -> 0.02283898771 | S13: =IF(F13=0,"",(G13/'Charges Summary'!G$4)/(F13/'Charges Summary'!F$4)-1) -> 0.02406848579 | T13: =IF(G13=0,"",(H13/'Charges Summary'!H$4)/(G13/'Charges Summary'!G$4)-1) -> 0.02211136625
A14: ='DNSP Inputs General'!A49 -> Mercury vapour 400 watt | C14: ='DNSP Inputs General'!E49 -> 79.44 | D14: =IF('DNSP Inputs General'!$B49='DNSP Inputs General'!$A$41,D$6,IF('DNSP Inputs General'!$B49='DNSP Inputs General'!$A$42,D$7,D$8))*'DNSP Inputs General'!$D49 -> 81.08065901 | E14: =IF('DNSP Inputs General'!$B49='DNSP Inputs General'!$A$41,E$6,IF('DNSP Inputs General'!$B49='DNSP Inputs General'!$A$42,E$7,E$8))*'DNSP Inputs General'!$D49 -> 85.28039524 | F14: =IF('DNSP Inputs General'!$B49='DNSP Inputs General'!$A$41,F$6,IF('DNSP Inputs General'!$B49='DNSP Inputs General'!$A$42,F$7,F$8))*'DNSP Inputs General'!$D49 -> 89.40881597 | G14: =IF('DNSP Inputs General'!$B49='DNSP Inputs General'!$A$41,G$6,IF('DNSP Inputs General'!$B49='DNSP Inputs General'!$A$42,G$7,G$8))*'DNSP Inputs General'!$D49 -> 93.84976956 | H14: =IF('DNSP Inputs General'!$B49='DNSP Inputs General'!$A$41,H$6,IF('DNSP Inputs General'!$B49='DNSP Inputs General'!$A$42,H$7,H$8))*'DNSP Inputs General'!$D49 -> 98.32303909 | J14: 0.02065280727 | K14: 0.05179701652 | L14: 0.0484099624 | M14: 0.04967019793 | N14: 0.04766415041 | P14: =IF(C14=0,"",(D14/'Charges Summary'!D$4)/C14-1) -> -0.004241163639 | Q14: =IF(D14=0,"",(E14/'Charges Summary'!E$4)/(D14/'Charges Summary'!D$4)-1) -> 0.02614343075 | R14: =IF(E14=0,"",(F14/'Charges Summary'!F$4)/(E14/'Charges Summary'!E$4)-1) -> 0.02283898771 | S14: =IF(F14=0,"",(G14/'Charges Summary'!G$4)/(F14/'Charges Summary'!F$4)-1) -> 0.02406848579 | T14: =IF(G14=0,"",(H14/'Charges Summary'!H$4)/(G14/'Charges Summary'!G$4)-1) -> 0.02211136625
A15: ='DNSP Inputs General'!A50 -> Mercury vapour 700 watt | C15: ='DNSP Inputs General'!E50 -> 120.06 | D15: =IF('DNSP Inputs General'!$B50='DNSP Inputs General'!$A$41,D$6,IF('DNSP Inputs General'!$B50='DNSP Inputs General'!$A$42,D$7,D$8))*'DNSP Inputs General'!$D50 -> 122.5423596 | E15: =IF('DNSP Inputs General'!$B50='DNSP Inputs General'!$A$41,E$6,IF('DNSP Inputs General'!$B50='DNSP Inputs General'!$A$42,E$7,E$8))*'DNSP Inputs General'!$D50 -> 128.8896883 | F15: =IF('DNSP Inputs General'!$B50='DNSP Inputs General'!$A$41,F$6,IF('DNSP Inputs General'!$B50='DNSP Inputs General'!$A$42,F$7,F$8))*'DNSP Inputs General'!$D50 -> 135.1292332 | G15: =IF('DNSP Inputs General'!$B50='DNSP Inputs General'!$A$41,G$6,IF('DNSP Inputs General'!$B50='DNSP Inputs General'!$A$42,G$7,G$8))*'DNSP Inputs General'!$D50 -> 141.841129 | H15: =IF('DNSP Inputs General'!$B50='DNSP Inputs General'!$A$41,H$6,IF('DNSP Inputs General'!$B50='DNSP Inputs General'!$A$42,H$7,H$8))*'DNSP Inputs General'!$D50 -> 148.6018659 | J15: 0.02067599233 | K15: 0.05179701652 | L15: 0.0484099624 | M15: 0.04967019793 | N15: 0.04766415041 | P15: =IF(C15=0,"",(D15/'Charges Summary'!D$4)/C15-1) -> -0.004218544066 | Q15: =IF(D15=0,"",(E15/'Charges Summary'!E$4)/(D15/'Charges Summary'!D$4)-1) -> 0.02614343075 | R15: =IF(E15=0,"",(F15/'Charges Summary'!F$4)/(E15/'Charges Summary'!E$4)-1) -> 0.02283898771 | S15: =IF(F15=0,"",(G15/'Charges Summary'!G$4)/(F15/'Charges Summary'!F$4)-1) -> 0.02406848579 | T15: =IF(G15=0,"",(H15/'Charges Summary'!H$4)/(G15/'Charges Summary'!G$4)-1) -> 0.02211136625
A16: ='DNSP Inputs General'!A51 -> Sodium low pressure 90 watt | C16: ='DNSP Inputs General'!E51 -> 117.98 | D16: =IF('DNSP Inputs General'!$B51='DNSP Inputs General'!$A$41,D$6,IF('DNSP Inputs General'!$B51='DNSP Inputs General'!$A$42,D$7,D$8))*'DNSP Inputs General'!$D51 -> 122.7747131 | E16: =IF('DNSP Inputs General'!$B51='DNSP Inputs General'!$A$41,E$6,IF('DNSP Inputs General'!$B51='DNSP Inputs General'!$A$42,E$7,E$8))*'DNSP Inputs General'!$D51 -> 128.944156 | F16: =IF('DNSP Inputs General'!$B51='DNSP Inputs General'!$A$41,F$6,IF('DNSP Inputs General'!$B51='DNSP Inputs General'!$A$42,F$7,F$8))*'DNSP Inputs General'!$D51 -> 135.0696358 | G16: =IF('DNSP Inputs General'!$B51='DNSP Inputs General'!$A$41,G$6,IF('DNSP Inputs General'!$B51='DNSP Inputs General'!$A$42,G$7,G$8))*'DNSP Inputs General'!$D51 -> 141.6372548 | H16: =IF('DNSP Inputs General'!$B51='DNSP Inputs General'!$A$41,H$6,IF('DNSP Inputs General'!$B51='DNSP Inputs General'!$A$42,H$7,H$8))*'DNSP Inputs General'!$D51 -> 148.2546559 | J16: 0.04064004968 | K16: 0.05025011118 | L16: 0.04750490435 | M16: 0.04862394817 | N16: 0.04672076649 | P16: =IF(C16=0,"",(D16/'Charges Summary'!D$4)/C16-1) -> 0.01525858505 | Q16: =IF(D16=0,"",(E16/'Charges Summary'!E$4)/(D16/'Charges Summary'!D$4)-1) -> 0.02463425481 | R16: =IF(E16=0,"",(F16/'Charges Summary'!F$4)/(E16/'Charges Summary'!E$4)-1) -> 0.02195600424 | S16: =IF(F16=0,"",(G16/'Charges Summary'!G$4)/(F16/'Charges Summary'!F$4)-1) -> 0.02304775432 | T16: =IF(G16=0,"",(H16/'Charges Summary'!H$4)/(G16/'Charges Summary'!G$4)-1) -> 0.0211909917
A17: ='DNSP Inputs General'!A52 -> Sodium low pressure 180 watt | C17: ='DNSP Inputs General'!E52 -> 117.28 | D17: =IF('DNSP Inputs General'!$B52='DNSP Inputs General'!$A$41,D$6,IF('DNSP Inputs General'!$B52='DNSP Inputs General'!$A$42,D$7,D$8))*'DNSP Inputs General'!$D52 -> 122.7747131 | E17: =IF('DNSP Inputs General'!$B52='DNSP Inputs General'!$A$41,E$6,IF('DNSP Inputs General'!$B52='DNSP Inputs General'!$A$42,E$7,E$8))*'DNSP Inputs General'!$D52 -> 128.944156 | F17: =IF('DNSP Inputs General'!$B52='DNSP Inputs General'!$A$41,F$6,IF('DNSP Inputs General'!$B52='DNSP Inputs General'!$A$42,F$7,F$8))*'DNSP Inputs General'!$D52 -> 135.0696358 | G17: =IF('DNSP Inputs General'!$B52='DNSP Inputs General'!$A$41,G$6,IF('DNSP Inputs General'!$B52='DNSP Inputs General'!$A$42,G$7,G$8))*'DNSP Inputs General'!$D52 -> 141.6372548 | H17: =IF('DNSP Inputs General'!$B52='DNSP Inputs General'!$A$41,H$6,IF('DNSP Inputs General'!$B52='DNSP Inputs General'!$A$42,H$7,H$8))*'DNSP Inputs General'!$D52 -> 148.2546559 | J17: 0.04685123688 | K17: 0.05025011118 | L17: 0.04750490435 | M17: 0.04862394817 | N17: 0.04672076649 | P17: =IF(C17=0,"",(D17/'Charges Summary'!D$4)/C17-1) -> 0.02131827988 | Q17: =IF(D17=0,"",(E17/'Charges Summary'!E$4)/(D17/'Charges Summary'!D$4)-1) -> 0.02463425481 | R17: =IF(E17=0,"",(F17/'Charges Summary'!F$4)/(E17/'Charges Summary'!E$4)-1) -> 0.02195600424 | S17: =IF(F17=0,"",(G17/'Charges Summary'!G$4)/(F17/'Charges Summary'!F$4)-1) -> 0.02304775432 | T17: =IF(G17=0,"",(H17/'Charges Summary'!H$4)/(G17/'Charges Summary'!G$4)-1) -> 0.0211909917
A18: ='DNSP Inputs General'!A53 -> Sodium high pressure 400 watt | C18: ='DNSP Inputs General'!E53 -> 120.06 | D18: =IF('DNSP Inputs General'!$B53='DNSP Inputs General'!$A$41,D$6,IF('DNSP Inputs General'!$B53='DNSP Inputs General'!$A$42,D$7,D$8))*'DNSP Inputs General'!$D53 -> 122.5423596 | E18: =IF('DNSP Inputs General'!$B53='DNSP Inputs General'!$A$41,E$6,IF('DNSP Inputs General'!$B53='DNSP Inputs General'!$A$42,E$7,E$8))*'DNSP Inputs General'!$D53 -> 128.8896883 | F18: =IF('DNSP Inputs General'!$B53='DNSP Inputs General'!$A$41,F$6,IF('DNSP Inputs General'!$B53='DNSP Inputs General'!$A$42,F$7,F$8))*'DNSP Inputs General'!$D53 -> 135.1292332 | G18: =IF('DNSP Inputs General'!$B53='DNSP Inputs General'!$A$41,G$6,IF('DNSP Inputs General'!$B53='DNSP Inputs General'!$A$42,G$7,G$8))*'DNSP Inputs General'!$D53 -> 141.841129 | H18: =IF('DNSP Inputs General'!$B53='DNSP Inputs General'!$A$41,H$6,IF('DNSP Inputs General'!$B53='DNSP Inputs General'!$A$42,H$7,H$8))*'DNSP Inputs General'!$D53 -> 148.6018659 | J18: 0.02067599233 | K18: 0.05179701652 | L18: 0.0484099624 | M18: 0.04967019793 | N18: 0.04766415041 | P18: =IF(C18=0,"",(D18/'Charges Summary'!D$4)/C18-1) -> -0.004218544066 | Q18: =IF(D18=0,"",(E18/'Charges Summary'!E$4)/(D18/'Charges Summary'!D$4)-1) -> 0.02614343075 | R18: =IF(E18=0,"",(F18/'Charges Summary'!F$4)/(E18/'Charges Summary'!E$4)-1) -> 0.02283898771 | S18: =IF(F18=0,"",(G18/'Charges Summary'!G$4)/(F18/'Charges Summary'!F$4)-1) -> 0.02406848579 | T18: =IF(G18=0,"",(H18/'Charges Summary'!H$4)/(G18/'Charges Summary'!G$4)-1) -> 0.02211136625
A19: ='DNSP Inputs General'!A54 -> Incandescent 100 watt | C19: ='DNSP Inputs General'!E54 -> 147.38 | D19: =IF('DNSP Inputs General'!$B54='DNSP Inputs General'!$A$41,D$6,IF('DNSP Inputs General'!$B54='DNSP Inputs General'!$A$42,D$7,D$8))*'DNSP Inputs General'!$D54 -> 134.3103181 | E19: =IF('DNSP Inputs General'!$B54='DNSP Inputs General'!$A$41,E$6,IF('DNSP Inputs General'!$B54='DNSP Inputs General'!$A$42,E$7,E$8))*'DNSP Inputs General'!$D54 -> 142.5705773 | F19: =IF('DNSP Inputs General'!$B54='DNSP Inputs General'!$A$41,F$6,IF('DNSP Inputs General'!$B54='DNSP Inputs General'!$A$42,F$7,F$8))*'DNSP Inputs General'!$D54 -> 150.4337587 | G19: =IF('DNSP Inputs General'!$B54='DNSP Inputs General'!$A$41,G$6,IF('DNSP Inputs General'!$B54='DNSP Inputs General'!$A$42,G$7,G$8))*'DNSP Inputs General'!$D54 -> 159.0672122 | H19: =IF('DNSP Inputs General'!$B54='DNSP Inputs General'!$A$41,H$6,IF('DNSP Inputs General'!$B54='DNSP Inputs General'!$A$42,H$7,H$8))*'DNSP Inputs General'!$D54 -> 167.6592993 | J19: -0.08868015927 | K19: 0.0615012997 | L19: 0.05515290474 | M19: 0.05739039933 | N19: 0.05401545021 | P19: =IF(C19=0,"",(D19/'Charges Summary'!D$4)/C19-1) -> -0.1109074725 | Q19: =IF(D19=0,"",(E19/'Charges Summary'!E$4)/(D19/'Charges Summary'!D$4)-1) -> 0.0356110241 | R19: =IF(E19=0,"",(F19/'Charges Summary'!F$4)/(E19/'Charges Summary'!E$4)-1) -> 0.02941746804 | S19: =IF(F19=0,"",(G19/'Charges Summary'!G$4)/(F19/'Charges Summary'!F$4)-1) -> 0.03160038959 | T19: =IF(G19=0,"",(H19/'Charges Summary'!H$4)/(G19/'Charges Summary'!G$4)-1) -> 0.02830775631
A20: ='DNSP Inputs General'!A55 -> Incandescent 150 watt | C20: ='DNSP Inputs General'!E55 -> 147.38 | D20: =IF('DNSP Inputs General'!$B55='DNSP Inputs General'!$A$41,D$6,IF('DNSP Inputs General'!$B55='DNSP Inputs General'!$A$42,D$7,D$8))*'DNSP Inputs General'!$D55 -> 134.3103181 | E20: =IF('DNSP Inputs General'!$B55='DNSP Inputs General'!$A$41,E$6,IF('DNSP Inputs General'!$B55='DNSP Inputs General'!$A$42,E$7,E$8))*'DNSP Inputs General'!$D55 -> 142.5705773 | F20: =IF('DNSP Inputs General'!$B55='DNSP Inputs General'!$A$41,F$6,IF('DNSP Inputs General'!$B55='DNSP Inputs General'!$A$42,F$7,F$8))*'DNSP Inputs General'!$D55 -> 150.4337587 | G20: =IF('DNSP Inputs General'!$B55='DNSP Inputs General'!$A$41,G$6,IF('DNSP Inputs General'!$B55='DNSP Inputs General'!$A$42,G$7,G$8))*'DNSP Inputs General'!$D55 -> 159.0672122 | H20: =IF('DNSP Inputs General'!$B55='DNSP Inputs General'!$A$41,H$6,IF('DNSP Inputs General'!$B55='DNSP Inputs General'!$A$42,H$7,H$8))*'DNSP Inputs General'!$D55 -> 167.6592993 | J20: -0.08868015927 | K20: 0.0615012997 | L20: 0.05515290474 | M20: 0.05739039933 | N20: 0.05401545021 | P20: =IF(C20=0,"",(D20/'Charges Summary'!D$4)/C20-1) -> -0.1109074725 | Q20: =IF(D20=0,"",(E20/'Charges Summary'!E$4)/(D20/'Charges Summary'!D$4)-1) -> 0.0356110241 | R20: =IF(E20=0,"",(F20/'Charges Summary'!F$4)/(E20/'Charges Summary'!E$4)-1) -> 0.02941746804 | S20: =IF(F20=0,"",(G20/'Charges Summary'!G$4)/(F20/'Charges Summary'!F$4)-1) -> 0.03160038959 | T20: =IF(G20=0,"",(H20/'Charges Summary'!H$4)/(G20/'Charges Summary'!G$4)-1) -> 0.02830775631
A21: ='DNSP Inputs General'!A56 -> Metal halide 250 watt | C21: ='DNSP Inputs General'!E56 -> 120.06 | D21: =IF('DNSP Inputs General'!$B56='DNSP Inputs General'!$A$41,D$6,IF('DNSP Inputs General'!$B56='DNSP Inputs General'!$A$42,D$7,D$8))*'DNSP Inputs General'!$D56 -> 122.5423596 | E21: =IF('DNSP Inputs General'!$B56='DNSP Inputs General'!$A$41,E$6,IF('DNSP Inputs General'!$B56='DNSP Inputs General'!$A$42,E$7,E$8))*'DNSP Inputs General'!$D56 -> 128.8896883 | F21: =IF('DNSP Inputs General'!$B56='DNSP Inputs General'!$A$41,F$6,IF('DNSP Inputs General'!$B56='DNSP Inputs General'!$A$42,F$7,F$8))*'DNSP Inputs General'!$D56 -> 135.1292332 | G21: =IF('DNSP Inputs General'!$B56='DNSP Inputs General'!$A$41,G$6,IF('DNSP Inputs General'!$B56='DNSP Inputs General'!$A$42,G$7,G$8))*'DNSP Inputs General'!$D56 -> 141.841129 | H21: =IF('DNSP Inputs General'!$B56='DNSP Inputs General'!$A$41,H$6,IF('DNSP Inputs General'!$B56='DNSP Inputs General'!$A$42,H$7,H$8))*'DNSP Inputs General'!$D56 -> 148.6018659 | J21: 0.02067599233 | K21: 0.05179701652 | L21: 0.0484099624 | M21: 0.04967019793 | N21: 0.04766415041 | P21: =IF(C21=0,"",(D21/'Charges Summary'!D$4)/C21-1) -> -0.004218544066 | Q21: =IF(D21=0,"",(E21/'Charges Summary'!E$4)/(D21/'Charges Summary'!D$4)-1) -> 0.02614343075 | R21: =IF(E21=0,"",(F21/'Charges Summary'!F$4)/(E21/'Charges Summary'!E$4)-1) -> 0.02283898771 | S21: =IF(F21=0,"",(G21/'Charges Summary'!G$4)/(F21/'Charges Summary'!F$4)-1) -> 0.02406848579 | T21: =IF(G21=0,"",(H21/'Charges Summary'!H$4)/(G21/'Charges Summary'!G$4)-1) -> 0.02211136625
A22: ='DNSP Inputs General'!A57 -> Metal halide 400 watt | C22: ='DNSP Inputs General'!E57 -> 120.06 | D22: =IF('DNSP Inputs General'!$B57='DNSP Inputs General'!$A$41,D$6,IF('DNSP Inputs General'!$B57='DNSP Inputs General'!$A$42,D$7,D$8))*'DNSP Inputs General'!$D57 -> 122.5423596 | E22: =IF('DNSP Inputs General'!$B57='DNSP Inputs General'!$A$41,E$6,IF('DNSP Inputs General'!$B57='DNSP Inputs General'!$A$42,E$7,E$8))*'DNSP Inputs General'!$D57 -> 128.8896883 | F22: =IF('DNSP Inputs General'!$B57='DNSP Inputs General'!$A$41,F$6,IF('DNSP Inputs General'!$B57='DNSP Inputs General'!$A$42,F$7,F$8))*'DNSP Inputs General'!$D57 -> 135.1292332 | G22: =IF('DNSP Inputs General'!$B57='DNSP Inputs General'!$A$41,G$6,IF('DNSP Inputs General'!$B57='DNSP Inputs General'!$A$42,G$7,G$8))*'DNSP Inputs General'!$D57 -> 141.841129 | H22: =IF('DNSP Inputs General'!$B57='DNSP Inputs General'!$A$41,H$6,IF('DNSP Inputs General'!$B57='DNSP Inputs General'!$A$42,H$7,H$8))*'DNSP Inputs General'!$D57 -> 148.6018659 | J22: 0.02067599233 | K22: 0.05179701652 | L22: 0.0484099624 | M22: 0.04967019793 | N22: 0.04766415041 | P22: =IF(C22=0,"",(D22/'Charges Summary'!D$4)/C22-1) -> -0.004218544066 | Q22: =IF(D22=0,"",(E22/'Charges Summary'!E$4)/(D22/'Charges Summary'!D$4)-1) -> 0.02614343075 | R22: =IF(E22=0,"",(F22/'Charges Summary'!F$4)/(E22/'Charges Summary'!E$4)-1) -> 0.02283898771 | S22: =IF(F22=0,"",(G22/'Charges Summary'!G$4)/(F22/'Charges Summary'!F$4)-1) -> 0.02406848579 | T22: =IF(G22=0,"",(H22/'Charges Summary'!H$4)/(G22/'Charges Summary'!G$4)-1) -> 0.02211136625
A23: ='DNSP Inputs General'!A58 -> Metal halide 70 watt | D23: =IF('DNSP Inputs General'!$B58='DNSP Inputs General'!$A$41,D$6,IF('DNSP Inputs General'!$B58='DNSP Inputs General'!$A$42,D$7,D$8))*'DNSP Inputs General'!$D58 -> 102.4236958 | E23: =IF('DNSP Inputs General'!$B58='DNSP Inputs General'!$A$41,E$6,IF('DNSP Inputs General'!$B58='DNSP Inputs General'!$A$42,E$7,E$8))*'DNSP Inputs General'!$D58 -> 108.7228863 | F23: =IF('DNSP Inputs General'!$B58='DNSP Inputs General'!$A$41,F$6,IF('DNSP Inputs General'!$B58='DNSP Inputs General'!$A$42,F$7,F$8))*'DNSP Inputs General'!$D58 -> 114.7192692 | G23: =IF('DNSP Inputs General'!$B58='DNSP Inputs General'!$A$41,G$6,IF('DNSP Inputs General'!$B58='DNSP Inputs General'!$A$42,G$7,G$8))*'DNSP Inputs General'!$D58 -> 121.3030539 | H23: =IF('DNSP Inputs General'!$B58='DNSP Inputs General'!$A$41,H$6,IF('DNSP Inputs General'!$B58='DNSP Inputs General'!$A$42,H$7,H$8))*'DNSP Inputs General'!$D58 -> 127.855293 | J23: =IF(C23=0,"",D23/C23-1) ->  | K23: =IF(D23=0,"",E23/D23-1) -> 0.0615012997 | L23: =IF(E23=0,"",F23/E23-1) -> 0.05515290474 | M23: =IF(F23=0,"",G23/F23-1) -> 0.05739039933 | N23: =IF(G23=0,"",H23/G23-1) -> 0.05401545021 | P23: =IF(C23=0,"",(D23/'Charges Summary'!D$4)/C23-1) ->  | Q23: =IF(D23=0,"",(E23/'Charges Summary'!E$4)/(D23/'Charges Summary'!D$4)-1) -> 0.0356110241 | R23: =IF(E23=0,"",(F23/'Charges Summary'!F$4)/(E23/'Charges Summary'!E$4)-1) -> 0.02941746804 | S23: =IF(F23=0,"",(G23/'Charges Summary'!G$4)/(F23/'Charges Summary'!F$4)-1) -> 0.03160038959 | T23: =IF(G23=0,"",(H23/'Charges Summary'!H$4)/(G23/'Charges Summary'!G$4)-1) -> 0.02830775631
A24: ='DNSP Inputs General'!A59 -> Metal halide 150 watt | D24: =IF('DNSP Inputs General'!$B59='DNSP Inputs General'!$A$41,D$6,IF('DNSP Inputs General'!$B59='DNSP Inputs General'!$A$42,D$7,D$8))*'DNSP Inputs General'!$D59 -> 120.9558284 | E24: =IF('DNSP Inputs General'!$B59='DNSP Inputs General'!$A$41,E$6,IF('DNSP Inputs General'!$B59='DNSP Inputs General'!$A$42,E$7,E$8))*'DNSP Inputs General'!$D59 -> 127.0338722 | F24: =IF('DNSP Inputs General'!$B59='DNSP Inputs General'!$A$41,F$6,IF('DNSP Inputs General'!$B59='DNSP Inputs General'!$A$42,F$7,F$8))*'DNSP Inputs General'!$D59 -> 133.0686042 | G24: =IF('DNSP Inputs General'!$B59='DNSP Inputs General'!$A$41,G$6,IF('DNSP Inputs General'!$B59='DNSP Inputs General'!$A$42,G$7,G$8))*'DNSP Inputs General'!$D59 -> 139.5389251 | H24: =IF('DNSP Inputs General'!$B59='DNSP Inputs General'!$A$41,H$6,IF('DNSP Inputs General'!$B59='DNSP Inputs General'!$A$42,H$7,H$8))*'DNSP Inputs General'!$D59 -> 146.0582907 | K24: 0.05025011118 | L24: 0.04750490435 | M24: 0.04862394817 | N24: 0.04672076649 | P24: =IF(C24=0,"",(D24/'Charges Summary'!D$4)/C24-1) ->  | Q24: =IF(D24=0,"",(E24/'Charges Summary'!E$4)/(D24/'Charges Summary'!D$4)-1) -> 0.02463425481 | R24: =IF(E24=0,"",(F24/'Charges Summary'!F$4)/(E24/'Charges Summary'!E$4)-1) -> 0.02195600424 | S24: =IF(F24=0,"",(G24/'Charges Summary'!G$4)/(F24/'Charges Summary'!F$4)-1) -> 0.02304775432 | T24: =IF(G24=0,"",(H24/'Charges Summary'!H$4)/(G24/'Charges Summary'!G$4)-1) -> 0.0211909917
A30: ='DNSP Inputs General'!A$67 -> Energy Efficient Lights
A31: ='DNSP Inputs General'!A68 -> T5 2X14W | C31: ='DNSP Inputs General'!E68 -> 33.61 | D31: ='Charges Summary'!D$89 -> 39.84828036 | E31: ='Charges Summary'!E$89 -> 39.82619209 | F31: ='Charges Summary'!F$89 -> 40.84080319 | G31: ='Charges Summary'!G$89 -> 41.82882711 | H31: ='Charges Summary'!H$89 -> 42.79275799 | J31: =IF(C31=0,"",D31/C31-1) -> 0.1856078655 | K31: =IF(D31=0,"",E31/D31-1) -> -0.0005543092586 | L31: =IF(E31=0,"",F31/E31-1) -> 0.02547597557 | M31: =IF(F31=0,"",G31/F31-1) -> 0.02419207863 | N31: =IF(G31=0,"",H31/G31-1) -> 0.02304465471 | P31: =IF(C31=0,"",(D31/'Charges Summary'!D$4)/C31-1) -> 0.1566906005 | Q31: =IF(D31=0,"",(E31/'Charges Summary'!E$4)/(D31/'Charges Summary'!D$4)-1) -> -0.02493103342 | R31: =IF(E31=0,"",(F31/'Charges Summary'!F$4)/(E31/'Charges Summary'!E$4)-1) -> 0.0004643664096 | S31: =IF(F31=0,"",(G31/'Charges Summary'!G$4)/(F31/'Charges Summary'!F$4)-1) -> -0.0007882159677 | T31: =IF(G31=0,"",(H31/'Charges Summary'!H$4)/(G31/'Charges Summary'!G$4)-1) -> -0.001907653944
A32: ='DNSP Inputs General'!A69 -> T5 2X24W | D32: ='DNSP Inputs General'!$D69*D31 -> 39.20217282 | E32: ='DNSP Inputs General'!$D69*E31 -> 39.18044269 | F32: ='DNSP Inputs General'!$D69*F31 -> 40.1786027 | G32: ='DNSP Inputs General'!$D69*G31 -> 41.15060661 | H32: ='DNSP Inputs General'!$D69*H31 -> 42.09890813 | J32: =IF(C32=0,"",D32/C32-1) ->  | K32: =IF(D32=0,"",E32/D32-1) -> -0.0005543092586 | L32: =IF(E32=0,"",F32/E32-1) -> 0.02547597557 | M32: =IF(F32=0,"",G32/F32-1) -> 0.02419207863 | N32: =IF(G32=0,"",H32/G32-1) -> 0.02304465471 | P32: =IF(C32=0,"",(D32/'Charges Summary'!D$4)/C32-1) ->  | Q32: =IF(D32=0,"",(E32/'Charges Summary'!E$4)/(D32/'Charges Summary'!D$4)-1) -> -0.02493103342 | R32: =IF(E32=0,"",(F32/'Charges Summary'!F$4)/(E32/'Charges Summary'!E$4)-1) -> 0.0004643664096 | S32: =IF(F32=0,"",(G32/'Charges Summary'!G$4)/(F32/'Charges Summary'!F$4)-1) -> -0.0007882159677 | T32: =IF(G32=0,"",(H32/'Charges Summary'!H$4)/(G32/'Charges Summary'!G$4)-1) -> -0.001907653944
A33: ='DNSP Inputs General'!A70 -> CF32 | D33: ='DNSP Inputs General'!$D70*D31 -> 38.3055799 | E33: ='DNSP Inputs General'!$D70*E31 -> 38.28434676 | F33: ='DNSP Inputs General'!$D70*F31 -> 39.25967784 | G33: ='DNSP Inputs General'!$D70*G31 -> 40.20945106 | H33: ='DNSP Inputs General'!$D70*H31 -> 41.13606397 | K33: -0.0005543092586 | L33: 0.02547597557 | M33: 0.02419207863 | N33: 0.02304465471 | P33: =IF(C33=0,"",(D33/'Charges Summary'!D$4)/C33-1) ->  | Q33: =IF(D33=0,"",(E33/'Charges Summary'!E$4)/(D33/'Charges Summary'!D$4)-1) -> -0.02493103342 | R33: =IF(E33=0,"",(F33/'Charges Summary'!F$4)/(E33/'Charges Summary'!E$4)-1) -> 0.0004643664096 | S33: =IF(F33=0,"",(G33/'Charges Summary'!G$4)/(F33/'Charges Summary'!F$4)-1) -> -0.0007882159677 | T33: =IF(G33=0,"",(H33/'Charges Summary'!H$4)/(G33/'Charges Summary'!G$4)-1) -> -0.001907653944
A34: ='DNSP Inputs General'!A71 -> CF42 | D34: ='DNSP Inputs General'!$D71*D31 -> 38.3055799 | E34: ='DNSP Inputs General'!$D71*E31 -> 38.28434676 | F34: ='DNSP Inputs General'!$D71*F31 -> 39.25967784 | G34: ='DNSP Inputs General'!$D71*G31 -> 40.20945106 | H34: ='DNSP Inputs General'!$D71*H31 -> 41.13606397 | K34: -0.0005543092586 | L34: 0.02547597557 | M34: 0.02419207863 | N34: 0.02304465471 | P34: =IF(C34=0,"",(D34/'Charges Summary'!D$4)/C34-1) ->  | Q34: =IF(D34=0,"",(E34/'Charges Summary'!E$4)/(D34/'Charges Summary'!D$4)-1) -> -0.02493103342 | R34: =IF(E34=0,"",(F34/'Charges Summary'!F$4)/(E34/'Charges Summary'!E$4)-1) -> 0.0004643664096 | S34: =IF(F34=0,"",(G34/'Charges Summary'!G$4)/(F34/'Charges Summary'!F$4)-1) -> -0.0007882159677 | T34: =IF(G34=0,"",(H34/'Charges Summary'!H$4)/(G34/'Charges Summary'!G$4)-1) -> -0.001907653944
A35: ='DNSP Inputs General'!A72 -> Category P LED 18 Watt | D35: ='Charges Summary'!D$107 -> 26.58633049 | E35: ='Charges Summary'!E$107 -> 25.98432636 | F35: ='Charges Summary'!F$107 -> 26.53146838 | G35: ='Charges Summary'!G$107 -> 27.00503352 | H35: ='Charges Summary'!H$107 -> 27.44265317 | K35: -0.02264337048 | L35: 0.02105661738 | M35: 0.01784918713 | N35: 0.01620511395 | P35: =IF(C35=0,"",(D35/'Charges Summary'!D$4)/C35-1) ->  | Q35: =IF(D35=0,"",(E35/'Charges Summary'!E$4)/(D35/'Charges Summary'!D$4)-1) -> -0.04648133706 | R35: =IF(E35=0,"",(F35/'Charges Summary'!F$4)/(E35/'Charges Summary'!E$4)-1) -> -0.003847202551 | S35: =IF(F35=0,"",(G35/'Charges Summary'!G$4)/(F35/'Charges Summary'!F$4)-1) -> -0.006976402803 | T35: =IF(G35=0,"",(H35/'Charges Summary'!H$4)/(G35/'Charges Summary'!G$4)-1) -> -0.008580376635
A36: ='DNSP Inputs General'!A73 -> Category P LED 47 Watt | D36: ='DNSP Inputs General'!$D73*D35 -> 26.58633049 | E36: ='DNSP Inputs General'!$D73*E35 -> 25.98432636 | F36: ='DNSP Inputs General'!$D73*F35 -> 26.53146838 | G36: ='DNSP Inputs General'!$D73*G35 -> 27.00503352 | H36: ='DNSP Inputs General'!$D73*H35 -> 27.44265317 | K36: -0.02264337048 | L36: 0.02105661738 | M36: 0.01784918713 | N36: 0.01620511395 | P36: =IF(C36=0,"",(D36/'Charges Summary'!D$4)/C36-1) ->  | Q36: =IF(D36=0,"",(E36/'Charges Summary'!E$4)/(D36/'Charges Summary'!D$4)-1) -> -0.04648133706 | R36: =IF(E36=0,"",(F36/'Charges Summary'!F$4)/(E36/'Charges Summary'!E$4)-1) -> -0.003847202551 | S36: =IF(F36=0,"",(G36/'Charges Summary'!G$4)/(F36/'Charges Summary'!F$4)-1) -> -0.006976402803 | T36: =IF(G36=0,"",(H36/'Charges Summary'!H$4)/(G36/'Charges Summary'!G$4)-1) -> -0.008580376635

Sheet PL Tariff Components
A1: ='DNSP Inputs O & M'!$A$3 -> Powercor | E1: Global Check | F1: =IF(SUM('Total RAB'!F1,'Depn & WACC Post 2004'!F1,'Cashflow Summary'!F1,W1)<1,"Ok","Error") -> Ok | V1: Check | W1: =SUM(V6:Z36) -> 8.810729923e-13
A3: Public Lighting Tariffs | C3: Nominal Prices | J3: Operations, maintenance and repair Tariff | P3: Replacement Tariff | V3: Check
C4: Actual
A5: ='DNSP Inputs General'!A$40 -> Existing Lights | C5: ='DNSP Inputs General'!J$2 -> 2015 | D5: ='DNSP Inputs General'!K$2 -> 2016 | E5: ='DNSP Inputs General'!L$2 -> 2017 | F5: ='DNSP Inputs General'!M$2 -> 2018 | G5: ='DNSP Inputs General'!N$2 -> 2019 | H5: ='DNSP Inputs General'!O$2 -> 2020 | J5: =D5 -> 2016 | K5: =E5 -> 2017 | L5: 2018 | M5: 2019 | N5: 2020 | P5: =J5 -> 2016 | Q5: =K5 -> 2017 | R5: 2018 | S5: 2019 | T5: 2020 | V5: =P5 -> 2016 | W5: =Q5 -> 2017 | X5: 2018 | Y5: 2019 | Z5: 2020
A6: ='DNSP Inputs General'!A41 -> Mercury vapour 80 watt | C6: ='DNSP Inputs General'!E41 -> 53.01 | D6: ='Charges Summary'!D$31 -> 48.31306407 | E6: ='Charges Summary'!E$31 -> 51.28438031 | F6: ='Charges Summary'!F$31 -> 54.11286285 | G6: ='Charges Summary'!G$31 -> 57.21842166 | H6: ='Charges Summary'!H$31 -> 60.30910046 | J6: =SUM('Charges Summary'!D25,'Charges Summary'!D8) -> 25.03948527 | K6: =SUM('Charges Summary'!E25,'Charges Summary'!E8) -> 25.99754632 | L6: =SUM('Charges Summary'!F25,'Charges Summary'!F8) -> 26.99104026 | M6: =SUM('Charges Summary'!G25,'Charges Summary'!G8) -> 28.02265191 | N6: =SUM('Charges Summary'!H25,'Charges Summary'!H8) -> 29.09581983 | P6: =SUM('Charges Summary'!D27,'Charges Summary'!D11) -> 23.2735788 | Q6: =SUM('Charges Summary'!E27,'Charges Summary'!E11) -> 25.28683399 | R6: =SUM('Charges Summary'!F27,'Charges Summary'!F11) -> 27.12182259 | S6: =SUM('Charges Summary'!G27,'Charges Summary'!G11) -> 29.19576975 | T6: =SUM('Charges Summary'!H27,'Charges Summary'!H11) -> 31.21328063 | V6: =ABS(D6-J6-P6) -> 0 | W6: =ABS(E6-K6-Q6) -> 0 | X6: 3.552713679e-15 | Y6: 7.105427358e-15 | Z6: 3.552713679e-15
A7: ='DNSP Inputs General'!A42 -> Sodium high pressure 150 watt | C7: ='DNSP Inputs General'!E42 -> 87.39 | D7: ='Charges Summary'!D$55 -> 90.9442319 | E7: ='Charges Summary'!E$55 -> 95.51418966 | F7: ='Charges Summary'!F$55 -> 100.0515821 | G7: ='Charges Summary'!G$55 -> 104.916485 | H7: ='Charges Summary'!H$55 -> 109.8182636 | J7: =SUM('Charges Summary'!D49,'Charges Summary'!D8) -> 67.4194901 | K7: =SUM('Charges Summary'!E49,'Charges Summary'!E8) -> 69.93418193 | L7: =SUM('Charges Summary'!F49,'Charges Summary'!F8) -> 72.60452436 | M7: =SUM('Charges Summary'!G49,'Charges Summary'!G8) -> 75.35770885 | N7: =SUM('Charges Summary'!H49,'Charges Summary'!H8) -> 78.20425813 | P7: =SUM('Charges Summary'!D51,'Charges Summary'!D11) -> 23.5247418 | Q7: =SUM('Charges Summary'!E51,'Charges Summary'!E11) -> 25.58000773 | R7: =SUM('Charges Summary'!F51,'Charges Summary'!F11) -> 27.44705775 | S7: =SUM('Charges Summary'!G51,'Charges Summary'!G11) -> 29.5587762 | T7: =SUM('Charges Summary'!H51,'Charges Summary'!H11) -> 31.61400552 | V7: =ABS(D7-J7-P7) -> 3.552713679e-15 | W7: 7.105427358e-15 | X7: 1.065814104e-14 | Y7: 7.105427358e-15 | Z7: 1.421085472e-14
A8: ='DNSP Inputs General'!A43 -> Sodium high pressure 250 watt | C8: ='DNSP Inputs General'!E43 -> 90.27 | D8: ='Charges Summary'!D$71 -> 92.13711251 | E8: ='Charges Summary'!E$71 -> 96.90954005 | F8: ='Charges Summary'!F$71 -> 101.6009272 | G8: ='Charges Summary'!G$71 -> 106.6474654 | H8: ='Charges Summary'!H$71 -> 111.7307262 | J8: =SUM('Charges Summary'!D65,'Charges Summary'!D8) -> 67.40137347 | K8: =SUM('Charges Summary'!E65,'Charges Summary'!E8) -> 69.91597778 | L8: =SUM('Charges Summary'!F65,'Charges Summary'!F8) -> 72.58572895 | M8: =SUM('Charges Summary'!G65,'Charges Summary'!G8) -> 75.33843215 | N8: =SUM('Charges Summary'!H65,'Charges Summary'!H8) -> 78.18460196 | P8: =SUM('Charges Summary'!D67,'Charges Summary'!D11) -> 24.73573904 | Q8: =SUM('Charges Summary'!E67,'Charges Summary'!E11) -> 26.99356227 | R8: =SUM('Charges Summary'!F67,'Charges Summary'!F11) -> 29.01519829 | S8: =SUM('Charges Summary'!G67,'Charges Summary'!G11) -> 31.30903326 | T8: =SUM('Charges Summary'!H67,'Charges Summary'!H11) -> 33.54612428 | V8: 0 | W8: 3.552713679e-15 | X8: 0 | Y8: 0 | Z8: 1.421085472e-14
A9: ='DNSP Inputs General'!A44 -> Fluorescent 20 watt | C9: ='DNSP Inputs General'!E44 -> 147.38 | D9: =IF('DNSP Inputs General'!$B44='DNSP Inputs General'!$A$41,D$6,IF('DNSP Inputs General'!$B44='DNSP Inputs General'!$A$42,D$7,D$8))*'DNSP Inputs General'!$D44 -> 102.4236958 | E9: =IF('DNSP Inputs General'!$B44='DNSP Inputs General'!$A$41,E$6,IF('DNSP Inputs General'!$B44='DNSP Inputs General'!$A$42,E$7,E$8))*'DNSP Inputs General'!$D44 -> 108.7228863 | F9: =IF('DNSP Inputs General'!$B44='DNSP Inputs General'!$A$41,F$6,IF('DNSP Inputs General'!$B44='DNSP Inputs General'!$A$42,F$7,F$8))*'DNSP Inputs General'!$D44 -> 114.7192692 | G9: =IF('DNSP Inputs General'!$B44='DNSP Inputs General'!$A$41,G$6,IF('DNSP Inputs General'!$B44='DNSP Inputs General'!$A$42,G$7,G$8))*'DNSP Inputs General'!$D44 -> 121.3030539 | H9: =IF('DNSP Inputs General'!$B44='DNSP Inputs General'!$A$41,H$6,IF('DNSP Inputs General'!$B44='DNSP Inputs General'!$A$42,H$7,H$8))*'DNSP Inputs General'!$D44 -> 127.855293 | J9: =IF('DNSP Inputs General'!$B44='DNSP Inputs General'!$A$41,J$6,IF('DNSP Inputs General'!$B44='DNSP Inputs General'!$A$42,J$7,J$8))*'DNSP Inputs General'!$D44 -> 53.08370878 | K9: =IF('DNSP Inputs General'!$B44='DNSP Inputs General'!$A$41,K$6,IF('DNSP Inputs General'!$B44='DNSP Inputs General'!$A$42,K$7,K$8))*'DNSP Inputs General'!$D44 -> 55.1147982 | L9: =IF('DNSP Inputs General'!$B44='DNSP Inputs General'!$A$41,L$6,IF('DNSP Inputs General'!$B44='DNSP Inputs General'!$A$42,L$7,L$8))*'DNSP Inputs General'!$D44 -> 57.22100535 | M9: =IF('DNSP Inputs General'!$B44='DNSP Inputs General'!$A$41,M$6,IF('DNSP Inputs General'!$B44='DNSP Inputs General'!$A$42,M$7,M$8))*'DNSP Inputs General'!$D44 -> 59.40802205 | N9: =IF('DNSP Inputs General'!$B44='DNSP Inputs General'!$A$41,N$6,IF('DNSP Inputs General'!$B44='DNSP Inputs General'!$A$42,N$7,N$8))*'DNSP Inputs General'!$D44 -> 61.68313805 | P9: =IF('DNSP Inputs General'!$B44='DNSP Inputs General'!$A$41,P$6,IF('DNSP Inputs General'!$B44='DNSP Inputs General'!$A$42,P$7,P$8))*'DNSP Inputs General'!$D44 -> 49.33998706 | Q9: =IF('DNSP Inputs General'!$B44='DNSP Inputs General'!$A$41,Q$6,IF('DNSP Inputs General'!$B44='DNSP Inputs General'!$A$42,Q$7,Q$8))*'DNSP Inputs General'!$D44 -> 53.60808805 | R9: =IF('DNSP Inputs General'!$B44='DNSP Inputs General'!$A$41,R$6,IF('DNSP Inputs General'!$B44='DNSP Inputs General'!$A$42,R$7,R$8))*'DNSP Inputs General'!$D44 -> 57.49826389 | S9: =IF('DNSP Inputs General'!$B44='DNSP Inputs General'!$A$41,S$6,IF('DNSP Inputs General'!$B44='DNSP Inputs General'!$A$42,S$7,S$8))*'DNSP Inputs General'!$D44 -> 61.89503187 | T9: =IF('DNSP Inputs General'!$B44='DNSP Inputs General'!$A$41,T$6,IF('DNSP Inputs General'!$B44='DNSP Inputs General'!$A$42,T$7,T$8))*'DNSP Inputs General'!$D44 -> 66.17215493 | V9: 0 | W9: 7.105427358e-15 | X9: 1.421085472e-14 | Y9: 7.105427358e-15 | Z9: 0
A10: ='DNSP Inputs General'!A45 -> Fluorescent 40 watt | C10: ='DNSP Inputs General'!E45 -> 147.38 | D10: =IF('DNSP Inputs General'!$B45='DNSP Inputs General'!$A$41,D$6,IF('DNSP Inputs General'!$B45='DNSP Inputs General'!$A$42,D$7,D$8))*'DNSP Inputs General'!$D45 -> 102.4236958 | E10: =IF('DNSP Inputs General'!$B45='DNSP Inputs General'!$A$41,E$6,IF('DNSP Inputs General'!$B45='DNSP Inputs General'!$A$42,E$7,E$8))*'DNSP Inputs General'!$D45 -> 108.7228863 | F10: =IF('DNSP Inputs General'!$B45='DNSP Inputs General'!$A$41,F$6,IF('DNSP Inputs General'!$B45='DNSP Inputs General'!$A$42,F$7,F$8))*'DNSP Inputs General'!$D45 -> 114.7192692 | G10: =IF('DNSP Inputs General'!$B45='DNSP Inputs General'!$A$41,G$6,IF('DNSP Inputs General'!$B45='DNSP Inputs General'!$A$42,G$7,G$8))*'DNSP Inputs General'!$D45 -> 121.3030539 | H10: =IF('DNSP Inputs General'!$B45='DNSP Inputs General'!$A$41,H$6,IF('DNSP Inputs General'!$B45='DNSP Inputs General'!$A$42,H$7,H$8))*'DNSP Inputs General'!$D45 -> 127.855293 | J10: =IF('DNSP Inputs General'!$B45='DNSP Inputs General'!$A$41,J$6,IF('DNSP Inputs General'!$B45='DNSP Inputs General'!$A$42,J$7,J$8))*'DNSP Inputs General'!$D45 -> 53.08370878 | K10: =IF('DNSP Inputs General'!$B45='DNSP Inputs General'!$A$41,K$6,IF('DNSP Inputs General'!$B45='DNSP Inputs General'!$A$42,K$7,K$8))*'DNSP Inputs General'!$D45 -> 55.1147982 | L10: =IF('DNSP Inputs General'!$B45='DNSP Inputs General'!$A$41,L$6,IF('DNSP Inputs General'!$B45='DNSP Inputs General'!$A$42,L$7,L$8))*'DNSP Inputs General'!$D45 -> 57.22100535 | M10: =IF('DNSP Inputs General'!$B45='DNSP Inputs General'!$A$41,M$6,IF('DNSP Inputs General'!$B45='DNSP Inputs General'!$A$42,M$7,M$8))*'DNSP Inputs General'!$D45 -> 59.40802205 | N10: =IF('DNSP Inputs General'!$B45='DNSP Inputs General'!$A$41,N$6,IF('DNSP Inputs General'!$B45='DNSP Inputs General'!$A$42,N$7,N$8))*'DNSP Inputs General'!$D45 -> 61.68313805 | P10: =IF('DNSP Inputs General'!$B45='DNSP Inputs General'!$A$41,P$6,IF('DNSP Inputs General'!$B45='DNSP Inputs General'!$A$42,P$7,P$8))*'DNSP Inputs General'!$D45 -> 49.33998706 | Q10: =IF('DNSP Inputs General'!$B45='DNSP Inputs General'!$A$41,Q$6,IF('DNSP Inputs General'!$B45='DNSP Inputs General'!$A$42,Q$7,Q$8))*'DNSP Inputs General'!$D45 -> 53.60808805 | R10: =IF('DNSP Inputs General'!$B45='DNSP Inputs General'!$A$41,R$6,IF('DNSP Inputs General'!$B45='DNSP Inputs General'!$A$42,R$7,R$8))*'DNSP Inputs General'!$D45 -> 57.49826389 | S10: =IF('DNSP Inputs General'!$B45='DNSP Inputs General'!$A$41,S$6,IF('DNSP Inputs General'!$B45='DNSP Inputs General'!$A$42,S$7,S$8))*'DNSP Inputs General'!$D45 -> 61.89503187 | T10: =IF('DNSP Inputs General'!$B45='DNSP Inputs General'!$A$41,T$6,IF('DNSP Inputs General'!$B45='DNSP Inputs General'!$A$42,T$7,T$8))*'DNSP Inputs General'!$D45 -> 66.17215493 | V10: 0 | W10: 7.105427358e-15 | X10: 1.421085472e-14 | Y10: 7.105427358e-15 | Z10: 0
A11: ='DNSP Inputs General'!A46 -> Mercury vapour 50 watt | C11: ='DNSP Inputs General'!E46 -> 73.69 | D11: =IF('DNSP Inputs General'!$B46='DNSP Inputs General'!$A$41,D$6,IF('DNSP Inputs General'!$B46='DNSP Inputs General'!$A$42,D$7,D$8))*'DNSP Inputs General'!$D46 -> 67.15515906 | E11: =IF('DNSP Inputs General'!$B46='DNSP Inputs General'!$A$41,E$6,IF('DNSP Inputs General'!$B46='DNSP Inputs General'!$A$42,E$7,E$8))*'DNSP Inputs General'!$D46 -> 71.28528863 | F11: =IF('DNSP Inputs General'!$B46='DNSP Inputs General'!$A$41,F$6,IF('DNSP Inputs General'!$B46='DNSP Inputs General'!$A$42,F$7,F$8))*'DNSP Inputs General'!$D46 -> 75.21687936 | G11: =IF('DNSP Inputs General'!$B46='DNSP Inputs General'!$A$41,G$6,IF('DNSP Inputs General'!$B46='DNSP Inputs General'!$A$42,G$7,G$8))*'DNSP Inputs General'!$D46 -> 79.5336061 | H11: =IF('DNSP Inputs General'!$B46='DNSP Inputs General'!$A$41,H$6,IF('DNSP Inputs General'!$B46='DNSP Inputs General'!$A$42,H$7,H$8))*'DNSP Inputs General'!$D46 -> 83.82964964 | J11: =IF('DNSP Inputs General'!$B46='DNSP Inputs General'!$A$41,J$6,IF('DNSP Inputs General'!$B46='DNSP Inputs General'!$A$42,J$7,J$8))*'DNSP Inputs General'!$D46 -> 34.80488453 | K11: =IF('DNSP Inputs General'!$B46='DNSP Inputs General'!$A$41,K$6,IF('DNSP Inputs General'!$B46='DNSP Inputs General'!$A$42,K$7,K$8))*'DNSP Inputs General'!$D46 -> 36.13658939 | L11: =IF('DNSP Inputs General'!$B46='DNSP Inputs General'!$A$41,L$6,IF('DNSP Inputs General'!$B46='DNSP Inputs General'!$A$42,L$7,L$8))*'DNSP Inputs General'!$D46 -> 37.51754596 | M11: =IF('DNSP Inputs General'!$B46='DNSP Inputs General'!$A$41,M$6,IF('DNSP Inputs General'!$B46='DNSP Inputs General'!$A$42,M$7,M$8))*'DNSP Inputs General'!$D46 -> 38.95148615 | N11: =IF('DNSP Inputs General'!$B46='DNSP Inputs General'!$A$41,N$6,IF('DNSP Inputs General'!$B46='DNSP Inputs General'!$A$42,N$7,N$8))*'DNSP Inputs General'!$D46 -> 40.44318957 | P11: =IF('DNSP Inputs General'!$B46='DNSP Inputs General'!$A$41,P$6,IF('DNSP Inputs General'!$B46='DNSP Inputs General'!$A$42,P$7,P$8))*'DNSP Inputs General'!$D46 -> 32.35027453 | Q11: =IF('DNSP Inputs General'!$B46='DNSP Inputs General'!$A$41,Q$6,IF('DNSP Inputs General'!$B46='DNSP Inputs General'!$A$42,Q$7,Q$8))*'DNSP Inputs General'!$D46 -> 35.14869924 | R11: =IF('DNSP Inputs General'!$B46='DNSP Inputs General'!$A$41,R$6,IF('DNSP Inputs General'!$B46='DNSP Inputs General'!$A$42,R$7,R$8))*'DNSP Inputs General'!$D46 -> 37.6993334 | S11: =IF('DNSP Inputs General'!$B46='DNSP Inputs General'!$A$41,S$6,IF('DNSP Inputs General'!$B46='DNSP Inputs General'!$A$42,S$7,S$8))*'DNSP Inputs General'!$D46 -> 40.58211995 | T11: =IF('DNSP Inputs General'!$B46='DNSP Inputs General'!$A$41,T$6,IF('DNSP Inputs General'!$B46='DNSP Inputs General'!$A$42,T$7,T$8))*'DNSP Inputs General'!$D46 -> 43.38646007 | V11: 0 | W11: 0 | X11: 7.105427358e-15 | Y11: 7.105427358e-15 | Z11: 7.105427358e-15
A12: ='DNSP Inputs General'!A47 -> Mercury vapour 125 watt | C12: ='DNSP Inputs General'!E47 -> 71.57 | D12: =IF('DNSP Inputs General'!$B47='DNSP Inputs General'!$A$41,D$6,IF('DNSP Inputs General'!$B47='DNSP Inputs General'!$A$42,D$7,D$8))*'DNSP Inputs General'!$D47 -> 65.2226365 | E12: =IF('DNSP Inputs General'!$B47='DNSP Inputs General'!$A$41,E$6,IF('DNSP Inputs General'!$B47='DNSP Inputs General'!$A$42,E$7,E$8))*'DNSP Inputs General'!$D47 -> 69.23391342 | F12: =IF('DNSP Inputs General'!$B47='DNSP Inputs General'!$A$41,F$6,IF('DNSP Inputs General'!$B47='DNSP Inputs General'!$A$42,F$7,F$8))*'DNSP Inputs General'!$D47 -> 73.05236485 | G12: =IF('DNSP Inputs General'!$B47='DNSP Inputs General'!$A$41,G$6,IF('DNSP Inputs General'!$B47='DNSP Inputs General'!$A$42,G$7,G$8))*'DNSP Inputs General'!$D47 -> 77.24486924 | H12: =IF('DNSP Inputs General'!$B47='DNSP Inputs General'!$A$41,H$6,IF('DNSP Inputs General'!$B47='DNSP Inputs General'!$A$42,H$7,H$8))*'DNSP Inputs General'!$D47 -> 81.41728563 | J12: =IF('DNSP Inputs General'!$B47='DNSP Inputs General'!$A$41,J$6,IF('DNSP Inputs General'!$B47='DNSP Inputs General'!$A$42,J$7,J$8))*'DNSP Inputs General'!$D47 -> 33.80330512 | K12: =IF('DNSP Inputs General'!$B47='DNSP Inputs General'!$A$41,K$6,IF('DNSP Inputs General'!$B47='DNSP Inputs General'!$A$42,K$7,K$8))*'DNSP Inputs General'!$D47 -> 35.09668753 | L12: =IF('DNSP Inputs General'!$B47='DNSP Inputs General'!$A$41,L$6,IF('DNSP Inputs General'!$B47='DNSP Inputs General'!$A$42,L$7,L$8))*'DNSP Inputs General'!$D47 -> 36.43790435 | M12: =IF('DNSP Inputs General'!$B47='DNSP Inputs General'!$A$41,M$6,IF('DNSP Inputs General'!$B47='DNSP Inputs General'!$A$42,M$7,M$8))*'DNSP Inputs General'!$D47 -> 37.83058008 | N12: =IF('DNSP Inputs General'!$B47='DNSP Inputs General'!$A$41,N$6,IF('DNSP Inputs General'!$B47='DNSP Inputs General'!$A$42,N$7,N$8))*'DNSP Inputs General'!$D47 -> 39.27935678 | P12: =IF('DNSP Inputs General'!$B47='DNSP Inputs General'!$A$41,P$6,IF('DNSP Inputs General'!$B47='DNSP Inputs General'!$A$42,P$7,P$8))*'DNSP Inputs General'!$D47 -> 31.41933138 | Q12: =IF('DNSP Inputs General'!$B47='DNSP Inputs General'!$A$41,Q$6,IF('DNSP Inputs General'!$B47='DNSP Inputs General'!$A$42,Q$7,Q$8))*'DNSP Inputs General'!$D47 -> 34.13722588 | R12: =IF('DNSP Inputs General'!$B47='DNSP Inputs General'!$A$41,R$6,IF('DNSP Inputs General'!$B47='DNSP Inputs General'!$A$42,R$7,R$8))*'DNSP Inputs General'!$D47 -> 36.6144605 | S12: =IF('DNSP Inputs General'!$B47='DNSP Inputs General'!$A$41,S$6,IF('DNSP Inputs General'!$B47='DNSP Inputs General'!$A$42,S$7,S$8))*'DNSP Inputs General'!$D47 -> 39.41428916 | T12: =IF('DNSP Inputs General'!$B47='DNSP Inputs General'!$A$41,T$6,IF('DNSP Inputs General'!$B47='DNSP Inputs General'!$A$42,T$7,T$8))*'DNSP Inputs General'!$D47 -> 42.13792885 | V12: 7.105427358e-15 | W12: 0 | X12: 0 | Y12: 1.421085472e-14 | Z12: 1.421085472e-14
A13: ='DNSP Inputs General'!A48 -> Mercury vapour 250 watt | C13: ='DNSP Inputs General'!E48 -> 68.6 | D13: =IF('DNSP Inputs General'!$B48='DNSP Inputs General'!$A$41,D$6,IF('DNSP Inputs General'!$B48='DNSP Inputs General'!$A$42,D$7,D$8))*'DNSP Inputs General'!$D48 -> 70.02420551 | E13: =IF('DNSP Inputs General'!$B48='DNSP Inputs General'!$A$41,E$6,IF('DNSP Inputs General'!$B48='DNSP Inputs General'!$A$42,E$7,E$8))*'DNSP Inputs General'!$D48 -> 73.65125044 | F13: =IF('DNSP Inputs General'!$B48='DNSP Inputs General'!$A$41,F$6,IF('DNSP Inputs General'!$B48='DNSP Inputs General'!$A$42,F$7,F$8))*'DNSP Inputs General'!$D48 -> 77.2167047 | G13: =IF('DNSP Inputs General'!$B48='DNSP Inputs General'!$A$41,G$6,IF('DNSP Inputs General'!$B48='DNSP Inputs General'!$A$42,G$7,G$8))*'DNSP Inputs General'!$D48 -> 81.05207371 | H13: =IF('DNSP Inputs General'!$B48='DNSP Inputs General'!$A$41,H$6,IF('DNSP Inputs General'!$B48='DNSP Inputs General'!$A$42,H$7,H$8))*'DNSP Inputs General'!$D48 -> 84.91535194 | J13: =IF('DNSP Inputs General'!$B48='DNSP Inputs General'!$A$41,J$6,IF('DNSP Inputs General'!$B48='DNSP Inputs General'!$A$42,J$7,J$8))*'DNSP Inputs General'!$D48 -> 51.22504384 | K13: =IF('DNSP Inputs General'!$B48='DNSP Inputs General'!$A$41,K$6,IF('DNSP Inputs General'!$B48='DNSP Inputs General'!$A$42,K$7,K$8))*'DNSP Inputs General'!$D48 -> 53.13614312 | L13: =IF('DNSP Inputs General'!$B48='DNSP Inputs General'!$A$41,L$6,IF('DNSP Inputs General'!$B48='DNSP Inputs General'!$A$42,L$7,L$8))*'DNSP Inputs General'!$D48 -> 55.165154 | M13: =IF('DNSP Inputs General'!$B48='DNSP Inputs General'!$A$41,M$6,IF('DNSP Inputs General'!$B48='DNSP Inputs General'!$A$42,M$7,M$8))*'DNSP Inputs General'!$D48 -> 57.25720843 | N13: =IF('DNSP Inputs General'!$B48='DNSP Inputs General'!$A$41,N$6,IF('DNSP Inputs General'!$B48='DNSP Inputs General'!$A$42,N$7,N$8))*'DNSP Inputs General'!$D48 -> 59.42029749 | P13: =IF('DNSP Inputs General'!$B48='DNSP Inputs General'!$A$41,P$6,IF('DNSP Inputs General'!$B48='DNSP Inputs General'!$A$42,P$7,P$8))*'DNSP Inputs General'!$D48 -> 18.79916167 | Q13: =IF('DNSP Inputs General'!$B48='DNSP Inputs General'!$A$41,Q$6,IF('DNSP Inputs General'!$B48='DNSP Inputs General'!$A$42,Q$7,Q$8))*'DNSP Inputs General'!$D48 -> 20.51510732 | R13: =IF('DNSP Inputs General'!$B48='DNSP Inputs General'!$A$41,R$6,IF('DNSP Inputs General'!$B48='DNSP Inputs General'!$A$42,R$7,R$8))*'DNSP Inputs General'!$D48 -> 22.0515507 | S13: =IF('DNSP Inputs General'!$B48='DNSP Inputs General'!$A$41,S$6,IF('DNSP Inputs General'!$B48='DNSP Inputs General'!$A$42,S$7,S$8))*'DNSP Inputs General'!$D48 -> 23.79486528 | T13: =IF('DNSP Inputs General'!$B48='DNSP Inputs General'!$A$41,T$6,IF('DNSP Inputs General'!$B48='DNSP Inputs General'!$A$42,T$7,T$8))*'DNSP Inputs General'!$D48 -> 25.49505445 | V13: 3.552713679e-15 | W13: 3.552713679e-15 | X13: 3.552713679e-15 | Y13: 7.105427358e-15 | Z13: 1.421085472e-14
A14: ='DNSP Inputs General'!A49 -> Mercury vapour 400 watt | C14: ='DNSP Inputs General'!E49 -> 79.44 | D14: =IF('DNSP Inputs General'!$B49='DNSP Inputs General'!$A$41,D$6,IF('DNSP Inputs General'!$B49='DNSP Inputs General'!$A$42,D$7,D$8))*'DNSP Inputs General'!$D49 -> 81.08065901 | E14: =IF('DNSP Inputs General'!$B49='DNSP Inputs General'!$A$41,E$6,IF('DNSP Inputs General'!$B49='DNSP Inputs General'!$A$42,E$7,E$8))*'DNSP Inputs General'!$D49 -> 85.28039524 | F14: =IF('DNSP Inputs General'!$B49='DNSP Inputs General'!$A$41,F$6,IF('DNSP Inputs General'!$B49='DNSP Inputs General'!$A$42,F$7,F$8))*'DNSP Inputs General'!$D49 -> 89.40881597 | G14: =IF('DNSP Inputs General'!$B49='DNSP Inputs General'!$A$41,G$6,IF('DNSP Inputs General'!$B49='DNSP Inputs General'!$A$42,G$7,G$8))*'DNSP Inputs General'!$D49 -> 93.84976956 | H14: =IF('DNSP Inputs General'!$B49='DNSP Inputs General'!$A$41,H$6,IF('DNSP Inputs General'!$B49='DNSP Inputs General'!$A$42,H$7,H$8))*'DNSP Inputs General'!$D49 -> 98.32303909 | J14: =IF('DNSP Inputs General'!$B49='DNSP Inputs General'!$A$41,J$6,IF('DNSP Inputs General'!$B49='DNSP Inputs General'!$A$42,J$7,J$8))*'DNSP Inputs General'!$D49 -> 59.31320866 | K14: =IF('DNSP Inputs General'!$B49='DNSP Inputs General'!$A$41,K$6,IF('DNSP Inputs General'!$B49='DNSP Inputs General'!$A$42,K$7,K$8))*'DNSP Inputs General'!$D49 -> 61.52606045 | L14: =IF('DNSP Inputs General'!$B49='DNSP Inputs General'!$A$41,L$6,IF('DNSP Inputs General'!$B49='DNSP Inputs General'!$A$42,L$7,L$8))*'DNSP Inputs General'!$D49 -> 63.87544148 | M14: =IF('DNSP Inputs General'!$B49='DNSP Inputs General'!$A$41,M$6,IF('DNSP Inputs General'!$B49='DNSP Inputs General'!$A$42,M$7,M$8))*'DNSP Inputs General'!$D49 -> 66.29782029 | N14: =IF('DNSP Inputs General'!$B49='DNSP Inputs General'!$A$41,N$6,IF('DNSP Inputs General'!$B49='DNSP Inputs General'!$A$42,N$7,N$8))*'DNSP Inputs General'!$D49 -> 68.80244973 | P14: =IF('DNSP Inputs General'!$B49='DNSP Inputs General'!$A$41,P$6,IF('DNSP Inputs General'!$B49='DNSP Inputs General'!$A$42,P$7,P$8))*'DNSP Inputs General'!$D49 -> 21.76745035 | Q14: =IF('DNSP Inputs General'!$B49='DNSP Inputs General'!$A$41,Q$6,IF('DNSP Inputs General'!$B49='DNSP Inputs General'!$A$42,Q$7,Q$8))*'DNSP Inputs General'!$D49 -> 23.75433479 | R14: =IF('DNSP Inputs General'!$B49='DNSP Inputs General'!$A$41,R$6,IF('DNSP Inputs General'!$B49='DNSP Inputs General'!$A$42,R$7,R$8))*'DNSP Inputs General'!$D49 -> 25.53337449 | S14: =IF('DNSP Inputs General'!$B49='DNSP Inputs General'!$A$41,S$6,IF('DNSP Inputs General'!$B49='DNSP Inputs General'!$A$42,S$7,S$8))*'DNSP Inputs General'!$D49 -> 27.55194927 | T14: =IF('DNSP Inputs General'!$B49='DNSP Inputs General'!$A$41,T$6,IF('DNSP Inputs General'!$B49='DNSP Inputs General'!$A$42,T$7,T$8))*'DNSP Inputs General'!$D49 -> 29.52058936 | V14: 3.552713679e-15 | W14: 7.105427358e-15 | X14: 3.552713679e-15 | Y14: 3.552713679e-15 | Z14: 1.065814104e-14
A15: ='DNSP Inputs General'!A50 -> Mercury vapour 700 watt | C15: ='DNSP Inputs General'!E50 -> 120.06 | D15: =IF('DNSP Inputs General'!$B50='DNSP Inputs General'!$A$41,D$6,IF('DNSP Inputs General'!$B50='DNSP Inputs General'!$A$42,D$7,D$8))*'DNSP Inputs General'!$D50 -> 122.5423596 | E15: =IF('DNSP Inputs General'!$B50='DNSP Inputs General'!$A$41,E$6,IF('DNSP Inputs General'!$B50='DNSP Inputs General'!$A$42,E$7,E$8))*'DNSP Inputs General'!$D50 -> 128.8896883 | F15: =IF('DNSP Inputs General'!$B50='DNSP Inputs General'!$A$41,F$6,IF('DNSP Inputs General'!$B50='DNSP Inputs General'!$A$42,F$7,F$8))*'DNSP Inputs General'!$D50 -> 135.1292332 | G15: =IF('DNSP Inputs General'!$B50='DNSP Inputs General'!$A$41,G$6,IF('DNSP Inputs General'!$B50='DNSP Inputs General'!$A$42,G$7,G$8))*'DNSP Inputs General'!$D50 -> 141.841129 | H15: =IF('DNSP Inputs General'!$B50='DNSP Inputs General'!$A$41,H$6,IF('DNSP Inputs General'!$B50='DNSP Inputs General'!$A$42,H$7,H$8))*'DNSP Inputs General'!$D50 -> 148.6018659 | J15: =IF('DNSP Inputs General'!$B50='DNSP Inputs General'!$A$41,J$6,IF('DNSP Inputs General'!$B50='DNSP Inputs General'!$A$42,J$7,J$8))*'DNSP Inputs General'!$D50 -> 89.64382672 | K15: =IF('DNSP Inputs General'!$B50='DNSP Inputs General'!$A$41,K$6,IF('DNSP Inputs General'!$B50='DNSP Inputs General'!$A$42,K$7,K$8))*'DNSP Inputs General'!$D50 -> 92.98825045 | L15: =IF('DNSP Inputs General'!$B50='DNSP Inputs General'!$A$41,L$6,IF('DNSP Inputs General'!$B50='DNSP Inputs General'!$A$42,L$7,L$8))*'DNSP Inputs General'!$D50 -> 96.53901951 | M15: =IF('DNSP Inputs General'!$B50='DNSP Inputs General'!$A$41,M$6,IF('DNSP Inputs General'!$B50='DNSP Inputs General'!$A$42,M$7,M$8))*'DNSP Inputs General'!$D50 -> 100.2001148 | N15: =IF('DNSP Inputs General'!$B50='DNSP Inputs General'!$A$41,N$6,IF('DNSP Inputs General'!$B50='DNSP Inputs General'!$A$42,N$7,N$8))*'DNSP Inputs General'!$D50 -> 103.9855206 | P15: =IF('DNSP Inputs General'!$B50='DNSP Inputs General'!$A$41,P$6,IF('DNSP Inputs General'!$B50='DNSP Inputs General'!$A$42,P$7,P$8))*'DNSP Inputs General'!$D50 -> 32.89853292 | Q15: =IF('DNSP Inputs General'!$B50='DNSP Inputs General'!$A$41,Q$6,IF('DNSP Inputs General'!$B50='DNSP Inputs General'!$A$42,Q$7,Q$8))*'DNSP Inputs General'!$D50 -> 35.90143781 | R15: =IF('DNSP Inputs General'!$B50='DNSP Inputs General'!$A$41,R$6,IF('DNSP Inputs General'!$B50='DNSP Inputs General'!$A$42,R$7,R$8))*'DNSP Inputs General'!$D50 -> 38.59021372 | S15: =IF('DNSP Inputs General'!$B50='DNSP Inputs General'!$A$41,S$6,IF('DNSP Inputs General'!$B50='DNSP Inputs General'!$A$42,S$7,S$8))*'DNSP Inputs General'!$D50 -> 41.64101423 | T15: =IF('DNSP Inputs General'!$B50='DNSP Inputs General'!$A$41,T$6,IF('DNSP Inputs General'!$B50='DNSP Inputs General'!$A$42,T$7,T$8))*'DNSP Inputs General'!$D50 -> 44.61634529 | V15: 7.105427358e-15 | W15: 0 | X15: 2.131628207e-14 | Y15: 1.421085472e-14 | Z15: 2.842170943e-14
A16: ='DNSP Inputs General'!A51 -> Sodium low pressure 90 watt | C16: ='DNSP Inputs General'!E51 -> 117.98 | D16: =IF('DNSP Inputs General'!$B51='DNSP Inputs General'!$A$41,D$6,IF('DNSP Inputs General'!$B51='DNSP Inputs General'!$A$42,D$7,D$8))*'DNSP Inputs General'!$D51 -> 122.7747131 | E16: =IF('DNSP Inputs General'!$B51='DNSP Inputs General'!$A$41,E$6,IF('DNSP Inputs General'!$B51='DNSP Inputs General'!$A$42,E$7,E$8))*'DNSP Inputs General'!$D51 -> 128.944156 | F16: =IF('DNSP Inputs General'!$B51='DNSP Inputs General'!$A$41,F$6,IF('DNSP Inputs General'!$B51='DNSP Inputs General'!$A$42,F$7,F$8))*'DNSP Inputs General'!$D51 -> 135.0696358 | G16: =IF('DNSP Inputs General'!$B51='DNSP Inputs General'!$A$41,G$6,IF('DNSP Inputs General'!$B51='DNSP Inputs General'!$A$42,G$7,G$8))*'DNSP Inputs General'!$D51 -> 141.6372548 | H16: =IF('DNSP Inputs General'!$B51='DNSP Inputs General'!$A$41,H$6,IF('DNSP Inputs General'!$B51='DNSP Inputs General'!$A$42,H$7,H$8))*'DNSP Inputs General'!$D51 -> 148.2546559 | J16: =IF('DNSP Inputs General'!$B51='DNSP Inputs General'!$A$41,J$6,IF('DNSP Inputs General'!$B51='DNSP Inputs General'!$A$42,J$7,J$8))*'DNSP Inputs General'!$D51 -> 91.01631164 | K16: =IF('DNSP Inputs General'!$B51='DNSP Inputs General'!$A$41,K$6,IF('DNSP Inputs General'!$B51='DNSP Inputs General'!$A$42,K$7,K$8))*'DNSP Inputs General'!$D51 -> 94.41114561 | L16: =IF('DNSP Inputs General'!$B51='DNSP Inputs General'!$A$41,L$6,IF('DNSP Inputs General'!$B51='DNSP Inputs General'!$A$42,L$7,L$8))*'DNSP Inputs General'!$D51 -> 98.01610788 | M16: =IF('DNSP Inputs General'!$B51='DNSP Inputs General'!$A$41,M$6,IF('DNSP Inputs General'!$B51='DNSP Inputs General'!$A$42,M$7,M$8))*'DNSP Inputs General'!$D51 -> 101.7329069 | N16: =IF('DNSP Inputs General'!$B51='DNSP Inputs General'!$A$41,N$6,IF('DNSP Inputs General'!$B51='DNSP Inputs General'!$A$42,N$7,N$8))*'DNSP Inputs General'!$D51 -> 105.5757485 | P16: =IF('DNSP Inputs General'!$B51='DNSP Inputs General'!$A$41,P$6,IF('DNSP Inputs General'!$B51='DNSP Inputs General'!$A$42,P$7,P$8))*'DNSP Inputs General'!$D51 -> 31.75840143 | Q16: =IF('DNSP Inputs General'!$B51='DNSP Inputs General'!$A$41,Q$6,IF('DNSP Inputs General'!$B51='DNSP Inputs General'!$A$42,Q$7,Q$8))*'DNSP Inputs General'!$D51 -> 34.53301043 | R16: =IF('DNSP Inputs General'!$B51='DNSP Inputs General'!$A$41,R$6,IF('DNSP Inputs General'!$B51='DNSP Inputs General'!$A$42,R$7,R$8))*'DNSP Inputs General'!$D51 -> 37.05352796 | S16: =IF('DNSP Inputs General'!$B51='DNSP Inputs General'!$A$41,S$6,IF('DNSP Inputs General'!$B51='DNSP Inputs General'!$A$42,S$7,S$8))*'DNSP Inputs General'!$D51 -> 39.90434787 | T16: =IF('DNSP Inputs General'!$B51='DNSP Inputs General'!$A$41,T$6,IF('DNSP Inputs General'!$B51='DNSP Inputs General'!$A$42,T$7,T$8))*'DNSP Inputs General'!$D51 -> 42.67890745 | V16: 1.065814104e-14 | W16: 7.105427358e-15 | X16: 1.421085472e-14 | Y16: 1.421085472e-14 | Z16: 1.421085472e-14
A17: ='DNSP Inputs General'!A52 -> Sodium low pressure 180 watt | C17: ='DNSP Inputs General'!E52 -> 117.28 | D17: =IF('DNSP Inputs General'!$B52='DNSP Inputs General'!$A$41,D$6,IF('DNSP Inputs General'!$B52='DNSP Inputs General'!$A$42,D$7,D$8))*'DNSP Inputs General'!$D52 -> 122.7747131 | E17: =IF('DNSP Inputs General'!$B52='DNSP Inputs General'!$A$41,E$6,IF('DNSP Inputs General'!$B52='DNSP Inputs General'!$A$42,E$7,E$8))*'DNSP Inputs General'!$D52 -> 128.944156 | F17: =IF('DNSP Inputs General'!$B52='DNSP Inputs General'!$A$41,F$6,IF('DNSP Inputs General'!$B52='DNSP Inputs General'!$A$42,F$7,F$8))*'DNSP Inputs General'!$D52 -> 135.0696358 | G17: =IF('DNSP Inputs General'!$B52='DNSP Inputs General'!$A$41,G$6,IF('DNSP Inputs General'!$B52='DNSP Inputs General'!$A$42,G$7,G$8))*'DNSP Inputs General'!$D52 -> 141.6372548 | H17: =IF('DNSP Inputs General'!$B52='DNSP Inputs General'!$A$41,H$6,IF('DNSP Inputs General'!$B52='DNSP Inputs General'!$A$42,H$7,H$8))*'DNSP Inputs General'!$D52 -> 148.2546559 | J17: =IF('DNSP Inputs General'!$B52='DNSP Inputs General'!$A$41,J$6,IF('DNSP Inputs General'!$B52='DNSP Inputs General'!$A$42,J$7,J$8))*'DNSP Inputs General'!$D52 -> 91.01631164 | K17: =IF('DNSP Inputs General'!$B52='DNSP Inputs General'!$A$41,K$6,IF('DNSP Inputs General'!$B52='DNSP Inputs General'!$A$42,K$7,K$8))*'DNSP Inputs General'!$D52 -> 94.41114561 | L17: =IF('DNSP Inputs General'!$B52='DNSP Inputs General'!$A$41,L$6,IF('DNSP Inputs General'!$B52='DNSP Inputs General'!$A$42,L$7,L$8))*'DNSP Inputs General'!$D52 -> 98.01610788 | M17: =IF('DNSP Inputs General'!$B52='DNSP Inputs General'!$A$41,M$6,IF('DNSP Inputs General'!$B52='DNSP Inputs General'!$A$42,M$7,M$8))*'DNSP Inputs General'!$D52 -> 101.7329069 | N17: =IF('DNSP Inputs General'!$B52='DNSP Inputs General'!$A$41,N$6,IF('DNSP Inputs General'!$B52='DNSP Inputs General'!$A$42,N$7,N$8))*'DNSP Inputs General'!$D52 -> 105.5757485 | P17: =IF('DNSP Inputs General'!$B52='DNSP Inputs General'!$A$41,P$6,IF('DNSP Inputs General'!$B52='DNSP Inputs General'!$A$42,P$7,P$8))*'DNSP Inputs General'!$D52 -> 31.75840143 | Q17: =IF('DNSP Inputs General'!$B52='DNSP Inputs General'!$A$41,Q$6,IF('DNSP Inputs General'!$B52='DNSP Inputs General'!$A$42,Q$7,Q$8))*'DNSP Inputs General'!$D52 -> 34.53301043 | R17: =IF('DNSP Inputs General'!$B52='DNSP Inputs General'!$A$41,R$6,IF('DNSP Inputs General'!$B52='DNSP Inputs General'!$A$42,R$7,R$8))*'DNSP Inputs General'!$D52 -> 37.05352796 | S17: =IF('DNSP Inputs General'!$B52='DNSP Inputs General'!$A$41,S$6,IF('DNSP Inputs General'!$B52='DNSP Inputs General'!$A$42,S$7,S$8))*'DNSP Inputs General'!$D52 -> 39.90434787 | T17: =IF('DNSP Inputs General'!$B52='DNSP Inputs General'!$A$41,T$6,IF('DNSP Inputs General'!$B52='DNSP Inputs General'!$A$42,T$7,T$8))*'DNSP Inputs General'!$D52 -> 42.67890745 | V17: 1.065814104e-14 | W17: 7.105427358e-15 | X17: 1.421085472e-14 | Y17: 1.421085472e-14 | Z17: 1.421085472e-14
A18: ='DNSP Inputs General'!A53 -> Sodium high pressure 400 watt | C18: ='DNSP Inputs General'!E53 -> 120.06 | D18: =IF('DNSP Inputs General'!$B53='DNSP Inputs General'!$A$41,D$6,IF('DNSP Inputs General'!$B53='DNSP Inputs General'!$A$42,D$7,D$8))*'DNSP Inputs General'!$D53 -> 122.5423596 | E18: =IF('DNSP Inputs General'!$B53='DNSP Inputs General'!$A$41,E$6,IF('DNSP Inputs General'!$B53='DNSP Inputs General'!$A$42,E$7,E$8))*'DNSP Inputs General'!$D53 -> 128.8896883 | F18: =IF('DNSP Inputs General'!$B53='DNSP Inputs General'!$A$41,F$6,IF('DNSP Inputs General'!$B53='DNSP Inputs General'!$A$42,F$7,F$8))*'DNSP Inputs General'!$D53 -> 135.1292332 | G18: =IF('DNSP Inputs General'!$B53='DNSP Inputs General'!$A$41,G$6,IF('DNSP Inputs General'!$B53='DNSP Inputs General'!$A$42,G$7,G$8))*'DNSP Inputs General'!$D53 -> 141.841129 | H18: =IF('DNSP Inputs General'!$B53='DNSP Inputs General'!$A$41,H$6,IF('DNSP Inputs General'!$B53='DNSP Inputs General'!$A$42,H$7,H$8))*'DNSP Inputs General'!$D53 -> 148.6018659 | J18: =IF('DNSP Inputs General'!$B53='DNSP Inputs General'!$A$41,J$6,IF('DNSP Inputs General'!$B53='DNSP Inputs General'!$A$42,J$7,J$8))*'DNSP Inputs General'!$D53 -> 89.64382672 | K18: =IF('DNSP Inputs General'!$B53='DNSP Inputs General'!$A$41,K$6,IF('DNSP Inputs General'!$B53='DNSP Inputs General'!$A$42,K$7,K$8))*'DNSP Inputs General'!$D53 -> 92.98825045 | L18: =IF('DNSP Inputs General'!$B53='DNSP Inputs General'!$A$41,L$6,IF('DNSP Inputs General'!$B53='DNSP Inputs General'!$A$42,L$7,L$8))*'DNSP Inputs General'!$D53 -> 96.53901951 | M18: =IF('DNSP Inputs General'!$B53='DNSP Inputs General'!$A$41,M$6,IF('DNSP Inputs General'!$B53='DNSP Inputs General'!$A$42,M$7,M$8))*'DNSP Inputs General'!$D53 -> 100.2001148 | N18: =IF('DNSP Inputs General'!$B53='DNSP Inputs General'!$A$41,N$6,IF('DNSP Inputs General'!$B53='DNSP Inputs General'!$A$42,N$7,N$8))*'DNSP Inputs General'!$D53 -> 103.9855206 | P18: =IF('DNSP Inputs General'!$B53='DNSP Inputs General'!$A$41,P$6,IF('DNSP Inputs General'!$B53='DNSP Inputs General'!$A$42,P$7,P$8))*'DNSP Inputs General'!$D53 -> 32.89853292 | Q18: =IF('DNSP Inputs General'!$B53='DNSP Inputs General'!$A$41,Q$6,IF('DNSP Inputs General'!$B53='DNSP Inputs General'!$A$42,Q$7,Q$8))*'DNSP Inputs General'!$D53 -> 35.90143781 | R18: =IF('DNSP Inputs General'!$B53='DNSP Inputs General'!$A$41,R$6,IF('DNSP Inputs General'!$B53='DNSP Inputs General'!$A$42,R$7,R$8))*'DNSP Inputs General'!$D53 -> 38.59021372 | S18: =IF('DNSP Inputs General'!$B53='DNSP Inputs General'!$A$41,S$6,IF('DNSP Inputs General'!$B53='DNSP Inputs General'!$A$42,S$7,S$8))*'DNSP Inputs General'!$D53 -> 41.64101423 | T18: =IF('DNSP Inputs General'!$B53='DNSP Inputs General'!$A$41,T$6,IF('DNSP Inputs General'!$B53='DNSP Inputs General'!$A$42,T$7,T$8))*'DNSP Inputs General'!$D53 -> 44.61634529 | V18: 7.105427358e-15 | W18: 0 | X18: 2.131628207e-14 | Y18: 1.421085472e-14 | Z18: 2.842170943e-14
A19: ='DNSP Inputs General'!A54 -> Incandescent 100 watt | C19: ='DNSP Inputs General'!E54 -> 147.38 | D19: =IF('DNSP Inputs General'!$B54='DNSP Inputs General'!$A$41,D$6,IF('DNSP Inputs General'!$B54='DNSP Inputs General'!$A$42,D$7,D$8))*'DNSP Inputs General'!$D54 -> 134.3103181 | E19: =IF('DNSP Inputs General'!$B54='DNSP Inputs General'!$A$41,E$6,IF('DNSP Inputs General'!$B54='DNSP Inputs General'!$A$42,E$7,E$8))*'DNSP Inputs General'!$D54 -> 142.5705773 | F19: =IF('DNSP Inputs General'!$B54='DNSP Inputs General'!$A$41,F$6,IF('DNSP Inputs General'!$B54='DNSP Inputs General'!$A$42,F$7,F$8))*'DNSP Inputs General'!$D54 -> 150.4337587 | G19: =IF('DNSP Inputs General'!$B54='DNSP Inputs General'!$A$41,G$6,IF('DNSP Inputs General'!$B54='DNSP Inputs General'!$A$42,G$7,G$8))*'DNSP Inputs General'!$D54 -> 159.0672122 | H19: =IF('DNSP Inputs General'!$B54='DNSP Inputs General'!$A$41,H$6,IF('DNSP Inputs General'!$B54='DNSP Inputs General'!$A$42,H$7,H$8))*'DNSP Inputs General'!$D54 -> 167.6592993 | J19: =IF('DNSP Inputs General'!$B54='DNSP Inputs General'!$A$41,J$6,IF('DNSP Inputs General'!$B54='DNSP Inputs General'!$A$42,J$7,J$8))*'DNSP Inputs General'!$D54 -> 69.60976906 | K19: =IF('DNSP Inputs General'!$B54='DNSP Inputs General'!$A$41,K$6,IF('DNSP Inputs General'!$B54='DNSP Inputs General'!$A$42,K$7,K$8))*'DNSP Inputs General'!$D54 -> 72.27317877 | L19: =IF('DNSP Inputs General'!$B54='DNSP Inputs General'!$A$41,L$6,IF('DNSP Inputs General'!$B54='DNSP Inputs General'!$A$42,L$7,L$8))*'DNSP Inputs General'!$D54 -> 75.03509192 | M19: =IF('DNSP Inputs General'!$B54='DNSP Inputs General'!$A$41,M$6,IF('DNSP Inputs General'!$B54='DNSP Inputs General'!$A$42,M$7,M$8))*'DNSP Inputs General'!$D54 -> 77.9029723 | N19: =IF('DNSP Inputs General'!$B54='DNSP Inputs General'!$A$41,N$6,IF('DNSP Inputs General'!$B54='DNSP Inputs General'!$A$42,N$7,N$8))*'DNSP Inputs General'!$D54 -> 80.88637914 | P19: =IF('DNSP Inputs General'!$B54='DNSP Inputs General'!$A$41,P$6,IF('DNSP Inputs General'!$B54='DNSP Inputs General'!$A$42,P$7,P$8))*'DNSP Inputs General'!$D54 -> 64.70054907 | Q19: =IF('DNSP Inputs General'!$B54='DNSP Inputs General'!$A$41,Q$6,IF('DNSP Inputs General'!$B54='DNSP Inputs General'!$A$42,Q$7,Q$8))*'DNSP Inputs General'!$D54 -> 70.29739848 | R19: =IF('DNSP Inputs General'!$B54='DNSP Inputs General'!$A$41,R$6,IF('DNSP Inputs General'!$B54='DNSP Inputs General'!$A$42,R$7,R$8))*'DNSP Inputs General'!$D54 -> 75.3986668 | S19: =IF('DNSP Inputs General'!$B54='DNSP Inputs General'!$A$41,S$6,IF('DNSP Inputs General'!$B54='DNSP Inputs General'!$A$42,S$7,S$8))*'DNSP Inputs General'!$D54 -> 81.1642399 | T19: =IF('DNSP Inputs General'!$B54='DNSP Inputs General'!$A$41,T$6,IF('DNSP Inputs General'!$B54='DNSP Inputs General'!$A$42,T$7,T$8))*'DNSP Inputs General'!$D54 -> 86.77292015 | V19: 0 | W19: 0 | X19: 1.421085472e-14 | Y19: 1.421085472e-14 | Z19: 1.421085472e-14
A20: ='DNSP Inputs General'!A55 -> Incandescent 150 watt | C20: ='DNSP Inputs General'!E55 -> 147.38 | D20: =IF('DNSP Inputs General'!$B55='DNSP Inputs General'!$A$41,D$6,IF('DNSP Inputs General'!$B55='DNSP Inputs General'!$A$42,D$7,D$8))*'DNSP Inputs General'!$D55 -> 134.3103181 | E20: =IF('DNSP Inputs General'!$B55='DNSP Inputs General'!$A$41,E$6,IF('DNSP Inputs General'!$B55='DNSP Inputs General'!$A$42,E$7,E$8))*'DNSP Inputs General'!$D55 -> 142.5705773 | F20: =IF('DNSP Inputs General'!$B55='DNSP Inputs General'!$A$41,F$6,IF('DNSP Inputs General'!$B55='DNSP Inputs General'!$A$42,F$7,F$8))*'DNSP Inputs General'!$D55 -> 150.4337587 | G20: =IF('DNSP Inputs General'!$B55='DNSP Inputs General'!$A$41,G$6,IF('DNSP Inputs General'!$B55='DNSP Inputs General'!$A$42,G$7,G$8))*'DNSP Inputs General'!$D55 -> 159.0672122 | H20: =IF('DNSP Inputs General'!$B55='DNSP Inputs General'!$A$41,H$6,IF('DNSP Inputs General'!$B55='DNSP Inputs General'!$A$42,H$7,H$8))*'DNSP Inputs General'!$D55 -> 167.6592993 | J20: =IF('DNSP Inputs General'!$B55='DNSP Inputs General'!$A$41,J$6,IF('DNSP Inputs General'!$B55='DNSP Inputs General'!$A$42,J$7,J$8))*'DNSP Inputs General'!$D55 -> 69.60976906 | K20: =IF('DNSP Inputs General'!$B55='DNSP Inputs General'!$A$41,K$6,IF('DNSP Inputs General'!$B55='DNSP Inputs General'!$A$42,K$7,K$8))*'DNSP Inputs General'!$D55 -> 72.27317877 | L20: =IF('DNSP Inputs General'!$B55='DNSP Inputs General'!$A$41,L$6,IF('DNSP Inputs General'!$B55='DNSP Inputs General'!$A$42,L$7,L$8))*'DNSP Inputs General'!$D55 -> 75.03509192 | M20: =IF('DNSP Inputs General'!$B55='DNSP Inputs General'!$A$41,M$6,IF('DNSP Inputs General'!$B55='DNSP Inputs General'!$A$42,M$7,M$8))*'DNSP Inputs General'!$D55 -> 77.9029723 | N20: =IF('DNSP Inputs General'!$B55='DNSP Inputs General'!$A$41,N$6,IF('DNSP Inputs General'!$B55='DNSP Inputs General'!$A$42,N$7,N$8))*'DNSP Inputs General'!$D55 -> 80.88637914 | P20: =IF('DNSP Inputs General'!$B55='DNSP Inputs General'!$A$41,P$6,IF('DNSP Inputs General'!$B55='DNSP Inputs General'!$A$42,P$7,P$8))*'DNSP Inputs General'!$D55 -> 64.70054907 | Q20: =IF('DNSP Inputs General'!$B55='DNSP Inputs General'!$A$41,Q$6,IF('DNSP Inputs General'!$B55='DNSP Inputs General'!$A$42,Q$7,Q$8))*'DNSP Inputs General'!$D55 -> 70.29739848 | R20: =IF('DNSP Inputs General'!$B55='DNSP Inputs General'!$A$41,R$6,IF('DNSP Inputs General'!$B55='DNSP Inputs General'!$A$42,R$7,R$8))*'DNSP Inputs General'!$D55 -> 75.3986668 | S20: =IF('DNSP Inputs General'!$B55='DNSP Inputs General'!$A$41,S$6,IF('DNSP Inputs General'!$B55='DNSP Inputs General'!$A$42,S$7,S$8))*'DNSP Inputs General'!$D55 -> 81.1642399 | T20: =IF('DNSP Inputs General'!$B55='DNSP Inputs General'!$A$41,T$6,IF('DNSP Inputs General'!$B55='DNSP Inputs General'!$A$42,T$7,T$8))*'DNSP Inputs General'!$D55 -> 86.77292015 | V20: 0 | W20: 0 | X20: 1.421085472e-14 | Y20: 1.421085472e-14 | Z20: 1.421085472e-14
A21: ='DNSP Inputs General'!A56 -> Metal halide 250 watt | C21: ='DNSP Inputs General'!E56 -> 120.06 | D21: =IF('DNSP Inputs General'!$B56='DNSP Inputs General'!$A$41,D$6,IF('DNSP Inputs General'!$B56='DNSP Inputs General'!$A$42,D$7,D$8))*'DNSP Inputs General'!$D56 -> 122.5423596 | E21: =IF('DNSP Inputs General'!$B56='DNSP Inputs General'!$A$41,E$6,IF('DNSP Inputs General'!$B56='DNSP Inputs General'!$A$42,E$7,E$8))*'DNSP Inputs General'!$D56 -> 128.8896883 | F21: =IF('DNSP Inputs General'!$B56='DNSP Inputs General'!$A$41,F$6,IF('DNSP Inputs General'!$B56='DNSP Inputs General'!$A$42,F$7,F$8))*'DNSP Inputs General'!$D56 -> 135.1292332 | G21: =IF('DNSP Inputs General'!$B56='DNSP Inputs General'!$A$41,G$6,IF('DNSP Inputs General'!$B56='DNSP Inputs General'!$A$42,G$7,G$8))*'DNSP Inputs General'!$D56 -> 141.841129 | H21: =IF('DNSP Inputs General'!$B56='DNSP Inputs General'!$A$41,H$6,IF('DNSP Inputs General'!$B56='DNSP Inputs General'!$A$42,H$7,H$8))*'DNSP Inputs General'!$D56 -> 148.6018659 | J21: =IF('DNSP Inputs General'!$B56='DNSP Inputs General'!$A$41,J$6,IF('DNSP Inputs General'!$B56='DNSP Inputs General'!$A$42,J$7,J$8))*'DNSP Inputs General'!$D56 -> 89.64382672 | K21: =IF('DNSP Inputs General'!$B56='DNSP Inputs General'!$A$41,K$6,IF('DNSP Inputs General'!$B56='DNSP Inputs General'!$A$42,K$7,K$8))*'DNSP Inputs General'!$D56 -> 92.98825045 | L21: =IF('DNSP Inputs General'!$B56='DNSP Inputs General'!$A$41,L$6,IF('DNSP Inputs General'!$B56='DNSP Inputs General'!$A$42,L$7,L$8))*'DNSP Inputs General'!$D56 -> 96.53901951 | M21: =IF('DNSP Inputs General'!$B56='DNSP Inputs General'!$A$41,M$6,IF('DNSP Inputs General'!$B56='DNSP Inputs General'!$A$42,M$7,M$8))*'DNSP Inputs General'!$D56 -> 100.2001148 | N21: =IF('DNSP Inputs General'!$B56='DNSP Inputs General'!$A$41,N$6,IF('DNSP Inputs General'!$B56='DNSP Inputs General'!$A$42,N$7,N$8))*'DNSP Inputs General'!$D56 -> 103.9855206 | P21: =IF('DNSP Inputs General'!$B56='DNSP Inputs General'!$A$41,P$6,IF('DNSP Inputs General'!$B56='DNSP Inputs General'!$A$42,P$7,P$8))*'DNSP Inputs General'!$D56 -> 32.89853292 | Q21: =IF('DNSP Inputs General'!$B56='DNSP Inputs General'!$A$41,Q$6,IF('DNSP Inputs General'!$B56='DNSP Inputs General'!$A$42,Q$7,Q$8))*'DNSP Inputs General'!$D56 -> 35.90143781 | R21: =IF('DNSP Inputs General'!$B56='DNSP Inputs General'!$A$41,R$6,IF('DNSP Inputs General'!$B56='DNSP Inputs General'!$A$42,R$7,R$8))*'DNSP Inputs General'!$D56 -> 38.59021372 | S21: =IF('DNSP Inputs General'!$B56='DNSP Inputs General'!$A$41,S$6,IF('DNSP Inputs General'!$B56='DNSP Inputs General'!$A$42,S$7,S$8))*'DNSP Inputs General'!$D56 -> 41.64101423 | T21: =IF('DNSP Inputs General'!$B56='DNSP Inputs General'!$A$41,T$6,IF('DNSP Inputs General'!$B56='DNSP Inputs General'!$A$42,T$7,T$8))*'DNSP Inputs General'!$D56 -> 44.61634529 | V21: 7.105427358e-15 | W21: 0 | X21: 2.131628207e-14 | Y21: 1.421085472e-14 | Z21: 2.842170943e-14
A22: ='DNSP Inputs General'!A57 -> Metal halide 400 watt | C22: ='DNSP Inputs General'!E57 -> 120.06 | D22: =IF('DNSP Inputs General'!$B57='DNSP Inputs General'!$A$41,D$6,IF('DNSP Inputs General'!$B57='DNSP Inputs General'!$A$42,D$7,D$8))*'DNSP Inputs General'!$D57 -> 122.5423596 | E22: =IF('DNSP Inputs General'!$B57='DNSP Inputs General'!$A$41,E$6,IF('DNSP Inputs General'!$B57='DNSP Inputs General'!$A$42,E$7,E$8))*'DNSP Inputs General'!$D57 -> 128.8896883 | F22: =IF('DNSP Inputs General'!$B57='DNSP Inputs General'!$A$41,F$6,IF('DNSP Inputs General'!$B57='DNSP Inputs General'!$A$42,F$7,F$8))*'DNSP Inputs General'!$D57 -> 135.1292332 | G22: =IF('DNSP Inputs General'!$B57='DNSP Inputs General'!$A$41,G$6,IF('DNSP Inputs General'!$B57='DNSP Inputs General'!$A$42,G$7,G$8))*'DNSP Inputs General'!$D57 -> 141.841129 | H22: =IF('DNSP Inputs General'!$B57='DNSP Inputs General'!$A$41,H$6,IF('DNSP Inputs General'!$B57='DNSP Inputs General'!$A$42,H$7,H$8))*'DNSP Inputs General'!$D57 -> 148.6018659 | J22: =IF('DNSP Inputs General'!$B57='DNSP Inputs General'!$A$41,J$6,IF('DNSP Inputs General'!$B57='DNSP Inputs General'!$A$42,J$7,J$8))*'DNSP Inputs General'!$D57 -> 89.64382672 | K22: =IF('DNSP Inputs General'!$B57='DNSP Inputs General'!$A$41,K$6,IF('DNSP Inputs General'!$B57='DNSP Inputs General'!$A$42,K$7,K$8))*'DNSP Inputs General'!$D57 -> 92.98825045 | L22: =IF('DNSP Inputs General'!$B57='DNSP Inputs General'!$A$41,L$6,IF('DNSP Inputs General'!$B57='DNSP Inputs General'!$A$42,L$7,L$8))*'DNSP Inputs General'!$D57 -> 96.53901951 | M22: =IF('DNSP Inputs General'!$B57='DNSP Inputs General'!$A$41,M$6,IF('DNSP Inputs General'!$B57='DNSP Inputs General'!$A$42,M$7,M$8))*'DNSP Inputs General'!$D57 -> 100.2001148 | N22: =IF('DNSP Inputs General'!$B57='DNSP Inputs General'!$A$41,N$6,IF('DNSP Inputs General'!$B57='DNSP Inputs General'!$A$42,N$7,N$8))*'DNSP Inputs General'!$D57 -> 103.9855206 | P22: =IF('DNSP Inputs General'!$B57='DNSP Inputs General'!$A$41,P$6,IF('DNSP Inputs General'!$B57='DNSP Inputs General'!$A$42,P$7,P$8))*'DNSP Inputs General'!$D57 -> 32.89853292 | Q22: =IF('DNSP Inputs General'!$B57='DNSP Inputs General'!$A$41,Q$6,IF('DNSP Inputs General'!$B57='DNSP Inputs General'!$A$42,Q$7,Q$8))*'DNSP Inputs General'!$D57 -> 35.90143781 | R22: =IF('DNSP Inputs General'!$B57='DNSP Inputs General'!$A$41,R$6,IF('DNSP Inputs General'!$B57='DNSP Inputs General'!$A$42,R$7,R$8))*'DNSP Inputs General'!$D57 -> 38.59021372 | S22: =IF('DNSP Inputs General'!$B57='DNSP Inputs General'!$A$41,S$6,IF('DNSP Inputs General'!$B57='DNSP Inputs General'!$A$42,S$7,S$8))*'DNSP Inputs General'!$D57 -> 41.64101423 | T22: =IF('DNSP Inputs General'!$B57='DNSP Inputs General'!$A$41,T$6,IF('DNSP Inputs General'!$B57='DNSP Inputs General'!$A$42,T$7,T$8))*'DNSP Inputs General'!$D57 -> 44.61634529 | V22: 7.105427358e-15 | W22: 0 | X22: 2.131628207e-14 | Y22: 1.421085472e-14 | Z22: 2.842170943e-14
A23: ='DNSP Inputs General'!A58 -> Metal halide 70 watt | D23: =IF('DNSP Inputs General'!$B58='DNSP Inputs General'!$A$41,D$6,IF('DNSP Inputs General'!$B58='DNSP Inputs General'!$A$42,D$7,D$8))*'DNSP Inputs General'!$D58 -> 102.4236958 | E23: =IF('DNSP Inputs General'!$B58='DNSP Inputs General'!$A$41,E$6,IF('DNSP Inputs General'!$B58='DNSP Inputs General'!$A$42,E$7,E$8))*'DNSP Inputs General'!$D58 -> 108.7228863 | F23: =IF('DNSP Inputs General'!$B58='DNSP Inputs General'!$A$41,F$6,IF('DNSP Inputs General'!$B58='DNSP Inputs General'!$A$42,F$7,F$8))*'DNSP Inputs General'!$D58 -> 114.7192692 | G23: =IF('DNSP Inputs General'!$B58='DNSP Inputs General'!$A$41,G$6,IF('DNSP Inputs General'!$B58='DNSP Inputs General'!$A$42,G$7,G$8))*'DNSP Inputs General'!$D58 -> 121.3030539 | H23: =IF('DNSP Inputs General'!$B58='DNSP Inputs General'!$A$41,H$6,IF('DNSP Inputs General'!$B58='DNSP Inputs General'!$A$42,H$7,H$8))*'DNSP Inputs General'!$D58 -> 127.855293 | J23: =IF('DNSP Inputs General'!$B58='DNSP Inputs General'!$A$41,J$6,IF('DNSP Inputs General'!$B58='DNSP Inputs General'!$A$42,J$7,J$8))*'DNSP Inputs General'!$D58 -> 53.08370878 | K23: =IF('DNSP Inputs General'!$B58='DNSP Inputs General'!$A$41,K$6,IF('DNSP Inputs General'!$B58='DNSP Inputs General'!$A$42,K$7,K$8))*'DNSP Inputs General'!$D58 -> 55.1147982 | L23: =IF('DNSP Inputs General'!$B58='DNSP Inputs General'!$A$41,L$6,IF('DNSP Inputs General'!$B58='DNSP Inputs General'!$A$42,L$7,L$8))*'DNSP Inputs General'!$D58 -> 57.22100535 | M23: =IF('DNSP Inputs General'!$B58='DNSP Inputs General'!$A$41,M$6,IF('DNSP Inputs General'!$B58='DNSP Inputs General'!$A$42,M$7,M$8))*'DNSP Inputs General'!$D58 -> 59.40802205 | N23: =IF('DNSP Inputs General'!$B58='DNSP Inputs General'!$A$41,N$6,IF('DNSP Inputs General'!$B58='DNSP Inputs General'!$A$42,N$7,N$8))*'DNSP Inputs General'!$D58 -> 61.68313805 | P23: =IF('DNSP Inputs General'!$B58='DNSP Inputs General'!$A$41,P$6,IF('DNSP Inputs General'!$B58='DNSP Inputs General'!$A$42,P$7,P$8))*'DNSP Inputs General'!$D58 -> 49.33998706 | Q23: =IF('DNSP Inputs General'!$B58='DNSP Inputs General'!$A$41,Q$6,IF('DNSP Inputs General'!$B58='DNSP Inputs General'!$A$42,Q$7,Q$8))*'DNSP Inputs General'!$D58 -> 53.60808805 | R23: =IF('DNSP Inputs General'!$B58='DNSP Inputs General'!$A$41,R$6,IF('DNSP Inputs General'!$B58='DNSP Inputs General'!$A$42,R$7,R$8))*'DNSP Inputs General'!$D58 -> 57.49826389 | S23: =IF('DNSP Inputs General'!$B58='DNSP Inputs General'!$A$41,S$6,IF('DNSP Inputs General'!$B58='DNSP Inputs General'!$A$42,S$7,S$8))*'DNSP Inputs General'!$D58 -> 61.89503187 | T23: =IF('DNSP Inputs General'!$B58='DNSP Inputs General'!$A$41,T$6,IF('DNSP Inputs General'!$B58='DNSP Inputs General'!$A$42,T$7,T$8))*'DNSP Inputs General'!$D58 -> 66.17215493 | V23: 0 | W23: 7.105427358e-15 | X23: 1.421085472e-14 | Y23: 7.105427358e-15 | Z23: 0
A24: ='DNSP Inputs General'!A59 -> Metal halide 150 watt | D24: =IF('DNSP Inputs General'!$B59='DNSP Inputs General'!$A$41,D$6,IF('DNSP Inputs General'!$B59='DNSP Inputs General'!$A$42,D$7,D$8))*'DNSP Inputs General'!$D59 -> 120.9558284 | E24: =IF('DNSP Inputs General'!$B59='DNSP Inputs General'!$A$41,E$6,IF('DNSP Inputs General'!$B59='DNSP Inputs General'!$A$42,E$7,E$8))*'DNSP Inputs General'!$D59 -> 127.0338722 | F24: =IF('DNSP Inputs General'!$B59='DNSP Inputs General'!$A$41,F$6,IF('DNSP Inputs General'!$B59='DNSP Inputs General'!$A$42,F$7,F$8))*'DNSP Inputs General'!$D59 -> 133.0686042 | G24: =IF('DNSP Inputs General'!$B59='DNSP Inputs General'!$A$41,G$6,IF('DNSP Inputs General'!$B59='DNSP Inputs General'!$A$42,G$7,G$8))*'DNSP Inputs General'!$D59 -> 139.5389251 | H24: =IF('DNSP Inputs General'!$B59='DNSP Inputs General'!$A$41,H$6,IF('DNSP Inputs General'!$B59='DNSP Inputs General'!$A$42,H$7,H$8))*'DNSP Inputs General'!$D59 -> 146.0582907 | J24: =IF('DNSP Inputs General'!$B59='DNSP Inputs General'!$A$41,J$6,IF('DNSP Inputs General'!$B59='DNSP Inputs General'!$A$42,J$7,J$8))*'DNSP Inputs General'!$D59 -> 89.66792183 | K24: =IF('DNSP Inputs General'!$B59='DNSP Inputs General'!$A$41,K$6,IF('DNSP Inputs General'!$B59='DNSP Inputs General'!$A$42,K$7,K$8))*'DNSP Inputs General'!$D59 -> 93.01246197 | L24: =IF('DNSP Inputs General'!$B59='DNSP Inputs General'!$A$41,L$6,IF('DNSP Inputs General'!$B59='DNSP Inputs General'!$A$42,L$7,L$8))*'DNSP Inputs General'!$D59 -> 96.5640174 | M24: =IF('DNSP Inputs General'!$B59='DNSP Inputs General'!$A$41,M$6,IF('DNSP Inputs General'!$B59='DNSP Inputs General'!$A$42,M$7,M$8))*'DNSP Inputs General'!$D59 -> 100.2257528 | N24: =IF('DNSP Inputs General'!$B59='DNSP Inputs General'!$A$41,N$6,IF('DNSP Inputs General'!$B59='DNSP Inputs General'!$A$42,N$7,N$8))*'DNSP Inputs General'!$D59 -> 104.0116633 | P24: =IF('DNSP Inputs General'!$B59='DNSP Inputs General'!$A$41,P$6,IF('DNSP Inputs General'!$B59='DNSP Inputs General'!$A$42,P$7,P$8))*'DNSP Inputs General'!$D59 -> 31.28790659 | Q24: =IF('DNSP Inputs General'!$B59='DNSP Inputs General'!$A$41,Q$6,IF('DNSP Inputs General'!$B59='DNSP Inputs General'!$A$42,Q$7,Q$8))*'DNSP Inputs General'!$D59 -> 34.02141028 | R24: =IF('DNSP Inputs General'!$B59='DNSP Inputs General'!$A$41,R$6,IF('DNSP Inputs General'!$B59='DNSP Inputs General'!$A$42,R$7,R$8))*'DNSP Inputs General'!$D59 -> 36.5045868 | S24: =IF('DNSP Inputs General'!$B59='DNSP Inputs General'!$A$41,S$6,IF('DNSP Inputs General'!$B59='DNSP Inputs General'!$A$42,S$7,S$8))*'DNSP Inputs General'!$D59 -> 39.31317234 | T24: =IF('DNSP Inputs General'!$B59='DNSP Inputs General'!$A$41,T$6,IF('DNSP Inputs General'!$B59='DNSP Inputs General'!$A$42,T$7,T$8))*'DNSP Inputs General'!$D59 -> 42.04662734 | V24: 7.105427358e-15 | W24: 1.421085472e-14 | X24: 1.421085472e-14 | Y24: 2.842170943e-14 | Z24: 7.105427358e-15
A30: ='DNSP Inputs General'!A$67 -> Energy Efficient Lights
A31: ='DNSP Inputs General'!A68 -> T5 2X14W | C31: ='DNSP Inputs General'!E68 -> 33.61 | D31: ='Charges Summary'!D$89 -> 39.84828036 | E31: ='Charges Summary'!E$89 -> 39.82619209 | F31: ='Charges Summary'!F$89 -> 40.84080319 | G31: ='Charges Summary'!G$89 -> 41.82882711 | H31: ='Charges Summary'!H$89 -> 42.79275799 | J31: =SUM('Charges Summary'!D83,'Charges Summary'!D8) -> 26.28458116 | K31: =SUM('Charges Summary'!E83,'Charges Summary'!E8) -> 27.11990948 | L31: =SUM('Charges Summary'!F83,'Charges Summary'!F8) -> 28.0553349 | M31: =SUM('Charges Summary'!G83,'Charges Summary'!G8) -> 29.01086408 | N31: =SUM('Charges Summary'!H83,'Charges Summary'!H8) -> 29.9887561 | P31: =SUM('Charges Summary'!D85,'Charges Summary'!D11) -> 13.5636992 | Q31: =SUM('Charges Summary'!E85,'Charges Summary'!E11) -> 12.70628261 | R31: =SUM('Charges Summary'!F85,'Charges Summary'!F11) -> 12.78546829 | S31: =SUM('Charges Summary'!G85,'Charges Summary'!G11) -> 12.81796303 | T31: =SUM('Charges Summary'!H85,'Charges Summary'!H11) -> 12.80400188 | V31: =ABS(D31-J31-P31) -> 3.552713679e-15 | W31: 0 | X31: 0 | Y31: 0 | Z31: 1.776356839e-15
A32: ='DNSP Inputs General'!A69 -> T5 2X24W | D32: ='DNSP Inputs General'!$D69*D31 -> 39.20217282 | E32: ='DNSP Inputs General'!$D69*E31 -> 39.18044269 | F32: ='DNSP Inputs General'!$D69*F31 -> 40.1786027 | G32: ='DNSP Inputs General'!$D69*G31 -> 41.15060661 | H32: ='DNSP Inputs General'!$D69*H31 -> 42.09890813 | J32: ='DNSP Inputs General'!$D69*J31 -> 25.858398 | K32: ='DNSP Inputs General'!$D69*K31 -> 26.68018215 | L32: ='DNSP Inputs General'!$D69*L31 -> 27.6004404 | M32: ='DNSP Inputs General'!$D69*M31 -> 28.54047645 | N32: ='DNSP Inputs General'!$D69*N31 -> 29.50251275 | P32: ='DNSP Inputs General'!$D69*P31 -> 13.34377482 | Q32: ='DNSP Inputs General'!$D69*Q31 -> 12.50026055 | R32: ='DNSP Inputs General'!$D69*R31 -> 12.57816229 | S32: ='DNSP Inputs General'!$D69*S31 -> 12.61013016 | T32: ='DNSP Inputs General'!$D69*T31 -> 12.59639538 | V32: 3.552713679e-15 | W32: 1.776356839e-15 | X32: 1.776356839e-15 | Y32: 3.552713679e-15 | Z32: 5.329070518e-15
A33: ='DNSP Inputs General'!A70 -> CF32 | D33: ='DNSP Inputs General'!$D70*D31 -> 38.3055799 | E33: ='DNSP Inputs General'!$D70*E31 -> 38.28434676 | F33: ='DNSP Inputs General'!$D70*F31 -> 39.25967784 | G33: ='DNSP Inputs General'!$D70*G31 -> 40.20945106 | H33: ='DNSP Inputs General'!$D70*H31 -> 41.13606397 | J33: ='DNSP Inputs General'!$D70*J31 -> 25.26699056 | K33: ='DNSP Inputs General'!$D70*K31 -> 26.06997968 | L33: ='DNSP Inputs General'!$D70*L31 -> 26.96919071 | M33: ='DNSP Inputs General'!$D70*M31 -> 27.8877272 | N33: ='DNSP Inputs General'!$D70*N31 -> 28.82776076 | P33: ='DNSP Inputs General'!$D70*P31 -> 13.03858934 | Q33: ='DNSP Inputs General'!$D70*Q31 -> 12.21436708 | R33: ='DNSP Inputs General'!$D70*R31 -> 12.29048713 | S33: ='DNSP Inputs General'!$D70*S31 -> 12.32172386 | T33: ='DNSP Inputs General'!$D70*T31 -> 12.30830321 | V33: 5.329070518e-15 | W33: 1.776356839e-15 | X33: 0 | Y33: 1.776356839e-15 | Z33: 0
A34: ='DNSP Inputs General'!A71 -> CF42 | D34: ='DNSP Inputs General'!$D71*D31 -> 38.3055799 | E34: ='DNSP Inputs General'!$D71*E31 -> 38.28434676 | F34: ='DNSP Inputs General'!$D71*F31 -> 39.25967784 | G34: ='DNSP Inputs General'!$D71*G31 -> 40.20945106 | H34: ='DNSP Inputs General'!$D71*H31 -> 41.13606397 | J34: ='DNSP Inputs General'!$D71*J31 -> 25.26699056 | K34: ='DNSP Inputs General'!$D71*K31 -> 26.06997968 | L34: ='DNSP Inputs General'!$D71*L31 -> 26.96919071 | M34: ='DNSP Inputs General'!$D71*M31 -> 27.8877272 | N34: ='DNSP Inputs General'!$D71*N31 -> 28.82776076 | P34: ='DNSP Inputs General'!$D71*P31 -> 13.03858934 | Q34: ='DNSP Inputs General'!$D71*Q31 -> 12.21436708 | R34: ='DNSP Inputs General'!$D71*R31 -> 12.29048713 | S34: ='DNSP Inputs General'!$D71*S31 -> 12.32172386 | T34: ='DNSP Inputs General'!$D71*T31 -> 12.30830321 | V34: 5.329070518e-15 | W34: 1.776356839e-15 | X34: 0 | Y34: 1.776356839e-15 | Z34: 0
A35: ='DNSP Inputs General'!A72 -> Category P LED 18 Watt | D35: ='Charges Summary'!D$107 -> 26.58633049 | E35: ='Charges Summary'!E$107 -> 25.98432636 | F35: ='Charges Summary'!F$107 -> 26.53146838 | G35: ='Charges Summary'!G$107 -> 27.00503352 | H35: ='Charges Summary'!H$107 -> 27.44265317 | J35: =SUM('Charges Summary'!D101,'Charges Summary'!D8) -> 12.47681818 | K35: =SUM('Charges Summary'!E101,'Charges Summary'!E8) -> 12.85314722 | L35: =SUM('Charges Summary'!F101,'Charges Summary'!F8) -> 13.33932738 | M35: =SUM('Charges Summary'!G101,'Charges Summary'!G8) -> 13.79726304 | N35: =SUM('Charges Summary'!H101,'Charges Summary'!H8) -> 14.26447271 | P35: =SUM('Charges Summary'!D103,'Charges Summary'!D11) -> 14.10951231 | Q35: =SUM('Charges Summary'!E103,'Charges Summary'!E11) -> 13.13117914 | R35: =SUM('Charges Summary'!F103,'Charges Summary'!F11) -> 13.19214099 | S35: =SUM('Charges Summary'!G103,'Charges Summary'!G11) -> 13.20777048 | T35: =SUM('Charges Summary'!H103,'Charges Summary'!H11) -> 13.17818046 | V35: 0 | W35: 0 | X35: 1.776356839e-15 | Y35: 0 | Z35: 0
A36: ='DNSP Inputs General'!A73 -> Category P LED 47 Watt | D36: ='DNSP Inputs General'!$D73*D35 -> 26.58633049 | E36: ='DNSP Inputs General'!$D73*E35 -> 25.98432636 | F36: ='DNSP Inputs General'!$D73*F35 -> 26.53146838 | G36: ='DNSP Inputs General'!$D73*G35 -> 27.00503352 | H36: ='DNSP Inputs General'!$D73*H35 -> 27.44265317 | J36: ='DNSP Inputs General'!$D73*J35 -> 12.47681818 | K36: ='DNSP Inputs General'!$D73*K35 -> 12.85314722 | L36: ='DNSP Inputs General'!$D73*L35 -> 13.33932738 | M36: ='DNSP Inputs General'!$D73*M35 -> 13.79726304 | N36: ='DNSP Inputs General'!$D73*N35 -> 14.26447271 | P36: ='DNSP Inputs General'!$D73*P35 -> 14.10951231 | Q36: ='DNSP Inputs General'!$D73*Q35 -> 13.13117914 | R36: ='DNSP Inputs General'!$D73*R35 -> 13.19214099 | S36: ='DNSP Inputs General'!$D73*S35 -> 13.20777048 | T36: ='DNSP Inputs General'!$D73*T35 -> 13.17818046 | V36: 0 | W36: 0 | X36: 1.776356839e-15 | Y36: 0 | Z36: 0

Sheet Cashflow Summary
A1: ='DNSP Inputs O & M'!$A$3 -> Powercor | E1: Check | F1: =SUM(C129,C135,C158) -> 1.257285476e-08
C2: ='DNSP Inputs General'!J$2 -> 2015 | D2: ='DNSP Inputs General'!K$2 -> 2016 | E2: ='DNSP Inputs General'!L$2 -> 2017 | F2: ='DNSP Inputs General'!M$2 -> 2018 | G2: ='DNSP Inputs General'!N$2 -> 2019 | H2: ='DNSP Inputs General'!O$2 -> 2020 | J2: =C2 -> 2015 | K2: =D2 -> 2016 | L2: 2017 | M2: 2018 | N2: 2019 | O2: 2020
A4: Public Lighting - Revenue | C4: Revenue - Nominal | J4: Revenue - Real 2015 $
C5: =C$2 -> 2015 | D5: =D$2 -> 2016 | E5: 2017 | F5: 2018 | G5: 2019 | H5: 2020 | J5: =J$2 -> 2015 | K5: 2016 | L5: 2017 | M5: 2018 | N5: 2019 | O5: 2020
A6: ='DNSP Inputs General'!A$40 -> Existing Lights
A7: ='DNSP Inputs General'!A$41 -> Mercury vapour 80 watt | C7: =IF('PL Tariffs'!C6=0,"",'DNSP Inputs General'!J41*'PL Tariffs'!C6) -> 3719181.6 | D7: ='DNSP Inputs General'!K41*'PL Tariffs'!D6 -> 2895977.184 | E7: ='DNSP Inputs General'!L41*'PL Tariffs'!E6 -> 2507506.494 | F7: ='DNSP Inputs General'!M41*'PL Tariffs'!F6 -> 2381222.485 | G7: ='DNSP Inputs General'!N41*'PL Tariffs'!G6 -> 2266093.615 | H7: ='DNSP Inputs General'!O41*'PL Tariffs'!H6 -> 2149647.913 | J7: =C7 -> 3719181.6 | K7: =D7/'Charges Summary'!D$4 -> 2825343.594 | L7: =E7/'Charges Summary'!E$4 -> 2386680.78 | M7: =F7/'Charges Summary'!F$4 -> 2211201.797 | N7: =G7/'Charges Summary'!G$4 -> 2052968.971 | O7: =H7/'Charges Summary'!H$4 -> 1899975.525
A8: ='DNSP Inputs General'!A$42 -> Sodium high pressure 150 watt | C8: =IF('PL Tariffs'!C7=0,"",'DNSP Inputs General'!J42*'PL Tariffs'!C7) -> 2469117.06 | D8: ='DNSP Inputs General'!K42*'PL Tariffs'!D7 -> 2684281.497 | E8: ='DNSP Inputs General'!L42*'PL Tariffs'!E7 -> 2945057.317 | F8: ='DNSP Inputs General'!M42*'PL Tariffs'!F7 -> 3222721.483 | G8: ='DNSP Inputs General'!N42*'PL Tariffs'!G7 -> 3530331.628 | H8: ='DNSP Inputs General'!O42*'PL Tariffs'!H7 -> 3860284.399 | J8: 2469117.06 | K8: =D8/'Charges Summary'!D$4 -> 2618811.216 | L8: =E8/'Charges Summary'!E$4 -> 2803147.952 | M8: =F8/'Charges Summary'!F$4 -> 2992617.271 | N8: =G8/'Charges Summary'!G$4 -> 3198306.215 | O8: =H8/'Charges Summary'!H$4 -> 3411928.917
A9: ='DNSP Inputs General'!A$43 -> Sodium high pressure 250 watt | C9: =IF('PL Tariffs'!C8=0,"",'DNSP Inputs General'!J43*'PL Tariffs'!C8) -> 1184161.86 | D9: ='DNSP Inputs General'!K43*'PL Tariffs'!D8 -> 1249634.503 | E9: ='DNSP Inputs General'!L43*'PL Tariffs'!E8 -> 1358925.744 | F9: ='DNSP Inputs General'!M43*'PL Tariffs'!F8 -> 1473016.626 | G9: ='DNSP Inputs General'!N43*'PL Tariffs'!G8 -> 1598605.487 | H9: ='DNSP Inputs General'!O43*'PL Tariffs'!H8 -> 1731586.4 | J9: 1184161.86 | K9: =D9/'Charges Summary'!D$4 -> 1219155.613 | L9: =E9/'Charges Summary'!E$4 -> 1293445.086 | M9: =F9/'Charges Summary'!F$4 -> 1367842.371 | N9: =G9/'Charges Summary'!G$4 -> 1448257.672 | O9: =H9/'Charges Summary'!H$4 -> 1530470.064
A10: ='DNSP Inputs General'!A$44 -> Fluorescent 20 watt | C10: =IF('PL Tariffs'!C9=0,"",'DNSP Inputs General'!J44*'PL Tariffs'!C9) -> 0 | D10: ='DNSP Inputs General'!K44*'PL Tariffs'!D9 -> 0 | E10: ='DNSP Inputs General'!L44*'PL Tariffs'!E9 -> 0 | F10: ='DNSP Inputs General'!M44*'PL Tariffs'!F9 -> 0 | G10: ='DNSP Inputs General'!N44*'PL Tariffs'!G9 -> 0 | H10: ='DNSP Inputs General'!O44*'PL Tariffs'!H9 -> 0 | J10: 0 | K10: =D10/'Charges Summary'!D$4 -> 0 | L10: =E10/'Charges Summary'!E$4 -> 0 | M10: =F10/'Charges Summary'!F$4 -> 0 | N10: =G10/'Charges Summary'!G$4 -> 0 | O10: =H10/'Charges Summary'!H$4 -> 0
A11: ='DNSP Inputs General'!A$45 -> Fluorescent 40 watt | C11: =IF('PL Tariffs'!C10=0,"",'DNSP Inputs General'!J45*'PL Tariffs'!C10) -> 0 | D11: ='DNSP Inputs General'!K45*'PL Tariffs'!D10 -> 0 | E11: ='DNSP Inputs General'!L45*'PL Tariffs'!E10 -> 0 | F11: ='DNSP Inputs General'!M45*'PL Tariffs'!F10 -> 0 | G11: ='DNSP Inputs General'!N45*'PL Tariffs'!G10 -> 0 | H11: ='DNSP Inputs General'!O45*'PL Tariffs'!H10 -> 0 | J11: 0 | K11: =D11/'Charges Summary'!D$4 -> 0 | L11: =E11/'Charges Summary'!E$4 -> 0 | M11: =F11/'Charges Summary'!F$4 -> 0 | N11: =G11/'Charges Summary'!G$4 -> 0 | O11: =H11/'Charges Summary'!H$4 -> 0
A12: ='DNSP Inputs General'!A$46 -> Mercury vapour 50 watt | C12: =IF('PL Tariffs'!C11=0,"",'DNSP Inputs General'!J46*'PL Tariffs'!C11) -> 15990.73 | D12: ='DNSP Inputs General'!K46*'PL Tariffs'!D11 -> 13665.52372 | E12: ='DNSP Inputs General'!L46*'PL Tariffs'!E11 -> 13602.97736 | F12: ='DNSP Inputs General'!M46*'PL Tariffs'!F11 -> 13459.7359 | G12: ='DNSP Inputs General'!N46*'PL Tariffs'!G11 -> 13346.24417 | H12: ='DNSP Inputs General'!O46*'PL Tariffs'!H11 -> 13191.4704 | J12: 15990.73 | K12: =D12/'Charges Summary'!D$4 -> 13332.21827 | L12: =E12/'Charges Summary'!E$4 -> 12947.50968 | M12: =F12/'Charges Summary'!F$4 -> 12498.70283 | N12: =G12/'Charges Summary'!G$4 -> 12091.03851 | O12: =H12/'Charges Summary'!H$4 -> 11659.33767
A13: ='DNSP Inputs General'!A$47 -> Mercury vapour 125 watt | C13: =IF('PL Tariffs'!C12=0,"",'DNSP Inputs General'!J47*'PL Tariffs'!C12) -> 73216.11 | D13: ='DNSP Inputs General'!K47*'PL Tariffs'!D12 -> 69275.11005 | E13: ='DNSP Inputs General'!L47*'PL Tariffs'!E12 -> 76348.58543 | F13: ='DNSP Inputs General'!M47*'PL Tariffs'!F12 -> 83641.08042 | G13: ='DNSP Inputs General'!N47*'PL Tariffs'!G12 -> 91824.42919 | H13: ='DNSP Inputs General'!O47*'PL Tariffs'!H12 -> 100486.67 | J13: 73216.11 | K13: =D13/'Charges Summary'!D$4 -> 67585.47322 | L13: =E13/'Charges Summary'!E$4 -> 72669.68274 | M13: =F13/'Charges Summary'!F$4 -> 77669.05801 | N13: =G13/'Charges Summary'!G$4 -> 83188.40083 | O13: =H13/'Charges Summary'!H$4 -> 88815.57415
A14: ='DNSP Inputs General'!A$48 -> Mercury vapour 250 watt | C14: =IF('PL Tariffs'!C13=0,"",'DNSP Inputs General'!J48*'PL Tariffs'!C13) -> 19208 | D14: ='DNSP Inputs General'!K48*'PL Tariffs'!D13 -> 15073.9438 | E14: ='DNSP Inputs General'!L48*'PL Tariffs'!E13 -> 12189.32051 | F14: ='DNSP Inputs General'!M48*'PL Tariffs'!F13 -> 9824.971655 | G14: ='DNSP Inputs General'!N48*'PL Tariffs'!G13 -> 7928.752172 | H14: ='DNSP Inputs General'!O48*'PL Tariffs'!H13 -> 6386.274723 | J14: 19208 | K14: =D14/'Charges Summary'!D$4 -> 14706.28663 | L14: =E14/'Charges Summary'!E$4 -> 11601.97074 | M14: =F14/'Charges Summary'!F$4 -> 9123.462891 | N14: =G14/'Charges Summary'!G$4 -> 7183.058143 | O14: =H14/'Charges Summary'!H$4 -> 5644.536295
A15: ='DNSP Inputs General'!A$49 -> Mercury vapour 400 watt | C15: =IF('PL Tariffs'!C14=0,"",'DNSP Inputs General'!J49*'PL Tariffs'!C14) -> 7387.92 | D15: ='DNSP Inputs General'!K49*'PL Tariffs'!D14 -> 6715.220158 | E15: ='DNSP Inputs General'!L49*'PL Tariffs'!E14 -> 6290.02291 | F15: ='DNSP Inputs General'!M49*'PL Tariffs'!F14 -> 5872.775557 | G15: ='DNSP Inputs General'!N49*'PL Tariffs'!G14 -> 5489.797278 | H15: ='DNSP Inputs General'!O49*'PL Tariffs'!H14 -> 5121.986481 | J15: 7387.92 | K15: =D15/'Charges Summary'!D$4 -> 6551.434301 | L15: =E15/'Charges Summary'!E$4 -> 5986.934358 | M15: =F15/'Charges Summary'!F$4 -> 5453.455923 | N15: =G15/'Charges Summary'!G$4 -> 4973.485384 | O15: =H15/'Charges Summary'!H$4 -> 4527.089713
A16: ='DNSP Inputs General'!A$50 -> Mercury vapour 700 watt | C16: =IF('PL Tariffs'!C15=0,"",'DNSP Inputs General'!J50*'PL Tariffs'!C15) -> 0 | D16: ='DNSP Inputs General'!K50*'PL Tariffs'!D15 -> 0 | E16: ='DNSP Inputs General'!L50*'PL Tariffs'!E15 -> 0 | F16: ='DNSP Inputs General'!M50*'PL Tariffs'!F15 -> 0 | G16: ='DNSP Inputs General'!N50*'PL Tariffs'!G15 -> 0 | H16: ='DNSP Inputs General'!O50*'PL Tariffs'!H15 -> 0 | J16: 0 | K16: =D16/'Charges Summary'!D$4 -> 0 | L16: =E16/'Charges Summary'!E$4 -> 0 | M16: =F16/'Charges Summary'!F$4 -> 0 | N16: =G16/'Charges Summary'!G$4 -> 0 | O16: =H16/'Charges Summary'!H$4 -> 0
A17: ='DNSP Inputs General'!A$51 -> Sodium low pressure 90 watt | C17: =IF('PL Tariffs'!C16=0,"",'DNSP Inputs General'!J51*'PL Tariffs'!C16) -> 0 | D17: ='DNSP Inputs General'!K51*'PL Tariffs'!D16 -> 0 | E17: ='DNSP Inputs General'!L51*'PL Tariffs'!E16 -> 0 | F17: ='DNSP Inputs General'!M51*'PL Tariffs'!F16 -> 0 | G17: ='DNSP Inputs General'!N51*'PL Tariffs'!G16 -> 0 | H17: ='DNSP Inputs General'!O51*'PL Tariffs'!H16 -> 0 | J17: 0 | K17: =D17/'Charges Summary'!D$4 -> 0 | L17: =E17/'Charges Summary'!E$4 -> 0 | M17: =F17/'Charges Summary'!F$4 -> 0 | N17: =G17/'Charges Summary'!G$4 -> 0 | O17: =H17/'Charges Summary'!H$4 -> 0
A18: ='DNSP Inputs General'!A$52 -> Sodium low pressure 180 watt | C18: =IF('PL Tariffs'!C17=0,"",'DNSP Inputs General'!J52*'PL Tariffs'!C17) -> 0 | D18: ='DNSP Inputs General'!K52*'PL Tariffs'!D17 -> 0 | E18: ='DNSP Inputs General'!L52*'PL Tariffs'!E17 -> 0 | F18: ='DNSP Inputs General'!M52*'PL Tariffs'!F17 -> 0 | G18: ='DNSP Inputs General'!N52*'PL Tariffs'!G17 -> 0 | H18: ='DNSP Inputs General'!O52*'PL Tariffs'!H17 -> 0 | J18: 0 | K18: =D18/'Charges Summary'!D$4 -> 0 | L18: =E18/'Charges Summary'!E$4 -> 0 | M18: =F18/'Charges Summary'!F$4 -> 0 | N18: =G18/'Charges Summary'!G$4 -> 0 | O18: =H18/'Charges Summary'!H$4 -> 0
A19: ='DNSP Inputs General'!A$53 -> Sodium high pressure 400 watt | C19: =IF('PL Tariffs'!C18=0,"",'DNSP Inputs General'!J53*'PL Tariffs'!C18) -> 91245.6 | D19: ='DNSP Inputs General'!K53*'PL Tariffs'!D18 -> 93452.47956 | E19: ='DNSP Inputs General'!L53*'PL Tariffs'!E18 -> 98631.07382 | F19: ='DNSP Inputs General'!M53*'PL Tariffs'!F18 -> 103761.4181 | G19: ='DNSP Inputs General'!N53*'PL Tariffs'!G18 -> 109289.8333 | H19: ='DNSP Inputs General'!O53*'PL Tariffs'!H18 -> 114892.8082 | J19: 91245.6 | K19: =D19/'Charges Summary'!D$4 -> 91173.15079 | L19: =E19/'Charges Summary'!E$4 -> 93878.47598 | M19: =F19/'Charges Summary'!F$4 -> 96352.7917 | N19: =G19/'Charges Summary'!G$4 -> 99011.19491 | O19: =H19/'Charges Summary'!H$4 -> 101548.5011
A20: ='DNSP Inputs General'!A$54 -> Incandescent 100 watt | C20: =IF('PL Tariffs'!C19=0,"",'DNSP Inputs General'!J54*'PL Tariffs'!C19) -> 0 | D20: ='DNSP Inputs General'!K54*'PL Tariffs'!D19 -> 0 | E20: ='DNSP Inputs General'!L54*'PL Tariffs'!E19 -> 0 | F20: ='DNSP Inputs General'!M54*'PL Tariffs'!F19 -> 0 | G20: ='DNSP Inputs General'!N54*'PL Tariffs'!G19 -> 0 | H20: ='DNSP Inputs General'!O54*'PL Tariffs'!H19 -> 0 | J20: 0 | K20: =D20/'Charges Summary'!D$4 -> 0 | L20: =E20/'Charges Summary'!E$4 -> 0 | M20: =F20/'Charges Summary'!F$4 -> 0 | N20: =G20/'Charges Summary'!G$4 -> 0 | O20: =H20/'Charges Summary'!H$4 -> 0
A21: ='DNSP Inputs General'!A$55 -> Incandescent 150 watt | C21: =IF('PL Tariffs'!C20=0,"",'DNSP Inputs General'!J55*'PL Tariffs'!C20) -> 0 | D21: ='DNSP Inputs General'!K55*'PL Tariffs'!D20 -> 0 | E21: ='DNSP Inputs General'!L55*'PL Tariffs'!E20 -> 0 | F21: ='DNSP Inputs General'!M55*'PL Tariffs'!F20 -> 0 | G21: ='DNSP Inputs General'!N55*'PL Tariffs'!G20 -> 0 | H21: ='DNSP Inputs General'!O55*'PL Tariffs'!H20 -> 0 | J21: 0 | K21: =D21/'Charges Summary'!D$4 -> 0 | L21: =E21/'Charges Summary'!E$4 -> 0 | M21: =F21/'Charges Summary'!F$4 -> 0 | N21: =G21/'Charges Summary'!G$4 -> 0 | O21: =H21/'Charges Summary'!H$4 -> 0
A22: ='DNSP Inputs General'!A$56 -> Metal halide 250 watt | C22: =IF('PL Tariffs'!C21=0,"",'DNSP Inputs General'!J56*'PL Tariffs'!C21) -> 42741.36 | D22: ='DNSP Inputs General'!K56*'PL Tariffs'!D21 -> 44497.58163 | E22: ='DNSP Inputs General'!L56*'PL Tariffs'!E21 -> 47738.47208 | F22: ='DNSP Inputs General'!M56*'PL Tariffs'!F21 -> 51050.47951 | G22: ='DNSP Inputs General'!N56*'PL Tariffs'!G21 -> 54657.89027 | H22: ='DNSP Inputs General'!O56*'PL Tariffs'!H21 -> 58408.37441 | J22: 42741.36 | K22: =D22/'Charges Summary'!D$4 -> 43412.27476 | L22: =E22/'Charges Summary'!E$4 -> 45438.16497 | M22: =F22/'Charges Summary'!F$4 -> 47405.4452 | N22: =G22/'Charges Summary'!G$4 -> 49517.35093 | O22: =H22/'Charges Summary'!H$4 -> 51624.49216
A23: ='DNSP Inputs General'!A$57 -> Metal halide 400 watt | C23: =IF('PL Tariffs'!C22=0,"",'DNSP Inputs General'!J57*'PL Tariffs'!C22) -> 0 | D23: ='DNSP Inputs General'!K57*'PL Tariffs'!D22 -> 0 | E23: ='DNSP Inputs General'!L57*'PL Tariffs'!E22 -> 0 | F23: ='DNSP Inputs General'!M57*'PL Tariffs'!F22 -> 0 | G23: ='DNSP Inputs General'!N57*'PL Tariffs'!G22 -> 0 | H23: ='DNSP Inputs General'!O57*'PL Tariffs'!H22 -> 0 | J23: 0 | K23: =D23/'Charges Summary'!D$4 -> 0 | L23: =E23/'Charges Summary'!E$4 -> 0 | M23: =F23/'Charges Summary'!F$4 -> 0 | N23: =G23/'Charges Summary'!G$4 -> 0 | O23: =H23/'Charges Summary'!H$4 -> 0
A24: ='DNSP Inputs General'!A$58 -> Metal halide 70 watt | C24: =IF('PL Tariffs'!C23=0,"",'DNSP Inputs General'!J58*'PL Tariffs'!C23) ->  | D24: ='DNSP Inputs General'!K58*'PL Tariffs'!D23 -> 835.777358 | E24: ='DNSP Inputs General'!L58*'PL Tariffs'!E23 -> 904.9223269 | F24: ='DNSP Inputs General'!M58*'PL Tariffs'!F23 -> 973.9280502 | G24: ='DNSP Inputs General'!N58*'PL Tariffs'!G23 -> 1050.418613 | H24: ='DNSP Inputs General'!O58*'PL Tariffs'!H23 -> 1129.300597 | J24: =C24 ->  | K24: =D24/'Charges Summary'!D$4 -> 815.3925444 | L24: =E24/'Charges Summary'!E$4 -> 861.3180981 | M24: =F24/'Charges Summary'!F$4 -> 904.3890137 | N24: =G24/'Charges Summary'!G$4 -> 951.62742 | O24: =H24/'Charges Summary'!H$4 -> 998.1371743
A25: ='DNSP Inputs General'!A$59 -> Metal halide 150 watt | C25: =IF('PL Tariffs'!C24=0,"",'DNSP Inputs General'!J59*'PL Tariffs'!C24) ->  | D25: ='DNSP Inputs General'!K59*'PL Tariffs'!D24 -> 6168.74725 | E25: ='DNSP Inputs General'!L59*'PL Tariffs'!E24 -> 6608.302034 | F25: ='DNSP Inputs General'!M59*'PL Tariffs'!F24 -> 7060.673366 | G25: ='DNSP Inputs General'!N59*'PL Tariffs'!G24 -> 7552.071006 | H25: ='DNSP Inputs General'!O59*'PL Tariffs'!H24 -> 8063.007743 | K25: =D25/'Charges Summary'!D$4 -> 6018.29 | L25: =E25/'Charges Summary'!E$4 -> 6289.877011 | M25: =F25/'Charges Summary'!F$4 -> 6556.537129 | N25: =G25/'Charges Summary'!G$4 -> 6841.803597 | O25: =H25/'Charges Summary'!H$4 -> 7126.523965
A31: ='DNSP Inputs General'!A$67 -> Energy Efficient Lights
A32: ='DNSP Inputs General'!A68 -> T5 2X14W | C32: =IF('PL Tariffs'!C31=0,"",'DNSP Inputs General'!J68*'PL Tariffs'!C31) -> 358450.65 | D32: ='DNSP Inputs General'!K68*'PL Tariffs'!D31 -> 416482.2718 | E32: ='DNSP Inputs General'!L68*'PL Tariffs'!E31 -> 407926.3836 | F32: ='DNSP Inputs General'!M68*'PL Tariffs'!F31 -> 409952.3321 | G32: ='DNSP Inputs General'!N68*'PL Tariffs'!G31 -> 411472.5325 | H32: ='DNSP Inputs General'!O68*'PL Tariffs'!H31 -> 412535.6794 | J32: =C32 -> 358450.65 | K32: =D32/'Charges Summary'!D$4 -> 406324.1677 | L32: =E32/'Charges Summary'!E$4 -> 388270.2045 | M32: =F32/'Charges Summary'!F$4 -> 380681.4941 | N32: =G32/'Charges Summary'!G$4 -> 372773.8061 | O32: =H32/'Charges Summary'!H$4 -> 364621.4291
A33: ='DNSP Inputs General'!A$69 -> T5 2X24W | C33: =IF('PL Tariffs'!C32=0,"",'DNSP Inputs General'!J69*'PL Tariffs'!C32) ->  | D33: ='DNSP Inputs General'!K69*'PL Tariffs'!D32 -> 56858.83146 | E33: ='DNSP Inputs General'!L69*'PL Tariffs'!E32 -> 55690.7678 | F33: ='DNSP Inputs General'!M69*'PL Tariffs'!F32 -> 55967.35355 | G33: ='DNSP Inputs General'!N69*'PL Tariffs'!G32 -> 56174.89377 | H33: ='DNSP Inputs General'!O69*'PL Tariffs'!H32 -> 56320.0363 | J33: =C33 ->  | K33: =D33/'Charges Summary'!D$4 -> 55472.03069 | L33: =E33/'Charges Summary'!E$4 -> 53007.27453 | M33: =F33/'Charges Summary'!F$4 -> 51971.25154 | N33: =G33/'Charges Summary'!G$4 -> 50891.68123 | O33: =H33/'Charges Summary'!H$4 -> 49778.70556
A34: ='DNSP Inputs General'!A$70 -> CF32 | C34: =IF('PL Tariffs'!C33=0,"",'DNSP Inputs General'!J70*'PL Tariffs'!C33) ->  | D34: ='DNSP Inputs General'!K70*'PL Tariffs'!D33 -> 115959.4176 | E34: ='DNSP Inputs General'!L70*'PL Tariffs'!E33 -> 113577.2374 | F34: ='DNSP Inputs General'!M70*'PL Tariffs'!F33 -> 114141.3138 | G34: ='DNSP Inputs General'!N70*'PL Tariffs'!G33 -> 114564.5768 | H34: ='DNSP Inputs General'!O70*'PL Tariffs'!H33 -> 114860.5844 | K34: =D34/'Charges Summary'!D$4 -> 113131.1391 | L34: =E34/'Charges Summary'!E$4 -> 108104.4496 | M34: =F34/'Charges Summary'!F$4 -> 105991.5567 | N34: =G34/'Charges Summary'!G$4 -> 103789.8522 | O34: =H34/'Charges Summary'!H$4 -> 101520.02
A35: ='DNSP Inputs General'!A$71 -> CF42 | C35: =IF('PL Tariffs'!C34=0,"",'DNSP Inputs General'!J71*'PL Tariffs'!C34) ->  | D35: ='DNSP Inputs General'!K71*'PL Tariffs'!D34 -> 169490.6994 | E35: ='DNSP Inputs General'!L71*'PL Tariffs'!E34 -> 166008.8141 | F35: ='DNSP Inputs General'!M71*'PL Tariffs'!F34 -> 166833.2896 | G35: ='DNSP Inputs General'!N71*'PL Tariffs'!G34 -> 167451.947 | H35: ='DNSP Inputs General'!O71*'PL Tariffs'!H34 -> 167884.6029 | K35: =D35/'Charges Summary'!D$4 -> 165356.7799 | L35: =E35/'Charges Summary'!E$4 -> 158009.5792 | M35: =F35/'Charges Summary'!F$4 -> 154921.2945 | N35: =G35/'Charges Summary'!G$4 -> 151703.1994 | O35: =H35/'Charges Summary'!H$4 -> 148385.5261
A36: ='DNSP Inputs General'!A$72 -> Category P LED 18 Watt | C36: =IF('PL Tariffs'!C35=0,"",'DNSP Inputs General'!J72*'PL Tariffs'!C35) ->  | D36: ='DNSP Inputs General'!K72*'PL Tariffs'!D35 -> 985432.3148 | E36: ='DNSP Inputs General'!L72*'PL Tariffs'!E35 -> 1375205.883 | F36: ='DNSP Inputs General'!M72*'PL Tariffs'!F35 -> 1516496.113 | G36: ='DNSP Inputs General'!N72*'PL Tariffs'!G35 -> 1667049.482 | H36: ='DNSP Inputs General'!O72*'PL Tariffs'!H35 -> 1829589.346 | K36: =D36/'Charges Summary'!D$4 -> 961397.3803 | L36: =E36/'Charges Summary'!E$4 -> 1308940.757 | M36: =F36/'Charges Summary'!F$4 -> 1408217.397 | N36: =G36/'Charges Summary'!G$4 -> 1510264.554 | O36: =H36/'Charges Summary'!H$4 -> 1617090.388
A37: ='DNSP Inputs General'!A$73 -> Category P LED 47 Watt | C37: =IF('PL Tariffs'!C36=0,"",'DNSP Inputs General'!J73*'PL Tariffs'!C36) ->  | D37: ='DNSP Inputs General'!K73*'PL Tariffs'!D36 -> 0 | E37: ='DNSP Inputs General'!L73*'PL Tariffs'!E36 -> 0 | F37: ='DNSP Inputs General'!M73*'PL Tariffs'!F36 -> 0 | G37: ='DNSP Inputs General'!N73*'PL Tariffs'!G36 -> 0 | H37: ='DNSP Inputs General'!O73*'PL Tariffs'!H36 -> 0 | K37: =D37/'Charges Summary'!D$4 -> 0 | L37: =E37/'Charges Summary'!E$4 -> 0 | M37: =F37/'Charges Summary'!F$4 -> 0 | N37: =G37/'Charges Summary'!G$4 -> 0 | O37: =H37/'Charges Summary'!H$4 -> 0
A39: Total Revenue | C39: =IF(SUM(C7:C38)=0,"",SUM(C7:C38)) -> 7980700.89 | D39: =SUM(D7:D38) -> 8823801.103 | E39: =SUM(E7:E38) -> 9192212.318 | F39: =SUM(F7:F38) -> 9615996.058 | G39: =SUM(G7:G38) -> 10102883.6 | H39: =SUM(H7:H38) -> 10630388.85 | J39: =IF(SUM(J7:J38)=0,"",SUM(J7:J38)) -> 7980700.89 | K39: =SUM(K7:K38) -> 8608586.442 | L39: =SUM(L7:L38) -> 8749280.017 | M39: =SUM(M7:M38) -> 8929408.275 | N39: =SUM(N7:N38) -> 9152713.911 | O39: =SUM(O7:O38) -> 9395714.767
A42: Public Lighting - O & M | D42: Forecast O & M - Nominal | K42: Forecast O & M - Real 2015 $
D43: =D$2 -> 2016 | E43: 2017 | F43: 2018 | G43: 2019 | H43: 2020 | K43: =K$2 -> 2016 | L43: 2017 | M43: 2018 | N43: 2019 | O43: 2020
A45: Unit cost
A46: ='DNSP Inputs General'!A$41 -> Mercury vapour 80 watt | D46: =SUM('Charges Summary'!D25,'Charges Summary'!D8) -> 25.03948527 | E46: =SUM('Charges Summary'!E25,'Charges Summary'!E8) -> 25.99754632 | F46: =SUM('Charges Summary'!F25,'Charges Summary'!F8) -> 26.99104026 | G46: =SUM('Charges Summary'!G25,'Charges Summary'!G8) -> 28.02265191 | H46: =SUM('Charges Summary'!H25,'Charges Summary'!H8) -> 29.09581983
A47: ='DNSP Inputs General'!A$42 -> Sodium high pressure 150 watt | D47: =SUM('Charges Summary'!D49,'Charges Summary'!D8) -> 67.4194901 | E47: =SUM('Charges Summary'!E49,'Charges Summary'!E8) -> 69.93418193 | F47: =SUM('Charges Summary'!F49,'Charges Summary'!F8) -> 72.60452436 | G47: =SUM('Charges Summary'!G49,'Charges Summary'!G8) -> 75.35770885 | H47: =SUM('Charges Summary'!H49,'Charges Summary'!H8) -> 78.20425813
A48: ='DNSP Inputs General'!A$43 -> Sodium high pressure 250 watt | D48: =SUM('Charges Summary'!D65,'Charges Summary'!D8) -> 67.40137347 | E48: =SUM('Charges Summary'!E65,'Charges Summary'!E8) -> 69.91597778 | F48: =SUM('Charges Summary'!F65,'Charges Summary'!F8) -> 72.58572895 | G48: =SUM('Charges Summary'!G65,'Charges Summary'!G8) -> 75.33843215 | H48: =SUM('Charges Summary'!H65,'Charges Summary'!H8) -> 78.18460196
A50: ='DNSP Inputs General'!A$40 -> Existing Lights
A51: ='DNSP Inputs General'!A$41 -> Mercury vapour 80 watt | D51: =D46*'DNSP Inputs General'!K41 -> 1500914.493 | E51: =E46*'DNSP Inputs General'!L41 -> 1271128.087 | F51: =F46*'DNSP Inputs General'!M41 -> 1187733.721 | G51: =G46*'DNSP Inputs General'!N41 -> 1109816.572 | H51: =H46*'DNSP Inputs General'!O41 -> 1037086.74 | K51: =D51/'Charges Summary'!D$4 -> 1464306.822 | L51: =E51/'Charges Summary'!E$4 -> 1209878.013 | M51: =F51/'Charges Summary'!F$4 -> 1102928.834 | N51: =G51/'Charges Summary'!G$4 -> 1005439.039 | O51: =H51/'Charges Summary'!H$4 -> 916633.5619
A52: ='DNSP Inputs General'!A$42 -> Sodium high pressure 150 watt | D52: =D47*'DNSP Inputs General'!K42 -> 1989932.578 | E52: =E47*'DNSP Inputs General'!L42 -> 2156330.645 | F52: =F47*'DNSP Inputs General'!M42 -> 2338635.287 | G52: =G47*'DNSP Inputs General'!N42 -> 2535709.263 | H52: =H47*'DNSP Inputs General'!O42 -> 2749002.466 | K52: =D52/'Charges Summary'!D$4 -> 1941397.637 | L52: =E52/'Charges Summary'!E$4 -> 2052426.551 | M52: =F52/'Charges Summary'!F$4 -> 2171655.35 | N52: =G52/'Charges Summary'!G$4 -> 2297227.442 | O52: =H52/'Charges Summary'!H$4 -> 2429717.616
A53: ='DNSP Inputs General'!A$43 -> Sodium high pressure 250 watt | D53: =D48*'DNSP Inputs General'!K43 -> 914149.3539 | E53: =E48*'DNSP Inputs General'!L43 -> 980405.2529 | F53: =F48*'DNSP Inputs General'!M43 -> 1052352.459 | G53: =G48*'DNSP Inputs General'!N43 -> 1129294.827 | H53: =H48*'DNSP Inputs General'!O43 -> 1211693.489 | K53: =D53/'Charges Summary'!D$4 -> 891853.0282 | L53: =E53/'Charges Summary'!E$4 -> 933163.8338 | M53: =F53/'Charges Summary'!F$4 -> 977213.8731 | N53: =G53/'Charges Summary'!G$4 -> 1023085.377 | O53: =H53/'Charges Summary'!H$4 -> 1070960.485
A54: ='DNSP Inputs General'!A$44 -> Fluorescent 20 watt | D54: =IF('DNSP Inputs General'!$B44='DNSP Inputs General'!$A$41,D$46,IF('DNSP Inputs General'!$B44='DNSP Inputs General'!$A$42,D$47,D$48))*'DNSP Inputs General'!$D44*'DNSP Inputs General'!K44 -> 0 | E54: =IF('DNSP Inputs General'!$B44='DNSP Inputs General'!$A$41,E$46,IF('DNSP Inputs General'!$B44='DNSP Inputs General'!$A$42,E$47,E$48))*'DNSP Inputs General'!$D44*'DNSP Inputs General'!L44 -> 0 | F54: =IF('DNSP Inputs General'!$B44='DNSP Inputs General'!$A$41,F$46,IF('DNSP Inputs General'!$B44='DNSP Inputs General'!$A$42,F$47,F$48))*'DNSP Inputs General'!$D44*'DNSP Inputs General'!M44 -> 0 | G54: =IF('DNSP Inputs General'!$B44='DNSP Inputs General'!$A$41,G$46,IF('DNSP Inputs General'!$B44='DNSP Inputs General'!$A$42,G$47,G$48))*'DNSP Inputs General'!$D44*'DNSP Inputs General'!N44 -> 0 | H54: =IF('DNSP Inputs General'!$B44='DNSP Inputs General'!$A$41,H$46,IF('DNSP Inputs General'!$B44='DNSP Inputs General'!$A$42,H$47,H$48))*'DNSP Inputs General'!$D44*'DNSP Inputs General'!O44 -> 0 | K54: =D54/'Charges Summary'!D$4 -> 0 | L54: =E54/'Charges Summary'!E$4 -> 0 | M54: =F54/'Charges Summary'!F$4 -> 0 | N54: =G54/'Charges Summary'!G$4 -> 0 | O54: =H54/'Charges Summary'!H$4 -> 0
A55: ='DNSP Inputs General'!A$45 -> Fluorescent 40 watt | D55: =IF('DNSP Inputs General'!$B45='DNSP Inputs General'!$A$41,D$46,IF('DNSP Inputs General'!$B45='DNSP Inputs General'!$A$42,D$47,D$48))*'DNSP Inputs General'!$D45*'DNSP Inputs General'!K45 -> 0 | E55: =IF('DNSP Inputs General'!$B45='DNSP Inputs General'!$A$41,E$46,IF('DNSP Inputs General'!$B45='DNSP Inputs General'!$A$42,E$47,E$48))*'DNSP Inputs General'!$D45*'DNSP Inputs General'!L45 -> 0 | F55: =IF('DNSP Inputs General'!$B45='DNSP Inputs General'!$A$41,F$46,IF('DNSP Inputs General'!$B45='DNSP Inputs General'!$A$42,F$47,F$48))*'DNSP Inputs General'!$D45*'DNSP Inputs General'!M45 -> 0 | G55: =IF('DNSP Inputs General'!$B45='DNSP Inputs General'!$A$41,G$46,IF('DNSP Inputs General'!$B45='DNSP Inputs General'!$A$42,G$47,G$48))*'DNSP Inputs General'!$D45*'DNSP Inputs General'!N45 -> 0 | H55: =IF('DNSP Inputs General'!$B45='DNSP Inputs General'!$A$41,H$46,IF('DNSP Inputs General'!$B45='DNSP Inputs General'!$A$42,H$47,H$48))*'DNSP Inputs General'!$D45*'DNSP Inputs General'!O45 -> 0 | K55: =D55/'Charges Summary'!D$4 -> 0 | L55: =E55/'Charges Summary'!E$4 -> 0 | M55: =F55/'Charges Summary'!F$4 -> 0 | N55: =G55/'Charges Summary'!G$4 -> 0 | O55: =H55/'Charges Summary'!H$4 -> 0
A56: ='DNSP Inputs General'!A$46 -> Mercury vapour 50 watt | D56: =IF('DNSP Inputs General'!$B46='DNSP Inputs General'!$A$41,D$46,IF('DNSP Inputs General'!$B46='DNSP Inputs General'!$A$42,D$47,D$48))*'DNSP Inputs General'!$D46*'DNSP Inputs General'!K46 -> 7082.508357 | E56: =IF('DNSP Inputs General'!$B46='DNSP Inputs General'!$A$41,E$46,IF('DNSP Inputs General'!$B46='DNSP Inputs General'!$A$42,E$47,E$48))*'DNSP Inputs General'!$D46*'DNSP Inputs General'!L46 -> 6895.745485 | F56: =IF('DNSP Inputs General'!$B46='DNSP Inputs General'!$A$41,F$46,IF('DNSP Inputs General'!$B46='DNSP Inputs General'!$A$42,F$47,F$48))*'DNSP Inputs General'!$D46*'DNSP Inputs General'!M46 -> 6713.602912 | G56: =IF('DNSP Inputs General'!$B46='DNSP Inputs General'!$A$41,G$46,IF('DNSP Inputs General'!$B46='DNSP Inputs General'!$A$42,G$47,G$48))*'DNSP Inputs General'!$D46*'DNSP Inputs General'!N46 -> 6536.30673 | H56: =IF('DNSP Inputs General'!$B46='DNSP Inputs General'!$A$41,H$46,IF('DNSP Inputs General'!$B46='DNSP Inputs General'!$A$42,H$47,H$48))*'DNSP Inputs General'!$D46*'DNSP Inputs General'!O46 -> 6364.158033 | K56: =D56/'Charges Summary'!D$4 -> 6909.76425 | L56: =E56/'Charges Summary'!E$4 -> 6563.469825 | M56: =F56/'Charges Summary'!F$4 -> 6234.247709 | N56: =G56/'Charges Summary'!G$4 -> 5921.571296 | O56: =H56/'Charges Summary'!H$4 -> 5624.988364
A57: ='DNSP Inputs General'!A$47 -> Mercury vapour 125 watt | D57: =IF('DNSP Inputs General'!$B47='DNSP Inputs General'!$A$41,D$46,IF('DNSP Inputs General'!$B47='DNSP Inputs General'!$A$42,D$47,D$48))*'DNSP Inputs General'!$D47*'DNSP Inputs General'!K47 -> 35903.60353 | E57: =IF('DNSP Inputs General'!$B47='DNSP Inputs General'!$A$41,E$46,IF('DNSP Inputs General'!$B47='DNSP Inputs General'!$A$42,E$47,E$48))*'DNSP Inputs General'!$D47*'DNSP Inputs General'!L47 -> 38703.32203 | F57: =IF('DNSP Inputs General'!$B47='DNSP Inputs General'!$A$41,F$46,IF('DNSP Inputs General'!$B47='DNSP Inputs General'!$A$42,F$47,F$48))*'DNSP Inputs General'!$D47*'DNSP Inputs General'!M47 -> 41719.4665 | G57: =IF('DNSP Inputs General'!$B47='DNSP Inputs General'!$A$41,G$46,IF('DNSP Inputs General'!$B47='DNSP Inputs General'!$A$42,G$47,G$48))*'DNSP Inputs General'!$D47*'DNSP Inputs General'!N47 -> 44970.9017 | H57: =IF('DNSP Inputs General'!$B47='DNSP Inputs General'!$A$41,H$46,IF('DNSP Inputs General'!$B47='DNSP Inputs General'!$A$42,H$47,H$48))*'DNSP Inputs General'!$D47*'DNSP Inputs General'!O47 -> 48479.28463 | K57: =D57/'Charges Summary'!D$4 -> 35027.90589 | L57: =E57/'Charges Summary'!E$4 -> 36838.37909 | M57: =F57/'Charges Summary'!F$4 -> 38740.67202 | N57: =G57/'Charges Summary'!G$4 -> 40741.41739 | O57: =H57/'Charges Summary'!H$4 -> 42848.62358
A58: ='DNSP Inputs General'!A$48 -> Mercury vapour 250 watt | D58: =IF('DNSP Inputs General'!$B48='DNSP Inputs General'!$A$41,D$46,IF('DNSP Inputs General'!$B48='DNSP Inputs General'!$A$42,D$47,D$48))*'DNSP Inputs General'!$D48*'DNSP Inputs General'!K48 -> 11027.09308 | E58: =IF('DNSP Inputs General'!$B48='DNSP Inputs General'!$A$41,E$46,IF('DNSP Inputs General'!$B48='DNSP Inputs General'!$A$42,E$47,E$48))*'DNSP Inputs General'!$D48*'DNSP Inputs General'!L48 -> 8794.059506 | F58: =IF('DNSP Inputs General'!$B48='DNSP Inputs General'!$A$41,F$46,IF('DNSP Inputs General'!$B48='DNSP Inputs General'!$A$42,F$47,F$48))*'DNSP Inputs General'!$D48*'DNSP Inputs General'!M48 -> 7019.155719 | G58: =IF('DNSP Inputs General'!$B48='DNSP Inputs General'!$A$41,G$46,IF('DNSP Inputs General'!$B48='DNSP Inputs General'!$A$42,G$47,G$48))*'DNSP Inputs General'!$D48*'DNSP Inputs General'!N48 -> 5601.068485 | H58: =IF('DNSP Inputs General'!$B48='DNSP Inputs General'!$A$41,H$46,IF('DNSP Inputs General'!$B48='DNSP Inputs General'!$A$42,H$47,H$48))*'DNSP Inputs General'!$D48*'DNSP Inputs General'!O48 -> 4468.854397 | K58: =D58/'Charges Summary'!D$4 -> 10758.13959 | L58: =E58/'Charges Summary'!E$4 -> 8370.312439 | M58: =F58/'Charges Summary'!F$4 -> 6517.983866 | N58: =G58/'Charges Summary'!G$4 -> 5074.291606 | O58: =H58/'Charges Summary'!H$4 -> 3949.816119
A59: ='DNSP Inputs General'!A$49 -> Mercury vapour 400 watt | D59: =IF('DNSP Inputs General'!$B49='DNSP Inputs General'!$A$41,D$46,IF('DNSP Inputs General'!$B49='DNSP Inputs General'!$A$42,D$47,D$48))*'DNSP Inputs General'!$D49*'DNSP Inputs General'!K49 -> 4912.40771 | E59: =IF('DNSP Inputs General'!$B49='DNSP Inputs General'!$A$41,E$46,IF('DNSP Inputs General'!$B49='DNSP Inputs General'!$A$42,E$47,E$48))*'DNSP Inputs General'!$D49*'DNSP Inputs General'!L49 -> 4537.97533 | F59: =IF('DNSP Inputs General'!$B49='DNSP Inputs General'!$A$41,F$46,IF('DNSP Inputs General'!$B49='DNSP Inputs General'!$A$42,F$47,F$48))*'DNSP Inputs General'!$D49*'DNSP Inputs General'!M49 -> 4195.627996 | G59: =IF('DNSP Inputs General'!$B49='DNSP Inputs General'!$A$41,G$46,IF('DNSP Inputs General'!$B49='DNSP Inputs General'!$A$42,G$47,G$48))*'DNSP Inputs General'!$D49*'DNSP Inputs General'!N49 -> 3878.129857 | H59: =IF('DNSP Inputs General'!$B49='DNSP Inputs General'!$A$41,H$46,IF('DNSP Inputs General'!$B49='DNSP Inputs General'!$A$42,H$47,H$48))*'DNSP Inputs General'!$D49*'DNSP Inputs General'!O49 -> 3584.157087 | K59: =D59/'Charges Summary'!D$4 -> 4792.592887 | L59: =E59/'Charges Summary'!E$4 -> 4319.310249 | M59: =F59/'Charges Summary'!F$4 -> 3896.057686 | N59: =G59/'Charges Summary'!G$4 -> 3513.394245 | O59: =H59/'Charges Summary'!H$4 -> 3167.872609
A60: ='DNSP Inputs General'!A$50 -> Mercury vapour 700 watt | D60: =IF('DNSP Inputs General'!$B50='DNSP Inputs General'!$A$41,D$46,IF('DNSP Inputs General'!$B50='DNSP Inputs General'!$A$42,D$47,D$48))*'DNSP Inputs General'!$D50*'DNSP Inputs General'!K50 -> 0 | E60: =IF('DNSP Inputs General'!$B50='DNSP Inputs General'!$A$41,E$46,IF('DNSP Inputs General'!$B50='DNSP Inputs General'!$A$42,E$47,E$48))*'DNSP Inputs General'!$D50*'DNSP Inputs General'!L50 -> 0 | F60: =IF('DNSP Inputs General'!$B50='DNSP Inputs General'!$A$41,F$46,IF('DNSP Inputs General'!$B50='DNSP Inputs General'!$A$42,F$47,F$48))*'DNSP Inputs General'!$D50*'DNSP Inputs General'!M50 -> 0 | G60: =IF('DNSP Inputs General'!$B50='DNSP Inputs General'!$A$41,G$46,IF('DNSP Inputs General'!$B50='DNSP Inputs General'!$A$42,G$47,G$48))*'DNSP Inputs General'!$D50*'DNSP Inputs General'!N50 -> 0 | H60: =IF('DNSP Inputs General'!$B50='DNSP Inputs General'!$A$41,H$46,IF('DNSP Inputs General'!$B50='DNSP Inputs General'!$A$42,H$47,H$48))*'DNSP Inputs General'!$D50*'DNSP Inputs General'!O50 -> 0 | K60: =D60/'Charges Summary'!D$4 -> 0 | L60: =E60/'Charges Summary'!E$4 -> 0 | M60: =F60/'Charges Summary'!F$4 -> 0 | N60: =G60/'Charges Summary'!G$4 -> 0 | O60: =H60/'Charges Summary'!H$4 -> 0
A61: ='DNSP Inputs General'!A$51 -> Sodium low pressure 90 watt | D61: =IF('DNSP Inputs General'!$B51='DNSP Inputs General'!$A$41,D$46,IF('DNSP Inputs General'!$B51='DNSP Inputs General'!$A$42,D$47,D$48))*'DNSP Inputs General'!$D51*'DNSP Inputs General'!K51 -> 0 | E61: =IF('DNSP Inputs General'!$B51='DNSP Inputs General'!$A$41,E$46,IF('DNSP Inputs General'!$B51='DNSP Inputs General'!$A$42,E$47,E$48))*'DNSP Inputs General'!$D51*'DNSP Inputs General'!L51 -> 0 | F61: =IF('DNSP Inputs General'!$B51='DNSP Inputs General'!$A$41,F$46,IF('DNSP Inputs General'!$B51='DNSP Inputs General'!$A$42,F$47,F$48))*'DNSP Inputs General'!$D51*'DNSP Inputs General'!M51 -> 0 | G61: =IF('DNSP Inputs General'!$B51='DNSP Inputs General'!$A$41,G$46,IF('DNSP Inputs General'!$B51='DNSP Inputs General'!$A$42,G$47,G$48))*'DNSP Inputs General'!$D51*'DNSP Inputs General'!N51 -> 0 | H61: =IF('DNSP Inputs General'!$B51='DNSP Inputs General'!$A$41,H$46,IF('DNSP Inputs General'!$B51='DNSP Inputs General'!$A$42,H$47,H$48))*'DNSP Inputs General'!$D51*'DNSP Inputs General'!O51 -> 0 | K61: =D61/'Charges Summary'!D$4 -> 0 | L61: =E61/'Charges Summary'!E$4 -> 0 | M61: =F61/'Charges Summary'!F$4 -> 0 | N61: =G61/'Charges Summary'!G$4 -> 0 | O61: =H61/'Charges Summary'!H$4 -> 0
A62: ='DNSP Inputs General'!A$52 -> Sodium low pressure 180 watt | D62: =IF('DNSP Inputs General'!$B52='DNSP Inputs General'!$A$41,D$46,IF('DNSP Inputs General'!$B52='DNSP Inputs General'!$A$42,D$47,D$48))*'DNSP Inputs General'!$D52*'DNSP Inputs General'!K52 -> 0 | E62: =IF('DNSP Inputs General'!$B52='DNSP Inputs General'!$A$41,E$46,IF('DNSP Inputs General'!$B52='DNSP Inputs General'!$A$42,E$47,E$48))*'DNSP Inputs General'!$D52*'DNSP Inputs General'!L52 -> 0 | F62: =IF('DNSP Inputs General'!$B52='DNSP Inputs General'!$A$41,F$46,IF('DNSP Inputs General'!$B52='DNSP Inputs General'!$A$42,F$47,F$48))*'DNSP Inputs General'!$D52*'DNSP Inputs General'!M52 -> 0 | G62: =IF('DNSP Inputs General'!$B52='DNSP Inputs General'!$A$41,G$46,IF('DNSP Inputs General'!$B52='DNSP Inputs General'!$A$42,G$47,G$48))*'DNSP Inputs General'!$D52*'DNSP Inputs General'!N52 -> 0 | H62: =IF('DNSP Inputs General'!$B52='DNSP Inputs General'!$A$41,H$46,IF('DNSP Inputs General'!$B52='DNSP Inputs General'!$A$42,H$47,H$48))*'DNSP Inputs General'!$D52*'DNSP Inputs General'!O52 -> 0 | K62: =D62/'Charges Summary'!D$4 -> 0 | L62: =E62/'Charges Summary'!E$4 -> 0 | M62: =F62/'Charges Summary'!F$4 -> 0 | N62: =G62/'Charges Summary'!G$4 -> 0 | O62: =H62/'Charges Summary'!H$4 -> 0
A63: ='DNSP Inputs General'!A$53 -> Sodium high pressure 400 watt | D63: =IF('DNSP Inputs General'!$B53='DNSP Inputs General'!$A$41,D$46,IF('DNSP Inputs General'!$B53='DNSP Inputs General'!$A$42,D$47,D$48))*'DNSP Inputs General'!$D53*'DNSP Inputs General'!K53 -> 68363.60838 | E63: =IF('DNSP Inputs General'!$B53='DNSP Inputs General'!$A$41,E$46,IF('DNSP Inputs General'!$B53='DNSP Inputs General'!$A$42,E$47,E$48))*'DNSP Inputs General'!$D53*'DNSP Inputs General'!L53 -> 71157.98881 | F63: =IF('DNSP Inputs General'!$B53='DNSP Inputs General'!$A$41,F$46,IF('DNSP Inputs General'!$B53='DNSP Inputs General'!$A$42,F$47,F$48))*'DNSP Inputs General'!$D53*'DNSP Inputs General'!M53 -> 74129.2267 | G63: =IF('DNSP Inputs General'!$B53='DNSP Inputs General'!$A$41,G$46,IF('DNSP Inputs General'!$B53='DNSP Inputs General'!$A$42,G$47,G$48))*'DNSP Inputs General'!$D53*'DNSP Inputs General'!N53 -> 77205.06677 | H63: =IF('DNSP Inputs General'!$B53='DNSP Inputs General'!$A$41,H$46,IF('DNSP Inputs General'!$B53='DNSP Inputs General'!$A$42,H$47,H$48))*'DNSP Inputs General'!$D53*'DNSP Inputs General'!O53 -> 80397.29785 | K63: =D63/'Charges Summary'!D$4 -> 66696.20329 | L63: =E63/'Charges Summary'!E$4 -> 67729.19815 | M63: =F63/'Charges Summary'!F$4 -> 68836.35624 | N63: =G63/'Charges Summary'!G$4 -> 69943.98002 | O63: =H63/'Charges Summary'!H$4 -> 71059.49642
A64: ='DNSP Inputs General'!A$54 -> Incandescent 100 watt | D64: =IF('DNSP Inputs General'!$B54='DNSP Inputs General'!$A$41,D$46,IF('DNSP Inputs General'!$B54='DNSP Inputs General'!$A$42,D$47,D$48))*'DNSP Inputs General'!$D54*'DNSP Inputs General'!K54 -> 0 | E64: =IF('DNSP Inputs General'!$B54='DNSP Inputs General'!$A$41,E$46,IF('DNSP Inputs General'!$B54='DNSP Inputs General'!$A$42,E$47,E$48))*'DNSP Inputs General'!$D54*'DNSP Inputs General'!L54 -> 0 | F64: =IF('DNSP Inputs General'!$B54='DNSP Inputs General'!$A$41,F$46,IF('DNSP Inputs General'!$B54='DNSP Inputs General'!$A$42,F$47,F$48))*'DNSP Inputs General'!$D54*'DNSP Inputs General'!M54 -> 0 | G64: =IF('DNSP Inputs General'!$B54='DNSP Inputs General'!$A$41,G$46,IF('DNSP Inputs General'!$B54='DNSP Inputs General'!$A$42,G$47,G$48))*'DNSP Inputs General'!$D54*'DNSP Inputs General'!N54 -> 0 | H64: =IF('DNSP Inputs General'!$B54='DNSP Inputs General'!$A$41,H$46,IF('DNSP Inputs General'!$B54='DNSP Inputs General'!$A$42,H$47,H$48))*'DNSP Inputs General'!$D54*'DNSP Inputs General'!O54 -> 0 | K64: =D64/'Charges Summary'!D$4 -> 0 | L64: =E64/'Charges Summary'!E$4 -> 0 | M64: =F64/'Charges Summary'!F$4 -> 0 | N64: =G64/'Charges Summary'!G$4 -> 0 | O64: =H64/'Charges Summary'!H$4 -> 0
A65: ='DNSP Inputs General'!A$55 -> Incandescent 150 watt | D65: =IF('DNSP Inputs General'!$B55='DNSP Inputs General'!$A$41,D$46,IF('DNSP Inputs General'!$B55='DNSP Inputs General'!$A$42,D$47,D$48))*'DNSP Inputs General'!$D55*'DNSP Inputs General'!K55 -> 0 | E65: =IF('DNSP Inputs General'!$B55='DNSP Inputs General'!$A$41,E$46,IF('DNSP Inputs General'!$B55='DNSP Inputs General'!$A$42,E$47,E$48))*'DNSP Inputs General'!$D55*'DNSP Inputs General'!L55 -> 0 | F65: =IF('DNSP Inputs General'!$B55='DNSP Inputs General'!$A$41,F$46,IF('DNSP Inputs General'!$B55='DNSP Inputs General'!$A$42,F$47,F$48))*'DNSP Inputs General'!$D55*'DNSP Inputs General'!M55 -> 0 | G65: =IF('DNSP Inputs General'!$B55='DNSP Inputs General'!$A$41,G$46,IF('DNSP Inputs General'!$B55='DNSP Inputs General'!$A$42,G$47,G$48))*'DNSP Inputs General'!$D55*'DNSP Inputs General'!N55 -> 0 | H65: =IF('DNSP Inputs General'!$B55='DNSP Inputs General'!$A$41,H$46,IF('DNSP Inputs General'!$B55='DNSP Inputs General'!$A$42,H$47,H$48))*'DNSP Inputs General'!$D55*'DNSP Inputs General'!O55 -> 0 | K65: =D65/'Charges Summary'!D$4 -> 0 | L65: =E65/'Charges Summary'!E$4 -> 0 | M65: =F65/'Charges Summary'!F$4 -> 0 | N65: =G65/'Charges Summary'!G$4 -> 0 | O65: =H65/'Charges Summary'!H$4 -> 0
A66: ='DNSP Inputs General'!A$56 -> Metal halide 250 watt | D66: =IF('DNSP Inputs General'!$B56='DNSP Inputs General'!$A$41,D$46,IF('DNSP Inputs General'!$B56='DNSP Inputs General'!$A$42,D$47,D$48))*'DNSP Inputs General'!$D56*'DNSP Inputs General'!K56 -> 32551.46636 | E66: =IF('DNSP Inputs General'!$B56='DNSP Inputs General'!$A$41,E$46,IF('DNSP Inputs General'!$B56='DNSP Inputs General'!$A$42,E$47,E$48))*'DNSP Inputs General'!$D56*'DNSP Inputs General'!L56 -> 34441.21137 | F66: =IF('DNSP Inputs General'!$B56='DNSP Inputs General'!$A$41,F$46,IF('DNSP Inputs General'!$B56='DNSP Inputs General'!$A$42,F$47,F$48))*'DNSP Inputs General'!$D56*'DNSP Inputs General'!M56 -> 36471.48081 | G66: =IF('DNSP Inputs General'!$B56='DNSP Inputs General'!$A$41,G$46,IF('DNSP Inputs General'!$B56='DNSP Inputs General'!$A$42,G$47,G$48))*'DNSP Inputs General'!$D56*'DNSP Inputs General'!N56 -> 38611.69829 | H66: =IF('DNSP Inputs General'!$B56='DNSP Inputs General'!$A$41,H$46,IF('DNSP Inputs General'!$B56='DNSP Inputs General'!$A$42,H$47,H$48))*'DNSP Inputs General'!$D56*'DNSP Inputs General'!O56 -> 40871.79649 | K66: =D66/'Charges Summary'!D$4 -> 31757.52815 | L66: =E66/'Charges Summary'!E$4 -> 32781.64081 | M66: =F66/'Charges Summary'!F$4 -> 33867.3956 | N66: =G66/'Charges Summary'!G$4 -> 34980.29296 | O66: =H66/'Charges Summary'!H$4 -> 36124.71257
A67: ='DNSP Inputs General'!A$57 -> Metal halide 400 watt | D67: =IF('DNSP Inputs General'!$B57='DNSP Inputs General'!$A$41,D$46,IF('DNSP Inputs General'!$B57='DNSP Inputs General'!$A$42,D$47,D$48))*'DNSP Inputs General'!$D57*'DNSP Inputs General'!K57 -> 0 | E67: =IF('DNSP Inputs General'!$B57='DNSP Inputs General'!$A$41,E$46,IF('DNSP Inputs General'!$B57='DNSP Inputs General'!$A$42,E$47,E$48))*'DNSP Inputs General'!$D57*'DNSP Inputs General'!L57 -> 0 | F67: =IF('DNSP Inputs General'!$B57='DNSP Inputs General'!$A$41,F$46,IF('DNSP Inputs General'!$B57='DNSP Inputs General'!$A$42,F$47,F$48))*'DNSP Inputs General'!$D57*'DNSP Inputs General'!M57 -> 0 | G67: =IF('DNSP Inputs General'!$B57='DNSP Inputs General'!$A$41,G$46,IF('DNSP Inputs General'!$B57='DNSP Inputs General'!$A$42,G$47,G$48))*'DNSP Inputs General'!$D57*'DNSP Inputs General'!N57 -> 0 | H67: =IF('DNSP Inputs General'!$B57='DNSP Inputs General'!$A$41,H$46,IF('DNSP Inputs General'!$B57='DNSP Inputs General'!$A$42,H$47,H$48))*'DNSP Inputs General'!$D57*'DNSP Inputs General'!O57 -> 0 | K67: =D67/'Charges Summary'!D$4 -> 0 | L67: =E67/'Charges Summary'!E$4 -> 0 | M67: =F67/'Charges Summary'!F$4 -> 0 | N67: =G67/'Charges Summary'!G$4 -> 0 | O67: =H67/'Charges Summary'!H$4 -> 0
A68: ='DNSP Inputs General'!A$58 -> Metal halide 70 watt | D68: =IF('DNSP Inputs General'!$B58='DNSP Inputs General'!$A$41,D$46,IF('DNSP Inputs General'!$B58='DNSP Inputs General'!$A$42,D$47,D$48))*'DNSP Inputs General'!$D58*'DNSP Inputs General'!K58 -> 433.1630636 | E68: =IF('DNSP Inputs General'!$B58='DNSP Inputs General'!$A$41,E$46,IF('DNSP Inputs General'!$B58='DNSP Inputs General'!$A$42,E$47,E$48))*'DNSP Inputs General'!$D58*'DNSP Inputs General'!L58 -> 458.7314884 | F68: =IF('DNSP Inputs General'!$B58='DNSP Inputs General'!$A$41,F$46,IF('DNSP Inputs General'!$B58='DNSP Inputs General'!$A$42,F$47,F$48))*'DNSP Inputs General'!$D58*'DNSP Inputs General'!M58 -> 485.7871092 | G68: =IF('DNSP Inputs General'!$B58='DNSP Inputs General'!$A$41,G$46,IF('DNSP Inputs General'!$B58='DNSP Inputs General'!$A$42,G$47,G$48))*'DNSP Inputs General'!$D58*'DNSP Inputs General'!N58 -> 514.441229 | H68: =IF('DNSP Inputs General'!$B58='DNSP Inputs General'!$A$41,H$46,IF('DNSP Inputs General'!$B58='DNSP Inputs General'!$A$42,H$47,H$48))*'DNSP Inputs General'!$D58*'DNSP Inputs General'!O58 -> 544.8253488 | K68: =D68/'Charges Summary'!D$4 -> 422.5981109 | L68: =E68/'Charges Summary'!E$4 -> 436.6272346 | M68: =F68/'Charges Summary'!F$4 -> 451.1016234 | N68: =G68/'Charges Summary'!G$4 -> 466.0583631 | O68: =H68/'Charges Summary'!H$4 -> 481.5462205
A69: ='DNSP Inputs General'!A$59 -> Metal halide 150 watt | D69: =IF('DNSP Inputs General'!$B59='DNSP Inputs General'!$A$41,D$46,IF('DNSP Inputs General'!$B59='DNSP Inputs General'!$A$42,D$47,D$48))*'DNSP Inputs General'!$D59*'DNSP Inputs General'!K59 -> 4573.064014 | E69: =IF('DNSP Inputs General'!$B59='DNSP Inputs General'!$A$41,E$46,IF('DNSP Inputs General'!$B59='DNSP Inputs General'!$A$42,E$47,E$48))*'DNSP Inputs General'!$D59*'DNSP Inputs General'!L59 -> 4838.508272 | F69: =IF('DNSP Inputs General'!$B59='DNSP Inputs General'!$A$41,F$46,IF('DNSP Inputs General'!$B59='DNSP Inputs General'!$A$42,F$47,F$48))*'DNSP Inputs General'!$D59*'DNSP Inputs General'!M59 -> 5123.725389 | G69: =IF('DNSP Inputs General'!$B59='DNSP Inputs General'!$A$41,G$46,IF('DNSP Inputs General'!$B59='DNSP Inputs General'!$A$42,G$47,G$48))*'DNSP Inputs General'!$D59*'DNSP Inputs General'!N59 -> 5424.378903 | H69: =IF('DNSP Inputs General'!$B59='DNSP Inputs General'!$A$41,H$46,IF('DNSP Inputs General'!$B59='DNSP Inputs General'!$A$42,H$47,H$48))*'DNSP Inputs General'!$D59*'DNSP Inputs General'!O59 -> 5741.864039 | K69: =D69/'Charges Summary'!D$4 -> 4461.525867 | L69: =E69/'Charges Summary'!E$4 -> 4605.361829 | M69: =F69/'Charges Summary'!F$4 -> 4757.888378 | N69: =G69/'Charges Summary'!G$4 -> 4914.219565 | O69: =H69/'Charges Summary'!H$4 -> 5074.971149
A75: ='DNSP Inputs General'!A$67 -> Energy Efficient Lights
A76: ='DNSP Inputs General'!A$68 -> T5 2X14W | D76: =SUM('Charges Summary'!D83,'Charges Summary'!D8)*'DNSP Inputs General'!$D68*'DNSP Inputs General'!K68 -> 274718.5569 | E76: =SUM('Charges Summary'!E83,'Charges Summary'!E8)*'DNSP Inputs General'!$D68*'DNSP Inputs General'!L68 -> 277780.1747 | F76: =SUM('Charges Summary'!F83,'Charges Summary'!F8)*'DNSP Inputs General'!$D68*'DNSP Inputs General'!M68 -> 281614.1964 | G76: =SUM('Charges Summary'!G83,'Charges Summary'!G8)*'DNSP Inputs General'!$D68*'DNSP Inputs General'!N68 -> 285381.5069 | H76: =SUM('Charges Summary'!H83,'Charges Summary'!H8)*'DNSP Inputs General'!$D68*'DNSP Inputs General'!O68 -> 289101.0642 | K76: =D76/'Charges Summary'!D$4 -> 268018.1043 | L76: =E76/'Charges Summary'!E$4 -> 264395.1693 | M76: =F76/'Charges Summary'!F$4 -> 261506.7768 | N76: =G76/'Charges Summary'!G$4 -> 258541.5602 | O76: =H76/'Charges Summary'!H$4 -> 255523.2152
A77: ='DNSP Inputs General'!A$69 -> T5 2X24W | D77: =SUM('Charges Summary'!D$83,'Charges Summary'!D$8)*'DNSP Inputs General'!$D69*'DNSP Inputs General'!K69 -> 37505.02046 | E77: =SUM('Charges Summary'!E$83,'Charges Summary'!E$8)*'DNSP Inputs General'!$D69*'DNSP Inputs General'!L69 -> 37922.99746 | F77: =SUM('Charges Summary'!F$83,'Charges Summary'!F$8)*'DNSP Inputs General'!$D69*'DNSP Inputs General'!M69 -> 38446.42428 | G77: =SUM('Charges Summary'!G$83,'Charges Summary'!G$8)*'DNSP Inputs General'!$D69*'DNSP Inputs General'!N69 -> 38960.74359 | H77: =SUM('Charges Summary'!H$83,'Charges Summary'!H$8)*'DNSP Inputs General'!$D69*'DNSP Inputs General'!O69 -> 39468.54356 | K77: =D77/'Charges Summary'!D$4 -> 36590.26386 | L77: =E77/'Charges Summary'!E$4 -> 36095.65493 | M77: =F77/'Charges Summary'!F$4 -> 35701.32694 | N77: =G77/'Charges Summary'!G$4 -> 35296.51078 | O77: =H77/'Charges Summary'!H$4 -> 34884.44145
A78: ='DNSP Inputs General'!A$70 -> CF32 | D78: =SUM('Charges Summary'!D$83,'Charges Summary'!D$8)*'DNSP Inputs General'!$D70*'DNSP Inputs General'!K70 -> 76488.73917 | E78: =SUM('Charges Summary'!E$83,'Charges Summary'!E$8)*'DNSP Inputs General'!$D70*'DNSP Inputs General'!L70 -> 77341.17261 | F78: =SUM('Charges Summary'!F$83,'Charges Summary'!F$8)*'DNSP Inputs General'!$D70*'DNSP Inputs General'!M70 -> 78408.66322 | G78: =SUM('Charges Summary'!G$83,'Charges Summary'!G$8)*'DNSP Inputs General'!$D70*'DNSP Inputs General'!N70 -> 79457.57975 | H78: =SUM('Charges Summary'!H$83,'Charges Summary'!H$8)*'DNSP Inputs General'!$D70*'DNSP Inputs General'!O70 -> 80493.20054 | K78: =D78/'Charges Summary'!D$4 -> 74623.16016 | L78: =E78/'Charges Summary'!E$4 -> 73614.44151 | M78: =F78/'Charges Summary'!F$4 -> 72810.23848 | N78: =G78/'Charges Summary'!G$4 -> 71984.64561 | O78: =H78/'Charges Summary'!H$4 -> 71144.26042
A79: ='DNSP Inputs General'!A$71 -> CF42 | D79: =SUM('Charges Summary'!D$83,'Charges Summary'!D$8)*'DNSP Inputs General'!$D71*'DNSP Inputs General'!K71 -> 111798.8531 | E79: =SUM('Charges Summary'!E$83,'Charges Summary'!E$8)*'DNSP Inputs General'!$D71*'DNSP Inputs General'!L71 -> 113044.8023 | F79: =SUM('Charges Summary'!F$83,'Charges Summary'!F$8)*'DNSP Inputs General'!$D71*'DNSP Inputs General'!M71 -> 114605.0872 | G79: =SUM('Charges Summary'!G$83,'Charges Summary'!G$8)*'DNSP Inputs General'!$D71*'DNSP Inputs General'!N71 -> 116138.2236 | H79: =SUM('Charges Summary'!H$83,'Charges Summary'!H$8)*'DNSP Inputs General'!$D71*'DNSP Inputs General'!O71 -> 117651.9263 | K79: =D79/'Charges Summary'!D$4 -> 109072.0518 | L79: =E79/'Charges Summary'!E$4 -> 107597.6703 | M79: =F79/'Charges Summary'!F$4 -> 106422.2165 | N79: =G79/'Charges Summary'!G$4 -> 105215.4985 | O79: =H79/'Charges Summary'!H$4 -> 103987.1595
A80: ='DNSP Inputs General'!A$72 -> Category P LED 18 Watt | D80: =SUM('Charges Summary'!D101,'Charges Summary'!D8)*'DNSP Inputs General'!$D72*'DNSP Inputs General'!K72 -> 462457.9471 | E80: =SUM('Charges Summary'!E101,'Charges Summary'!E8)*'DNSP Inputs General'!$D72*'DNSP Inputs General'!L72 -> 680245.6001 | F80: =SUM('Charges Summary'!F101,'Charges Summary'!F8)*'DNSP Inputs General'!$D72*'DNSP Inputs General'!M72 -> 762454.5252 | G80: =SUM('Charges Summary'!G101,'Charges Summary'!G8)*'DNSP Inputs General'!$D72*'DNSP Inputs General'!N72 -> 851719.7428 | H80: =SUM('Charges Summary'!H101,'Charges Summary'!H8)*'DNSP Inputs General'!$D72*'DNSP Inputs General'!O72 -> 951005.9809 | K80: =D80/'Charges Summary'!D$4 -> 451178.485 | L80: =E80/'Charges Summary'!E$4 -> 647467.5551 | M80: =F80/'Charges Summary'!F$4 -> 708014.8229 | N80: =G80/'Charges Summary'!G$4 -> 771616.0502 | O80: =H80/'Charges Summary'!H$4 -> 840550.7138
A81: ='DNSP Inputs General'!A$73 -> Category P LED 47 Watt | D81: =SUM('Charges Summary'!D$101,'Charges Summary'!D$8)*'DNSP Inputs General'!$D73*'DNSP Inputs General'!K73 -> 0 | E81: =SUM('Charges Summary'!E$101,'Charges Summary'!E$8)*'DNSP Inputs General'!$D73*'DNSP Inputs General'!L73 -> 0 | F81: =SUM('Charges Summary'!F$101,'Charges Summary'!F$8)*'DNSP Inputs General'!$D73*'DNSP Inputs General'!M73 -> 0 | G81: =SUM('Charges Summary'!G$101,'Charges Summary'!G$8)*'DNSP Inputs General'!$D73*'DNSP Inputs General'!N73 -> 0 | H81: =SUM('Charges Summary'!H$101,'Charges Summary'!H$8)*'DNSP Inputs General'!$D73*'DNSP Inputs General'!O73 -> 0 | K81: =D81/'Charges Summary'!D$4 -> 0 | L81: =E81/'Charges Summary'!E$4 -> 0 | M81: =F81/'Charges Summary'!F$4 -> 0 | N81: =G81/'Charges Summary'!G$4 -> 0 | O81: =H81/'Charges Summary'!H$4 -> 0
A83: Total O & M | D83: =SUM(D51:D82) -> 5532812.455 | E83: =SUM(E51:E82) -> 5764026.275 | F83: =SUM(F51:F82) -> 6030108.436 | G83: =SUM(G51:G82) -> 6329220.451 | H83: =SUM(H51:H82) -> 6665955.648 | K83: =SUM(K51:K82) -> 5397865.81 | L83: =SUM(L51:L82) -> 5486283.188 | M83: =SUM(M51:M82) -> 5599555.141 | N83: =SUM(N51:N82) -> 5733961.348 | O83: =SUM(O51:O82) -> 5891733.48
A86: Public Lighting - Capital Charge | D86: Capital Charge - Nominal | K86: Capital Charge - Real 2015 $
D87: =D$2 -> 2016 | E87: 2017 | F87: 2018 | G87: 2019 | H87: 2020 | K87: =K$2 -> 2016 | L87: 2017 | M87: 2018 | N87: 2019 | O87: 2020
A89: Unit cost
A90: ='DNSP Inputs General'!A$41 -> Mercury vapour 80 watt | D90: =SUM('Charges Summary'!D27,'Charges Summary'!D11) -> 23.2735788 | E90: =SUM('Charges Summary'!E27,'Charges Summary'!E11) -> 25.28683399 | F90: =SUM('Charges Summary'!F27,'Charges Summary'!F11) -> 27.12182259 | G90: =SUM('Charges Summary'!G27,'Charges Summary'!G11) -> 29.19576975 | H90: =SUM('Charges Summary'!H27,'Charges Summary'!H11) -> 31.21328063
A91: ='DNSP Inputs General'!A$42 -> Sodium high pressure 150 watt | D91: =SUM('Charges Summary'!D51,'Charges Summary'!D11) -> 23.5247418 | E91: =SUM('Charges Summary'!E51,'Charges Summary'!E11) -> 25.58000773 | F91: =SUM('Charges Summary'!F51,'Charges Summary'!F11) -> 27.44705775 | G91: =SUM('Charges Summary'!G51,'Charges Summary'!G11) -> 29.5587762 | H91: =SUM('Charges Summary'!H51,'Charges Summary'!H11) -> 31.61400552
A92: ='DNSP Inputs General'!A$43 -> Sodium high pressure 250 watt | D92: =SUM('Charges Summary'!D67,'Charges Summary'!D11) -> 24.73573904 | E92: =SUM('Charges Summary'!E67,'Charges Summary'!E11) -> 26.99356227 | F92: =SUM('Charges Summary'!F67,'Charges Summary'!F11) -> 29.01519829 | G92: =SUM('Charges Summary'!G67,'Charges Summary'!G11) -> 31.30903326 | H92: =SUM('Charges Summary'!H67,'Charges Summary'!H11) -> 33.54612428
A94: ='DNSP Inputs General'!A$40 -> Existing Lights
A95: ='DNSP Inputs General'!A$41 -> Mercury vapour 80 watt | D95: =D90*'DNSP Inputs General'!K41 -> 1395062.691 | E95: =E90*'DNSP Inputs General'!L41 -> 1236378.407 | F95: =F90*'DNSP Inputs General'!M41 -> 1193488.764 | G95: =G90*'DNSP Inputs General'!N41 -> 1156277.043 | H95: =H90*'DNSP Inputs General'!O41 -> 1112561.173 | K95: =D95/'Charges Summary'!D$4 -> 1361036.772 | L95: =E95/'Charges Summary'!E$4 -> 1176802.767 | M95: =F95/'Charges Summary'!F$4 -> 1108272.963 | N95: =G95/'Charges Summary'!G$4 -> 1047529.933 | O95: =H95/'Charges Summary'!H$4 -> 983341.9633
A96: ='DNSP Inputs General'!A$42 -> Sodium high pressure 150 watt | D96: =D91*'DNSP Inputs General'!K42 -> 694348.9192 | E96: =E91*'DNSP Inputs General'!L42 -> 788726.672 | F96: =F91*'DNSP Inputs General'!M42 -> 884086.1962 | G96: =G91*'DNSP Inputs General'!N42 -> 994622.3651 | H96: =H91*'DNSP Inputs General'!O42 -> 1111281.933 | K96: =D96/'Charges Summary'!D$4 -> 677413.5797 | L96: =E96/'Charges Summary'!E$4 -> 750721.4011 | M96: =F96/'Charges Summary'!F$4 -> 820961.921 | N96: =G96/'Charges Summary'!G$4 -> 901078.773 | O96: =H96/'Charges Summary'!H$4 -> 982211.301
A97: ='DNSP Inputs General'!A$43 -> Sodium high pressure 250 watt | D97: =D92*'DNSP Inputs General'!K43 -> 335485.1495 | E97: =E92*'DNSP Inputs General'!L43 -> 378520.491 | F97: =F92*'DNSP Inputs General'!M43 -> 420664.1677 | G97: =G92*'DNSP Inputs General'!N43 -> 469310.66 | H97: =H92*'DNSP Inputs General'!O43 -> 519892.9116 | K97: =D97/'Charges Summary'!D$4 -> 327302.5849 | L97: =E97/'Charges Summary'!E$4 -> 360281.2526 | M97: =F97/'Charges Summary'!F$4 -> 390628.4983 | N97: =G97/'Charges Summary'!G$4 -> 425172.295 | O97: =H97/'Charges Summary'!H$4 -> 459509.579
A98: ='DNSP Inputs General'!A$44 -> Fluorescent 20 watt | D98: =IF('DNSP Inputs General'!$B44='DNSP Inputs General'!$A$41,D$90,IF('DNSP Inputs General'!$B44='DNSP Inputs General'!$A$42,D$91,D$92))*'DNSP Inputs General'!$D44*'DNSP Inputs General'!K44 -> 0 | E98: =IF('DNSP Inputs General'!$B44='DNSP Inputs General'!$A$41,E$90,IF('DNSP Inputs General'!$B44='DNSP Inputs General'!$A$42,E$91,E$92))*'DNSP Inputs General'!$D44*'DNSP Inputs General'!L44 -> 0 | F98: =IF('DNSP Inputs General'!$B44='DNSP Inputs General'!$A$41,F$90,IF('DNSP Inputs General'!$B44='DNSP Inputs General'!$A$42,F$91,F$92))*'DNSP Inputs General'!$D44*'DNSP Inputs General'!M44 -> 0 | G98: =IF('DNSP Inputs General'!$B44='DNSP Inputs General'!$A$41,G$90,IF('DNSP Inputs General'!$B44='DNSP Inputs General'!$A$42,G$91,G$92))*'DNSP Inputs General'!$D44*'DNSP Inputs General'!N44 -> 0 | H98: =IF('DNSP Inputs General'!$B44='DNSP Inputs General'!$A$41,H$90,IF('DNSP Inputs General'!$B44='DNSP Inputs General'!$A$42,H$91,H$92))*'DNSP Inputs General'!$D44*'DNSP Inputs General'!O44 -> 0 | K98: =D98/'Charges Summary'!D$4 -> 0 | L98: =E98/'Charges Summary'!E$4 -> 0 | M98: =F98/'Charges Summary'!F$4 -> 0 | N98: =G98/'Charges Summary'!G$4 -> 0 | O98: =H98/'Charges Summary'!H$4 -> 0
A99: ='DNSP Inputs General'!A$45 -> Fluorescent 40 watt | D99: =IF('DNSP Inputs General'!$B45='DNSP Inputs General'!$A$41,D$90,IF('DNSP Inputs General'!$B45='DNSP Inputs General'!$A$42,D$91,D$92))*'DNSP Inputs General'!$D45*'DNSP Inputs General'!K45 -> 0 | E99: =IF('DNSP Inputs General'!$B45='DNSP Inputs General'!$A$41,E$90,IF('DNSP Inputs General'!$B45='DNSP Inputs General'!$A$42,E$91,E$92))*'DNSP Inputs General'!$D45*'DNSP Inputs General'!L45 -> 0 | F99: =IF('DNSP Inputs General'!$B45='DNSP Inputs General'!$A$41,F$90,IF('DNSP Inputs General'!$B45='DNSP Inputs General'!$A$42,F$91,F$92))*'DNSP Inputs General'!$D45*'DNSP Inputs General'!M45 -> 0 | G99: =IF('DNSP Inputs General'!$B45='DNSP Inputs General'!$A$41,G$90,IF('DNSP Inputs General'!$B45='DNSP Inputs General'!$A$42,G$91,G$92))*'DNSP Inputs General'!$D45*'DNSP Inputs General'!N45 -> 0 | H99: =IF('DNSP Inputs General'!$B45='DNSP Inputs General'!$A$41,H$90,IF('DNSP Inputs General'!$B45='DNSP Inputs General'!$A$42,H$91,H$92))*'DNSP Inputs General'!$D45*'DNSP Inputs General'!O45 -> 0 | K99: =D99/'Charges Summary'!D$4 -> 0 | L99: =E99/'Charges Summary'!E$4 -> 0 | M99: =F99/'Charges Summary'!F$4 -> 0 | N99: =G99/'Charges Summary'!G$4 -> 0 | O99: =H99/'Charges Summary'!H$4 -> 0
A100: ='DNSP Inputs General'!A$46 -> Mercury vapour 50 watt | D100: =IF('DNSP Inputs General'!$B46='DNSP Inputs General'!$A$41,D$90,IF('DNSP Inputs General'!$B46='DNSP Inputs General'!$A$42,D$91,D$92))*'DNSP Inputs General'!$D46*'DNSP Inputs General'!K46 -> 6583.015367 | E100: =IF('DNSP Inputs General'!$B46='DNSP Inputs General'!$A$41,E$90,IF('DNSP Inputs General'!$B46='DNSP Inputs General'!$A$42,E$91,E$92))*'DNSP Inputs General'!$D46*'DNSP Inputs General'!L46 -> 6707.231873 | F100: =IF('DNSP Inputs General'!$B46='DNSP Inputs General'!$A$41,F$90,IF('DNSP Inputs General'!$B46='DNSP Inputs General'!$A$42,F$91,F$92))*'DNSP Inputs General'!$D46*'DNSP Inputs General'!M46 -> 6746.13299 | G100: =IF('DNSP Inputs General'!$B46='DNSP Inputs General'!$A$41,G$90,IF('DNSP Inputs General'!$B46='DNSP Inputs General'!$A$42,G$91,G$92))*'DNSP Inputs General'!$D46*'DNSP Inputs General'!N46 -> 6809.937436 | H100: =IF('DNSP Inputs General'!$B46='DNSP Inputs General'!$A$41,H$90,IF('DNSP Inputs General'!$B46='DNSP Inputs General'!$A$42,H$91,H$92))*'DNSP Inputs General'!$D46*'DNSP Inputs General'!O46 -> 6827.312369 | K100: =D100/'Charges Summary'!D$4 -> 6422.454017 | L100: =E100/'Charges Summary'!E$4 -> 6384.039855 | M100: =F100/'Charges Summary'!F$4 -> 6264.45512 | N100: =G100/'Charges Summary'!G$4 -> 6169.467211 | O100: =H100/'Charges Summary'!H$4 -> 6034.34931
A101: ='DNSP Inputs General'!A$47 -> Mercury vapour 125 watt | D101: =IF('DNSP Inputs General'!$B47='DNSP Inputs General'!$A$41,D$90,IF('DNSP Inputs General'!$B47='DNSP Inputs General'!$A$42,D$91,D$92))*'DNSP Inputs General'!$D47*'DNSP Inputs General'!K47 -> 33371.50652 | E101: =IF('DNSP Inputs General'!$B47='DNSP Inputs General'!$A$41,E$90,IF('DNSP Inputs General'!$B47='DNSP Inputs General'!$A$42,E$91,E$92))*'DNSP Inputs General'!$D47*'DNSP Inputs General'!L47 -> 37645.2634 | F101: =IF('DNSP Inputs General'!$B47='DNSP Inputs General'!$A$41,F$90,IF('DNSP Inputs General'!$B47='DNSP Inputs General'!$A$42,F$91,F$92))*'DNSP Inputs General'!$D47*'DNSP Inputs General'!M47 -> 41921.61392 | G101: =IF('DNSP Inputs General'!$B47='DNSP Inputs General'!$A$41,G$90,IF('DNSP Inputs General'!$B47='DNSP Inputs General'!$A$42,G$91,G$92))*'DNSP Inputs General'!$D47*'DNSP Inputs General'!N47 -> 46853.52749 | H101: =IF('DNSP Inputs General'!$B47='DNSP Inputs General'!$A$41,H$90,IF('DNSP Inputs General'!$B47='DNSP Inputs General'!$A$42,H$91,H$92))*'DNSP Inputs General'!$D47*'DNSP Inputs General'!O47 -> 52007.3854 | K101: =D101/'Charges Summary'!D$4 -> 32557.56734 | L101: =E101/'Charges Summary'!E$4 -> 35831.30365 | M101: =F101/'Charges Summary'!F$4 -> 38928.38599 | N101: =G101/'Charges Summary'!G$4 -> 42446.98344 | O101: =H101/'Charges Summary'!H$4 -> 45966.95057
A102: ='DNSP Inputs General'!A$48 -> Mercury vapour 250 watt | D102: =IF('DNSP Inputs General'!$B48='DNSP Inputs General'!$A$41,D$90,IF('DNSP Inputs General'!$B48='DNSP Inputs General'!$A$42,D$91,D$92))*'DNSP Inputs General'!$D48*'DNSP Inputs General'!K48 -> 4046.85072 | E102: =IF('DNSP Inputs General'!$B48='DNSP Inputs General'!$A$41,E$90,IF('DNSP Inputs General'!$B48='DNSP Inputs General'!$A$42,E$91,E$92))*'DNSP Inputs General'!$D48*'DNSP Inputs General'!L48 -> 3395.261003 | F102: =IF('DNSP Inputs General'!$B48='DNSP Inputs General'!$A$41,F$90,IF('DNSP Inputs General'!$B48='DNSP Inputs General'!$A$42,F$91,F$92))*'DNSP Inputs General'!$D48*'DNSP Inputs General'!M48 -> 2805.815936 | G102: =IF('DNSP Inputs General'!$B48='DNSP Inputs General'!$A$41,G$90,IF('DNSP Inputs General'!$B48='DNSP Inputs General'!$A$42,G$91,G$92))*'DNSP Inputs General'!$D48*'DNSP Inputs General'!N48 -> 2327.683687 | H102: =IF('DNSP Inputs General'!$B48='DNSP Inputs General'!$A$41,H$90,IF('DNSP Inputs General'!$B48='DNSP Inputs General'!$A$42,H$91,H$92))*'DNSP Inputs General'!$D48*'DNSP Inputs General'!O48 -> 1917.420326 | K102: =D102/'Charges Summary'!D$4 -> 3948.147043 | L102: =E102/'Charges Summary'!E$4 -> 3231.658301 | M102: =F102/'Charges Summary'!F$4 -> 2605.479025 | N102: =G102/'Charges Summary'!G$4 -> 2108.766537 | O102: =H102/'Charges Summary'!H$4 -> 1694.720176
A103: ='DNSP Inputs General'!A$49 -> Mercury vapour 400 watt | D103: =IF('DNSP Inputs General'!$B49='DNSP Inputs General'!$A$41,D$90,IF('DNSP Inputs General'!$B49='DNSP Inputs General'!$A$42,D$91,D$92))*'DNSP Inputs General'!$D49*'DNSP Inputs General'!K49 -> 1802.812449 | E103: =IF('DNSP Inputs General'!$B49='DNSP Inputs General'!$A$41,E$90,IF('DNSP Inputs General'!$B49='DNSP Inputs General'!$A$42,E$91,E$92))*'DNSP Inputs General'!$D49*'DNSP Inputs General'!L49 -> 1752.047579 | F103: =IF('DNSP Inputs General'!$B49='DNSP Inputs General'!$A$41,F$90,IF('DNSP Inputs General'!$B49='DNSP Inputs General'!$A$42,F$91,F$92))*'DNSP Inputs General'!$D49*'DNSP Inputs General'!M49 -> 1677.147561 | G103: =IF('DNSP Inputs General'!$B49='DNSP Inputs General'!$A$41,G$90,IF('DNSP Inputs General'!$B49='DNSP Inputs General'!$A$42,G$91,G$92))*'DNSP Inputs General'!$D49*'DNSP Inputs General'!N49 -> 1611.667421 | H103: =IF('DNSP Inputs General'!$B49='DNSP Inputs General'!$A$41,H$90,IF('DNSP Inputs General'!$B49='DNSP Inputs General'!$A$42,H$91,H$92))*'DNSP Inputs General'!$D49*'DNSP Inputs General'!O49 -> 1537.829394 | K103: =D103/'Charges Summary'!D$4 -> 1758.841413 | L103: =E103/'Charges Summary'!E$4 -> 1667.624109 | M103: =F103/'Charges Summary'!F$4 -> 1557.398237 | N103: =G103/'Charges Summary'!G$4 -> 1460.09114 | O103: =H103/'Charges Summary'!H$4 -> 1359.217104
A104: ='DNSP Inputs General'!A$50 -> Mercury vapour 700 watt | D104: =IF('DNSP Inputs General'!$B50='DNSP Inputs General'!$A$41,D$90,IF('DNSP Inputs General'!$B50='DNSP Inputs General'!$A$42,D$91,D$92))*'DNSP Inputs General'!$D50*'DNSP Inputs General'!K50 -> 0 | E104: =IF('DNSP Inputs General'!$B50='DNSP Inputs General'!$A$41,E$90,IF('DNSP Inputs General'!$B50='DNSP Inputs General'!$A$42,E$91,E$92))*'DNSP Inputs General'!$D50*'DNSP Inputs General'!L50 -> 0 | F104: =IF('DNSP Inputs General'!$B50='DNSP Inputs General'!$A$41,F$90,IF('DNSP Inputs General'!$B50='DNSP Inputs General'!$A$42,F$91,F$92))*'DNSP Inputs General'!$D50*'DNSP Inputs General'!M50 -> 0 | G104: =IF('DNSP Inputs General'!$B50='DNSP Inputs General'!$A$41,G$90,IF('DNSP Inputs General'!$B50='DNSP Inputs General'!$A$42,G$91,G$92))*'DNSP Inputs General'!$D50*'DNSP Inputs General'!N50 -> 0 | H104: =IF('DNSP Inputs General'!$B50='DNSP Inputs General'!$A$41,H$90,IF('DNSP Inputs General'!$B50='DNSP Inputs General'!$A$42,H$91,H$92))*'DNSP Inputs General'!$D50*'DNSP Inputs General'!O50 -> 0 | K104: =D104/'Charges Summary'!D$4 -> 0 | L104: =E104/'Charges Summary'!E$4 -> 0 | M104: =F104/'Charges Summary'!F$4 -> 0 | N104: =G104/'Charges Summary'!G$4 -> 0 | O104: =H104/'Charges Summary'!H$4 -> 0
A105: ='DNSP Inputs General'!A$51 -> Sodium low pressure 90 watt | D105: =IF('DNSP Inputs General'!$B51='DNSP Inputs General'!$A$41,D$90,IF('DNSP Inputs General'!$B51='DNSP Inputs General'!$A$42,D$91,D$92))*'DNSP Inputs General'!$D51*'DNSP Inputs General'!K51 -> 0 | E105: =IF('DNSP Inputs General'!$B51='DNSP Inputs General'!$A$41,E$90,IF('DNSP Inputs General'!$B51='DNSP Inputs General'!$A$42,E$91,E$92))*'DNSP Inputs General'!$D51*'DNSP Inputs General'!L51 -> 0 | F105: =IF('DNSP Inputs General'!$B51='DNSP Inputs General'!$A$41,F$90,IF('DNSP Inputs General'!$B51='DNSP Inputs General'!$A$42,F$91,F$92))*'DNSP Inputs General'!$D51*'DNSP Inputs General'!M51 -> 0 | G105: =IF('DNSP Inputs General'!$B51='DNSP Inputs General'!$A$41,G$90,IF('DNSP Inputs General'!$B51='DNSP Inputs General'!$A$42,G$91,G$92))*'DNSP Inputs General'!$D51*'DNSP Inputs General'!N51 -> 0 | H105: =IF('DNSP Inputs General'!$B51='DNSP Inputs General'!$A$41,H$90,IF('DNSP Inputs General'!$B51='DNSP Inputs General'!$A$42,H$91,H$92))*'DNSP Inputs General'!$D51*'DNSP Inputs General'!O51 -> 0 | K105: =D105/'Charges Summary'!D$4 -> 0 | L105: =E105/'Charges Summary'!E$4 -> 0 | M105: =F105/'Charges Summary'!F$4 -> 0 | N105: =G105/'Charges Summary'!G$4 -> 0 | O105: =H105/'Charges Summary'!H$4 -> 0
A106: ='DNSP Inputs General'!A$52 -> Sodium low pressure 180 watt | D106: =IF('DNSP Inputs General'!$B52='DNSP Inputs General'!$A$41,D$90,IF('DNSP Inputs General'!$B52='DNSP Inputs General'!$A$42,D$91,D$92))*'DNSP Inputs General'!$D52*'DNSP Inputs General'!K52 -> 0 | E106: =IF('DNSP Inputs General'!$B52='DNSP Inputs General'!$A$41,E$90,IF('DNSP Inputs General'!$B52='DNSP Inputs General'!$A$42,E$91,E$92))*'DNSP Inputs General'!$D52*'DNSP Inputs General'!L52 -> 0 | F106: =IF('DNSP Inputs General'!$B52='DNSP Inputs General'!$A$41,F$90,IF('DNSP Inputs General'!$B52='DNSP Inputs General'!$A$42,F$91,F$92))*'DNSP Inputs General'!$D52*'DNSP Inputs General'!M52 -> 0 | G106: =IF('DNSP Inputs General'!$B52='DNSP Inputs General'!$A$41,G$90,IF('DNSP Inputs General'!$B52='DNSP Inputs General'!$A$42,G$91,G$92))*'DNSP Inputs General'!$D52*'DNSP Inputs General'!N52 -> 0 | H106: =IF('DNSP Inputs General'!$B52='DNSP Inputs General'!$A$41,H$90,IF('DNSP Inputs General'!$B52='DNSP Inputs General'!$A$42,H$91,H$92))*'DNSP Inputs General'!$D52*'DNSP Inputs General'!O52 -> 0 | K106: =D106/'Charges Summary'!D$4 -> 0 | L106: =E106/'Charges Summary'!E$4 -> 0 | M106: =F106/'Charges Summary'!F$4 -> 0 | N106: =G106/'Charges Summary'!G$4 -> 0 | O106: =H106/'Charges Summary'!H$4 -> 0
A107: ='DNSP Inputs General'!A$53 -> Sodium high pressure 400 watt | D107: =IF('DNSP Inputs General'!$B53='DNSP Inputs General'!$A$41,D$90,IF('DNSP Inputs General'!$B53='DNSP Inputs General'!$A$42,D$91,D$92))*'DNSP Inputs General'!$D53*'DNSP Inputs General'!K53 -> 25088.87118 | E107: =IF('DNSP Inputs General'!$B53='DNSP Inputs General'!$A$41,E$90,IF('DNSP Inputs General'!$B53='DNSP Inputs General'!$A$42,E$91,E$92))*'DNSP Inputs General'!$D53*'DNSP Inputs General'!L53 -> 27473.08501 | F107: =IF('DNSP Inputs General'!$B53='DNSP Inputs General'!$A$41,F$90,IF('DNSP Inputs General'!$B53='DNSP Inputs General'!$A$42,F$91,F$92))*'DNSP Inputs General'!$D53*'DNSP Inputs General'!M53 -> 29632.19138 | G107: =IF('DNSP Inputs General'!$B53='DNSP Inputs General'!$A$41,G$90,IF('DNSP Inputs General'!$B53='DNSP Inputs General'!$A$42,G$91,G$92))*'DNSP Inputs General'!$D53*'DNSP Inputs General'!N53 -> 32084.76649 | H107: =IF('DNSP Inputs General'!$B53='DNSP Inputs General'!$A$41,H$90,IF('DNSP Inputs General'!$B53='DNSP Inputs General'!$A$42,H$91,H$92))*'DNSP Inputs General'!$D53*'DNSP Inputs General'!O53 -> 34495.51034 | K107: =D107/'Charges Summary'!D$4 -> 24476.94749 | L107: =E107/'Charges Summary'!E$4 -> 26149.27782 | M107: =F107/'Charges Summary'!F$4 -> 27516.43546 | N107: =G107/'Charges Summary'!G$4 -> 29067.21489 | O107: =H107/'Charges Summary'!H$4 -> 30489.00471
A108: ='DNSP Inputs General'!A$54 -> Incandescent 100 watt | D108: =IF('DNSP Inputs General'!$B54='DNSP Inputs General'!$A$41,D$90,IF('DNSP Inputs General'!$B54='DNSP Inputs General'!$A$42,D$91,D$92))*'DNSP Inputs General'!$D54*'DNSP Inputs General'!K54 -> 0 | E108: =IF('DNSP Inputs General'!$B54='DNSP Inputs General'!$A$41,E$90,IF('DNSP Inputs General'!$B54='DNSP Inputs General'!$A$42,E$91,E$92))*'DNSP Inputs General'!$D54*'DNSP Inputs General'!L54 -> 0 | F108: =IF('DNSP Inputs General'!$B54='DNSP Inputs General'!$A$41,F$90,IF('DNSP Inputs General'!$B54='DNSP Inputs General'!$A$42,F$91,F$92))*'DNSP Inputs General'!$D54*'DNSP Inputs General'!M54 -> 0 | G108: =IF('DNSP Inputs General'!$B54='DNSP Inputs General'!$A$41,G$90,IF('DNSP Inputs General'!$B54='DNSP Inputs General'!$A$42,G$91,G$92))*'DNSP Inputs General'!$D54*'DNSP Inputs General'!N54 -> 0 | H108: =IF('DNSP Inputs General'!$B54='DNSP Inputs General'!$A$41,H$90,IF('DNSP Inputs General'!$B54='DNSP Inputs General'!$A$42,H$91,H$92))*'DNSP Inputs General'!$D54*'DNSP Inputs General'!O54 -> 0 | K108: =D108/'Charges Summary'!D$4 -> 0 | L108: =E108/'Charges Summary'!E$4 -> 0 | M108: =F108/'Charges Summary'!F$4 -> 0 | N108: =G108/'Charges Summary'!G$4 -> 0 | O108: =H108/'Charges Summary'!H$4 -> 0
A109: ='DNSP Inputs General'!A$55 -> Incandescent 150 watt | D109: =IF('DNSP Inputs General'!$B55='DNSP Inputs General'!$A$41,D$90,IF('DNSP Inputs General'!$B55='DNSP Inputs General'!$A$42,D$91,D$92))*'DNSP Inputs General'!$D55*'DNSP Inputs General'!K55 -> 0 | E109: =IF('DNSP Inputs General'!$B55='DNSP Inputs General'!$A$41,E$90,IF('DNSP Inputs General'!$B55='DNSP Inputs General'!$A$42,E$91,E$92))*'DNSP Inputs General'!$D55*'DNSP Inputs General'!L55 -> 0 | F109: =IF('DNSP Inputs General'!$B55='DNSP Inputs General'!$A$41,F$90,IF('DNSP Inputs General'!$B55='DNSP Inputs General'!$A$42,F$91,F$92))*'DNSP Inputs General'!$D55*'DNSP Inputs General'!M55 -> 0 | G109: =IF('DNSP Inputs General'!$B55='DNSP Inputs General'!$A$41,G$90,IF('DNSP Inputs General'!$B55='DNSP Inputs General'!$A$42,G$91,G$92))*'DNSP Inputs General'!$D55*'DNSP Inputs General'!N55 -> 0 | H109: =IF('DNSP Inputs General'!$B55='DNSP Inputs General'!$A$41,H$90,IF('DNSP Inputs General'!$B55='DNSP Inputs General'!$A$42,H$91,H$92))*'DNSP Inputs General'!$D55*'DNSP Inputs General'!O55 -> 0 | K109: =D109/'Charges Summary'!D$4 -> 0 | L109: =E109/'Charges Summary'!E$4 -> 0 | M109: =F109/'Charges Summary'!F$4 -> 0 | N109: =G109/'Charges Summary'!G$4 -> 0 | O109: =H109/'Charges Summary'!H$4 -> 0
A110: ='DNSP Inputs General'!A$56 -> Metal halide 250 watt | D110: =IF('DNSP Inputs General'!$B56='DNSP Inputs General'!$A$41,D$90,IF('DNSP Inputs General'!$B56='DNSP Inputs General'!$A$42,D$91,D$92))*'DNSP Inputs General'!$D56*'DNSP Inputs General'!K56 -> 11946.11527 | E110: =IF('DNSP Inputs General'!$B56='DNSP Inputs General'!$A$41,E$90,IF('DNSP Inputs General'!$B56='DNSP Inputs General'!$A$42,E$91,E$92))*'DNSP Inputs General'!$D56*'DNSP Inputs General'!L56 -> 13297.2607 | F110: =IF('DNSP Inputs General'!$B56='DNSP Inputs General'!$A$41,F$90,IF('DNSP Inputs General'!$B56='DNSP Inputs General'!$A$42,F$91,F$92))*'DNSP Inputs General'!$D56*'DNSP Inputs General'!M56 -> 14578.99869 | G110: =IF('DNSP Inputs General'!$B56='DNSP Inputs General'!$A$41,G$90,IF('DNSP Inputs General'!$B56='DNSP Inputs General'!$A$42,G$91,G$92))*'DNSP Inputs General'!$D56*'DNSP Inputs General'!N56 -> 16046.19198 | H110: =IF('DNSP Inputs General'!$B56='DNSP Inputs General'!$A$41,H$90,IF('DNSP Inputs General'!$B56='DNSP Inputs General'!$A$42,H$91,H$92))*'DNSP Inputs General'!$D56*'DNSP Inputs General'!O56 -> 17536.57792 | K110: =D110/'Charges Summary'!D$4 -> 11654.74661 | L110: =E110/'Charges Summary'!E$4 -> 12656.52416 | M110: =F110/'Charges Summary'!F$4 -> 13538.0496 | N110: =G110/'Charges Summary'!G$4 -> 14537.05797 | O110: =H110/'Charges Summary'!H$4 -> 15499.77959
A111: ='DNSP Inputs General'!A$57 -> Metal halide 400 watt | D111: =IF('DNSP Inputs General'!$B57='DNSP Inputs General'!$A$41,D$90,IF('DNSP Inputs General'!$B57='DNSP Inputs General'!$A$42,D$91,D$92))*'DNSP Inputs General'!$D57*'DNSP Inputs General'!K57 -> 0 | E111: =IF('DNSP Inputs General'!$B57='DNSP Inputs General'!$A$41,E$90,IF('DNSP Inputs General'!$B57='DNSP Inputs General'!$A$42,E$91,E$92))*'DNSP Inputs General'!$D57*'DNSP Inputs General'!L57 -> 0 | F111: =IF('DNSP Inputs General'!$B57='DNSP Inputs General'!$A$41,F$90,IF('DNSP Inputs General'!$B57='DNSP Inputs General'!$A$42,F$91,F$92))*'DNSP Inputs General'!$D57*'DNSP Inputs General'!M57 -> 0 | G111: =IF('DNSP Inputs General'!$B57='DNSP Inputs General'!$A$41,G$90,IF('DNSP Inputs General'!$B57='DNSP Inputs General'!$A$42,G$91,G$92))*'DNSP Inputs General'!$D57*'DNSP Inputs General'!N57 -> 0 | H111: =IF('DNSP Inputs General'!$B57='DNSP Inputs General'!$A$41,H$90,IF('DNSP Inputs General'!$B57='DNSP Inputs General'!$A$42,H$91,H$92))*'DNSP Inputs General'!$D57*'DNSP Inputs General'!O57 -> 0 | K111: =D111/'Charges Summary'!D$4 -> 0 | L111: =E111/'Charges Summary'!E$4 -> 0 | M111: =F111/'Charges Summary'!F$4 -> 0 | N111: =G111/'Charges Summary'!G$4 -> 0 | O111: =H111/'Charges Summary'!H$4 -> 0
A112: ='DNSP Inputs General'!A$58 -> Metal halide 70 watt | D112: =IF('DNSP Inputs General'!$B58='DNSP Inputs General'!$A$41,D$90,IF('DNSP Inputs General'!$B58='DNSP Inputs General'!$A$42,D$91,D$92))*'DNSP Inputs General'!$D58*'DNSP Inputs General'!K58 -> 402.6142944 | E112: =IF('DNSP Inputs General'!$B58='DNSP Inputs General'!$A$41,E$90,IF('DNSP Inputs General'!$B58='DNSP Inputs General'!$A$42,E$91,E$92))*'DNSP Inputs General'!$D58*'DNSP Inputs General'!L58 -> 446.1908385 | F112: =IF('DNSP Inputs General'!$B58='DNSP Inputs General'!$A$41,F$90,IF('DNSP Inputs General'!$B58='DNSP Inputs General'!$A$42,F$91,F$92))*'DNSP Inputs General'!$D58*'DNSP Inputs General'!M58 -> 488.140941 | G112: =IF('DNSP Inputs General'!$B58='DNSP Inputs General'!$A$41,G$90,IF('DNSP Inputs General'!$B58='DNSP Inputs General'!$A$42,G$91,G$92))*'DNSP Inputs General'!$D58*'DNSP Inputs General'!N58 -> 535.9773843 | H112: =IF('DNSP Inputs General'!$B58='DNSP Inputs General'!$A$41,H$90,IF('DNSP Inputs General'!$B58='DNSP Inputs General'!$A$42,H$91,H$92))*'DNSP Inputs General'!$D58*'DNSP Inputs General'!O58 -> 584.4752477 | K112: =D112/'Charges Summary'!D$4 -> 392.7944336 | L112: =E112/'Charges Summary'!E$4 -> 424.6908635 | M112: =F112/'Charges Summary'!F$4 -> 453.2873903 | N112: =G112/'Charges Summary'!G$4 -> 485.5690569 | O112: =H112/'Charges Summary'!H$4 -> 516.5909537
A113: ='DNSP Inputs General'!A$59 -> Metal halide 150 watt | D113: =IF('DNSP Inputs General'!$B59='DNSP Inputs General'!$A$41,D$90,IF('DNSP Inputs General'!$B59='DNSP Inputs General'!$A$42,D$91,D$92))*'DNSP Inputs General'!$D59*'DNSP Inputs General'!K59 -> 1595.683236 | E113: =IF('DNSP Inputs General'!$B59='DNSP Inputs General'!$A$41,E$90,IF('DNSP Inputs General'!$B59='DNSP Inputs General'!$A$42,E$91,E$92))*'DNSP Inputs General'!$D59*'DNSP Inputs General'!L59 -> 1769.793763 | F113: =IF('DNSP Inputs General'!$B59='DNSP Inputs General'!$A$41,F$90,IF('DNSP Inputs General'!$B59='DNSP Inputs General'!$A$42,F$91,F$92))*'DNSP Inputs General'!$D59*'DNSP Inputs General'!M59 -> 1936.947978 | G113: =IF('DNSP Inputs General'!$B59='DNSP Inputs General'!$A$41,G$90,IF('DNSP Inputs General'!$B59='DNSP Inputs General'!$A$42,G$91,G$92))*'DNSP Inputs General'!$D59*'DNSP Inputs General'!N59 -> 2127.692103 | H113: =IF('DNSP Inputs General'!$B59='DNSP Inputs General'!$A$41,H$90,IF('DNSP Inputs General'!$B59='DNSP Inputs General'!$A$42,H$91,H$92))*'DNSP Inputs General'!$D59*'DNSP Inputs General'!O59 -> 2321.143704 | K113: =D113/'Charges Summary'!D$4 -> 1556.764133 | L113: =E113/'Charges Summary'!E$4 -> 1684.515182 | M113: =F113/'Charges Summary'!F$4 -> 1798.648751 | N113: =G113/'Charges Summary'!G$4 -> 1927.584032 | O113: =H113/'Charges Summary'!H$4 -> 2051.552815
A119: ='DNSP Inputs General'!A$67 -> Energy Efficient Lights
A120: ='DNSP Inputs General'!A$68 -> T5 2X14W | D120: =SUM('Charges Summary'!D85,'Charges Summary'!D11)*'DNSP Inputs General'!$D68*'DNSP Inputs General'!K68 -> 141763.7149 | E120: =SUM('Charges Summary'!E85,'Charges Summary'!E11)*'DNSP Inputs General'!$D68*'DNSP Inputs General'!L68 -> 130146.2089 | F120: =SUM('Charges Summary'!F85,'Charges Summary'!F11)*'DNSP Inputs General'!$D68*'DNSP Inputs General'!M68 -> 128338.1357 | G120: =SUM('Charges Summary'!G85,'Charges Summary'!G11)*'DNSP Inputs General'!$D68*'DNSP Inputs General'!N68 -> 126091.0256 | H120: =SUM('Charges Summary'!H85,'Charges Summary'!H11)*'DNSP Inputs General'!$D68*'DNSP Inputs General'!O68 -> 123434.6152 | K120: =D120/'Charges Summary'!D$4 -> 138306.0633 | L120: =E120/'Charges Summary'!E$4 -> 123875.0352 | M120: =F120/'Charges Summary'!F$4 -> 119174.7172 | N120: =G120/'Charges Summary'!G$4 -> 114232.2459 | O120: =H120/'Charges Summary'!H$4 -> 109098.2139
A121: ='DNSP Inputs General'!A$69 -> T5 2X24W | D121: =SUM('Charges Summary'!D$85,'Charges Summary'!D$11)*'DNSP Inputs General'!$D69*'DNSP Inputs General'!K69 -> 19353.811 | E121: =SUM('Charges Summary'!E$85,'Charges Summary'!E$11)*'DNSP Inputs General'!$D69*'DNSP Inputs General'!L69 -> 17767.77034 | F121: =SUM('Charges Summary'!F$85,'Charges Summary'!F$11)*'DNSP Inputs General'!$D69*'DNSP Inputs General'!M69 -> 17520.92927 | G121: =SUM('Charges Summary'!G$85,'Charges Summary'!G$11)*'DNSP Inputs General'!$D69*'DNSP Inputs General'!N69 -> 17214.15017 | H121: =SUM('Charges Summary'!H$85,'Charges Summary'!H$11)*'DNSP Inputs General'!$D69*'DNSP Inputs General'!O69 -> 16851.49275 | K121: =D121/'Charges Summary'!D$4 -> 18881.76683 | L121: =E121/'Charges Summary'!E$4 -> 16911.6196 | M121: =F121/'Charges Summary'!F$4 -> 16269.9246 | N121: =G121/'Charges Summary'!G$4 -> 15595.17045 | O121: =H121/'Charges Summary'!H$4 -> 14894.26412
A122: ='DNSP Inputs General'!A$70 -> CF32 | D122: =SUM('Charges Summary'!D$85,'Charges Summary'!D$11)*'DNSP Inputs General'!$D70*'DNSP Inputs General'!K70 -> 39470.67841 | E122: =SUM('Charges Summary'!E$85,'Charges Summary'!E$11)*'DNSP Inputs General'!$D70*'DNSP Inputs General'!L70 -> 36236.06478 | F122: =SUM('Charges Summary'!F$85,'Charges Summary'!F$11)*'DNSP Inputs General'!$D70*'DNSP Inputs General'!M70 -> 35732.65053 | G122: =SUM('Charges Summary'!G$85,'Charges Summary'!G$11)*'DNSP Inputs General'!$D70*'DNSP Inputs General'!N70 -> 35106.99705 | H122: =SUM('Charges Summary'!H$85,'Charges Summary'!H$11)*'DNSP Inputs General'!$D70*'DNSP Inputs General'!O70 -> 34367.38382 | K122: =D122/'Charges Summary'!D$4 -> 38507.97894 | L122: =E122/'Charges Summary'!E$4 -> 34490.00812 | M122: =F122/'Charges Summary'!F$4 -> 33181.31823 | N122: =G122/'Charges Summary'!G$4 -> 31805.20661 | O122: =H122/'Charges Summary'!H$4 -> 30375.75954
A123: ='DNSP Inputs General'!A$71 -> CF42 | D123: =SUM('Charges Summary'!D$85,'Charges Summary'!D$11)*'DNSP Inputs General'!$D71*'DNSP Inputs General'!K71 -> 57691.84624 | E123: =SUM('Charges Summary'!E$85,'Charges Summary'!E$11)*'DNSP Inputs General'!$D71*'DNSP Inputs General'!L71 -> 52964.01181 | F123: =SUM('Charges Summary'!F$85,'Charges Summary'!F$11)*'DNSP Inputs General'!$D71*'DNSP Inputs General'!M71 -> 52228.20238 | G123: =SUM('Charges Summary'!G$85,'Charges Summary'!G$11)*'DNSP Inputs General'!$D71*'DNSP Inputs General'!N71 -> 51313.72343 | H123: =SUM('Charges Summary'!H$85,'Charges Summary'!H$11)*'DNSP Inputs General'!$D71*'DNSP Inputs General'!O71 -> 50232.67657 | K123: =D123/'Charges Summary'!D$4 -> 56284.72804 | L123: =E123/'Charges Summary'!E$4 -> 50411.90892 | M123: =F123/'Charges Summary'!F$4 -> 48499.07796 | N123: =G123/'Charges Summary'!G$4 -> 46487.70083 | O123: =H123/'Charges Summary'!H$4 -> 44398.36657
A124: ='DNSP Inputs General'!A$72 -> Category P LED 18 Watt | D124: =SUM('Charges Summary'!D103,'Charges Summary'!D11)*'DNSP Inputs General'!$D72*'DNSP Inputs General'!K72 -> 522974.3677 | E124: =SUM('Charges Summary'!E103,'Charges Summary'!E11)*'DNSP Inputs General'!$D72*'DNSP Inputs General'!L72 -> 694960.2831 | F124: =SUM('Charges Summary'!F103,'Charges Summary'!F11)*'DNSP Inputs General'!$D72*'DNSP Inputs General'!M72 -> 754041.5876 | G124: =SUM('Charges Summary'!G103,'Charges Summary'!G11)*'DNSP Inputs General'!$D72*'DNSP Inputs General'!N72 -> 815329.7397 | H124: =SUM('Charges Summary'!H103,'Charges Summary'!H11)*'DNSP Inputs General'!$D72*'DNSP Inputs General'!O72 -> 878583.3652 | K124: =D124/'Charges Summary'!D$4 -> 510218.8953 | L124: =E124/'Charges Summary'!E$4 -> 661473.2023 | M124: =F124/'Charges Summary'!F$4 -> 700202.574 | N124: =G124/'Charges Summary'!G$4 -> 738648.5034 | O124: =H124/'Charges Summary'!H$4 -> 776539.6743
A125: ='DNSP Inputs General'!A$73 -> Category P LED 47 Watt | D125: =SUM('Charges Summary'!D$103,'Charges Summary'!D$11)*'DNSP Inputs General'!$D73*'DNSP Inputs General'!K73 -> 0 | E125: =SUM('Charges Summary'!E$103,'Charges Summary'!E$11)*'DNSP Inputs General'!$D73*'DNSP Inputs General'!L73 -> 0 | F125: =SUM('Charges Summary'!F$103,'Charges Summary'!F$11)*'DNSP Inputs General'!$D73*'DNSP Inputs General'!M73 -> 0 | G125: =SUM('Charges Summary'!G$103,'Charges Summary'!G$11)*'DNSP Inputs General'!$D73*'DNSP Inputs General'!N73 -> 0 | H125: =SUM('Charges Summary'!H$103,'Charges Summary'!H$11)*'DNSP Inputs General'!$D73*'DNSP Inputs General'!O73 -> 0 | K125: =D125/'Charges Summary'!D$4 -> 0 | L125: =E125/'Charges Summary'!E$4 -> 0 | M125: =F125/'Charges Summary'!F$4 -> 0 | N125: =G125/'Charges Summary'!G$4 -> 0 | O125: =H125/'Charges Summary'!H$4 -> 0
A127: Total Capital Charge | D127: =SUM(D95:D126) -> 3290988.647 | E127: =SUM(E95:E126) -> 3428186.043 | F127: =SUM(F95:F126) -> 3585887.622 | G127: =SUM(G95:G126) -> 3773663.148 | H127: =SUM(H95:H126) -> 3964433.206 | K127: =SUM(K95:K126) -> 3210720.632 | L127: =SUM(L95:L126) -> 3262996.829 | M127: =SUM(M95:M126) -> 3329853.134 | N127: =SUM(N95:N126) -> 3418752.562 | O127: =SUM(O95:O126) -> 3503981.287
A129: Check | C129: =SUM(D129:O129) -> 1.11758709e-08 | D129: =ABS(D39-SUM(D83,D127)) -> 1.862645149e-09 | E129: =ABS(E39-SUM(E83,E127)) -> 0 | F129: =ABS(F39-SUM(F83,F127)) -> 0 | G129: =ABS(G39-SUM(G83,G127)) -> 0 | H129: =ABS(H39-SUM(H83,H127)) -> 1.862645149e-09 | K129: =ABS(K39-SUM(K83,K127)) -> 3.725290298e-09 | L129: =ABS(L39-SUM(L83,L127)) -> 1.862645149e-09 | M129: =ABS(M39-SUM(M83,M127)) -> 0 | N129: =ABS(N39-SUM(N83,N127)) -> 0 | O129: =ABS(O39-SUM(O83,O127)) -> 1.862645149e-09
A131: Public Lighting - Capital Expenditure | D131: Forecast Capital Expenditure - Nominal | K131: Forecast Capital Expenditure - Real 2015 $
D132: =D$2 -> 2016 | E132: 2017 | F132: 2018 | G132: 2019 | H132: 2020 | K132: =K$2 -> 2016 | L132: 2017 | M132: 2018 | N132: 2019 | O132: 2020
A134: Total Capital Expenditure | D134: =K134*'Charges Summary'!D$4 -> 2212783.798 | E134: =L134*'Charges Summary'!E$4 -> 2130223.481 | F134: =M134*'Charges Summary'!F$4 -> 2678861.682 | G134: =N134*'Charges Summary'!G$4 -> 2773213.888 | H134: =O134*'Charges Summary'!H$4 -> 2877497.732 | K134: ='DNSP Inputs General'!K14 -> 2158813.461 | L134: ='DNSP Inputs General'!L14 -> 2027577.377 | M134: ='DNSP Inputs General'!M14 -> 2487589.379 | N134: ='DNSP Inputs General'!N14 -> 2512394.91 | O134: ='DNSP Inputs General'!O14 -> 2543288.708
A135: Check | C135: =SUM(D135:H135) -> 4.656612873e-10 | D135: =ABS(D134-D142) -> 4.656612873e-10 | E135: =ABS(E134-E142) -> 0 | F135: =ABS(F134-F142) -> 0 | G135: =ABS(G134-G142) -> 0 | H135: =ABS(H134-H142) -> 0
A138: Public Lighting - RAB | D138: RAB - Historical Cost ($)
D139: =D$2 -> 2016 | E139: 2017 | F139: 2018 | G139: 2019 | H139: 2020
A141: Opening RAB | D141: ='Total RAB'!N139 -> 26305536.32 | E141: =D144 -> 27060963.43 | F141: =E144 -> 27642572.35 | G141: 28670417.5 | H141: 29674660.32
A142: Capex | D142: ='Total RAB'!N140 -> 2212783.798 | E142: ='Total RAB'!O140 -> 2130223.481 | F142: ='Total RAB'!P140 -> 2678861.682 | G142: ='Total RAB'!Q140 -> 2773213.888 | H142: ='Total RAB'!R140 -> 2877497.732
A143: Depreciation | D143: ='Total RAB'!N141 -> 1457356.692 | E143: ='Total RAB'!O141 -> 1548614.557 | F143: ='Total RAB'!P141 -> 1651016.53 | G143: ='Total RAB'!Q141 -> 1768971.073 | H143: ='Total RAB'!R141 -> 1891352.941
A144: Closing RAB | D144: =D141+D142-D143 -> 27060963.43 | E144: =E141+E142-E143 -> 27642572.35 | F144: =F141+F142-F143 -> 28670417.5 | G144: =G141+G142-G143 -> 29674660.32 | H144: =H141+H142-H143 -> 30660805.11
A146: Average RAB | D146: =SUM(D141,D144)/2 -> 26683249.88 | E146: =SUM(E141,E144)/2 -> 27351767.89 | F146: =SUM(F141,F144)/2 -> 28156494.93 | G146: =SUM(G141,G144)/2 -> 29172538.91 | H146: =SUM(H141,H144)/2 -> 30167732.71
A148: =WACC!A$8 -> Nominal Pre Tax WACC | D148: =WACC!E$8 -> 0.06871846434 | E148: =WACC!F$8 -> 0.06871846434 | F148: =WACC!G$8 -> 0.06871846434 | G148: =WACC!H$8 -> 0.06871846434 | H148: =WACC!I$8 -> 0.06871846434
A150: Capital Charge | D150: Capital Charge - Nominal
D151: =D$2 -> 2016 | E151: 2017 | F151: 2018 | G151: 2019 | H151: 2020
A153: Depreciation | D153: =D143 -> 1457356.692 | E153: =E143 -> 1548614.557 | F153: =F143 -> 1651016.53 | G153: =G143 -> 1768971.073 | H153: =H143 -> 1891352.941
A154: Return | D154: =D148*D146 -> 1833631.955 | E154: =E148*E146 -> 1879571.487 | F154: =F148*F146 -> 1934871.093 | G154: =G148*G146 -> 2004692.075 | H154: =H148*H146 -> 2073080.265
D156: =SUM(D153:D155) -> 3290988.647 | E156: =SUM(E153:E155) -> 3428186.043 | F156: =SUM(F153:F155) -> 3585887.622 | G156: =SUM(G153:G155) -> 3773663.148 | H156: =SUM(H153:H155) -> 3964433.206
A158: Check | C158: =SUM(D158:H158) -> 9.313225746e-10 | D158: =ABS(D127-D156)*IF('DNSP Inputs General'!K77=0,0,1) -> 0 | E158: =ABS(E127-E156)*IF('DNSP Inputs General'!L77=0,0,1) -> 0 | F158: =ABS(F127-F156)*IF('DNSP Inputs General'!M77=0,0,1) -> 4.656612873e-10 | G158: =ABS(G127-G156)*IF('DNSP Inputs General'!N77=0,0,1) -> 0 | H158: =ABS(H127-H156)*IF('DNSP Inputs General'!O77=0,0,1) -> 4.656612873e-10

Sheet Charges Summary
A1: ='DNSP Inputs O & M'!$A$3 -> Powercor | D1: ='DNSP Inputs General'!K$2 -> 2016 | E1: ='DNSP Inputs General'!L$2 -> 2017 | F1: ='DNSP Inputs General'!M$2 -> 2018 | G1: ='DNSP Inputs General'!N$2 -> 2019 | H1: ='DNSP Inputs General'!O$2 -> 2020
A2: Nominal $
A4: ='Total RAB'!A20 -> CPI Index | D4: =(1+WACC!E6) -> 1.025 | E4: =D4*(1+WACC!F6) -> 1.050625 | F4: =E4*(1+WACC!G6) -> 1.076890625 | G4: =F4*(1+WACC!H6) -> 1.103812891 | H4: =G4*(1+WACC!I6) -> 1.131408213
A6: ='DNSP Inputs General'!$A$6 -> Poles and Brackets | D6: ='DNSP Inputs General'!F$2 -> 2011 | E6: ='DNSP Inputs General'!G$2 -> 2012 | F6: ='DNSP Inputs General'!H$2 -> 2013 | G6: ='DNSP Inputs General'!I$2 -> 2014 | H6: ='DNSP Inputs General'!J$2 -> 2015
A7: O & M
A8: ='O & M 2016-2020'!A$10 -> Dedicated poles - inspection | D8: ='O & M 2016-2020'!$B$10*D$4 -> 1.880998 | E8: ='O & M 2016-2020'!$Y$10*E$4 -> 1.95391035 | F8: ='O & M 2016-2020'!$AV$10*F$4 -> 2.029759702 | G8: ='O & M 2016-2020'!$BS$10*G$4 -> 2.108667437 | H8: ='O & M 2016-2020'!$CP$10*H$4 -> 2.190760033
A10: Capital Charge
A11: Depreciation and Return | D11: ='Depn & WACC Post 2004'!H$81 -> 10.35754911 | E11: ='Depn & WACC Post 2004'!H$131 -> 10.21040627 | F11: ='Depn & WACC Post 2004'!H$181 -> 10.39664015 | G11: ='Depn & WACC Post 2004'!H$231 -> 10.52820271 | H11: ='Depn & WACC Post 2004'!H$281 -> 10.60604685
A13: Total Charge | D13: =SUM(D8,D11) -> 12.23854711 | E13: =SUM(E8,E11) -> 12.16431662 | F13: =SUM(F8,F11) -> 12.42639985 | G13: =SUM(G8,G11) -> 12.63687015 | H13: =SUM(H8,H11) -> 12.79680689
A18: ='DNSP Inputs General'!$A$8 -> Existing Lights
A20: ='O & M 2016-2020'!$A$8 -> MV80 | D20: =D$1 -> 2016 | E20: =E$1 -> 2017 | F20: 2018 | G20: 2019 | H20: 2020
A22: O & M Charge
A23: ='O & M 2016-2020'!A$9 -> Bulk change & repairs | D23: ='O & M 2016-2020'!$B$9*D$4 -> 21.77525924 | E23: ='O & M 2016-2020'!$Y$9*E$4 -> 22.67038292 | F23: ='O & M 2016-2020'!$AV$9*F$4 -> 23.55267447 | G23: ='O & M 2016-2020'!$BS$9*G$4 -> 24.4768133 | H23: ='O & M 2016-2020'!$CP$9*H$4 -> 25.44614255
A24: ='O & M 2016-2020'!A$11 -> Other costs | D24: ='O & M 2016-2020'!$B$11*D$4 -> 1.383228031 | E24: ='O & M 2016-2020'!$Y$11*E$4 -> 1.37325305 | F24: ='O & M 2016-2020'!$AV$11*F$4 -> 1.408606082 | G24: ='O & M 2016-2020'!$BS$11*G$4 -> 1.437171173 | H24: ='O & M 2016-2020'!$CP$11*H$4 -> 1.458917248
D25: =SUM(D23:D24) -> 23.15848727 | E25: =SUM(E23:E24) -> 24.04363597 | F25: =SUM(F23:F24) -> 24.96128056 | G25: =SUM(G23:G24) -> 25.91398447 | H25: =SUM(H23:H24) -> 26.9050598
A26: Capital Charge
A27: Depreciation and Return | D27: ='Depn & WACC Post 2004'!H$40 -> 12.91602969 | E27: ='Depn & WACC Post 2004'!H$90 -> 15.07642772 | F27: ='Depn & WACC Post 2004'!H$140 -> 16.72518244 | G27: ='Depn & WACC Post 2004'!H$190 -> 18.66756704 | H27: ='Depn & WACC Post 2004'!H$240 -> 20.60723378
A29: Poles & Brackets Charge | D29: =D$13 -> 12.23854711 | E29: =E$13 -> 12.16431662 | F29: =F$13 -> 12.42639985 | G29: =G$13 -> 12.63687015 | H29: =H$13 -> 12.79680689
A31: Total Charge | D31: =SUM(D25,D27,D29) -> 48.31306407 | E31: =SUM(E25,E27,E29) -> 51.28438031 | F31: =SUM(F25,F27,F29) -> 54.11286285 | G31: =SUM(G25,G27,G29) -> 57.21842166 | H31: =SUM(H25,H27,H29) -> 60.30910046
A33: WDV RAB - MV 80 Luminaire
A34: RAB WDV | D34: =MAX(0,'Depn & WACC Post 2004'!$I$8) -> 72.03161916 | E34: =MAX(0,'Depn & WACC Post 2004'!I$40) -> 82.72336999 | F34: =MAX(0,'Depn & WACC Post 2004'!I$90) -> 94.02583191 | G34: =MAX(0,'Depn & WACC Post 2004'!I$140) -> 105.2406343 | H34: =MAX(0,'Depn & WACC Post 2004'!I$190) -> 116.143394
A36: Avoided Costs - MV 80 O & M
A37: Materials & labour - bulk lamp change | D37: ='O & M 2016-2020'!$G$9*D$4 -> -23.94016475 | E37: ='O & M 2016-2020'!$AD$9*E$4 -> -24.77948328 | F37: ='O & M 2016-2020'!$BA$9*F$4 -> -25.64567849 | G37: ='O & M 2016-2020'!$BX$9*G$4 -> -26.54392079 | H37: ='O & M 2016-2020'!$CU$9*H$4 -> -27.47602184
A38: Materials & Labour - repair of faults | D38: ='O & M 2016-2020'!$G$10*D$4 -> -2.72506251 | E38: ='O & M 2016-2020'!$AD$10*E$4 -> -2.873282347 | F38: ='O & M 2016-2020'!$BA$10*F$4 -> -3.009650168 | G38: ='O & M 2016-2020'!$BX$10*G$4 -> -3.154745121 | H38: ='O & M 2016-2020'!$CU$10*H$4 -> -3.309451562
D39: =SUM(D37:D38) -> -26.66522726 | E39: =SUM(E37:E38) -> -27.65276563 | F39: =SUM(F37:F38) -> -28.65532865 | G39: =SUM(G37:G38) -> -29.69866591 | H39: =SUM(H37:H38) -> -30.7854734
A44: ='O & M 2016-2020'!$A$14 -> S-HP 150 | D44: =D$1 -> 2016 | E44: =E$1 -> 2017 | F44: 2018 | G44: 2019 | H44: 2020
A46: O & M Charge
A47: ='O & M 2016-2020'!A$15 -> Patrols and repairs | D47: ='O & M 2016-2020'!$B$15*D$4 -> 64.15526407 | E47: ='O & M 2016-2020'!$Y$15*E$4 -> 66.60701853 | F47: ='O & M 2016-2020'!$AV$15*F$4 -> 69.16615857 | G47: ='O & M 2016-2020'!$BS$15*G$4 -> 71.81187024 | H47: ='O & M 2016-2020'!$CP$15*H$4 -> 74.55458085
A48: ='O & M 2016-2020'!A$17 -> Other costs | D48: ='O & M 2016-2020'!$B$17*D$4 -> 1.383228031 | E48: ='O & M 2016-2020'!$Y$17*E$4 -> 1.37325305 | F48: ='O & M 2016-2020'!$AV$17*F$4 -> 1.408606082 | G48: ='O & M 2016-2020'!$BS$17*G$4 -> 1.437171173 | H48: ='O & M 2016-2020'!$CP$17*H$4 -> 1.458917248
D49: =SUM(D47:D48) -> 65.5384921 | E49: =SUM(E47:E48) -> 67.98027158 | F49: =SUM(F47:F48) -> 70.57476466 | G49: =SUM(G47:G48) -> 73.24904141 | H49: =SUM(H47:H48) -> 76.0134981
A50: Capital Charge
A51: Depreciation and Return | D51: ='Depn & WACC Post 2004'!H$41 -> 13.16719268 | E51: ='Depn & WACC Post 2004'!H$91 -> 15.36960146 | F51: ='Depn & WACC Post 2004'!H$141 -> 17.0504176 | G51: ='Depn & WACC Post 2004'!H$191 -> 19.03057349 | H51: ='Depn & WACC Post 2004'!H$241 -> 21.00795867
A53: Poles & Brackets Charge | D53: =D$13 -> 12.23854711 | E53: =E$13 -> 12.16431662 | F53: =F$13 -> 12.42639985 | G53: =G$13 -> 12.63687015 | H53: =H$13 -> 12.79680689
A55: Total Charge | D55: =SUM(D49,D51,D53) -> 90.9442319 | E55: =SUM(E49,E51,E53) -> 95.51418966 | F55: =SUM(F49,F51,F53) -> 100.0515821 | G55: =SUM(G49,G51,G53) -> 104.916485 | H55: =SUM(H49,H51,H53) -> 109.8182636
A60: ='O & M 2016-2020'!$A$20 -> S-HP 250 | D60: =D$1 -> 2016 | E60: =E$1 -> 2017 | F60: 2018 | G60: 2019 | H60: 2020
A62: O & M Charge
A63: ='O & M 2016-2020'!A$21 -> Patrols and repairs | D63: ='O & M 2016-2020'!$B$21*D$4 -> 64.13714744 | E63: ='O & M 2016-2020'!$Y$21*E$4 -> 66.58881438 | F63: ='O & M 2016-2020'!$AV$21*F$4 -> 69.14736317 | G63: ='O & M 2016-2020'!$BS$21*G$4 -> 71.79259354 | H63: ='O & M 2016-2020'!$CP$21*H$4 -> 74.53492468
A64: ='O & M 2016-2020'!A$23 -> Other costs | D64: ='O & M 2016-2020'!$B$23*D$4 -> 1.383228031 | E64: ='O & M 2016-2020'!$Y$23*E$4 -> 1.37325305 | F64: ='O & M 2016-2020'!$AV$23*F$4 -> 1.408606082 | G64: ='O & M 2016-2020'!$BS$23*G$4 -> 1.437171173 | H64: ='O & M 2016-2020'!$CP$23*H$4 -> 1.458917248
D65: =SUM(D63:D64) -> 65.52037547 | E65: =SUM(E63:E64) -> 67.96206743 | F65: =SUM(F63:F64) -> 70.55596925 | G65: =SUM(G63:G64) -> 73.22976471 | H65: =SUM(H63:H64) -> 75.99384193
A66: Capital Charge
A67: Depreciation and Return | D67: ='Depn & WACC Post 2004'!H$42 -> 14.37818992 | E67: ='Depn & WACC Post 2004'!H$92 -> 16.78315599 | F67: ='Depn & WACC Post 2004'!H$142 -> 18.61855814 | G67: ='Depn & WACC Post 2004'!H$192 -> 20.78083055 | H67: ='Depn & WACC Post 2004'!H$242 -> 22.94007742
A69: Poles & Brackets Charge | D69: =D$13 -> 12.23854711 | E69: =E$13 -> 12.16431662 | F69: =F$13 -> 12.42639985 | G69: =G$13 -> 12.63687015 | H69: =H$13 -> 12.79680689
A71: Total Charge | D71: =SUM(D65,D67,D69) -> 92.13711251 | E71: =SUM(E65,E67,E69) -> 96.90954005 | F71: =SUM(F65,F67,F69) -> 101.6009272 | G71: =SUM(G65,G67,G69) -> 106.6474654 | H71: =SUM(H65,H67,H69) -> 111.7307262
A76: ='DNSP Inputs General'!$A$11 -> Energy Efficient Lights
A78: ='O & M 2016-2020'!$A$26 -> T5 (2 X 14W) | D78: =D$1 -> 2016 | E78: =E$1 -> 2017 | F78: 2018 | G78: 2019 | H78: 2020
A80: O & M Charge
A81: ='O & M 2016-2020'!A$27 -> Bulk change & repairs | D81: ='O & M 2016-2020'!$B$27*D$4 -> 23.02035513 | E81: ='O & M 2016-2020'!$Y$27*E$4 -> 23.79274608 | F81: ='O & M 2016-2020'!$AV$27*F$4 -> 24.61696911 | G81: ='O & M 2016-2020'!$BS$27*G$4 -> 25.46502547 | H81: ='O & M 2016-2020'!$CP$27*H$4 -> 26.33907882
A82: ='O & M 2016-2020'!A$29 -> Other costs | D82: ='O & M 2016-2020'!$B$29*D$4 -> 1.383228031 | E82: ='O & M 2016-2020'!$Y$29*E$4 -> 1.37325305 | F82: ='O & M 2016-2020'!$AV$29*F$4 -> 1.408606082 | G82: ='O & M 2016-2020'!$BS$29*G$4 -> 1.437171173 | H82: ='O & M 2016-2020'!$CP$29*H$4 -> 1.458917248
D83: =SUM(D81:D82) -> 24.40358316 | E83: =SUM(E81:E82) -> 25.16599913 | F83: =SUM(F81:F82) -> 26.02557519 | G83: =SUM(G81:G82) -> 26.90219664 | H83: =SUM(H81:H82) -> 27.79799607
A84: Capital Charge
A85: Depreciation and Return | D85: ='Depn & WACC Post 2004'!$H$69 -> 3.206150086 | E85: ='Depn & WACC Post 2004'!$H$119 -> 2.49587634 | F85: ='Depn & WACC Post 2004'!$H$169 -> 2.388828142 | G85: ='Depn & WACC Post 2004'!$H$219 -> 2.289760319 | H85: ='Depn & WACC Post 2004'!$H$269 -> 2.197955029
A87: Poles & Brackets Charge | D87: =D$13 -> 12.23854711 | E87: =E$13 -> 12.16431662 | F87: =F$13 -> 12.42639985 | G87: =G$13 -> 12.63687015 | H87: =H$13 -> 12.79680689
A89: Total Charge | D89: =SUM(D83,D85,D87) -> 39.84828036 | E89: =SUM(E83,E85,E87) -> 39.82619209 | F89: =SUM(F83,F85,F87) -> 40.84080319 | G89: =SUM(G83,G85,G87) -> 41.82882711 | H89: =SUM(H83,H85,H87) -> 42.79275799
A94: ='DNSP Inputs General'!$A$11 -> Energy Efficient Lights
A96: ='O & M 2016-2020'!A32 -> Category P LED 18 Watt | D96: =D$1 -> 2016 | E96: =E$1 -> 2017 | F96: 2018 | G96: 2019 | H96: 2020
A98: O & M Charge
A99: ='O & M 2016-2020'!A$27 -> Bulk change & repairs | D99: ='O & M 2016-2020'!$B$33*D$4 -> 9.212592147 | E99: ='O & M 2016-2020'!$Y$33*E$4 -> 9.525983822 | F99: ='O & M 2016-2020'!$AV$33*F$4 -> 9.900961599 | G99: ='O & M 2016-2020'!$BS$33*G$4 -> 10.25142443 | H99: ='O & M 2016-2020'!$CP$33*H$4 -> 10.61479543
A100: ='O & M 2016-2020'!A$29 -> Other costs | D100: ='O & M 2016-2020'!$B$35*D$4 -> 1.383228031 | E100: ='O & M 2016-2020'!$Y$35*E$4 -> 1.37325305 | F100: ='O & M 2016-2020'!$AV$35*F$4 -> 1.408606082 | G100: ='O & M 2016-2020'!$BS$35*G$4 -> 1.437171173 | H100: ='O & M 2016-2020'!$CP$35*H$4 -> 1.458917248
D101: =SUM(D99:D100) -> 10.59582018 | E101: =SUM(E99:E100) -> 10.89923687 | F101: =SUM(F99:F100) -> 11.30956768 | G101: =SUM(G99:G100) -> 11.6885956 | H101: =SUM(H99:H100) -> 12.07371267
A102: Capital Charge
A103: Depreciation and Return | D103: ='Depn & WACC Post 2004'!$H$73 -> 3.751963198 | E103: ='Depn & WACC Post 2004'!$H$123 -> 2.920772866 | F103: ='Depn & WACC Post 2004'!$H$173 -> 2.795500846 | G103: ='Depn & WACC Post 2004'!$H$223 -> 2.679567775 | H103: ='Depn & WACC Post 2004'!$H$273 -> 2.572133606
A105: Poles & Brackets Charge | D105: =D$13 -> 12.23854711 | E105: =E$13 -> 12.16431662 | F105: =F$13 -> 12.42639985 | G105: =G$13 -> 12.63687015 | H105: =H$13 -> 12.79680689
A107: Total Charge | D107: =SUM(D101,D103,D105) -> 26.58633049 | E107: =SUM(E101,E103,E105) -> 25.98432636 | F107: =SUM(F101,F103,F105) -> 26.53146838 | G107: =SUM(G101,G103,G105) -> 27.00503352 | H107: =SUM(H101,H103,H105) -> 27.44265317

Sheet O & M 2016-2020
A1: ='DNSP Inputs O & M'!$A$3 -> Powercor
A3: Public Lighting O & M Costs | B3: Year | C3: 2016 | Y3: Year | Z3: =C3+1 -> 2017 | AV3: Year | AW3: =Z3+1 -> 2018 | BS3: Year | BT3: =AW3+1 -> 2019 | CP3: Year | CQ3: =BT3+1 -> 2020
A4: ='DNSP Inputs O & M'!C5 -> Real 2015 $
A6: Summary
A8: =$A$71 -> MV80 | D8: Avoided Costs - MV 80 O & M | AA8: Avoided Costs - MV 80 O & M | AX8: Avoided Costs - MV 80 O & M | BU8: Avoided Costs - MV 80 O & M | CR8: Avoided Costs - MV 80 O & M
A9: =$A$72 -> Bulk change & repairs | B9: =G92*C40+N92*C41+U92*C42 -> 21.24415536 | D9: Materials & labour - bulk lamp change | G9: =-((G74+G83)*C40+(N74+N83)*C41+(U74+U83)*C42)*2 -> -23.35625829 | Y9: =AD92*Z40+AK92*Z41+AR92*Z42 -> 21.57799683 | AA9: Materials & labour - bulk lamp change | AD9: =-((AD74+AD83)*Z40+(AK74+AK83)*Z41+(AR74+AR83)*Z42)*2 -> -23.58546892 | AV9: =BA92*AW40+BH92*AW41+BO92*AW42 -> 21.87099964 | AX9: Materials & labour - bulk lamp change | BA9: =-((BA74+BA83)*AW40+(BH74+BH83)*AW41+(BO74+BO83)*AW42)*2 -> -23.81456194 | BS9: =BX92*BT40+CE92*BT41+CL92*BT42 -> 22.17478479 | BU9: Materials & labour - bulk lamp change | BX9: =-((BX74+BX83)*BT40+(CE74+CE83)*BT41+(CL74+CL83)*BT42)*2 -> -24.04748216 | CP9: =CU92*CQ40+DB92*CQ41+DI92*CQ42 -> 22.4906822 | CR9: Materials & labour - bulk lamp change | CU9: =-((CU74+CU83)*CQ40+(DB74+DB83)*CQ41+(DI74+DI83)*CQ42)*2 -> -24.28479971
A10: =A94 -> Dedicated poles - inspection | B10: =(G95*C40+N95*C41+U95*C42)*C44 -> 1.83512 | D10: Materials & Labour - repair of faults | G10: =-((G78+G86+G88)*C40+(N78+N86+N88)*C41+(U78+U86+U88)*C42)/2 -> -2.658597571 | Y10: =(AD95*Z40+AK95*Z41+AR95*Z42)*Z44 -> 1.85976 | AA10: Materials & Labour - repair of faults | AD10: =-((AD78+AD86+AD88)*Z40+(AK78+AK86+AK88)*Z41+(AR78+AR86+AR88)*Z42)/2 -> -2.734831502 | AV10: =(BA95*AW40+BH95*AW41+BO95*AW42)*AW44 -> 1.884833664 | AX10: Materials & Labour - repair of faults | BA10: =-((BA78+BA86+BA88)*AW40+(BH78+BH86+BH88)*AW41+(BO78+BO86+BO88)*AW42)/2 -> -2.794759373 | BS10: =(BX95*BT40+CE95*BT41+CL95*BT42)*BT44 -> 1.910348624 | BU10: Materials & Labour - repair of faults | BX10: =-((BX78+BX86+BX88)*BT40+(CE78+CE86+CE88)*BT41+(CL78+CL86+CL88)*BT42)/2 -> -2.858043376 | CP10: =(CU95*CQ40+DB95*CQ41+DI95*CQ42)*CQ44 -> 1.936312648 | CR10: Materials & Labour - repair of faults | CU10: =-((CU78+CU86+CU88)*CQ40+(DB78+DB86+DB88)*CQ41+(DI78+DI86+DI88)*CQ42)/2 -> -2.925072953
A11: Other costs | B11: =IF(C53=0,0,C51/C53) -> 1.349490762 | G11: =SUM(G9:G10) -> -26.01485586 | Y11: =IF(Z53=0,0,Z51/Z53) -> 1.307082023 | AD11: =SUM(AD9:AD10) -> -26.32030042 | AV11: =IF(AW53=0,0,AW51/AW53) -> 1.308030778 | BA11: =SUM(BA9:BA10) -> -26.60932131 | BS11: =IF(BT53=0,0,BT51/BT53) -> 1.302006151 | BX11: =SUM(BX9:BX10) -> -26.90552553 | CP11: =IF(CQ53=0,0,CQ51/CQ53) -> 1.289470265 | CU11: =SUM(CU9:CU10) -> -27.20987266
A14: =$A$112 -> S-HP 150
A15: =$A$113 -> Patrols and repairs | B15: =G129*E40+N129*E41+U129*E42 -> 62.59050153 | Y15: =AD129*AB40+AK129*AB41+AR129*AB42 -> 63.39751913 | AV15: =BA129*AY40+BH129*AY41+BO129*AY42 -> 64.22765411 | BS15: =BX129*BV40+CE129*BV41+CL129*BV42 -> 65.05801015 | CP15: =CU129*CS40+DB129*CS41+DI129*CS42 -> 65.89538594
A16: =$A$10 -> Dedicated poles - inspection | B16: =B10 -> 1.83512 | Y16: =Y10 -> 1.85976 | AV16: =AV10 -> 1.884833664 | BS16: =BS10 -> 1.910348624 | CP16: =CP10 -> 1.936312648
A17: =$A$11 -> Other costs | B17: =B11 -> 1.349490762 | Y17: =Y11 -> 1.307082023 | AV17: =AV11 -> 1.308030778 | BS17: =BS11 -> 1.302006151 | CP17: =CP11 -> 1.289470265
A20: =$A$144 -> S-HP 250
A21: =$A$145 -> Patrols and repairs | B21: =G161*G40+N161*G41+U161*G42 -> 62.57282677 | Y21: =AD161*AD40+AK161*AD41+AR161*AD42 -> 63.38019216 | AV21: =BA161*BA40+BH161*BA41+BO161*BA42 -> 64.2102007 | BS21: =BX161*BX40+CE161*BX41+CL161*BX42 -> 65.04054641 | CP21: =CU161*CU40+DB161*CU41+DI161*CU42 -> 65.87801276
A22: =$A$10 -> Dedicated poles - inspection | B22: =B10 -> 1.83512 | Y22: =Y10 -> 1.85976 | AV22: =AV10 -> 1.884833664 | BS22: =BS10 -> 1.910348624 | CP22: =CP10 -> 1.936312648
A23: =$A$11 -> Other costs | B23: =B11 -> 1.349490762 | Y23: =Y11 -> 1.307082023 | AV23: =AV11 -> 1.308030778 | BS23: =BS11 -> 1.302006151 | CP23: =CP11 -> 1.289470265
A26: =$A$178 -> T5 (2 X 14W)
A27: =$A$179 -> Bulk change & repairs | B27: =G199*I40+N199*I41+U199*I42 -> 22.45888305 | Y27: =AD199*AF40+AK199*AF41+AR199*AF42 -> 22.64627824 | AV27: =BA199*BC40+BH199*BC41+BO199*BC42 -> 22.85930302 | BS27: =BX199*BZ40+CE199*BZ41+CL199*BZ42 -> 23.07005624 | CP27: =CU199*CW40+DB199*CW41+DI199*CW42 -> 23.27990775
A28: =$A$10 -> Dedicated poles - inspection | B28: =B10 -> 1.83512 | Y28: =Y10 -> 1.85976 | AV28: =AV10 -> 1.884833664 | BS28: =BS10 -> 1.910348624 | CP28: =CP10 -> 1.936312648
A29: =$A$11 -> Other costs | B29: =B11 -> 1.349490762 | Y29: =Y11 -> 1.307082023 | AV29: =AV11 -> 1.308030778 | BS29: =BS11 -> 1.302006151 | CP29: =CP11 -> 1.289470265
A32: =$A$216 -> Category P LED 18 Watt
A33: =$A$217 -> Bulk change & repairs | B33: =G234*K40+N234*K41+U234*K42 -> 8.987894778 | Y33: =AD234*AH40+AK234*AH41+AR234*AH42 -> 9.06696854 | AV33: =BA234*BE40+BH234*BE41+BO234*BE42 -> 9.194027108 | BS33: =BX234*CB40+CE234*CB41+CL234*CB42 -> 9.287284569 | CP33: =CU234*CY40+DB234*CY41+DI234*CY42 -> 9.38193245
A34: =$A$10 -> Dedicated poles - inspection | B34: =B16 -> 1.83512 | Y34: =Y16 -> 1.85976 | AV34: =AV16 -> 1.884833664 | BS34: =BS16 -> 1.910348624 | CP34: =CP16 -> 1.936312648
A35: =$A$11 -> Other costs | B35: =B17 -> 1.349490762 | Y35: =Y17 -> 1.307082023 | AV35: =AV17 -> 1.308030778 | BS35: =BS17 -> 1.302006151 | CP35: =CP17 -> 1.289470265
A39: ='DNSP Inputs O & M'!A52 -> Location of selected public lighting assets within distributors' areas (%) | C39: =$A$71 -> MV80 | E39: =$A$112 -> S-HP 150 | G39: =$A$144 -> S-HP 250 | I39: =$A$178 -> T5 (2 X 14W) | K39: =$A$216 -> Category P LED 18 Watt | Z39: =$A$71 -> MV80 | AB39: =$A$112 -> S-HP 150 | AD39: =$A$144 -> S-HP 250 | AF39: =$A$178 -> T5 (2 X 14W) | AH39: =$A$216 -> Category P LED 18 Watt | AW39: =$A$71 -> MV80 | AY39: =$A$112 -> S-HP 150 | BA39: =$A$144 -> S-HP 250 | BC39: =$A$178 -> T5 (2 X 14W) | BE39: =$A$216 -> Category P LED 18 Watt | BT39: =$A$71 -> MV80 | BV39: =$A$112 -> S-HP 150 | BX39: =$A$144 -> S-HP 250 | BZ39: =$A$178 -> T5 (2 X 14W) | CB39: =$A$216 -> Category P LED 18 Watt | CQ39: =$A$71 -> MV80 | CS39: =$A$112 -> S-HP 150 | CU39: =$A$144 -> S-HP 250 | CW39: =$A$178 -> T5 (2 X 14W) | CY39: =$A$216 -> Category P LED 18 Watt
A40: ='DNSP Inputs O & M'!A53 -> Urban | C40: ='DNSP Inputs O & M'!$D$53 -> 0.7537060972 | E40: ='DNSP Inputs O & M'!$D$85 -> 0.7849450786 | G40: ='DNSP Inputs O & M'!$D$117 -> 0.7724111283 | I40: ='DNSP Inputs O & M'!$D$177 -> 0.7798005229 | K40: ='DNSP Inputs O & M'!$D$212 -> 0.284894599 | Z40: ='DNSP Inputs O & M'!$E$53 -> 0.7537060972 | AB40: ='DNSP Inputs O & M'!$E$85 -> 0.7849450786 | AD40: ='DNSP Inputs O & M'!$E$117 -> 0.7724111283 | AF40: ='DNSP Inputs O & M'!$E$177 -> 0.7798005229 | AH40: ='DNSP Inputs O & M'!$E$212 -> 0.284894599 | AW40: ='DNSP Inputs O & M'!$F$53 -> 0.7537060972 | AY40: ='DNSP Inputs O & M'!$F$85 -> 0.7849450786 | BA40: ='DNSP Inputs O & M'!$F$117 -> 0.7724111283 | BC40: ='DNSP Inputs O & M'!$F$177 -> 0.7798005229 | BE40: ='DNSP Inputs O & M'!$F$212 -> 0.284894599 | BT40: ='DNSP Inputs O & M'!$G$53 -> 0.7537060972 | BV40: ='DNSP Inputs O & M'!$G$85 -> 0.7849450786 | BX40: ='DNSP Inputs O & M'!$G$117 -> 0.7724111283 | BZ40: ='DNSP Inputs O & M'!$G$177 -> 0.7798005229 | CB40: ='DNSP Inputs O & M'!$G$212 -> 0.284894599 | CQ40: ='DNSP Inputs O & M'!$H$53 -> 0.7537060972 | CS40: ='DNSP Inputs O & M'!$H$85 -> 0.7849450786 | CU40: ='DNSP Inputs O & M'!$H$117 -> 0.7724111283 | CW40: ='DNSP Inputs O & M'!$H$177 -> 0.7798005229 | CY40: ='DNSP Inputs O & M'!$H$212 -> 0.284894599
A41: ='DNSP Inputs O & M'!A54 -> Rural | C41: ='DNSP Inputs O & M'!$D$54 -> 0.1885136274 | E41: ='DNSP Inputs O & M'!$D$86 -> 0.185117381 | G41: ='DNSP Inputs O & M'!$D$118 -> 0.2045595054 | I41: ='DNSP Inputs O & M'!$D$178 -> 0.2198121429 | K41: ='DNSP Inputs O & M'!$D$213 -> 0.6372707996 | Z41: ='DNSP Inputs O & M'!$E$54 -> 0.1885136274 | AB41: ='DNSP Inputs O & M'!$E$86 -> 0.185117381 | AD41: ='DNSP Inputs O & M'!$E$118 -> 0.2045595054 | AF41: ='DNSP Inputs O & M'!$E$178 -> 0.2198121429 | AH41: ='DNSP Inputs O & M'!$E$213 -> 0.6372707996 | AW41: ='DNSP Inputs O & M'!$F$54 -> 0.1885136274 | AY41: ='DNSP Inputs O & M'!$F$86 -> 0.185117381 | BA41: ='DNSP Inputs O & M'!$F$118 -> 0.2045595054 | BC41: ='DNSP Inputs O & M'!$F$178 -> 0.2198121429 | BE41: ='DNSP Inputs O & M'!$F$213 -> 0.6372707996 | BT41: ='DNSP Inputs O & M'!$G$54 -> 0.1885136274 | BV41: ='DNSP Inputs O & M'!$G$86 -> 0.185117381 | BX41: ='DNSP Inputs O & M'!$G$118 -> 0.2045595054 | BZ41: ='DNSP Inputs O & M'!$G$178 -> 0.2198121429 | CB41: ='DNSP Inputs O & M'!$G$213 -> 0.6372707996 | CQ41: ='DNSP Inputs O & M'!$H$54 -> 0.1885136274 | CS41: ='DNSP Inputs O & M'!$H$86 -> 0.185117381 | CU41: ='DNSP Inputs O & M'!$H$118 -> 0.2045595054 | CW41: ='DNSP Inputs O & M'!$H$178 -> 0.2198121429 | CY41: ='DNSP Inputs O & M'!$H$213 -> 0.6372707996
A42: ='DNSP Inputs O & M'!A55 -> Remote | C42: ='DNSP Inputs O & M'!$D$55 -> 0.05778027536 | E42: ='DNSP Inputs O & M'!$D$87 -> 0.02993754038 | G42: ='DNSP Inputs O & M'!$D$119 -> 0.02302936631 | I42: ='DNSP Inputs O & M'!$D$179 -> 0.0003873341726 | K42: ='DNSP Inputs O & M'!$D$214 -> 0.07783460147 | Z42: ='DNSP Inputs O & M'!$E$55 -> 0.05778027536 | AB42: ='DNSP Inputs O & M'!$E$87 -> 0.02993754038 | AD42: ='DNSP Inputs O & M'!$E$119 -> 0.02302936631 | AF42: ='DNSP Inputs O & M'!$E$179 -> 0.0003873341726 | AH42: ='DNSP Inputs O & M'!$E$214 -> 0.07783460147 | AW42: ='DNSP Inputs O & M'!$F$55 -> 0.05778027536 | AY42: ='DNSP Inputs O & M'!$F$87 -> 0.02993754038 | BA42: ='DNSP Inputs O & M'!$F$119 -> 0.02302936631 | BC42: ='DNSP Inputs O & M'!$F$179 -> 0.0003873341726 | BE42: ='DNSP Inputs O & M'!$F$214 -> 0.07783460147 | BT42: ='DNSP Inputs O & M'!$G$55 -> 0.05778027536 | BV42: ='DNSP Inputs O & M'!$G$87 -> 0.02993754038 | BX42: ='DNSP Inputs O & M'!$G$119 -> 0.02302936631 | BZ42: ='DNSP Inputs O & M'!$G$179 -> 0.0003873341726 | CB42: ='DNSP Inputs O & M'!$G$214 -> 0.07783460147 | CQ42: ='DNSP Inputs O & M'!$H$55 -> 0.05778027536 | CS42: ='DNSP Inputs O & M'!$H$87 -> 0.02993754038 | CU42: ='DNSP Inputs O & M'!$H$119 -> 0.02302936631 | CW42: ='DNSP Inputs O & M'!$H$179 -> 0.0003873341726 | CY42: ='DNSP Inputs O & M'!$H$214 -> 0.07783460147
A44: ='DNSP Inputs O & M'!A128 -> Proportion of lights on dedicated poles | C44: ='DNSP Inputs O & M'!$D$128 -> 0.504 | Z44: ='DNSP Inputs O & M'!$E$128 -> 0.504 | AW44: ='DNSP Inputs O & M'!$F$128 -> 0.504 | BT44: ='DNSP Inputs O & M'!$G$128 -> 0.504 | CQ44: ='DNSP Inputs O & M'!$H$128 -> 0.504
A46: ='DNSP Inputs O & M'!A132 -> Other direct costs
A47: ='DNSP Inputs O & M'!$A$133 -> Call centre | C47: ='DNSP Inputs O & M'!$D$136 -> 71396.39661 | Z47: ='DNSP Inputs O & M'!$E$136 -> 72598.97853 | AW47: ='DNSP Inputs O & M'!$F$136 -> 73821.81641 | BT47: ='DNSP Inputs O & M'!$G$136 -> 75065.25146 | CQ47: ='DNSP Inputs O & M'!$H$136 -> 76329.63059
A48: ='DNSP Inputs O & M'!$A$138 -> GIS and other | C48: ='DNSP Inputs O & M'!$D$138 -> 113442.5434 | Z48: ='DNSP Inputs O & M'!$E$138 -> 113442.5434 | AW48: ='DNSP Inputs O & M'!$F$138 -> 113442.5434 | BT48: ='DNSP Inputs O & M'!$G$138 -> 113442.5434 | CQ48: ='DNSP Inputs O & M'!$H$138 -> 113442.5434
A49: ='DNSP Inputs O & M'!A139 -> Complaints handling | C49: ='DNSP Inputs O & M'!$D$139 -> 34032.76303 | Z49: ='DNSP Inputs O & M'!$E$139 -> 34032.76303 | AW49: ='DNSP Inputs O & M'!$F$139 -> 34032.76303 | BT49: ='DNSP Inputs O & M'!$G$139 -> 34032.76303 | CQ49: ='DNSP Inputs O & M'!$H$139 -> 34032.76303
A50: ='DNSP Inputs O & M'!A140 -> Accounts Manager | C50: ='DNSP Inputs O & M'!$D$140 -> 0 | Z50: ='DNSP Inputs O & M'!$E$140 -> 0 | AW50: ='DNSP Inputs O & M'!$F$140 -> 0 | BT50: ='DNSP Inputs O & M'!$G$140 -> 0 | CQ50: ='DNSP Inputs O & M'!$H$140 -> 0
C51: =SUM(C47:C50) -> 218871.7031 | Z51: =SUM(Z47:Z50) -> 220074.285 | AW51: =SUM(AW47:AW50) -> 221297.1229 | BT51: =SUM(BT47:BT50) -> 222540.5579 | CQ51: =SUM(CQ47:CQ50) -> 223804.9371
A53: ='DNSP Inputs General'!A77 -> Total Number of Lights | C53: ='DNSP Inputs General'!$K$77 -> 162188.3671 | Z53: ='DNSP Inputs General'!$L$77 -> 168370.677 | AW53: ='DNSP Inputs General'!$M$77 -> 169183.4218 | BT53: ='DNSP Inputs General'!$N$77 -> 170921.28 | CQ53: ='DNSP Inputs General'!$O$77 -> 173563.4727
A59: Mercury Vapour 80 Watt Standard Light Type - Cost build-up
A61: Additional assumptions
A62: Proportion of lamps that will fail before bulk change | D62: ='DNSP Inputs O & M'!$D$27 -> 0.1554544767 | AA62: ='DNSP Inputs O & M'!$E$27 -> 0.1554544767 | AX62: ='DNSP Inputs O & M'!$F$27 -> 0.1554544767 | BU62: ='DNSP Inputs O & M'!$G$27 -> 0.1554544767 | CR62: ='DNSP Inputs O & M'!$H$27 -> 0.1554544767
A63: Proportion of lamps that will fail before bulk change (per year) | D63: =D62/'DNSP Inputs O & M'!$D$25 -> 0.03886361918 | AA63: =AA62/'DNSP Inputs O & M'!$E$25 -> 0.03886361918 | AX63: =AX62/'DNSP Inputs O & M'!$F$25 -> 0.03886361918 | BU63: =BU62/'DNSP Inputs O & M'!$G$25 -> 0.03886361918 | CR63: =CR62/'DNSP Inputs O & M'!$H$25 -> 0.03886361918
A64: Overheads are applied to material and labour components
A65: All costs and charges are exclusive of GST
B67: Urban | I67: Rural | P67: Remote | Y67: Urban | AF67: Rural | AM67: Remote | AV67: Urban | BC67: Rural | BJ67: Remote | BS67: Urban | BZ67: Rural | CG67: Remote | CP67: Urban | CW67: Rural | DD67: Remote
B69: Unit rate | C69: Number | D69: Hours | E69: Cost | F69: Annualised | G69: Annualised | I69: Unit rate | J69: Number | K69: Hours | L69: Cost | M69: Annualised | N69: Annualised | P69: Unit rate | Q69: Number | R69: Hours | S69: Cost | T69: Annualised | U69: Annualised | Y69: Unit rate | Z69: Number | AA69: Hours | AB69: Cost | AC69: Annualised | AD69: Annualised | AF69: Unit rate | AG69: Number | AH69: Hours | AI69: Cost | AJ69: Annualised | AK69: Annualised | AM69: Unit rate | AN69: Number | AO69: Hours | AP69: Cost | AQ69: Annualised | AR69: Annualised | AV69: Unit rate | AW69: Number | AX69: Hours | AY69: Cost | AZ69: Annualised | BA69: Annualised | BC69: Unit rate | BD69: Number | BE69: Hours | BF69: Cost | BG69: Annualised | BH69: Annualised | BJ69: Unit rate | BK69: Number | BL69: Hours | BM69: Cost | BN69: Annualised | BO69: Annualised | BS69: Unit rate | BT69: Number | BU69: Hours | BV69: Cost | BW69: Annualised | BX69: Annualised | BZ69: Unit rate | CA69: Number | CB69: Hours | CC69: Cost | CD69: Annualised | CE69: Annualised | CG69: Unit rate | CH69: Number | CI69: Hours | CJ69: Cost | CK69: Annualised | CL69: Annualised | CP69: Unit rate | CQ69: Number | CR69: Hours | CS69: Cost | CT69: Annualised | CU69: Annualised | CW69: Unit rate | CX69: Number | CY69: Hours | CZ69: Cost | DA69: Annualised | DB69: Annualised | DD69: Unit rate | DE69: Number | DF69: Hours | DG69: Cost | DH69: Annualised | DI69: Annualised
F70: cost | G70: unit cost | M70: cost | N70: unit cost | T70: cost | U70: unit cost | AC70: cost | AD70: unit cost | AJ70: cost | AK70: unit cost | AQ70: cost | AR70: unit cost | AZ70: cost | BA70: unit cost | BG70: cost | BH70: unit cost | BN70: cost | BO70: unit cost | BW70: cost | BX70: unit cost | CD70: cost | CE70: unit cost | CK70: cost | CL70: unit cost | CT70: cost | CU70: unit cost | DA70: cost | DB70: unit cost | DH70: cost | DI70: unit cost
A71: MV80
A72: Bulk change & repairs
A73: Materials - bulk lamp change
A74: Lamp | B74: ='DNSP Inputs O & M'!$D$28 -> 5.711379906 | C74: ='DNSP Inputs O & M'!$D$34 -> 86.4 | E74: =B74*C74 -> 493.4632239 | F74: =E74/'DNSP Inputs O & M'!$D$25*0.8 -> 98.69264477 | G74: =(F74+F75+F76)/C74 -> 4.274474206 | I74: ='DNSP Inputs O & M'!$D$28*(1+'DNSP Inputs O & M'!$D$11) -> 5.996948901 | J74: ='DNSP Inputs O & M'!$D$35 -> 72 | L74: =I74*J74 -> 431.7803209 | M74: =L74/'DNSP Inputs O & M'!$D$25*0.8 -> 86.35606418 | N74: =(M74+M75+M76)/J74 -> 4.488197917 | P74: ='DNSP Inputs O & M'!$D$28*(1+'DNSP Inputs O & M'!$D$11) -> 5.996948901 | Q74: ='DNSP Inputs O & M'!$D$36 -> 60 | S74: =P74*Q74 -> 359.8169341 | T74: =S74/'DNSP Inputs O & M'!$D$25*0.8 -> 71.96338681 | U74: =(T74+T75+T76)/Q74 -> 4.488197917 | Y74: ='DNSP Inputs O & M'!$E$28 -> 5.711379906 | Z74: ='DNSP Inputs O & M'!$E$34 -> 86.4 | AB74: =Y74*Z74 -> 493.4632239 | AC74: =AB74/'DNSP Inputs O & M'!$E$25*0.8 -> 98.69264477 | AD74: =(AC74+AC75+AC76)/Z74 -> 4.274474206 | AF74: ='DNSP Inputs O & M'!$E$28*(1+'DNSP Inputs O & M'!$E$11) -> 5.996948901 | AG74: ='DNSP Inputs O & M'!$E$35 -> 72 | AI74: =AF74*AG74 -> 431.7803209 | AJ74: =AI74/'DNSP Inputs O & M'!$E$25*0.8 -> 86.35606418 | AK74: =(AJ74+AJ75+AJ76)/AG74 -> 4.488197917 | AM74: ='DNSP Inputs O & M'!$E$28*(1+'DNSP Inputs O & M'!$E$11) -> 5.996948901 | AN74: ='DNSP Inputs O & M'!$E$36 -> 60 | AP74: =AM74*AN74 -> 359.8169341 | AQ74: =AP74/'DNSP Inputs O & M'!$E$25*0.8 -> 71.96338681 | AR74: =(AQ74+AQ75+AQ76)/AN74 -> 4.488197917 | AV74: ='DNSP Inputs O & M'!$F$28 -> 5.711379906 | AW74: ='DNSP Inputs O & M'!$F$34 -> 86.4 | AY74: =AV74*AW74 -> 493.4632239 | AZ74: =AY74/'DNSP Inputs O & M'!$F$25*0.8 -> 98.69264477 | BA74: =(AZ74+AZ75+AZ76)/AW74 -> 4.274474206 | BC74: ='DNSP Inputs O & M'!$F$28*(1+'DNSP Inputs O & M'!$F$11) -> 5.996948901 | BD74: ='DNSP Inputs O & M'!$F$35 -> 72 | BF74: =BC74*BD74 -> 431.7803209 | BG74: =BF74/'DNSP Inputs O & M'!$F$25*0.8 -> 86.35606418 | BH74: =(BG74+BG75+BG76)/BD74 -> 4.488197917 | BJ74: ='DNSP Inputs O & M'!$F$28*(1+'DNSP Inputs O & M'!$F$11) -> 5.996948901 | BK74: ='DNSP Inputs O & M'!$F$36 -> 60 | BM74: =BJ74*BK74 -> 359.8169341 | BN74: =BM74/'DNSP Inputs O & M'!$F$25*0.8 -> 71.96338681 | BO74: =(BN74+BN75+BN76)/BK74 -> 4.488197917 | BS74: ='DNSP Inputs O & M'!$G$28 -> 5.711379906 | BT74: ='DNSP Inputs O & M'!$G$34 -> 86.4 | BV74: =BS74*BT74 -> 493.4632239 | BW74: =BV74/'DNSP Inputs O & M'!$G$25*0.8 -> 98.69264477 | BX74: =(BW74+BW75+BW76)/BT74 -> 4.274474206 | BZ74: ='DNSP Inputs O & M'!$G$28*(1+'DNSP Inputs O & M'!$G$11) -> 5.996948901 | CA74: ='DNSP Inputs O & M'!$G$35 -> 72 | CC74: =BZ74*CA74 -> 431.7803209 | CD74: =CC74/'DNSP Inputs O & M'!$G$25*0.8 -> 86.35606418 | CE74: =(CD74+CD75+CD76)/CA74 -> 4.488197917 | CG74: ='DNSP Inputs O & M'!$G$28*(1+'DNSP Inputs O & M'!$G$11) -> 5.996948901 | CH74: ='DNSP Inputs O & M'!$G$36 -> 60 | CJ74: =CG74*CH74 -> 359.8169341 | CK74: =CJ74/'DNSP Inputs O & M'!$G$25*0.8 -> 71.96338681 | CL74: =(CK74+CK75+CK76)/CH74 -> 4.488197917 | CP74: ='DNSP Inputs O & M'!$H$28 -> 5.711379906 | CQ74: ='DNSP Inputs O & M'!$H$34 -> 86.4 | CS74: =CP74*CQ74 -> 493.4632239 | CT74: =CS74/'DNSP Inputs O & M'!$H$25*0.8 -> 98.69264477 | CU74: =(CT74+CT75+CT76)/CQ74 -> 4.274474206 | CW74: ='DNSP Inputs O & M'!$H$28*(1+'DNSP Inputs O & M'!$H$11) -> 5.996948901 | CX74: ='DNSP Inputs O & M'!$H$35 -> 72 | CZ74: =CW74*CX74 -> 431.7803209 | DA74: =CZ74/'DNSP Inputs O & M'!$H$25*0.8 -> 86.35606418 | DB74: =(DA74+DA75+DA76)/CX74 -> 4.488197917 | DD74: ='DNSP Inputs O & M'!$H$28*(1+'DNSP Inputs O & M'!$H$11) -> 5.996948901 | DE74: ='DNSP Inputs O & M'!$H$36 -> 60 | DG74: =DD74*DE74 -> 359.8169341 | DH74: =DG74/'DNSP Inputs O & M'!$H$25*0.8 -> 71.96338681 | DI74: =(DH74+DH75+DH76)/DE74 -> 4.488197917
A75: PE cell | B75: ='DNSP Inputs O & M'!$D$29 -> 23.05797796 | C75: =C74*'DNSP Inputs O & M'!$D$25/'DNSP Inputs O & M'!$D$26 -> 43.2 | E75: =B75*C75 -> 996.1046477 | F75: =E75/'DNSP Inputs O & M'!$D$25 -> 249.0261619 | I75: ='DNSP Inputs O & M'!$D$29*(1+'DNSP Inputs O & M'!$D$11) -> 24.21087685 | J75: =J74*'DNSP Inputs O & M'!$D$25/'DNSP Inputs O & M'!$D$26 -> 36 | L75: =I75*J75 -> 871.5915668 | M75: =L75/'DNSP Inputs O & M'!$D$25 -> 217.8978917 | P75: ='DNSP Inputs O & M'!$D$29*(1+'DNSP Inputs O & M'!$D$11) -> 24.21087685 | Q75: =Q74*'DNSP Inputs O & M'!$D$25/'DNSP Inputs O & M'!$D$26 -> 30 | S75: =P75*Q75 -> 726.3263056 | T75: =S75/'DNSP Inputs O & M'!$D$25 -> 181.5815764 | Y75: ='DNSP Inputs O & M'!$E$29 -> 23.05797796 | Z75: =Z74*'DNSP Inputs O & M'!$E$25/'DNSP Inputs O & M'!$E$26 -> 43.2 | AB75: =Y75*Z75 -> 996.1046477 | AC75: =AB75/'DNSP Inputs O & M'!$E$25 -> 249.0261619 | AF75: ='DNSP Inputs O & M'!$E$29*(1+'DNSP Inputs O & M'!$E$11) -> 24.21087685 | AG75: =AG74*'DNSP Inputs O & M'!$E$25/'DNSP Inputs O & M'!$E$26 -> 36 | AI75: =AF75*AG75 -> 871.5915668 | AJ75: =AI75/'DNSP Inputs O & M'!$E$25 -> 217.8978917 | AM75: ='DNSP Inputs O & M'!$E$29*(1+'DNSP Inputs O & M'!$E$11) -> 24.21087685 | AN75: =AN74*'DNSP Inputs O & M'!$E$25/'DNSP Inputs O & M'!$E$26 -> 30 | AP75: =AM75*AN75 -> 726.3263056 | AQ75: =AP75/'DNSP Inputs O & M'!$E$25 -> 181.5815764 | AV75: ='DNSP Inputs O & M'!$F$29 -> 23.05797796 | AW75: =AW74*'DNSP Inputs O & M'!$F$25/'DNSP Inputs O & M'!$F$26 -> 43.2 | AY75: =AV75*AW75 -> 996.1046477 | AZ75: =AY75/'DNSP Inputs O & M'!$F$25 -> 249.0261619 | BC75: ='DNSP Inputs O & M'!$F$29*(1+'DNSP Inputs O & M'!$F$11) -> 24.21087685 | BD75: =BD74*'DNSP Inputs O & M'!$F$25/'DNSP Inputs O & M'!$F$26 -> 36 | BF75: =BC75*BD75 -> 871.5915668 | BG75: =BF75/'DNSP Inputs O & M'!$F$25 -> 217.8978917 | BJ75: ='DNSP Inputs O & M'!$F$29*(1+'DNSP Inputs O & M'!$F$11) -> 24.21087685 | BK75: =BK74*'DNSP Inputs O & M'!$F$25/'DNSP Inputs O & M'!$F$26 -> 30 | BM75: =BJ75*BK75 -> 726.3263056 | BN75: =BM75/'DNSP Inputs O & M'!$F$25 -> 181.5815764 | BS75: ='DNSP Inputs O & M'!$G$29 -> 23.05797796 | BT75: =BT74*'DNSP Inputs O & M'!$G$25/'DNSP Inputs O & M'!$G$26 -> 43.2 | BV75: =BS75*BT75 -> 996.1046477 | BW75: =BV75/'DNSP Inputs O & M'!$G$25 -> 249.0261619 | BZ75: ='DNSP Inputs O & M'!$G$29*(1+'DNSP Inputs O & M'!$G$11) -> 24.21087685 | CA75: =CA74*'DNSP Inputs O & M'!$G$25/'DNSP Inputs O & M'!$G$26 -> 36 | CC75: =BZ75*CA75 -> 871.5915668 | CD75: =CC75/'DNSP Inputs O & M'!$G$25 -> 217.8978917 | CG75: ='DNSP Inputs O & M'!$G$29*(1+'DNSP Inputs O & M'!$G$11) -> 24.21087685 | CH75: =CH74*'DNSP Inputs O & M'!$G$25/'DNSP Inputs O & M'!$G$26 -> 30 | CJ75: =CG75*CH75 -> 726.3263056 | CK75: =CJ75/'DNSP Inputs O & M'!$G$25 -> 181.5815764 | CP75: ='DNSP Inputs O & M'!$H$29 -> 23.05797796 | CQ75: =CQ74*'DNSP Inputs O & M'!$H$25/'DNSP Inputs O & M'!$H$26 -> 43.2 | CS75: =CP75*CQ75 -> 996.1046477 | CT75: =CS75/'DNSP Inputs O & M'!$H$25 -> 249.0261619 | CW75: ='DNSP Inputs O & M'!$H$29*(1+'DNSP Inputs O & M'!$H$11) -> 24.21087685 | CX75: =CX74*'DNSP Inputs O & M'!$H$25/'DNSP Inputs O & M'!$H$26 -> 36 | CZ75: =CW75*CX75 -> 871.5915668 | DA75: =CZ75/'DNSP Inputs O & M'!$H$25 -> 217.8978917 | DD75: ='DNSP Inputs O & M'!$H$29*(1+'DNSP Inputs O & M'!$H$11) -> 24.21087685 | DE75: =DE74*'DNSP Inputs O & M'!$H$25/'DNSP Inputs O & M'!$H$26 -> 30 | DG75: =DD75*DE75 -> 726.3263056 | DH75: =DG75/'DNSP Inputs O & M'!$H$25 -> 181.5815764
A76: Miscellaneous | B76: ='DNSP Inputs O & M'!$D$31 -> 1.249754903 | C76: ='DNSP Inputs O & M'!$D$34 -> 86.4 | E76: =B76*C76 -> 107.9788236 | F76: =E76/'DNSP Inputs O & M'!$D$25*0.8 -> 21.59576472 | I76: ='DNSP Inputs O & M'!$D$31*(1+'DNSP Inputs O & M'!$D$11) -> 1.312242648 | J76: ='DNSP Inputs O & M'!$D$35 -> 72 | L76: =I76*J76 -> 94.48147065 | M76: =L76/'DNSP Inputs O & M'!$D$25*0.8 -> 18.89629413 | P76: ='DNSP Inputs O & M'!$D$31*(1+'DNSP Inputs O & M'!$D$11) -> 1.312242648 | Q76: ='DNSP Inputs O & M'!$D$36 -> 60 | S76: =P76*Q76 -> 78.73455888 | T76: =S76/'DNSP Inputs O & M'!$D$25*0.8 -> 15.74691178 | Y76: ='DNSP Inputs O & M'!$E$31 -> 1.249754903 | Z76: ='DNSP Inputs O & M'!$E$34 -> 86.4 | AB76: =Y76*Z76 -> 107.9788236 | AC76: =AB76/'DNSP Inputs O & M'!$E$25*0.8 -> 21.59576472 | AF76: ='DNSP Inputs O & M'!$E$31*(1+'DNSP Inputs O & M'!$E$11) -> 1.312242648 | AG76: ='DNSP Inputs O & M'!$E$35 -> 72 | AI76: =AF76*AG76 -> 94.48147065 | AJ76: =AI76/'DNSP Inputs O & M'!$E$25*0.8 -> 18.89629413 | AM76: ='DNSP Inputs O & M'!$E$31*(1+'DNSP Inputs O & M'!$E$11) -> 1.312242648 | AN76: ='DNSP Inputs O & M'!$E$36 -> 60 | AP76: =AM76*AN76 -> 78.73455888 | AQ76: =AP76/'DNSP Inputs O & M'!$E$25*0.8 -> 15.74691178 | AV76: ='DNSP Inputs O & M'!$F$31 -> 1.249754903 | AW76: ='DNSP Inputs O & M'!$F$34 -> 86.4 | AY76: =AV76*AW76 -> 107.9788236 | AZ76: =AY76/'DNSP Inputs O & M'!$F$25*0.8 -> 21.59576472 | BC76: ='DNSP Inputs O & M'!$F$31*(1+'DNSP Inputs O & M'!$F$11) -> 1.312242648 | BD76: ='DNSP Inputs O & M'!$F$35 -> 72 | BF76: =BC76*BD76 -> 94.48147065 | BG76: =BF76/'DNSP Inputs O & M'!$F$25*0.8 -> 18.89629413 | BJ76: ='DNSP Inputs O & M'!$F$31*(1+'DNSP Inputs O & M'!$F$11) -> 1.312242648 | BK76: ='DNSP Inputs O & M'!$F$36 -> 60 | BM76: =BJ76*BK76 -> 78.73455888 | BN76: =BM76/'DNSP Inputs O & M'!$F$25*0.8 -> 15.74691178 | BS76: ='DNSP Inputs O & M'!$G$31 -> 1.249754903 | BT76: ='DNSP Inputs O & M'!$G$34 -> 86.4 | BV76: =BS76*BT76 -> 107.9788236 | BW76: =BV76/'DNSP Inputs O & M'!$G$25*0.8 -> 21.59576472 | BZ76: ='DNSP Inputs O & M'!$G$31*(1+'DNSP Inputs O & M'!$G$11) -> 1.312242648 | CA76: ='DNSP Inputs O & M'!$G$35 -> 72 | CC76: =BZ76*CA76 -> 94.48147065 | CD76: =CC76/'DNSP Inputs O & M'!$G$25*0.8 -> 18.89629413 | CG76: ='DNSP Inputs O & M'!$G$31*(1+'DNSP Inputs O & M'!$G$11) -> 1.312242648 | CH76: ='DNSP Inputs O & M'!$G$36 -> 60 | CJ76: =CG76*CH76 -> 78.73455888 | CK76: =CJ76/'DNSP Inputs O & M'!$G$25*0.8 -> 15.74691178 | CP76: ='DNSP Inputs O & M'!$H$31 -> 1.249754903 | CQ76: ='DNSP Inputs O & M'!$H$34 -> 86.4 | CS76: =CP76*CQ76 -> 107.9788236 | CT76: =CS76/'DNSP Inputs O & M'!$H$25*0.8 -> 21.59576472 | CW76: ='DNSP Inputs O & M'!$H$31*(1+'DNSP Inputs O & M'!$H$11) -> 1.312242648 | CX76: ='DNSP Inputs O & M'!$H$35 -> 72 | CZ76: =CW76*CX76 -> 94.48147065 | DA76: =CZ76/'DNSP Inputs O & M'!$H$25*0.8 -> 18.89629413 | DD76: ='DNSP Inputs O & M'!$H$31*(1+'DNSP Inputs O & M'!$H$11) -> 1.312242648 | DE76: ='DNSP Inputs O & M'!$H$36 -> 60 | DG76: =DD76*DE76 -> 78.73455888 | DH76: =DG76/'DNSP Inputs O & M'!$H$25*0.8 -> 15.74691178
A77: Materials - repair of faults
A78: Lamp | B78: ='DNSP Inputs O & M'!$D$28 -> 5.711379906 | C78: ='DNSP Inputs O & M'!$D$37*'DNSP Inputs O & M'!$D$40 -> 17.28 | E78: =B78*C78 -> 98.69264477 | F78: =(E78+E79+E80+E81)/'DNSP Inputs O & M'!$D$37 -> 45.9278678 | G78: =F78*D63 -> 1.784923164 | I78: ='DNSP Inputs O & M'!$D$28*(1+'DNSP Inputs O & M'!$D$11) -> 5.996948901 | J78: ='DNSP Inputs O & M'!$D$38*'DNSP Inputs O & M'!$D$40 -> 14.4 | L78: =I78*J78 -> 86.35606418 | M78: =(L78+L79+L80+L81)/'DNSP Inputs O & M'!$D$38 -> 48.22426119 | N78: =M78*$D$63 -> 1.874169322 | P78: ='DNSP Inputs O & M'!$D$28*(1+'DNSP Inputs O & M'!$D$11) -> 5.996948901 | Q78: ='DNSP Inputs O & M'!$D$39*'DNSP Inputs O & M'!$D$40 -> 11.52 | S78: =P78*Q78 -> 69.08485134 | T78: =(S78+S79+S80+S81)/'DNSP Inputs O & M'!$D$39 -> 48.22426119 | U78: =T78*D63 -> 1.874169322 | Y78: ='DNSP Inputs O & M'!$E$28 -> 5.711379906 | Z78: ='DNSP Inputs O & M'!$E$37*'DNSP Inputs O & M'!$E$40 -> 17.28 | AB78: =Y78*Z78 -> 98.69264477 | AC78: =(AB78+AB79+AB80+AB81)/'DNSP Inputs O & M'!$E$37 -> 45.9278678 | AD78: =AC78*AA63 -> 1.784923164 | AF78: ='DNSP Inputs O & M'!$E$28*(1+'DNSP Inputs O & M'!$E$11) -> 5.996948901 | AG78: ='DNSP Inputs O & M'!$E$38*'DNSP Inputs O & M'!$E$40 -> 14.4 | AI78: =AF78*AG78 -> 86.35606418 | AJ78: =(AI78+AI79+AI80+AI81)/'DNSP Inputs O & M'!$E$38 -> 48.22426119 | AK78: =AJ78*$AA$63 -> 1.874169322 | AM78: ='DNSP Inputs O & M'!$E$28*(1+'DNSP Inputs O & M'!$E$11) -> 5.996948901 | AN78: ='DNSP Inputs O & M'!$E$39*'DNSP Inputs O & M'!$E$40 -> 11.52 | AP78: =AM78*AN78 -> 69.08485134 | AQ78: =(AP78+AP79+AP80+AP81)/'DNSP Inputs O & M'!$E$39 -> 48.22426119 | AR78: =AQ78*AA63 -> 1.874169322 | AV78: ='DNSP Inputs O & M'!$F$28 -> 5.711379906 | AW78: ='DNSP Inputs O & M'!$F$37*'DNSP Inputs O & M'!$F$40 -> 17.28 | AY78: =AV78*AW78 -> 98.69264477 | AZ78: =(AY78+AY79+AY80+AY81)/'DNSP Inputs O & M'!$F$37 -> 45.9278678 | BA78: =AZ78*AX63 -> 1.784923164 | BC78: ='DNSP Inputs O & M'!$F$28*(1+'DNSP Inputs O & M'!$F$11) -> 5.996948901 | BD78: ='DNSP Inputs O & M'!$F$38*'DNSP Inputs O & M'!$F$40 -> 14.4 | BF78: =BC78*BD78 -> 86.35606418 | BG78: =(BF78+BF79+BF80+BF81)/'DNSP Inputs O & M'!$F$38 -> 48.22426119 | BH78: =BG78*$AX$63 -> 1.874169322 | BJ78: ='DNSP Inputs O & M'!$F$28*(1+'DNSP Inputs O & M'!$F$11) -> 5.996948901 | BK78: ='DNSP Inputs O & M'!$F$39*'DNSP Inputs O & M'!$F$40 -> 11.52 | BM78: =BJ78*BK78 -> 69.08485134 | BN78: =(BM78+BM79+BM80+BM81)/'DNSP Inputs O & M'!$F$39 -> 48.22426119 | BO78: =BN78*AX63 -> 1.874169322 | BS78: ='DNSP Inputs O & M'!$G$28 -> 5.711379906 | BT78: ='DNSP Inputs O & M'!$G$37*'DNSP Inputs O & M'!$G$40 -> 17.28 | BV78: =BS78*BT78 -> 98.69264477 | BW78: =(BV78+BV79+BV80+BV81)/'DNSP Inputs O & M'!$G$37 -> 45.9278678 | BX78: =BW78*BU63 -> 1.784923164 | BZ78: ='DNSP Inputs O & M'!$G$28*(1+'DNSP Inputs O & M'!$G$11) -> 5.996948901 | CA78: ='DNSP Inputs O & M'!$G$38*'DNSP Inputs O & M'!$G$40 -> 14.4 | CC78: =BZ78*CA78 -> 86.35606418 | CD78: =(CC78+CC79+CC80+CC81)/'DNSP Inputs O & M'!$G$38 -> 48.22426119 | CE78: =CD78*$BU$63 -> 1.874169322 | CG78: ='DNSP Inputs O & M'!$G$28*(1+'DNSP Inputs O & M'!$G$11) -> 5.996948901 | CH78: ='DNSP Inputs O & M'!$G$39*'DNSP Inputs O & M'!$G$40 -> 11.52 | CJ78: =CG78*CH78 -> 69.08485134 | CK78: =(CJ78+CJ79+CJ80+CJ81)/'DNSP Inputs O & M'!$G$39 -> 48.22426119 | CL78: =CK78*BU63 -> 1.874169322 | CP78: ='DNSP Inputs O & M'!$H$28 -> 5.711379906 | CQ78: ='DNSP Inputs O & M'!$H$37*'DNSP Inputs O & M'!$H$40 -> 17.28 | CS78: =CP78*CQ78 -> 98.69264477 | CT78: =(CS78+CS79+CS80+CS81)/'DNSP Inputs O & M'!$H$37 -> 45.9278678 | CU78: =CT78*CR63 -> 1.784923164 | CW78: ='DNSP Inputs O & M'!$H$28*(1+'DNSP Inputs O & M'!$H$11) -> 5.996948901 | CX78: ='DNSP Inputs O & M'!$H$38*'DNSP Inputs O & M'!$H$40 -> 14.4 | CZ78: =CW78*CX78 -> 86.35606418 | DA78: =(CZ78+CZ79+CZ80+CZ81)/'DNSP Inputs O & M'!$H$38 -> 48.22426119 | DB78: =DA78*$CR$63 -> 1.874169322 | DD78: ='DNSP Inputs O & M'!$H$28*(1+'DNSP Inputs O & M'!$H$11) -> 5.996948901 | DE78: ='DNSP Inputs O & M'!$H$39*'DNSP Inputs O & M'!$H$40 -> 11.52 | DG78: =DD78*DE78 -> 69.08485134 | DH78: =(DG78+DG79+DG80+DG81)/'DNSP Inputs O & M'!$H$39 -> 48.22426119 | DI78: =DH78*CR63 -> 1.874169322
A79: PE cell | B79: ='DNSP Inputs O & M'!$D$29 -> 23.05797796 | C79: ='DNSP Inputs O & M'!$D$37*'DNSP Inputs O & M'!$D$41 -> 14.4 | E79: =B79*C79 -> 332.0348826 | I79: ='DNSP Inputs O & M'!$D$29*(1+'DNSP Inputs O & M'!$D$11) -> 24.21087685 | J79: ='DNSP Inputs O & M'!$D$38*'DNSP Inputs O & M'!$D$41 -> 12 | L79: =I79*J79 -> 290.5305223 | P79: ='DNSP Inputs O & M'!$D$29*(1+'DNSP Inputs O & M'!$D$11) -> 24.21087685 | Q79: ='DNSP Inputs O & M'!$D$39*'DNSP Inputs O & M'!$D$41 -> 9.6 | S79: =P79*Q79 -> 232.4244178 | Y79: ='DNSP Inputs O & M'!$E$29 -> 23.05797796 | Z79: ='DNSP Inputs O & M'!$E$37*'DNSP Inputs O & M'!$E$41 -> 14.4 | AB79: =Y79*Z79 -> 332.0348826 | AF79: ='DNSP Inputs O & M'!$E$29*(1+'DNSP Inputs O & M'!$E$11) -> 24.21087685 | AG79: ='DNSP Inputs O & M'!$E$38*'DNSP Inputs O & M'!$E$41 -> 12 | AI79: =AF79*AG79 -> 290.5305223 | AM79: ='DNSP Inputs O & M'!$E$29*(1+'DNSP Inputs O & M'!$E$11) -> 24.21087685 | AN79: ='DNSP Inputs O & M'!$E$39*'DNSP Inputs O & M'!$E$41 -> 9.6 | AP79: =AM79*AN79 -> 232.4244178 | AV79: ='DNSP Inputs O & M'!$F$29 -> 23.05797796 | AW79: ='DNSP Inputs O & M'!$F$37*'DNSP Inputs O & M'!$F$41 -> 14.4 | AY79: =AV79*AW79 -> 332.0348826 | BC79: ='DNSP Inputs O & M'!$F$29*(1+'DNSP Inputs O & M'!$F$11) -> 24.21087685 | BD79: ='DNSP Inputs O & M'!$F$38*'DNSP Inputs O & M'!$F$41 -> 12 | BF79: =BC79*BD79 -> 290.5305223 | BJ79: ='DNSP Inputs O & M'!$F$29*(1+'DNSP Inputs O & M'!$F$11) -> 24.21087685 | BK79: ='DNSP Inputs O & M'!$F$39*'DNSP Inputs O & M'!$F$41 -> 9.6 | BM79: =BJ79*BK79 -> 232.4244178 | BS79: ='DNSP Inputs O & M'!$G$29 -> 23.05797796 | BT79: ='DNSP Inputs O & M'!$G$37*'DNSP Inputs O & M'!$G$41 -> 14.4 | BV79: =BS79*BT79 -> 332.0348826 | BZ79: ='DNSP Inputs O & M'!$G$29*(1+'DNSP Inputs O & M'!$G$11) -> 24.21087685 | CA79: ='DNSP Inputs O & M'!$G$38*'DNSP Inputs O & M'!$G$41 -> 12 | CC79: =BZ79*CA79 -> 290.5305223 | CG79: ='DNSP Inputs O & M'!$G$29*(1+'DNSP Inputs O & M'!$G$11) -> 24.21087685 | CH79: ='DNSP Inputs O & M'!$G$39*'DNSP Inputs O & M'!$G$41 -> 9.6 | CJ79: =CG79*CH79 -> 232.4244178 | CP79: ='DNSP Inputs O & M'!$H$29 -> 23.05797796 | CQ79: ='DNSP Inputs O & M'!$H$37*'DNSP Inputs O & M'!$H$41 -> 14.4 | CS79: =CP79*CQ79 -> 332.0348826 | CW79: ='DNSP Inputs O & M'!$H$29*(1+'DNSP Inputs O & M'!$H$11) -> 24.21087685 | CX79: ='DNSP Inputs O & M'!$H$38*'DNSP Inputs O & M'!$H$41 -> 12 | CZ79: =CW79*CX79 -> 290.5305223 | DD79: ='DNSP Inputs O & M'!$H$29*(1+'DNSP Inputs O & M'!$H$11) -> 24.21087685 | DE79: ='DNSP Inputs O & M'!$H$39*'DNSP Inputs O & M'!$H$41 -> 9.6 | DG79: =DD79*DE79 -> 232.4244178
A80: Luminaire | B80: ='DNSP Inputs O & M'!$D$30 -> 198.1486398 | C80: ='DNSP Inputs O & M'!$D$37*'DNSP Inputs O & M'!$D$42 -> 4.32 | E80: =B80*C80 -> 856.0021241 | I80: ='DNSP Inputs O & M'!$D$30*(1+'DNSP Inputs O & M'!$D$11) -> 208.0560718 | J80: ='DNSP Inputs O & M'!$D$38*'DNSP Inputs O & M'!$D$42 -> 3.6 | L80: =I80*J80 -> 749.0018586 | P80: ='DNSP Inputs O & M'!$D$30*(1+'DNSP Inputs O & M'!$D$11) -> 208.0560718 | Q80: ='DNSP Inputs O & M'!$D$39*'DNSP Inputs O & M'!$D$42 -> 2.88 | S80: =P80*Q80 -> 599.2014869 | Y80: ='DNSP Inputs O & M'!$E$30 -> 198.1486398 | Z80: ='DNSP Inputs O & M'!$E$37*'DNSP Inputs O & M'!$E$42 -> 4.32 | AB80: =Y80*Z80 -> 856.0021241 | AF80: ='DNSP Inputs O & M'!$E$30*(1+'DNSP Inputs O & M'!$E$11) -> 208.0560718 | AG80: ='DNSP Inputs O & M'!$E$38*'DNSP Inputs O & M'!$E$42 -> 3.6 | AI80: =AF80*AG80 -> 749.0018586 | AM80: ='DNSP Inputs O & M'!$E$30*(1+'DNSP Inputs O & M'!$E$11) -> 208.0560718 | AN80: ='DNSP Inputs O & M'!$E$39*'DNSP Inputs O & M'!$E$42 -> 2.88 | AP80: =AM80*AN80 -> 599.2014869 | AV80: ='DNSP Inputs O & M'!$F$30 -> 198.1486398 | AW80: ='DNSP Inputs O & M'!$F$37*'DNSP Inputs O & M'!$F$42 -> 4.32 | AY80: =AV80*AW80 -> 856.0021241 | BC80: ='DNSP Inputs O & M'!$F$30*(1+'DNSP Inputs O & M'!$F$11) -> 208.0560718 | BD80: ='DNSP Inputs O & M'!$F$38*'DNSP Inputs O & M'!$F$42 -> 3.6 | BF80: =BC80*BD80 -> 749.0018586 | BJ80: ='DNSP Inputs O & M'!$F$30*(1+'DNSP Inputs O & M'!$F$11) -> 208.0560718 | BK80: ='DNSP Inputs O & M'!$F$39*'DNSP Inputs O & M'!$F$42 -> 2.88 | BM80: =BJ80*BK80 -> 599.2014869 | BS80: ='DNSP Inputs O & M'!$G$30 -> 198.1486398 | BT80: ='DNSP Inputs O & M'!$G$37*'DNSP Inputs O & M'!$G$42 -> 4.32 | BV80: =BS80*BT80 -> 856.0021241 | BZ80: ='DNSP Inputs O & M'!$G$30*(1+'DNSP Inputs O & M'!$G$11) -> 208.0560718 | CA80: ='DNSP Inputs O & M'!$G$38*'DNSP Inputs O & M'!$G$42 -> 3.6 | CC80: =BZ80*CA80 -> 749.0018586 | CG80: ='DNSP Inputs O & M'!$G$30*(1+'DNSP Inputs O & M'!$G$11) -> 208.0560718 | CH80: ='DNSP Inputs O & M'!$G$39*'DNSP Inputs O & M'!$G$42 -> 2.88 | CJ80: =CG80*CH80 -> 599.2014869 | CP80: ='DNSP Inputs O & M'!$H$30 -> 198.1486398 | CQ80: ='DNSP Inputs O & M'!$H$37*'DNSP Inputs O & M'!$H$42 -> 4.32 | CS80: =CP80*CQ80 -> 856.0021241 | CW80: ='DNSP Inputs O & M'!$H$30*(1+'DNSP Inputs O & M'!$H$11) -> 208.0560718 | CX80: ='DNSP Inputs O & M'!$H$38*'DNSP Inputs O & M'!$H$42 -> 3.6 | CZ80: =CW80*CX80 -> 749.0018586 | DD80: ='DNSP Inputs O & M'!$H$30*(1+'DNSP Inputs O & M'!$H$11) -> 208.0560718 | DE80: ='DNSP Inputs O & M'!$H$39*'DNSP Inputs O & M'!$H$42 -> 2.88 | DG80: =DD80*DE80 -> 599.2014869
A81: Miscellaneous | B81: ='DNSP Inputs O & M'!$D$32 -> 12.49754903 | C81: ='DNSP Inputs O & M'!$D$37*'DNSP Inputs O & M'!$D$43 -> 2.88 | E81: =B81*C81 -> 35.9929412 | I81: ='DNSP Inputs O & M'!$D$32*(1+'DNSP Inputs O & M'!$D$11) -> 13.12242648 | J81: ='DNSP Inputs O & M'!$D$38*'DNSP Inputs O & M'!$D$43 -> 2.4 | L81: =I81*J81 -> 31.49382355 | P81: ='DNSP Inputs O & M'!$D$32*(1+'DNSP Inputs O & M'!$D$11) -> 13.12242648 | Q81: ='DNSP Inputs O & M'!$D$39*'DNSP Inputs O & M'!$D$43 -> 1.92 | S81: =P81*Q81 -> 25.19505884 | Y81: ='DNSP Inputs O & M'!$E$32 -> 12.49754903 | Z81: ='DNSP Inputs O & M'!$E$37*'DNSP Inputs O & M'!$E$43 -> 2.88 | AB81: =Y81*Z81 -> 35.9929412 | AF81: ='DNSP Inputs O & M'!$E$32*(1+'DNSP Inputs O & M'!$E$11) -> 13.12242648 | AG81: ='DNSP Inputs O & M'!$E$38*'DNSP Inputs O & M'!$E$43 -> 2.4 | AI81: =AF81*AG81 -> 31.49382355 | AM81: ='DNSP Inputs O & M'!$E$32*(1+'DNSP Inputs O & M'!$E$11) -> 13.12242648 | AN81: ='DNSP Inputs O & M'!$E$39*'DNSP Inputs O & M'!$E$43 -> 1.92 | AP81: =AM81*AN81 -> 25.19505884 | AV81: ='DNSP Inputs O & M'!$F$32 -> 12.49754903 | AW81: ='DNSP Inputs O & M'!$F$37*'DNSP Inputs O & M'!$F$43 -> 2.88 | AY81: =AV81*AW81 -> 35.9929412 | BC81: ='DNSP Inputs O & M'!$F$32*(1+'DNSP Inputs O & M'!$F$11) -> 13.12242648 | BD81: ='DNSP Inputs O & M'!$F$38*'DNSP Inputs O & M'!$F$43 -> 2.4 | BF81: =BC81*BD81 -> 31.49382355 | BJ81: ='DNSP Inputs O & M'!$F$32*(1+'DNSP Inputs O & M'!$F$11) -> 13.12242648 | BK81: ='DNSP Inputs O & M'!$F$39*'DNSP Inputs O & M'!$F$43 -> 1.92 | BM81: =BJ81*BK81 -> 25.19505884 | BS81: ='DNSP Inputs O & M'!$G$32 -> 12.49754903 | BT81: ='DNSP Inputs O & M'!$G$37*'DNSP Inputs O & M'!$G$43 -> 2.88 | BV81: =BS81*BT81 -> 35.9929412 | BZ81: ='DNSP Inputs O & M'!$G$32*(1+'DNSP Inputs O & M'!$G$11) -> 13.12242648 | CA81: ='DNSP Inputs O & M'!$G$38*'DNSP Inputs O & M'!$G$43 -> 2.4 | CC81: =BZ81*CA81 -> 31.49382355 | CG81: ='DNSP Inputs O & M'!$G$32*(1+'DNSP Inputs O & M'!$G$11) -> 13.12242648 | CH81: ='DNSP Inputs O & M'!$G$39*'DNSP Inputs O & M'!$G$43 -> 1.92 | CJ81: =CG81*CH81 -> 25.19505884 | CP81: ='DNSP Inputs O & M'!$H$32 -> 12.49754903 | CQ81: ='DNSP Inputs O & M'!$H$37*'DNSP Inputs O & M'!$H$43 -> 2.88 | CS81: =CP81*CQ81 -> 35.9929412 | CW81: ='DNSP Inputs O & M'!$H$32*(1+'DNSP Inputs O & M'!$H$11) -> 13.12242648 | CX81: ='DNSP Inputs O & M'!$H$38*'DNSP Inputs O & M'!$H$43 -> 2.4 | CZ81: =CW81*CX81 -> 31.49382355 | DD81: ='DNSP Inputs O & M'!$H$32*(1+'DNSP Inputs O & M'!$H$11) -> 13.12242648 | DE81: ='DNSP Inputs O & M'!$H$39*'DNSP Inputs O & M'!$H$43 -> 1.92 | DG81: =DD81*DE81 -> 25.19505884
A82: Labour - bulk lamp change
A83: Crew costs | B83: ='DNSP Inputs O & M'!$D$12 -> 100 | C83: ='DNSP Inputs O & M'!$D$33 -> 2 | D83: ='DNSP Inputs O & M'!$D$17 -> 8 | E83: =B83*C83*D83 -> 1600 | F83: =E83/'DNSP Inputs O & M'!$D$25*(C74+C75)/C74*0.8 -> 480 | G83: =(F83+F84)/C74 -> 6.816111111 | I83: ='DNSP Inputs O & M'!$D$12 -> 100 | J83: ='DNSP Inputs O & M'!$D$33 -> 2 | K83: ='DNSP Inputs O & M'!$D$17 -> 8 | L83: =I83*J83*K83 -> 1600 | M83: =L83/'DNSP Inputs O & M'!$D$25*(J74+J75)/J74*0.8 -> 480 | N83: =(M83+M84)/J$74 -> 8.585115184 | P83: ='DNSP Inputs O & M'!$D$12 -> 100 | Q83: ='DNSP Inputs O & M'!$D$33 -> 2 | R83: ='DNSP Inputs O & M'!$D$17 -> 8 | S83: =P83*Q83*R83 -> 1600 | T83: =S83/'DNSP Inputs O & M'!$D$25*(Q74+Q75)/Q74*0.8 -> 480 | U83: =(T83+T84)/Q74 -> 10.30213822 | Y83: ='DNSP Inputs O & M'!$E$12 -> 101.76 | Z83: ='DNSP Inputs O & M'!$E$33 -> 2 | AA83: ='DNSP Inputs O & M'!$E$17 -> 8 | AB83: =Y83*Z83*AA83 -> 1628.16 | AC83: =AB83/'DNSP Inputs O & M'!$E$25*(Z74+Z75)/Z74*0.8 -> 488.448 | AD83: =(AC83+AC84)/Z74 -> 6.913888889 | AF83: ='DNSP Inputs O & M'!$E$12 -> 101.76 | AG83: ='DNSP Inputs O & M'!$E$33 -> 2 | AH83: ='DNSP Inputs O & M'!$E$17 -> 8 | AI83: =AF83*AG83*AH83 -> 1628.16 | AJ83: =AI83/'DNSP Inputs O & M'!$E$25*(AG74+AG75)/AG74*0.8 -> 488.448 | AK83: =(AJ83+AJ84)/AG$74 -> 8.743771824 | AM83: ='DNSP Inputs O & M'!$E$12 -> 101.76 | AN83: ='DNSP Inputs O & M'!$E$33 -> 2 | AO83: ='DNSP Inputs O & M'!$E$17 -> 8 | AP83: =AM83*AN83*AO83 -> 1628.16 | AQ83: =AP83/'DNSP Inputs O & M'!$E$25*(AN74+AN75)/AN74*0.8 -> 488.448 | AR83: =(AQ83+AQ84)/AN74 -> 10.49252619 | AV83: ='DNSP Inputs O & M'!$F$12 -> 103.550976 | AW83: ='DNSP Inputs O & M'!$F$33 -> 2 | AX83: ='DNSP Inputs O & M'!$F$17 -> 8 | AY83: =AV83*AW83*AX83 -> 1656.815616 | AZ83: =AY83/'DNSP Inputs O & M'!$F$25*(AW74+AW75)/AW74*0.8 -> 497.0446848 | BA83: =(AZ83+AZ84)/AW74 -> 7.013387556 | BC83: ='DNSP Inputs O & M'!$F$12 -> 103.550976 | BD83: ='DNSP Inputs O & M'!$F$33 -> 2 | BE83: ='DNSP Inputs O & M'!$F$17 -> 8 | BF83: =BC83*BD83*BE83 -> 1656.815616 | BG83: =BF83/'DNSP Inputs O & M'!$F$25*(BD74+BD75)/BD74*0.8 -> 497.0446848 | BH83: =(BG83+BG84)/BD$74 -> 8.897170164 | BJ83: ='DNSP Inputs O & M'!$F$12 -> 103.550976 | BK83: ='DNSP Inputs O & M'!$F$33 -> 2 | BL83: ='DNSP Inputs O & M'!$F$17 -> 8 | BM83: =BJ83*BK83*BL83 -> 1656.815616 | BN83: =BM83/'DNSP Inputs O & M'!$F$25*(BK74+BK75)/BK74*0.8 -> 497.0446848 | BO83: =(BN83+BN84)/BK74 -> 10.6766042 | BS83: ='DNSP Inputs O & M'!$G$12 -> 105.3734732 | BT83: ='DNSP Inputs O & M'!$G$33 -> 2 | BU83: ='DNSP Inputs O & M'!$G$17 -> 8 | BV83: =BS83*BT83*BU83 -> 1685.975571 | BW83: =BV83/'DNSP Inputs O & M'!$G$25*(BT74+BT75)/BT74*0.8 -> 505.7926713 | BX83: =(BW83+BW84)/BT74 -> 7.114637399 | BZ83: ='DNSP Inputs O & M'!$G$12 -> 105.3734732 | CA83: ='DNSP Inputs O & M'!$G$33 -> 2 | CB83: ='DNSP Inputs O & M'!$G$17 -> 8 | CC83: =BZ83*CA83*CB83 -> 1685.975571 | CD83: =CC83/'DNSP Inputs O & M'!$G$25*(CA74+CA75)/CA74*0.8 -> 505.7926713 | CE83: =(CD83+CD84)/CA$74 -> 9.052871129 | CG83: ='DNSP Inputs O & M'!$G$12 -> 105.3734732 | CH83: ='DNSP Inputs O & M'!$G$33 -> 2 | CI83: ='DNSP Inputs O & M'!$G$17 -> 8 | CJ83: =CG83*CH83*CI83 -> 1685.975571 | CK83: =CJ83/'DNSP Inputs O & M'!$G$25*(CH74+CH75)/CH74*0.8 -> 505.7926713 | CL83: =(CK83+CK84)/CH74 -> 10.86344535 | CP83: ='DNSP Inputs O & M'!$H$12 -> 107.2280463 | CQ83: ='DNSP Inputs O & M'!$H$33 -> 2 | CR83: ='DNSP Inputs O & M'!$H$17 -> 8 | CS83: =CP83*CQ83*CR83 -> 1715.648741 | CT83: =CS83/'DNSP Inputs O & M'!$H$25*(CQ74+CQ75)/CQ74*0.8 -> 514.6946223 | CU83: =(CT83+CT84)/CQ74 -> 7.217669239 | CW83: ='DNSP Inputs O & M'!$H$12 -> 107.2280463 | CX83: ='DNSP Inputs O & M'!$H$33 -> 2 | CY83: ='DNSP Inputs O & M'!$H$17 -> 8 | CZ83: =CW83*CX83*CY83 -> 1715.648741 | DA83: =CZ83/'DNSP Inputs O & M'!$H$25*(CX74+CX75)/CX74*0.8 -> 514.6946223 | DB83: =(DA83+DA84)/CX$74 -> 9.211890151 | DD83: ='DNSP Inputs O & M'!$H$12 -> 107.2280463 | DE83: ='DNSP Inputs O & M'!$H$33 -> 2 | DF83: ='DNSP Inputs O & M'!$H$17 -> 8 | DG83: =DD83*DE83*DF83 -> 1715.648741 | DH83: =DG83/'DNSP Inputs O & M'!$H$25*(DE74+DE75)/DE74*0.8 -> 514.6946223 | DI83: =(DH83+DH84)/DE74 -> 11.05426818
A84: Elevated platform costs | B84: ='DNSP Inputs O & M'!$D$14 -> 45.38 | C84: 1 | D84: ='DNSP Inputs O & M'!$D$17 -> 8 | E84: =B84*C84*D84 -> 363.04 | F84: =E84/'DNSP Inputs O & M'!$D$25*(C74+C75)/C74*0.8 -> 108.912 | I84: ='DNSP Inputs O & M'!$D$15 -> 57.55345553 | J84: 1 | K84: ='DNSP Inputs O & M'!$D$17 -> 8 | L84: =I84*J84*K84 -> 460.4276442 | M84: =L84/'DNSP Inputs O & M'!$D$25*(J74+J75)/J74*0.8 -> 138.1282933 | P84: ='DNSP Inputs O & M'!$D$15 -> 57.55345553 | Q84: 1 | R84: ='DNSP Inputs O & M'!$D$17 -> 8 | S84: =P84*Q84*R84 -> 460.4276442 | T84: =S84/'DNSP Inputs O & M'!$D$25*(Q74+Q75)/Q74*0.8 -> 138.1282933 | Y84: ='DNSP Inputs O & M'!$E$14 -> 45.38 | Z84: 1 | AA84: ='DNSP Inputs O & M'!$E$17 -> 8 | AB84: =Y84*Z84*AA84 -> 363.04 | AC84: =AB84/'DNSP Inputs O & M'!$E$25*(Z74+Z75)/Z74*0.8 -> 108.912 | AF84: ='DNSP Inputs O & M'!$E$15 -> 58.79315472 | AG84: 1 | AH84: ='DNSP Inputs O & M'!$E$17 -> 8 | AI84: =AF84*AG84*AH84 -> 470.3452378 | AJ84: =AI84/'DNSP Inputs O & M'!$E$25*(AG74+AG75)/AG74*0.8 -> 141.1035713 | AM84: ='DNSP Inputs O & M'!$E$15 -> 58.79315472 | AN84: 1 | AO84: ='DNSP Inputs O & M'!$E$17 -> 8 | AP84: =AM84*AN84*AO84 -> 470.3452378 | AQ84: =AP84/'DNSP Inputs O & M'!$E$25*(AN74+AN75)/AN74*0.8 -> 141.1035713 | AV84: ='DNSP Inputs O & M'!$F$14 -> 45.38 | AW84: 1 | AX84: ='DNSP Inputs O & M'!$F$17 -> 8 | AY84: =AV84*AW84*AX84 -> 363.04 | AZ84: =AY84/'DNSP Inputs O & M'!$F$25*(AW74+AW75)/AW74*0.8 -> 108.912 | BC84: ='DNSP Inputs O & M'!$F$15 -> 59.81315292 | BD84: 1 | BE84: ='DNSP Inputs O & M'!$F$17 -> 8 | BF84: =BC84*BD84*BE84 -> 478.5052234 | BG84: =BF84/'DNSP Inputs O & M'!$F$25*(BD74+BD75)/BD74*0.8 -> 143.551567 | BJ84: ='DNSP Inputs O & M'!$F$15 -> 59.81315292 | BK84: 1 | BL84: ='DNSP Inputs O & M'!$F$17 -> 8 | BM84: =BJ84*BK84*BL84 -> 478.5052234 | BN84: =BM84/'DNSP Inputs O & M'!$F$25*(BK74+BK75)/BK74*0.8 -> 143.551567 | BS84: ='DNSP Inputs O & M'!$G$14 -> 45.38 | BT84: 1 | BU84: ='DNSP Inputs O & M'!$G$17 -> 8 | BV84: =BS84*BT84*BU84 -> 363.04 | BW84: =BV84/'DNSP Inputs O & M'!$G$25*(BT74+BT75)/BT74*0.8 -> 108.912 | BZ84: ='DNSP Inputs O & M'!$G$15 -> 60.83918751 | CA84: 1 | CB84: ='DNSP Inputs O & M'!$G$17 -> 8 | CC84: =BZ84*CA84*CB84 -> 486.7135001 | CD84: =CC84/'DNSP Inputs O & M'!$G$25*(CA74+CA75)/CA74*0.8 -> 146.01405 | CG84: ='DNSP Inputs O & M'!$G$15 -> 60.83918751 | CH84: 1 | CI84: ='DNSP Inputs O & M'!$G$17 -> 8 | CJ84: =CG84*CH84*CI84 -> 486.7135001 | CK84: =CJ84/'DNSP Inputs O & M'!$G$25*(CH74+CH75)/CH74*0.8 -> 146.01405 | CP84: ='DNSP Inputs O & M'!$H$14 -> 45.38 | CQ84: 1 | CR84: ='DNSP Inputs O & M'!$H$17 -> 8 | CS84: =CP84*CQ84*CR84 -> 363.04 | CT84: =CS84/'DNSP Inputs O & M'!$H$25*(CQ74+CQ75)/CQ74*0.8 -> 108.912 | CW84: ='DNSP Inputs O & M'!$H$15 -> 61.90061193 | CX84: 1 | CY84: ='DNSP Inputs O & M'!$H$17 -> 8 | CZ84: =CW84*CX84*CY84 -> 495.2048955 | DA84: =CZ84/'DNSP Inputs O & M'!$H$25*(CX74+CX75)/CX74*0.8 -> 148.5614686 | DD84: ='DNSP Inputs O & M'!$H$15 -> 61.90061193 | DE84: 1 | DF84: ='DNSP Inputs O & M'!$H$17 -> 8 | DG84: =DD84*DE84*DF84 -> 495.2048955 | DH84: =DG84/'DNSP Inputs O & M'!$H$25*(DE74+DE75)/DE74*0.8 -> 148.5614686
A85: Labour - repair of faults
A86: Crew costs | B86: ='DNSP Inputs O & M'!$D$12 -> 100 | C86: ='DNSP Inputs O & M'!$D$33 -> 2 | D86: ='DNSP Inputs O & M'!$D$17 -> 8 | E86: =B86*C86*D86 -> 1600 | F86: =(E86+E87)/'DNSP Inputs O & M'!$D$37 -> 68.16111111 | G86: =F86*D63 -> 2.648987465 | I86: ='DNSP Inputs O & M'!$D$12 -> 100 | J86: ='DNSP Inputs O & M'!$D$33 -> 2 | K86: ='DNSP Inputs O & M'!$D$17 -> 8 | L86: =I86*J86*K86 -> 1600 | M86: =(L86+L87)/'DNSP Inputs O & M'!$D$38 -> 85.85115184 | N86: =M86*$D$63 -> 3.336486472 | P86: ='DNSP Inputs O & M'!$D$12 -> 100 | Q86: ='DNSP Inputs O & M'!$D$33 -> 2 | R86: ='DNSP Inputs O & M'!$D$17 -> 8 | S86: =P86*Q86*R86 -> 1600 | T86: =(S86+S87)/'DNSP Inputs O & M'!$D$39 -> 107.3139398 | U86: =T86*D63 -> 4.17060809 | Y86: ='DNSP Inputs O & M'!$E$12 -> 101.76 | Z86: ='DNSP Inputs O & M'!$E$33 -> 2 | AA86: ='DNSP Inputs O & M'!$E$17 -> 8 | AB86: =Y86*Z86*AA86 -> 1628.16 | AC86: =(AB86+AB87)/'DNSP Inputs O & M'!$E$37 -> 69.13888889 | AD86: =AC86*AA63 -> 2.686987449 | AF86: ='DNSP Inputs O & M'!$E$12 -> 101.76 | AG86: ='DNSP Inputs O & M'!$E$33 -> 2 | AH86: ='DNSP Inputs O & M'!$E$17 -> 8 | AI86: =AF86*AG86*AH86 -> 1628.16 | AJ86: =(AI86+AI87)/'DNSP Inputs O & M'!$E$38 -> 87.43771824 | AK86: =AJ86*$AA$63 -> 3.398146184 | AM86: ='DNSP Inputs O & M'!$E$12 -> 101.76 | AN86: ='DNSP Inputs O & M'!$E$33 -> 2 | AO86: ='DNSP Inputs O & M'!$E$17 -> 8 | AP86: =AM86*AN86*AO86 -> 1628.16 | AQ86: =(AP86+AP87)/'DNSP Inputs O & M'!$E$39 -> 109.2971478 | AR86: =AQ86*AA63 -> 4.24768273 | AV86: ='DNSP Inputs O & M'!$F$12 -> 103.550976 | AW86: ='DNSP Inputs O & M'!$F$33 -> 2 | AX86: ='DNSP Inputs O & M'!$F$17 -> 8 | AY86: =AV86*AW86*AX86 -> 1656.815616 | AZ86: =(AY86+AY87)/'DNSP Inputs O & M'!$F$37 -> 70.13387556 | BA86: =AZ86*AX63 -> 2.725656231 | BC86: ='DNSP Inputs O & M'!$F$12 -> 103.550976 | BD86: ='DNSP Inputs O & M'!$F$33 -> 2 | BE86: ='DNSP Inputs O & M'!$F$17 -> 8 | BF86: =BC86*BD86*BE86 -> 1656.815616 | BG86: =(BF86+BF87)/'DNSP Inputs O & M'!$F$38 -> 88.97170164 | BH86: =BG86*$AX$63 -> 3.457762331 | BJ86: ='DNSP Inputs O & M'!$F$12 -> 103.550976 | BK86: ='DNSP Inputs O & M'!$F$33 -> 2 | BL86: ='DNSP Inputs O & M'!$F$17 -> 8 | BM86: =BJ86*BK86*BL86 -> 1656.815616 | BN86: =(BM86+BM87)/'DNSP Inputs O & M'!$F$39 -> 111.214627 | BO86: =BN86*AX63 -> 4.322202913 | BS86: ='DNSP Inputs O & M'!$G$12 -> 105.3734732 | BT86: ='DNSP Inputs O & M'!$G$33 -> 2 | BU86: ='DNSP Inputs O & M'!$G$17 -> 8 | BV86: =BS86*BT86*BU86 -> 1685.975571 | BW86: =(BV86+BV87)/'DNSP Inputs O & M'!$G$37 -> 71.14637399 | BX86: =BW86*BU63 -> 2.765005585 | BZ86: ='DNSP Inputs O & M'!$G$12 -> 105.3734732 | CA86: ='DNSP Inputs O & M'!$G$33 -> 2 | CB86: ='DNSP Inputs O & M'!$G$17 -> 8 | CC86: =BZ86*CA86*CB86 -> 1685.975571 | CD86: =(CC86+CC87)/'DNSP Inputs O & M'!$G$38 -> 90.52871129 | CE86: =CD86*$BU$63 -> 3.518273361 | CG86: ='DNSP Inputs O & M'!$G$12 -> 105.3734732 | CH86: ='DNSP Inputs O & M'!$G$33 -> 2 | CI86: ='DNSP Inputs O & M'!$G$17 -> 8 | CJ86: =CG86*CH86*CI86 -> 1685.975571 | CK86: =(CJ86+CJ87)/'DNSP Inputs O & M'!$G$39 -> 113.1608891 | CL86: =CK86*BU63 -> 4.397841701 | CP86: ='DNSP Inputs O & M'!$H$12 -> 107.2280463 | CQ86: ='DNSP Inputs O & M'!$H$33 -> 2 | CR86: ='DNSP Inputs O & M'!$H$17 -> 8 | CS86: =CP86*CQ86*CR86 -> 1715.648741 | CT86: =(CS86+CS87)/'DNSP Inputs O & M'!$H$37 -> 72.17669239 | CU86: =CT86*CR63 -> 2.805047487 | CW86: ='DNSP Inputs O & M'!$H$12 -> 107.2280463 | CX86: ='DNSP Inputs O & M'!$H$33 -> 2 | CY86: ='DNSP Inputs O & M'!$H$17 -> 8 | CZ86: =CW86*CX86*CY86 -> 1715.648741 | DA86: =(CZ86+CZ87)/'DNSP Inputs O & M'!$H$38 -> 92.11890151 | DB86: =DA86*$CR$63 -> 3.580073908 | DD86: ='DNSP Inputs O & M'!$H$12 -> 107.2280463 | DE86: ='DNSP Inputs O & M'!$H$33 -> 2 | DF86: ='DNSP Inputs O & M'!$H$17 -> 8 | DG86: =DD86*DE86*DF86 -> 1715.648741 | DH86: =(DG86+DG87)/'DNSP Inputs O & M'!$H$39 -> 115.1486269 | DI86: =DH86*CR63 -> 4.475092385
A87: Elevated platform costs | B87: ='DNSP Inputs O & M'!$D$14 -> 45.38 | C87: 1 | D87: ='DNSP Inputs O & M'!$D$17 -> 8 | E87: =B87*C87*D87 -> 363.04 | I87: ='DNSP Inputs O & M'!$D$15 -> 57.55345553 | J87: 1 | K87: ='DNSP Inputs O & M'!$D$17 -> 8 | L87: =I87*J87*K87 -> 460.4276442 | P87: ='DNSP Inputs O & M'!$D$15 -> 57.55345553 | Q87: 1 | R87: ='DNSP Inputs O & M'!$D$17 -> 8 | S87: =P87*Q87*R87 -> 460.4276442 | Y87: ='DNSP Inputs O & M'!$E$14 -> 45.38 | Z87: 1 | AA87: ='DNSP Inputs O & M'!$E$17 -> 8 | AB87: =Y87*Z87*AA87 -> 363.04 | AF87: ='DNSP Inputs O & M'!$E$15 -> 58.79315472 | AG87: 1 | AH87: ='DNSP Inputs O & M'!$E$17 -> 8 | AI87: =AF87*AG87*AH87 -> 470.3452378 | AM87: ='DNSP Inputs O & M'!$E$15 -> 58.79315472 | AN87: 1 | AO87: ='DNSP Inputs O & M'!$E$17 -> 8 | AP87: =AM87*AN87*AO87 -> 470.3452378 | AV87: ='DNSP Inputs O & M'!$F$14 -> 45.38 | AW87: 1 | AX87: ='DNSP Inputs O & M'!$F$17 -> 8 | AY87: =AV87*AW87*AX87 -> 363.04 | BC87: ='DNSP Inputs O & M'!$F$15 -> 59.81315292 | BD87: 1 | BE87: ='DNSP Inputs O & M'!$F$17 -> 8 | BF87: =BC87*BD87*BE87 -> 478.5052234 | BJ87: ='DNSP Inputs O & M'!$F$15 -> 59.81315292 | BK87: 1 | BL87: ='DNSP Inputs O & M'!$F$17 -> 8 | BM87: =BJ87*BK87*BL87 -> 478.5052234 | BS87: ='DNSP Inputs O & M'!$G$14 -> 45.38 | BT87: 1 | BU87: ='DNSP Inputs O & M'!$G$17 -> 8 | BV87: =BS87*BT87*BU87 -> 363.04 | BZ87: ='DNSP Inputs O & M'!$G$15 -> 60.83918751 | CA87: 1 | CB87: ='DNSP Inputs O & M'!$G$17 -> 8 | CC87: =BZ87*CA87*CB87 -> 486.7135001 | CG87: ='DNSP Inputs O & M'!$G$15 -> 60.83918751 | CH87: 1 | CI87: ='DNSP Inputs O & M'!$G$17 -> 8 | CJ87: =CG87*CH87*CI87 -> 486.7135001 | CP87: ='DNSP Inputs O & M'!$H$14 -> 45.38 | CQ87: 1 | CR87: ='DNSP Inputs O & M'!$H$17 -> 8 | CS87: =CP87*CQ87*CR87 -> 363.04 | CW87: ='DNSP Inputs O & M'!$H$15 -> 61.90061193 | CX87: 1 | CY87: ='DNSP Inputs O & M'!$H$17 -> 8 | CZ87: =CW87*CX87*CY87 -> 495.2048955 | DD87: ='DNSP Inputs O & M'!$H$15 -> 61.90061193 | DE87: 1 | DF87: ='DNSP Inputs O & M'!$H$17 -> 8 | DG87: =DD87*DE87*DF87 -> 495.2048955
A88: Other Maintenance and Repair costs | G88: ='DNSP Inputs O & M'!$D$50 -> 0.6437811371 | N88: ='DNSP Inputs O & M'!$D$50 -> 0.6437811371 | U88: ='DNSP Inputs O & M'!$D$50 -> 0.6437811371 | AD88: ='DNSP Inputs O & M'!$E$50 -> 0.7515310912 | AK88: ='DNSP Inputs O & M'!$E$50 -> 0.7515310912 | AR88: ='DNSP Inputs O & M'!$E$50 -> 0.7515310912 | BA88: ='DNSP Inputs O & M'!$F$50 -> 0.8266976827 | BH88: ='DNSP Inputs O & M'!$F$50 -> 0.8266976827 | BO88: ='DNSP Inputs O & M'!$F$50 -> 0.8266976827 | BX88: ='DNSP Inputs O & M'!$G$50 -> 0.9078302578 | CE88: ='DNSP Inputs O & M'!$G$50 -> 0.9078302578 | CL88: ='DNSP Inputs O & M'!$G$50 -> 0.9078302578 | CU88: ='DNSP Inputs O & M'!$H$50 -> 0.9955957736 | DB88: ='DNSP Inputs O & M'!$H$50 -> 0.9955957736 | DI88: ='DNSP Inputs O & M'!$H$50 -> 0.9955957736
A90: Overheads | B90: ='DNSP Inputs O & M'!$D$18 -> 0.25 | G90: =B90*SUM(G74:G88) -> 4.042069271 | I90: ='DNSP Inputs O & M'!$D$18 -> 0.25 | N90: =I90*SUM(N74:N88) -> 4.731937508 | P90: ='DNSP Inputs O & M'!$D$18 -> 0.25 | U90: =P90*SUM(U74:U88) -> 5.369723672 | Y90: ='DNSP Inputs O & M'!$E$18 -> 0.25 | AD90: =Y90*SUM(AD74:AD88) -> 4.1029512 | AF90: ='DNSP Inputs O & M'!$E$18 -> 0.25 | AK90: =AF90*SUM(AK74:AK88) -> 4.813954085 | AM90: ='DNSP Inputs O & M'!$E$18 -> 0.25 | AR90: =AM90*SUM(AR74:AR88) -> 5.463526812 | AV90: ='DNSP Inputs O & M'!$F$18 -> 0.25 | BA90: =AV90*SUM(BA74:BA88) -> 4.15628471 | BC90: ='DNSP Inputs O & M'!$F$18 -> 0.25 | BH90: =BC90*SUM(BH74:BH88) -> 4.885999354 | BJ90: ='DNSP Inputs O & M'!$F$18 -> 0.25 | BO90: =BJ90*SUM(BO74:BO88) -> 5.546968008 | BS90: ='DNSP Inputs O & M'!$G$18 -> 0.25 | BX90: =BS90*SUM(BX74:BX88) -> 4.211717653 | BZ90: ='DNSP Inputs O & M'!$G$18 -> 0.25 | CE90: =BZ90*SUM(CE74:CE88) -> 4.960335497 | CG90: ='DNSP Inputs O & M'!$G$18 -> 0.25 | CL90: =CG90*SUM(CL74:CL88) -> 5.632871138 | CP90: ='DNSP Inputs O & M'!$H$18 -> 0.25 | CU90: =CP90*SUM(CU74:CU88) -> 4.269427468 | CW90: ='DNSP Inputs O & M'!$H$18 -> 0.25 | DB90: =CW90*SUM(DB74:DB88) -> 5.037481768 | DD90: ='DNSP Inputs O & M'!$H$18 -> 0.25 | DI90: =DD90*SUM(DI74:DI88) -> 5.721830895
G92: =SUM(G74,G78,G83,G86,G88,G90) -> 20.21034636 | N92: =SUM(N74,N78,N83,N86,N88,N90) -> 23.65968754 | U92: =SUM(U74,U78,U83,U86,U88,U90) -> 26.84861836 | AD92: =SUM(AD74,AD78,AD83,AD86,AD88,AD90) -> 20.514756 | AK92: =SUM(AK74,AK78,AK83,AK86,AK88,AK90) -> 24.06977042 | AR92: =SUM(AR74,AR78,AR83,AR86,AR88,AR90) -> 27.31763406 | BA92: =SUM(BA74,BA78,BA83,BA86,BA88,BA90) -> 20.78142355 | BH92: =SUM(BH74,BH78,BH83,BH86,BH88,BH90) -> 24.42999677 | BO92: =SUM(BO74,BO78,BO83,BO86,BO88,BO90) -> 27.73484004 | BX92: =SUM(BX74,BX78,BX83,BX86,BX88,BX90) -> 21.05858827 | CE92: =SUM(CE74,CE78,CE83,CE86,CE88,CE90) -> 24.80167748 | CL92: =SUM(CL74,CL78,CL83,CL86,CL88,CL90) -> 28.16435569 | CU92: =SUM(CU74,CU78,CU83,CU86,CU88,CU90) -> 21.34713734 | DB92: =SUM(DB74,DB78,DB83,DB86,DB88,DB90) -> 25.18740884 | DI92: =SUM(DI74,DI78,DI83,DI86,DI88,DI90) -> 28.60915447
A94: Dedicated poles - inspection
A95: Crew costs | B95: ='DNSP Inputs O & M'!$D$12 -> 100 | C95: 1 | D95: ='DNSP Inputs O & M'!$D$17 -> 8 | E95: =B95*C95*D95 -> 800 | F95: =(E95+E96+E97)/'DNSP Inputs O & M'!$D$125 -> 262.16 | G95: =F95/'DNSP Inputs O & M'!$D$126 -> 3.641111111 | I95: ='DNSP Inputs O & M'!$D$12 -> 100 | J95: 1 | K95: ='DNSP Inputs O & M'!$D$17 -> 8 | L95: =I95*J95*K95 -> 800 | M95: =(L95+L96+L97)/'DNSP Inputs O & M'!$D$125 -> 262.16 | N95: =M95/'DNSP Inputs O & M'!$D$126 -> 3.641111111 | P95: ='DNSP Inputs O & M'!$D$12 -> 100 | Q95: 1 | R95: ='DNSP Inputs O & M'!$D$17 -> 8 | S95: =P95*Q95*R95 -> 800 | T95: =(S95+S96+S97)/'DNSP Inputs O & M'!$D$125 -> 262.16 | U95: =T95/'DNSP Inputs O & M'!$D$126 -> 3.641111111 | Y95: ='DNSP Inputs O & M'!$E$12 -> 101.76 | Z95: 1 | AA95: ='DNSP Inputs O & M'!$E$17 -> 8 | AB95: =Y95*Z95*AA95 -> 814.08 | AC95: =(AB95+AB96+AB97)/'DNSP Inputs O & M'!$E$125 -> 265.68 | AD95: =AC95/'DNSP Inputs O & M'!$E$126 -> 3.69 | AF95: ='DNSP Inputs O & M'!$E$12 -> 101.76 | AG95: 1 | AH95: ='DNSP Inputs O & M'!$E$17 -> 8 | AI95: =AF95*AG95*AH95 -> 814.08 | AJ95: =(AI95+AI96+AI97)/'DNSP Inputs O & M'!$E$125 -> 265.68 | AK95: =AJ95/'DNSP Inputs O & M'!$E$126 -> 3.69 | AM95: ='DNSP Inputs O & M'!$E$12 -> 101.76 | AN95: 1 | AO95: ='DNSP Inputs O & M'!$E$17 -> 8 | AP95: =AM95*AN95*AO95 -> 814.08 | AQ95: =(AP95+AP96+AP97)/'DNSP Inputs O & M'!$E$125 -> 265.68 | AR95: =AQ95/'DNSP Inputs O & M'!$E$126 -> 3.69 | AV95: ='DNSP Inputs O & M'!$F$12 -> 103.550976 | AW95: 1 | AX95: ='DNSP Inputs O & M'!$F$17 -> 8 | AY95: =AV95*AW95*AX95 -> 828.407808 | AZ95: =(AY95+AY96+AY97)/'DNSP Inputs O & M'!$F$125 -> 269.261952 | BA95: =AZ95/'DNSP Inputs O & M'!$F$126 -> 3.739749333 | BC95: ='DNSP Inputs O & M'!$F$12 -> 103.550976 | BD95: 1 | BE95: ='DNSP Inputs O & M'!$F$17 -> 8 | BF95: =BC95*BD95*BE95 -> 828.407808 | BG95: =(BF95+BF96+BF97)/'DNSP Inputs O & M'!$F$125 -> 269.261952 | BH95: =BG95/'DNSP Inputs O & M'!$F$126 -> 3.739749333 | BJ95: ='DNSP Inputs O & M'!$F$12 -> 103.550976 | BK95: 1 | BL95: ='DNSP Inputs O & M'!$F$17 -> 8 | BM95: =BJ95*BK95*BL95 -> 828.407808 | BN95: =(BM95+BM96+BM97)/'DNSP Inputs O & M'!$F$125 -> 269.261952 | BO95: =BN95/'DNSP Inputs O & M'!$F$126 -> 3.739749333 | BS95: ='DNSP Inputs O & M'!$G$12 -> 105.3734732 | BT95: 1 | BU95: ='DNSP Inputs O & M'!$G$17 -> 8 | BV95: =BS95*BT95*BU95 -> 842.9877854 | BW95: =(BV95+BV96+BV97)/'DNSP Inputs O & M'!$G$125 -> 272.9069464 | BX95: =BW95/'DNSP Inputs O & M'!$G$126 -> 3.790374255 | BZ95: ='DNSP Inputs O & M'!$G$12 -> 105.3734732 | CA95: 1 | CB95: ='DNSP Inputs O & M'!$G$17 -> 8 | CC95: =BZ95*CA95*CB95 -> 842.9877854 | CD95: =(CC95+CC96+CC97)/'DNSP Inputs O & M'!$G$125 -> 272.9069464 | CE95: =CD95/'DNSP Inputs O & M'!$G$126 -> 3.790374255 | CG95: ='DNSP Inputs O & M'!$G$12 -> 105.3734732 | CH95: 1 | CI95: ='DNSP Inputs O & M'!$G$17 -> 8 | CJ95: =CG95*CH95*CI95 -> 842.9877854 | CK95: =(CJ95+CJ96+CJ97)/'DNSP Inputs O & M'!$G$125 -> 272.9069464 | CL95: =CK95/'DNSP Inputs O & M'!$G$126 -> 3.790374255 | CP95: ='DNSP Inputs O & M'!$H$12 -> 107.2280463 | CQ95: 1 | CR95: ='DNSP Inputs O & M'!$H$17 -> 8 | CS95: =CP95*CQ95*CR95 -> 857.8243704 | CT95: =(CS95+CS96+CS97)/'DNSP Inputs O & M'!$H$125 -> 276.6160926 | CU95: =CT95/'DNSP Inputs O & M'!$H$126 -> 3.841890175 | CW95: ='DNSP Inputs O & M'!$H$12 -> 107.2280463 | CX95: 1 | CY95: ='DNSP Inputs O & M'!$H$17 -> 8 | CZ95: =CW95*CX95*CY95 -> 857.8243704 | DA95: =(CZ95+CZ96+CZ97)/'DNSP Inputs O & M'!$H$125 -> 276.6160926 | DB95: =DA95/'DNSP Inputs O & M'!$H$126 -> 3.841890175 | DD95: ='DNSP Inputs O & M'!$H$12 -> 107.2280463 | DE95: 1 | DF95: ='DNSP Inputs O & M'!$H$17 -> 8 | DG95: =DD95*DE95*DF95 -> 857.8243704 | DH95: =(DG95+DG96+DG97)/'DNSP Inputs O & M'!$H$125 -> 276.6160926 | DI95: =DH95/'DNSP Inputs O & M'!$H$126 -> 3.841890175
A96: Vehicle costs | B96: ='DNSP Inputs O & M'!$D$16 -> 31.08 | C96: 1 | D96: ='DNSP Inputs O & M'!$D$17 -> 8 | E96: =B96*C96*D96 -> 248.64 | I96: ='DNSP Inputs O & M'!$D$16 -> 31.08 | J96: 1 | K96: ='DNSP Inputs O & M'!$D$17 -> 8 | L96: =I96*J96*K96 -> 248.64 | P96: ='DNSP Inputs O & M'!$D$16 -> 31.08 | Q96: 1 | R96: ='DNSP Inputs O & M'!$D$17 -> 8 | S96: =P96*Q96*R96 -> 248.64 | Y96: ='DNSP Inputs O & M'!$E$16 -> 31.08 | Z96: 1 | AA96: ='DNSP Inputs O & M'!$E$17 -> 8 | AB96: =Y96*Z96*AA96 -> 248.64 | AF96: ='DNSP Inputs O & M'!$E$16 -> 31.08 | AG96: 1 | AH96: ='DNSP Inputs O & M'!$E$17 -> 8 | AI96: =AF96*AG96*AH96 -> 248.64 | AM96: ='DNSP Inputs O & M'!$E$16 -> 31.08 | AN96: 1 | AO96: ='DNSP Inputs O & M'!$E$17 -> 8 | AP96: =AM96*AN96*AO96 -> 248.64 | AV96: ='DNSP Inputs O & M'!$F$16 -> 31.08 | AW96: 1 | AX96: ='DNSP Inputs O & M'!$F$17 -> 8 | AY96: =AV96*AW96*AX96 -> 248.64 | BC96: ='DNSP Inputs O & M'!$F$16 -> 31.08 | BD96: 1 | BE96: ='DNSP Inputs O & M'!$F$17 -> 8 | BF96: =BC96*BD96*BE96 -> 248.64 | BJ96: ='DNSP Inputs O & M'!$F$16 -> 31.08 | BK96: 1 | BL96: ='DNSP Inputs O & M'!$F$17 -> 8 | BM96: =BJ96*BK96*BL96 -> 248.64 | BS96: ='DNSP Inputs O & M'!$G$16 -> 31.08 | BT96: 1 | BU96: ='DNSP Inputs O & M'!$G$17 -> 8 | BV96: =BS96*BT96*BU96 -> 248.64 | BZ96: ='DNSP Inputs O & M'!$G$16 -> 31.08 | CA96: 1 | CB96: ='DNSP Inputs O & M'!$G$17 -> 8 | CC96: =BZ96*CA96*CB96 -> 248.64 | CG96: ='DNSP Inputs O & M'!$G$16 -> 31.08 | CH96: 1 | CI96: ='DNSP Inputs O & M'!$G$17 -> 8 | CJ96: =CG96*CH96*CI96 -> 248.64 | CP96: ='DNSP Inputs O & M'!$H$16 -> 31.08 | CQ96: 1 | CR96: ='DNSP Inputs O & M'!$H$17 -> 8 | CS96: =CP96*CQ96*CR96 -> 248.64 | CW96: ='DNSP Inputs O & M'!$H$16 -> 31.08 | CX96: 1 | CY96: ='DNSP Inputs O & M'!$H$17 -> 8 | CZ96: =CW96*CX96*CY96 -> 248.64 | DD96: ='DNSP Inputs O & M'!$H$16 -> 31.08 | DE96: 1 | DF96: ='DNSP Inputs O & M'!$H$17 -> 8 | DG96: =DD96*DE96*DF96 -> 248.64
A97: Overheads | B97: ='DNSP Inputs O & M'!$D$18 -> 0.25 | E97: =B97*(E95+E96) -> 262.16 | I97: ='DNSP Inputs O & M'!$D$18 -> 0.25 | L97: =I97*(L95+L96) -> 262.16 | P97: ='DNSP Inputs O & M'!$D$18 -> 0.25 | S97: =P97*(S95+S96) -> 262.16 | Y97: ='DNSP Inputs O & M'!$E$18 -> 0.25 | AB97: =Y97*(AB95+AB96) -> 265.68 | AF97: ='DNSP Inputs O & M'!$E$18 -> 0.25 | AI97: =AF97*(AI95+AI96) -> 265.68 | AM97: ='DNSP Inputs O & M'!$E$18 -> 0.25 | AP97: =AM97*(AP95+AP96) -> 265.68 | AV97: ='DNSP Inputs O & M'!$F$18 -> 0.25 | AY97: =AV97*(AY95+AY96) -> 269.261952 | BC97: ='DNSP Inputs O & M'!$F$18 -> 0.25 | BF97: =BC97*(BF95+BF96) -> 269.261952 | BJ97: ='DNSP Inputs O & M'!$F$18 -> 0.25 | BM97: =BJ97*(BM95+BM96) -> 269.261952 | BS97: ='DNSP Inputs O & M'!$G$18 -> 0.25 | BV97: =BS97*(BV95+BV96) -> 272.9069464 | BZ97: ='DNSP Inputs O & M'!$G$18 -> 0.25 | CC97: =BZ97*(CC95+CC96) -> 272.9069464 | CG97: ='DNSP Inputs O & M'!$G$18 -> 0.25 | CJ97: =CG97*(CJ95+CJ96) -> 272.9069464 | CP97: ='DNSP Inputs O & M'!$H$18 -> 0.25 | CS97: =CP97*(CS95+CS96) -> 276.6160926 | CW97: ='DNSP Inputs O & M'!$H$18 -> 0.25 | CZ97: =CW97*(CZ95+CZ96) -> 276.6160926 | DD97: ='DNSP Inputs O & M'!$H$18 -> 0.25 | DG97: =DD97*(DG95+DG96) -> 276.6160926
A102: Sodium High Pressure 150 Watt Standard Light Type - Cost build-up
A104: Additional assumptions
A105: Overheads are applied to material and labour components
A106: All costs and charges are exclusive of GST
B108: Urban | I108: Rural | P108: Remote | Y108: Urban | AF108: Rural | AM108: Remote | AV108: Urban | BC108: Rural | BJ108: Remote | BS108: Urban | BZ108: Rural | CG108: Remote | CP108: Urban | CW108: Rural | DD108: Remote
B110: Unit rate | C110: Number | D110: Hours | E110: Cost | F110: Annualised | G110: Annualised | I110: Unit rate | J110: Number | K110: Hours | L110: Cost | M110: Annualised | N110: Annualised | P110: Unit rate | Q110: Number | R110: Hours | S110: Cost | T110: Annualised | U110: Annualised | Y110: Unit rate | Z110: Number | AA110: Hours | AB110: Cost | AC110: Annualised | AD110: Annualised | AF110: Unit rate | AG110: Number | AH110: Hours | AI110: Cost | AJ110: Annualised | AK110: Annualised | AM110: Unit rate | AN110: Number | AO110: Hours | AP110: Cost | AQ110: Annualised | AR110: Annualised | AV110: Unit rate | AW110: Number | AX110: Hours | AY110: Cost | AZ110: Annualised | BA110: Annualised | BC110: Unit rate | BD110: Number | BE110: Hours | BF110: Cost | BG110: Annualised | BH110: Annualised | BJ110: Unit rate | BK110: Number | BL110: Hours | BM110: Cost | BN110: Annualised | BO110: Annualised | BS110: Unit rate | BT110: Number | BU110: Hours | BV110: Cost | BW110: Annualised | BX110: Annualised | BZ110: Unit rate | CA110: Number | CB110: Hours | CC110: Cost | CD110: Annualised | CE110: Annualised | CG110: Unit rate | CH110: Number | CI110: Hours | CJ110: Cost | CK110: Annualised | CL110: Annualised | CP110: Unit rate | CQ110: Number | CR110: Hours | CS110: Cost | CT110: Annualised | CU110: Annualised | CW110: Unit rate | CX110: Number | CY110: Hours | CZ110: Cost | DA110: Annualised | DB110: Annualised | DD110: Unit rate | DE110: Number | DF110: Hours | DG110: Cost | DH110: Annualised | DI110: Annualised
F111: cost | G111: unit cost | M111: cost | N111: unit cost | T111: cost | U111: unit cost | AC111: cost | AD111: unit cost | AJ111: cost | AK111: unit cost | AQ111: cost | AR111: unit cost | AZ111: cost | BA111: unit cost | BG111: cost | BH111: unit cost | BN111: cost | BO111: unit cost | BW111: cost | BX111: unit cost | CD111: cost | CE111: unit cost | CK111: cost | CL111: unit cost | CT111: cost | CU111: unit cost | DA111: cost | DB111: unit cost | DH111: cost | DI111: unit cost
A112: S-HP 150
A113: Patrols and repairs
A114: Materials
A115: Lamp | B115: ='DNSP Inputs O & M'!$D$65 -> 41.30439954 | C115: ='DNSP Inputs O & M'!$D$73 -> 19.2 | E115: =B115*C115 -> 793.0444711 | F115: =(E115+E116+E117)/'DNSP Inputs O & M'!$D$73 -> 55.0204596 | G115: =F115/'DNSP Inputs O & M'!$D$63 -> 11.00409192 | I115: ='DNSP Inputs O & M'!$D$65*(1+'DNSP Inputs O & M'!$D$11) -> 43.36961951 | J115: ='DNSP Inputs O & M'!$D$74 -> 15.36 | L115: =I115*J115 -> 666.1573557 | M115: =(L115+L116+L117)/'DNSP Inputs O & M'!$D$74 -> 57.77148258 | N115: =M115/'DNSP Inputs O & M'!$D$63 -> 11.55429652 | P115: ='DNSP Inputs O & M'!$D$65*(1+'DNSP Inputs O & M'!$D$11) -> 43.36961951 | Q115: ='DNSP Inputs O & M'!$D$75 -> 11.52 | S115: =P115*Q115 -> 499.6180168 | T115: =(S115+S116+S117)/'DNSP Inputs O & M'!$D$75 -> 57.77148258 | U115: =T115/'DNSP Inputs O & M'!$D$63 -> 11.55429652 | Y115: ='DNSP Inputs O & M'!$E$65 -> 41.30439954 | Z115: ='DNSP Inputs O & M'!$E$73 -> 19.2 | AB115: =Y115*Z115 -> 793.0444711 | AC115: =(AB115+AB116+AB117)/'DNSP Inputs O & M'!$E$73 -> 55.0204596 | AD115: =AC115/'DNSP Inputs O & M'!$E$63 -> 11.00409192 | AF115: ='DNSP Inputs O & M'!$E$65*(1+'DNSP Inputs O & M'!$E$11) -> 43.36961951 | AG115: ='DNSP Inputs O & M'!$E$74 -> 15.36 | AI115: =AF115*AG115 -> 666.1573557 | AJ115: =(AI115+AI116+AI117)/'DNSP Inputs O & M'!$E$74 -> 57.77148258 | AK115: =AJ115/'DNSP Inputs O & M'!$E$63 -> 11.55429652 | AM115: ='DNSP Inputs O & M'!$E$65*(1+'DNSP Inputs O & M'!$E$11) -> 43.36961951 | AN115: ='DNSP Inputs O & M'!$E$75 -> 11.52 | AP115: =AM115*AN115 -> 499.6180168 | AQ115: =(AP115+AP116+AP117)/'DNSP Inputs O & M'!$E$75 -> 57.77148258 | AR115: =AQ115/'DNSP Inputs O & M'!$E$63 -> 11.55429652 | AV115: ='DNSP Inputs O & M'!$F$65 -> 41.30439954 | AW115: ='DNSP Inputs O & M'!$F$73 -> 19.2 | AY115: =AV115*AW115 -> 793.0444711 | AZ115: =(AY115+AY116+AY117)/'DNSP Inputs O & M'!$F$73 -> 55.0204596 | BA115: =AZ115/'DNSP Inputs O & M'!$F$63 -> 11.00409192 | BC115: ='DNSP Inputs O & M'!$F$65*(1+'DNSP Inputs O & M'!$F$11) -> 43.36961951 | BD115: ='DNSP Inputs O & M'!$F$74 -> 15.36 | BF115: =BC115*BD115 -> 666.1573557 | BG115: =(BF115+BF116+BF117)/'DNSP Inputs O & M'!$F$74 -> 57.77148258 | BH115: =BG115/'DNSP Inputs O & M'!$F$63 -> 11.55429652 | BJ115: ='DNSP Inputs O & M'!$F$65*(1+'DNSP Inputs O & M'!$F$11) -> 43.36961951 | BK115: ='DNSP Inputs O & M'!$F$75 -> 11.52 | BM115: =BJ115*BK115 -> 499.6180168 | BN115: =(BM115+BM116+BM117)/'DNSP Inputs O & M'!$F$75 -> 57.77148258 | BO115: =BN115/'DNSP Inputs O & M'!$F$63 -> 11.55429652 | BS115: ='DNSP Inputs O & M'!$G$65 -> 41.30439954 | BT115: ='DNSP Inputs O & M'!$G$73 -> 19.2 | BV115: =BS115*BT115 -> 793.0444711 | BW115: =(BV115+BV116+BV117)/'DNSP Inputs O & M'!$G$73 -> 55.0204596 | BX115: =BW115/'DNSP Inputs O & M'!$G$63 -> 11.00409192 | BZ115: ='DNSP Inputs O & M'!$G$65*(1+'DNSP Inputs O & M'!$G$11) -> 43.36961951 | CA115: ='DNSP Inputs O & M'!$G$74 -> 15.36 | CC115: =BZ115*CA115 -> 666.1573557 | CD115: =(CC115+CC116+CC117)/'DNSP Inputs O & M'!$G$74 -> 57.77148258 | CE115: =CD115/'DNSP Inputs O & M'!$G$63 -> 11.55429652 | CG115: ='DNSP Inputs O & M'!$G$65*(1+'DNSP Inputs O & M'!$G$11) -> 43.36961951 | CH115: ='DNSP Inputs O & M'!$G$75 -> 11.52 | CJ115: =CG115*CH115 -> 499.6180168 | CK115: =(CJ115+CJ116+CJ117)/'DNSP Inputs O & M'!$G$75 -> 57.77148258 | CL115: =CK115/'DNSP Inputs O & M'!$G$63 -> 11.55429652 | CP115: ='DNSP Inputs O & M'!$H$65 -> 41.30439954 | CQ115: ='DNSP Inputs O & M'!$H$73 -> 19.2 | CS115: =CP115*CQ115 -> 793.0444711 | CT115: =(CS115+CS116+CS117)/'DNSP Inputs O & M'!$H$73 -> 55.0204596 | CU115: =CT115/'DNSP Inputs O & M'!$H$63 -> 11.00409192 | CW115: ='DNSP Inputs O & M'!$H$65*(1+'DNSP Inputs O & M'!$H$11) -> 43.36961951 | CX115: ='DNSP Inputs O & M'!$H$74 -> 15.36 | CZ115: =CW115*CX115 -> 666.1573557 | DA115: =(CZ115+CZ116+CZ117)/'DNSP Inputs O & M'!$H$74 -> 57.77148258 | DB115: =DA115/'DNSP Inputs O & M'!$H$63 -> 11.55429652 | DD115: ='DNSP Inputs O & M'!$H$65*(1+'DNSP Inputs O & M'!$H$11) -> 43.36961951 | DE115: ='DNSP Inputs O & M'!$H$75 -> 11.52 | DG115: =DD115*DE115 -> 499.6180168 | DH115: =(DG115+DG116+DG117)/'DNSP Inputs O & M'!$H$75 -> 57.77148258 | DI115: =DH115/'DNSP Inputs O & M'!$H$63 -> 11.55429652
A116: PE cell | B116: ='DNSP Inputs O & M'!$D$66 -> 22.43310051 | C116: =C115*'DNSP Inputs O & M'!$D$63/'DNSP Inputs O & M'!$D$64 -> 9.6 | E116: =B116*C116 -> 215.3577649 | I116: ='DNSP Inputs O & M'!$D$66*(1+'DNSP Inputs O & M'!$D$11) -> 23.55475553 | J116: =J115*'DNSP Inputs O & M'!$D$63/'DNSP Inputs O & M'!$D$64 -> 7.68 | L116: =I116*J116 -> 180.9005225 | P116: ='DNSP Inputs O & M'!$D$66*(1+'DNSP Inputs O & M'!$D$11) -> 23.55475553 | Q116: =Q115*'DNSP Inputs O & M'!$D$63/'DNSP Inputs O & M'!$D$64 -> 5.76 | S116: =P116*Q116 -> 135.6753919 | Y116: ='DNSP Inputs O & M'!$E$66 -> 22.43310051 | Z116: =Z115*'DNSP Inputs O & M'!$E$63/'DNSP Inputs O & M'!$E$64 -> 9.6 | AB116: =Y116*Z116 -> 215.3577649 | AF116: ='DNSP Inputs O & M'!$E$66*(1+'DNSP Inputs O & M'!$E$11) -> 23.55475553 | AG116: =AG115*'DNSP Inputs O & M'!$E$63/'DNSP Inputs O & M'!$E$64 -> 7.68 | AI116: =AF116*AG116 -> 180.9005225 | AM116: ='DNSP Inputs O & M'!$E$66*(1+'DNSP Inputs O & M'!$E$11) -> 23.55475553 | AN116: =AN115*'DNSP Inputs O & M'!$E$63/'DNSP Inputs O & M'!$E$64 -> 5.76 | AP116: =AM116*AN116 -> 135.6753919 | AV116: ='DNSP Inputs O & M'!$F$66 -> 22.43310051 | AW116: =AW115*'DNSP Inputs O & M'!$F$63/'DNSP Inputs O & M'!$F$64 -> 9.6 | AY116: =AV116*AW116 -> 215.3577649 | BC116: ='DNSP Inputs O & M'!$F$66*(1+'DNSP Inputs O & M'!$F$11) -> 23.55475553 | BD116: =BD115*'DNSP Inputs O & M'!$F$63/'DNSP Inputs O & M'!$F$64 -> 7.68 | BF116: =BC116*BD116 -> 180.9005225 | BJ116: ='DNSP Inputs O & M'!$F$66*(1+'DNSP Inputs O & M'!$F$11) -> 23.55475553 | BK116: =BK115*'DNSP Inputs O & M'!$F$63/'DNSP Inputs O & M'!$F$64 -> 5.76 | BM116: =BJ116*BK116 -> 135.6753919 | BS116: ='DNSP Inputs O & M'!$G$66 -> 22.43310051 | BT116: =BT115*'DNSP Inputs O & M'!$G$63/'DNSP Inputs O & M'!$G$64 -> 9.6 | BV116: =BS116*BT116 -> 215.3577649 | BZ116: ='DNSP Inputs O & M'!$G$66*(1+'DNSP Inputs O & M'!$G$11) -> 23.55475553 | CA116: =CA115*'DNSP Inputs O & M'!$G$63/'DNSP Inputs O & M'!$G$64 -> 7.68 | CC116: =BZ116*CA116 -> 180.9005225 | CG116: ='DNSP Inputs O & M'!$G$66*(1+'DNSP Inputs O & M'!$G$11) -> 23.55475553 | CH116: =CH115*'DNSP Inputs O & M'!$G$63/'DNSP Inputs O & M'!$G$64 -> 5.76 | CJ116: =CG116*CH116 -> 135.6753919 | CP116: ='DNSP Inputs O & M'!$H$66 -> 22.43310051 | CQ116: =CQ115*'DNSP Inputs O & M'!$H$63/'DNSP Inputs O & M'!$H$64 -> 9.6 | CS116: =CP116*CQ116 -> 215.3577649 | CW116: ='DNSP Inputs O & M'!$H$66*(1+'DNSP Inputs O & M'!$H$11) -> 23.55475553 | CX116: =CX115*'DNSP Inputs O & M'!$H$63/'DNSP Inputs O & M'!$H$64 -> 7.68 | CZ116: =CW116*CX116 -> 180.9005225 | DD116: ='DNSP Inputs O & M'!$H$66*(1+'DNSP Inputs O & M'!$H$11) -> 23.55475553 | DE116: =DE115*'DNSP Inputs O & M'!$H$63/'DNSP Inputs O & M'!$H$64 -> 5.76 | DG116: =DD116*DE116 -> 135.6753919
A117: Miscellaneous | B117: ='DNSP Inputs O & M'!$D$67 -> 2.499509806 | C117: ='DNSP Inputs O & M'!$D$73 -> 19.2 | E117: =B117*C117 -> 47.99058827 | I117: ='DNSP Inputs O & M'!$D$67*(1+'DNSP Inputs O & M'!$D$11) -> 2.624485296 | J117: ='DNSP Inputs O & M'!$D$74 -> 15.36 | L117: =I117*J117 -> 40.31209415 | P117: ='DNSP Inputs O & M'!$D$67*(1+'DNSP Inputs O & M'!$D$11) -> 2.624485296 | Q117: ='DNSP Inputs O & M'!$D$75 -> 11.52 | S117: =P117*Q117 -> 30.23407061 | Y117: ='DNSP Inputs O & M'!$E$67 -> 2.499509806 | Z117: ='DNSP Inputs O & M'!$E$73 -> 19.2 | AB117: =Y117*Z117 -> 47.99058827 | AF117: ='DNSP Inputs O & M'!$E$67*(1+'DNSP Inputs O & M'!$E$11) -> 2.624485296 | AG117: ='DNSP Inputs O & M'!$E$74 -> 15.36 | AI117: =AF117*AG117 -> 40.31209415 | AM117: ='DNSP Inputs O & M'!$E$67*(1+'DNSP Inputs O & M'!$E$11) -> 2.624485296 | AN117: ='DNSP Inputs O & M'!$E$75 -> 11.52 | AP117: =AM117*AN117 -> 30.23407061 | AV117: ='DNSP Inputs O & M'!$F$67 -> 2.499509806 | AW117: ='DNSP Inputs O & M'!$F$73 -> 19.2 | AY117: =AV117*AW117 -> 47.99058827 | BC117: ='DNSP Inputs O & M'!$F$67*(1+'DNSP Inputs O & M'!$F$11) -> 2.624485296 | BD117: ='DNSP Inputs O & M'!$F$74 -> 15.36 | BF117: =BC117*BD117 -> 40.31209415 | BJ117: ='DNSP Inputs O & M'!$F$67*(1+'DNSP Inputs O & M'!$F$11) -> 2.624485296 | BK117: ='DNSP Inputs O & M'!$F$75 -> 11.52 | BM117: =BJ117*BK117 -> 30.23407061 | BS117: ='DNSP Inputs O & M'!$G$67 -> 2.499509806 | BT117: ='DNSP Inputs O & M'!$G$73 -> 19.2 | BV117: =BS117*BT117 -> 47.99058827 | BZ117: ='DNSP Inputs O & M'!$G$67*(1+'DNSP Inputs O & M'!$G$11) -> 2.624485296 | CA117: ='DNSP Inputs O & M'!$G$74 -> 15.36 | CC117: =BZ117*CA117 -> 40.31209415 | CG117: ='DNSP Inputs O & M'!$G$67*(1+'DNSP Inputs O & M'!$G$11) -> 2.624485296 | CH117: ='DNSP Inputs O & M'!$G$75 -> 11.52 | CJ117: =CG117*CH117 -> 30.23407061 | CP117: ='DNSP Inputs O & M'!$H$67 -> 2.499509806 | CQ117: ='DNSP Inputs O & M'!$H$73 -> 19.2 | CS117: =CP117*CQ117 -> 47.99058827 | CW117: ='DNSP Inputs O & M'!$H$67*(1+'DNSP Inputs O & M'!$H$11) -> 2.624485296 | CX117: ='DNSP Inputs O & M'!$H$74 -> 15.36 | CZ117: =CW117*CX117 -> 40.31209415 | DD117: ='DNSP Inputs O & M'!$H$67*(1+'DNSP Inputs O & M'!$H$11) -> 2.624485296 | DE117: ='DNSP Inputs O & M'!$H$75 -> 11.52 | DG117: =DD117*DE117 -> 30.23407061
A118: Labour - Patrol
